Workbook

Sheet Standard Report (hidden)
A22: Title0 | B22: Nuvigil | C22: Nuvigil | D22: Amrix | E22: Amrix | F22: Fentora | G22: Fentora | H22: Actiq | I22: Actiq | J22: Gabitril | K22: Gabitril | L22: Provigil | M22: Provigil | N22: Copaxone 20 | O22: Copaxone 20 | P22: Copaxone 40 | Q22: Copaxone 40 | R22: Azilect | S22: Azilect
A23: Type | B23: Actual | C23: Forecast (Double Exponential Smoothing-Holt) | D23: Actual | E23: Forecast (Holt-Winters) | F23: Actual | G23: Forecast (Box Jenkins) | H23: Actual | I23: Forecast (Box Jenkins) | J23: Actual | K23: Forecast (Holt-Winters) | L23: Actual | M23: Forecast (Holt-Winters) | N23: Actual | O23: Forecast (Holt-Winters) | P23: Actual | Q23: Forecast (Double Exponential Smoothing-Holt) | R23: Actual | S23: Forecast (Box Jenkins)
A24: 2015-01-02 | B24: 16068 | C24: 15427.64895 | D24: 2965 | E24: 2905.025992 | F24: 380 | G24: 375.9590317 | H24: 35 | I24: 30.9029702 | J24: 448 | K24: 440.4938809 | L24: 671 | M24: 686.1139439 | N24: 4474 | O24: 4471.10962 | P24: 7349 | Q24: 7559.557319 | R24: 9629 | S24: 9224.594222
A25: 2015-01-09 | B25: 15426 | C25: 15489.46358 | D25: 3058 | E25: 2885.006963 | F25: 342 | G25: 359.8525942 | H25: 41 | I25: 31.13359152 | J25: 469 | K25: 472.0622388 | L25: 650 | M25: 680.0798947 | N25: 4406 | O25: 4439.41799 | P25: 7541 | Q25: 7730.216343 | R25: 9742 | S25: 9292.406764
A26: 2015-01-16 | B26: 15761 | C26: 15535.70825 | D26: 3138 | E26: 3046.654863 | F26: 416 | G26: 395.8001267 | H26: 25 | I26: 23.53971556 | J26: 454 | K26: 451.1396076 | L26: 705 | M26: 680.6859748 | N26: 4579 | O26: 4406.469338 | P26: 7414 | Q26: 7892.38322 | R26: 9235 | S26: 9116.199676
A27: 2015-01-23 | B27: 15460 | C27: 15591.33201 | D27: 2981 | E27: 3047.586031 | F27: 354 | G27: 354.5034081 | H27: 24 | I27: 23.99042935 | J27: 423 | K27: 421.6208931 | L27: 719 | M27: 694.9201239 | N27: 4596 | O27: 4505.58985 | P27: 7720 | Q27: 8002.140682 | R27: 8809 | S27: 8941.609189
A28: 2015-01-30 | B28: 15099 | C28: 15637.57765 | D28: 2948 | E28: 2971.695548 | F28: 328 | G28: 377.675192 | H28: 43 | I28: 32.08669918 | J28: 423 | K28: 440.5633357 | L28: 685 | M28: 690.6836884 | N28: 4539 | O28: 4550.095395 | P28: 8252 | Q28: 8114.061327 | R28: 8838 | S28: 9364.113122
A29: 2015-02-06 | B29: 15700 | C29: 15667.28031 | D29: 2924 | E29: 2957.493922 | F29: 377 | G29: 370.6144981 | H29: 37 | I29: 31.54746678 | J29: 475 | K29: 465.1150525 | L29: 781 | M29: 704.9171747 | N29: 4401 | O29: 4511.684666 | P29: 8171 | Q29: 8271.454101 | R29: 9363 | S29: 9429.807074
A30: 2015-02-13 | B30: 15873 | C30: 15709.33921 | D30: 3131 | E30: 3109.252778 | F30: 400 | G30: 396.9640237 | H30: 19 | I30: 23.45169971 | J30: 452 | K30: 448.0614876 | L30: 712 | M30: 702.627381 | N30: 4626 | O30: 4436.211229 | P30: 8562 | Q30: 8401.82096 | R30: 9182 | S30: 9152.889586
A31: 2015-02-20 | B31: 15196 | C31: 15756.57443 | D31: 3030 | E31: 3100.177286 | F31: 330 | G31: 360.4081716 | H31: 31 | I31: 27.35499452 | J31: 421 | K31: 417.9336881 | L31: 660 | M31: 699.0673933 | N31: 4474 | O31: 4546.672526 | P31: 8078 | Q31: 8564.507037 | R31: 8534 | S31: 8911.647331
A32: 2015-02-27 | B32: 15473 | C32: 15780.35302 | D32: 2985 | E32: 3022.631386 | F32: 305 | G32: 354.8923128 | H32: 35 | I32: 36.11219176 | J32: 428 | K32: 425.1088343 | L32: 669 | M32: 705.7278112 | N32: 4812 | O32: 4489.169397 | P32: 9051 | Q32: 8642.098993 | R32: 8845 | S32: 8990.082865
A33: 2015-03-06 | B33: 16018 | C33: 15804.77674 | D33: 3035 | E33: 3004.388721 | F33: 397 | G33: 394.9868326 | H33: 43 | I33: 33.30514844 | J33: 474 | K33: 466.3503306 | L33: 765 | M33: 718.78261 | N33: 4361 | O33: 4658.077946 | P33: 7933 | Q33: 8822.940062 | R33: 9465 | S33: 9264.56065
A34: 2015-03-13 | B34: 16199 | C34: 15843.21299 | D34: 3041 | E34: 3158.364615 | F34: 408 | G34: 389.000533 | H34: 26 | I34: 20.02868169 | J34: 421 | K34: 445.9146699 | L34: 677 | M34: 714.4298608 | N34: 4561 | O34: 4474.493063 | P34: 8890 | Q34: 8837.673025 | R34: 8861 | S34: 9132.103482
A35: 2015-03-20 | B35: 15901 | C35: 15889.95111 | D35: 3023 | E35: 3136.685639 | F35: 390 | G35: 340.5546735 | H35: 32 | I35: 25.8094318 | J35: 399 | K35: 415.3499848 | L35: 716 | M35: 734.0858824 | N35: 4671 | O35: 4517.717196 | P35: 8970 | Q35: 8940.250782 | R35: 8871 | S35: 8766.210038
A36: 2015-03-27 | B36: 15954 | C36: 15929.69536 | D36: 3112 | E36: 3052.266264 | F36: 311 | G36: 315.0632816 | H36: 21 | I36: 28.34399721 | J36: 429 | K36: 422.062248 | L36: 670 | M36: 721.055757 | N36: 4742 | O36: 4608.757066 | P36: 9197 | Q36: 9042.430415 | R36: 9101 | S36: 8937.369556
A37: 2015-04-03 | B37: 15917 | C37: 15970.07977 | D37: 3109 | E37: 3035.333455 | F37: 368 | G37: 389.5187771 | H37: 38 | I37: 40.37923079 | J37: 495 | K37: 465.5915329 | L37: 744 | M37: 707.6960387 | N37: 4462 | O37: 4651.981413 | P37: 8954 | Q37: 9164.374232 | R37: 9205 | S37: 9289.809757
A38: 2015-04-10 | B38: 15466 | C38: 16008.06018 | D38: 3008 | E38: 3183.22698 | F38: 395 | G38: 401.9504759 | H38: 36 | I38: 29.05959971 | J38: 426 | K38: 425.6027518 | L38: 697 | M38: 715.6634038 | N38: 4582 | O38: 4542.886715 | P38: 9391 | Q38: 9241.829871 | R38: 9123 | S38: 8967.112757
A39: 2015-04-17 | B39: 16076 | C39: 16027.74782 | D39: 3218 | E39: 3155.586114 | F39: 386 | G39: 385.8295914 | H39: 25 | I39: 28.26789124 | J39: 422 | K39: 400.8073656 | L39: 713 | M39: 734.0932803 | N39: 4666 | O39: 4559.681299 | P39: 8993 | Q39: 9359.9175 | R39: 8840 | S39: 8915.863183
A40: 2015-04-24 | B40: 16424 | C40: 16060.41979 | D40: 3181 | E40: 3082.717106 | F40: 358 | G40: 333.4780029 | H40: 28 | I40: 24.05029545 | J40: 428 | K40: 422.1412132 | L40: 717 | M40: 718.1243761 | N40: 4639 | O40: 4622.591956 | P40: 9506 | Q40: 9411.270531 | R40: 9120 | S40: 9058.224956
A41: 2015-05-01 | B41: 16113 | C41: 16105.0987 | D41: 3080 | E41: 3069.052609 | F41: 371 | G41: 361.4873393 | H41: 29 | I41: 32.60572262 | J41: 408 | K41: 479.2684516 | L41: 739 | M41: 738.4885907 | N41: 4685 | O41: 4588.833535 | P41: 9750 | Q41: 9509.465152 | R41: 9126 | S41: 9164.527418
A42: 2015-05-08 | B42: 16385 | C42: 16142.50926 | D42: 3192 | E42: 3206.964894 | F42: 430 | G42: 383.3261223 | H42: 32 | I42: 33.81700648 | J42: 448 | K42: 421.2632732 | L42: 746 | M42: 722.1613046 | N42: 4489 | O42: 4663.213816 | P42: 9167 | Q42: 9634.048608 | R42: 9355 | S42: 9073.864024
A43: 2015-05-15 | B43: 16279 | C43: 16188.43216 | D43: 3300 | E43: 3196.186731 | F43: 351 | G43: 366.9348058 | H43: 18 | I43: 27.46840791 | J43: 419 | K43: 409.4980495 | L43: 705 | M43: 718.0841618 | N43: 4406 | O43: 4550.368959 | P43: 9144 | Q43: 9669.118026 | R43: 9024 | S43: 8923.428821
A44: 2015-05-22 | B44: 16648 | C44: 16232.55942 | D44: 3134 | E44: 3131.206003 | F44: 370 | G44: 369.227406 | H44: 35 | I44: 34.10424506 | J44: 402 | K44: 421.0693683 | L44: 737 | M44: 719.6038817 | N44: 4669 | O44: 4454.851029 | P44: 10030 | Q44: 9670.043298 | R44: 9186 | S44: 9086.502451
A45: 2015-05-29 | B45: 15263 | C45: 16289.67037 | D45: 2737 | E45: 3114.629324 | F45: 310 | G45: 371.6890439 | H45: 28 | I45: 30.56710908 | J45: 385 | K45: 430.1119873 | L45: 664 | M45: 739.5833715 | N45: 4116 | O45: 4544.207083 | P45: 8499 | Q45: 9770.591519 | R45: 8760 | S45: 9105.855155
A46: 2015-06-05 | B46: 16849 | C46: 16301.41843 | D46: 3247 | E46: 3231.803733 | F46: 420 | G46: 432.7156365 | H46: 28 | I46: 31.69465117 | J46: 483 | K46: 432.4675685 | L46: 780 | M46: 721.46378 | N46: 4499 | O46: 4283.440813 | P46: 9272 | Q46: 9654.02133 | R46: 9542 | S46: 9205.860259
A47: 2015-06-12 | B47: 15963 | C47: 16354.08176 | D47: 3283 | E47: 3218.693516 | F47: 386 | G47: 362.9922309 | H47: 23 | I47: 22.97640855 | J47: 397 | K47: 410.4311591 | L47: 694 | M47: 744.7238464 | N47: 4639 | O47: 4408.816158 | P47: 9498 | Q47: 9596.633156 | R47: 9091 | S47: 9017.463493
A48: 2015-06-19 | B48: 16062 | C48: 16381.37948 | D48: 3231 | E48: 3141.122136 | F48: 360 | G48: 363.843507 | H48: 24 | I48: 33.05383436 | J48: 380 | K48: 404.1796908 | L48: 745 | M48: 726.8837184 | N48: 4375 | O48: 4552.394927 | P48: 9676 | Q48: 9559.368269 | R48: 8827 | S48: 9123.866412
A49: 2015-06-26 | B49: 16243 | C49: 16405.37188 | D49: 3050 | E49: 3109.358418 | F49: 326 | G49: 334.0366386 | H49: 43 | I49: 32.34942639 | J49: 410 | K49: 397.0248107 | L49: 655 | M49: 718.7974338 | N49: 4308 | O49: 4389.680944 | P49: 9523 | Q49: 9547.934444 | R49: 8899 | S49: 8911.652795
A50: 2015-07-03 | B50: 16435 | C50: 16430.18761 | D50: 3088 | E50: 3251.949774 | F50: 411 | G50: 404.8376534 | H50: 26 | I50: 26.34868159 | J50: 448 | K50: 457.9966191 | L50: 722 | M50: 717.7434725 | N50: 3377 | O50: 4354.934156 | P50: 8633 | Q50: 9522.36295 | R50: 9172 | S50: 9318.582827
A51: 2015-07-10 | B51: 16276 | C51: 16458.54777 | D51: 3046 | E51: 3232.956806 | F51: 407 | G51: 379.2674321 | H51: 32 | I51: 24.00542843 | J51: 429 | K51: 396.8047963 | L51: 755 | M51: 727.6393999 | N51: 3414 | O51: 3732.803463 | P51: 9332 | Q51: 9369.886078 | R51: 9118 | S51: 9065.671649
A52: 2015-07-17 | B52: 16307 | C52: 16480.27634 | D52: 3237 | E52: 3139.590548 | F52: 375 | G52: 356.6556213 | H52: 23 | I52: 22.76023648 | J52: 397 | K52: 384.3773617 | L52: 663 | M52: 722.3512961 | N52: 3480 | O52: 3511.497274 | P52: 9683 | Q52: 9292.101178 | R52: 8930 | S52: 8948.562303
A53: 2015-07-24 | B53: 16837 | C53: 16499.59626 | D53: 3161 | E53: 3094.66995 | F53: 364 | G53: 337.7212105 | H53: 24 | I53: 34.96650863 | J53: 374 | K53: 400.3824441 | L53: 719 | M53: 729.9065471 | N53: 3497 | O53: 3431.123635 | P53: 9824 | Q53: 9274.498979 | R53: 8857 | S53: 8952.655974
A54: 2015-07-31 | B54: 16408 | C54: 16534.58737 | D54: 3269 | E54: 3232.65146 | F54: 332 | G54: 386.5296871 | H54: 30 | I54: 31.60152036 | J54: 394 | K54: 446.4679925 | L54: 703 | M54: 715.8845458 | N54: 3316 | O54: 3452.439957 | P54: 9647 | Q54: 9301.448259 | R54: 8997 | S54: 9152.361187
A55: 2015-08-07 | B55: 16566 | C55: 16558.0417 | D55: 3076 | E55: 3219.484471 | F55: 464 | G55: 414.2059166 | H55: 36 | I55: 33.32819158 | J55: 416 | K55: 411.3197123 | L55: 730 | M55: 697.9601004 | N55: 3309 | O55: 3351.402933 | P55: 9618 | Q55: 9329.030253 | R55: 8966 | S55: 9086.651121
A56: 2015-08-14 | B56: 16428 | C56: 16584.40983 | D56: 3243 | E56: 3138.097988 | F56: 365 | G56: 360.6011147 | H56: 21 | I56: 24.39930358 | J56: 394 | K56: 386.6982059 | L56: 668 | M56: 704.4434119 | N56: 3111 | O56: 3302.36367 | P56: 9627 | Q56: 9367.418192 | R56: 8912 | S56: 8974.025502
A57: 2015-08-21 | B57: 16513 | C57: 16605.01626 | D57: 3171 | E57: 3094.185237 | F57: 365 | G57: 366.119965 | H57: 37 | I57: 27.01922536 | J57: 388 | K57: 378.4082346 | L57: 700 | M57: 712.3357457 | N57: 3207 | O57: 3124.049131 | P57: 9610 | Q57: 9417.44634 | R57: 8709 | S57: 8937.715582
A58: 2015-08-28 | B58: 16921 | C58: 16625.57872 | D58: 3262 | E58: 3233.591368 | F58: 345 | G58: 347.6240858 | H58: 27 | I58: 26.40924532 | J58: 393 | K58: 407.9941211 | L58: 682 | M58: 697.0340575 | N58: 3313 | O58: 3148.523701 | P58: 10085 | Q58: 9472.030747 | R58: 8924 | S58: 9039.095375
A59: 2015-09-04 | B59: 17301 | C59: 16658.62255 | D59: 3181 | E59: 3216.278454 | F59: 430 | G59: 428.1627928 | H59: 40 | I59: 31.03889855 | J59: 425 | K59: 408.2919669 | L59: 768 | M59: 707.4781127 | N59: 3211 | O59: 3233.765467 | P59: 9765 | Q59: 9598.268292 | R59: 9371 | S59: 9013.422072
A60: 2015-09-11 | B60: 15423 | C60: 16708.51546 | D60: 2829 | E60: 3150.987781 | F60: 342 | G60: 367.6953674 | H60: 17 | I60: 21.13895086 | J60: 402 | K60: 385.7551481 | L60: 674 | M60: 696.7326387 | N60: 2790 | O60: 3194.603564 | P60: 8432 | Q60: 9693.447293 | R60: 8488 | S60: 8968.855637
A61: 2015-09-18 | B61: 16850 | C61: 16699.07071 | D61: 3141 | E61: 3086.018344 | F61: 364 | G61: 377.1606393 | H61: 24 | I61: 35.31271369 | J61: 371 | K61: 379.145278 | L61: 692 | M61: 681.9458567 | N61: 3053 | O61: 2888.936512 | P61: 9784 | Q61: 9590.40412 | R61: 9084 | S61: 8860.071749
A62: 2015-09-25 | B62: 16640 | C62: 16721.72467 | D62: 3230 | E62: 3215.65123 | F62: 354 | G62: 359.8224484 | H62: 24 | I62: 33.71317512 | J62: 400 | K62: 393.3134359 | L62: 625 | M62: 682.366075 | N62: 3083 | O62: 2962.917965 | P62: 9772 | Q62: 9629.219666 | R62: 8877 | S62: 8984.915246
A63: 2015-10-02 | B63: 16960 | C63: 16738.3199 | D63: 3258 | E63: 3187.930268 | F63: 447 | G63: 409.6755842 | H63: 49 | I63: 43.31299823 | J63: 416 | K63: 413.1571357 | L63: 707 | M63: 689.5660109 | N63: 3121 | O63: 3015.374306 | P63: 9820 | Q63: 9671.313312 | R63: 9215 | S63: 9204.288837
A64: 2015-10-09 | B64: 16306 | C64: 16764.54425 | D64: 3033 | E64: 3111.715636 | F64: 391 | G64: 343.6293537 | H64: 22 | I64: 20.79851033 | J64: 432 | K64: 390.635554 | L64: 687 | M64: 675.2720246 | N64: 3045 | O64: 3048.5087 | P64: 9820 | Q64: 9722.124815 | R64: 8997 | S64: 8751.054588
A65: 2015-10-16 | B65: 16612 | C65: 16769.75768 | D65: 3006 | E65: 3067.975815 | F65: 372 | G65: 352.1992266 | H65: 26 | I65: 24.56297481 | J65: 386 | K65: 369.5943914 | L65: 659 | M65: 691.8195279 | N65: 2899 | O65: 3002.863645 | P65: 9573 | Q65: 9773.74273 | R65: 9075 | S65: 9037.618355
A66: 2015-10-23 | B66: 16721 | C66: 16778.84979 | D66: 3161 | E66: 3191.141179 | F66: 371 | G66: 354.8311404 | H66: 20 | I66: 24.82572932 | J66: 345 | K66: 393.1122993 | L66: 702 | M66: 670.2777898 | N66: 3036 | O66: 2912.659592 | P66: 9917 | Q66: 9787.383289 | R66: 9099 | S66: 8952.810365
A67: 2015-10-30 | B67: 16752 | C67: 16789.14843 | D67: 3145 | E67: 3161.042582 | F67: 380 | G67: 411.2344999 | H67: 37 | I67: 43.3421109 | J67: 393 | K67: 410.1536951 | L67: 648 | M67: 659.498832 | N67: 2971 | O67: 2968.208646 | P67: 10583 | Q67: 9837.947809 | R67: 9177 | S67: 9156.476061
A68: 2015-11-06 | C68: 16799.31934 | E68: 3072.26214 | G68: 394.4007219 | I68: 26.94977471 | K68: 411.2010274 | M68: 653.3901467 | O68: 2936.69852 | Q68: 9985.021637 | S68: 8976.883854
A69: 2015-11-13 | C69: 16810.26177 | E69: 3028.509308 | G69: 372.565794 | I69: 27.67248304 | K69: 374.7499443 | M69: 667.6993551 | O69: 2892.39089 | Q69: 10064.91415 | S69: 9060.765654
A70: 2015-11-20 | C70: 16821.2042 | E70: 3153.334519 | G70: 371.9465019 | I70: 22.93224212 | K70: 358.2733259 | M70: 652.7494291 | O70: 2871.066547 | Q70: 10144.80666 | S70: 9059.633062
A71: 2015-11-27 | C71: 16832.14663 | E71: 3124.176023 | G71: 377.4974471 | I71: 33.5403606 | K71: 394.0555857 | M71: 664.872991 | O71: 2848.542604 | Q71: 10224.69918 | S71: 9130.155157
A72: 2015-12-04 | C72: 16843.08906 | E72: 3036.403881 | G72: 386.2760703 | I72: 27.57385322 | K72: 405.5912874 | M72: 649.9338132 | O72: 2815.391562 | Q72: 10304.59169 | S72: 9002.050947
A73: 2015-12-11 | C73: 16854.03149 | E73: 2992.651049 | G73: 372.9159042 | I73: 28.02854274 | K73: 369.6199859 | M73: 635.0847264 | O73: 2771.66747 | Q73: 10384.4842 | S73: 9057.188945
A74: 2015-12-18 | C74: 16864.97392 | E74: 3117.476261 | G74: 372.5326792 | I74: 24.95559616 | K74: 353.3520744 | M74: 630.226497 | O74: 2749.969573 | Q74: 10464.37672 | S74: 9056.445629
A75: 2015-12-25 | C75: 16875.91635 | E75: 3088.317765 | G75: 375.9590317 | I75: 31.56592123 | K75: 388.6241767 | M75: 643.8877298 | O75: 2727.115251 | Q75: 10544.26923 | S75: 9102.66834
A76: 2016-01-01 | C76: 16886.85878 | E76: 3000.545623 | G76: 381.3386645 | I76: 27.96675974 | K76: 399.9815474 | M76: 629.3317635 | O76: 2694.084604 | Q76: 10624.16174 | S76: 9018.612535
A78: Mean Absolute Percentage Error (MAPE) | C78: 0.01695856953 | E78: 0.02719191637 | G78: 0.05457023546 | I78: 0.1727966035 | K78: 0.04323025562 | M78: 0.04156162527 | O78: 0.04093276792 | Q78: 0.03701666193 | S78: 0.01904221385
A79: R-Square | C79: 0.469483242 | E79: 0.1684567528 | G79: 0.4415554317 | I79: 0.3701055429 | K79: 0.4274269783 | M79: 0.1104328673 | O79: 0.8931678815 | Q79: 0.6733352379 | S79: 0.2834094586
A80: Mean | C80: 16183.45455 | E80: 3106.318182 | G80: 373.8181818 | I80: 29.86363636 | K80: 418.6818182 | M80: 702.7272727 | O80: 3977.5 | Q80: 9137.636364 | S80: 9057.75
A81: Standard Deviation | C81: 529.0370565 | E81: 123.4578871 | G81: 36.02536105 | I81: 7.801582753 | K81: 31.87604826 | M81: 37.69792027 | O81: 693.1986359 | Q81: 782.2847602 | S81: 261.6165421

Sheet TRx Tracker vs AOP
C5: CNS TRx Tracker
D7: Select Product | F7: Amrix
D9: 1 | E9: 2 | F9: 3 | G9: 4 | H9: 5 | I9: 6 | J9: 7 | K9: 8 | L9: 9 | M9: 10 | N9: 11 | O9: 12
D10: Jan | E10: Feb | F10: Mar | G10: Apr | H10: May | I10: Jun | J10: Jul | K10: Aug | L10: Sep | M10: Oct | N10: Nov | O10: Dec
C11: Unit Forecast | D11: =SUMIFS('Data Inputs'!D:D,'Data Inputs'!$C:$C,'TRx Tracker vs AOP'!$F$7,'Data Inputs'!$B:$B,'TRx Tracker vs AOP'!$C:$C,'Data Inputs'!$A:$A,"AOP") -> 5627.360653 | E11: =SUMIFS('Data Inputs'!E:E,'Data Inputs'!$C:$C,'TRx Tracker vs AOP'!$F$7,'Data Inputs'!$B:$B,'TRx Tracker vs AOP'!$C:$C,'Data Inputs'!$A:$A,"AOP") -> 5145.619608 | F11: =SUMIFS('Data Inputs'!F:F,'Data Inputs'!$C:$C,'TRx Tracker vs AOP'!$F$7,'Data Inputs'!$B:$B,'TRx Tracker vs AOP'!$C:$C,'Data Inputs'!$A:$A,"AOP") -> 5252.118876 | G11: =SUMIFS('Data Inputs'!G:G,'Data Inputs'!$C:$C,'TRx Tracker vs AOP'!$F$7,'Data Inputs'!$B:$B,'TRx Tracker vs AOP'!$C:$C,'Data Inputs'!$A:$A,"AOP") -> 6269.134511 | H11: =SUMIFS('Data Inputs'!H:H,'Data Inputs'!$C:$C,'TRx Tracker vs AOP'!$F$7,'Data Inputs'!$B:$B,'TRx Tracker vs AOP'!$C:$C,'Data Inputs'!$A:$A,"AOP") -> 5361.995589 | I11: =SUMIFS('Data Inputs'!I:I,'Data Inputs'!$C:$C,'TRx Tracker vs AOP'!$F$7,'Data Inputs'!$B:$B,'TRx Tracker vs AOP'!$C:$C,'Data Inputs'!$A:$A,"AOP") -> 5907.10875 | J11: =SUMIFS('Data Inputs'!J:J,'Data Inputs'!$C:$C,'TRx Tracker vs AOP'!$F$7,'Data Inputs'!$B:$B,'TRx Tracker vs AOP'!$C:$C,'Data Inputs'!$A:$A,"AOP") -> 6286.878505 | K11: =SUMIFS('Data Inputs'!K:K,'Data Inputs'!$C:$C,'TRx Tracker vs AOP'!$F$7,'Data Inputs'!$B:$B,'TRx Tracker vs AOP'!$C:$C,'Data Inputs'!$A:$A,"AOP") -> 5405.237765 | L11: =SUMIFS('Data Inputs'!L:L,'Data Inputs'!$C:$C,'TRx Tracker vs AOP'!$F$7,'Data Inputs'!$B:$B,'TRx Tracker vs AOP'!$C:$C,'Data Inputs'!$A:$A,"AOP") -> 5726.871659 | M11: =SUMIFS('Data Inputs'!M:M,'Data Inputs'!$C:$C,'TRx Tracker vs AOP'!$F$7,'Data Inputs'!$B:$B,'TRx Tracker vs AOP'!$C:$C,'Data Inputs'!$A:$A,"AOP") -> 5700.08756 | N11: =SUMIFS('Data Inputs'!N:N,'Data Inputs'!$C:$C,'TRx Tracker vs AOP'!$F$7,'Data Inputs'!$B:$B,'TRx Tracker vs AOP'!$C:$C,'Data Inputs'!$A:$A,"AOP") -> 5384.068028 | O11: =SUMIFS('Data Inputs'!O:O,'Data Inputs'!$C:$C,'TRx Tracker vs AOP'!$F$7,'Data Inputs'!$B:$B,'TRx Tracker vs AOP'!$C:$C,'Data Inputs'!$A:$A,"AOP") -> 6277.397149
C12: Bottle Size | D12: =SUMIFS('Data Inputs'!D:D,'Data Inputs'!$C:$C,'TRx Tracker vs AOP'!$F$7,'Data Inputs'!$B:$B,'TRx Tracker vs AOP'!$C:$C,'Data Inputs'!$A:$A,"AOP") -> 60 | E12: =SUMIFS('Data Inputs'!E:E,'Data Inputs'!$C:$C,'TRx Tracker vs AOP'!$F$7,'Data Inputs'!$B:$B,'TRx Tracker vs AOP'!$C:$C,'Data Inputs'!$A:$A,"AOP") -> 60 | F12: =SUMIFS('Data Inputs'!F:F,'Data Inputs'!$C:$C,'TRx Tracker vs AOP'!$F$7,'Data Inputs'!$B:$B,'TRx Tracker vs AOP'!$C:$C,'Data Inputs'!$A:$A,"AOP") -> 60 | G12: =SUMIFS('Data Inputs'!G:G,'Data Inputs'!$C:$C,'TRx Tracker vs AOP'!$F$7,'Data Inputs'!$B:$B,'TRx Tracker vs AOP'!$C:$C,'Data Inputs'!$A:$A,"AOP") -> 60 | H12: =SUMIFS('Data Inputs'!H:H,'Data Inputs'!$C:$C,'TRx Tracker vs AOP'!$F$7,'Data Inputs'!$B:$B,'TRx Tracker vs AOP'!$C:$C,'Data Inputs'!$A:$A,"AOP") -> 60 | I12: =SUMIFS('Data Inputs'!I:I,'Data Inputs'!$C:$C,'TRx Tracker vs AOP'!$F$7,'Data Inputs'!$B:$B,'TRx Tracker vs AOP'!$C:$C,'Data Inputs'!$A:$A,"AOP") -> 60 | J12: =SUMIFS('Data Inputs'!J:J,'Data Inputs'!$C:$C,'TRx Tracker vs AOP'!$F$7,'Data Inputs'!$B:$B,'TRx Tracker vs AOP'!$C:$C,'Data Inputs'!$A:$A,"AOP") -> 60 | K12: =SUMIFS('Data Inputs'!K:K,'Data Inputs'!$C:$C,'TRx Tracker vs AOP'!$F$7,'Data Inputs'!$B:$B,'TRx Tracker vs AOP'!$C:$C,'Data Inputs'!$A:$A,"AOP") -> 60 | L12: =SUMIFS('Data Inputs'!L:L,'Data Inputs'!$C:$C,'TRx Tracker vs AOP'!$F$7,'Data Inputs'!$B:$B,'TRx Tracker vs AOP'!$C:$C,'Data Inputs'!$A:$A,"AOP") -> 60 | M12: =SUMIFS('Data Inputs'!M:M,'Data Inputs'!$C:$C,'TRx Tracker vs AOP'!$F$7,'Data Inputs'!$B:$B,'TRx Tracker vs AOP'!$C:$C,'Data Inputs'!$A:$A,"AOP") -> 60 | N12: =SUMIFS('Data Inputs'!N:N,'Data Inputs'!$C:$C,'TRx Tracker vs AOP'!$F$7,'Data Inputs'!$B:$B,'TRx Tracker vs AOP'!$C:$C,'Data Inputs'!$A:$A,"AOP") -> 60 | O12: =SUMIFS('Data Inputs'!O:O,'Data Inputs'!$C:$C,'TRx Tracker vs AOP'!$F$7,'Data Inputs'!$B:$B,'TRx Tracker vs AOP'!$C:$C,'Data Inputs'!$A:$A,"AOP") -> 60
C13: Avg Units per TRx | D13: =SUMIFS('Data Inputs'!D:D,'Data Inputs'!$C:$C,'TRx Tracker vs AOP'!$F$7,'Data Inputs'!$B:$B,'TRx Tracker vs AOP'!$C:$C,'Data Inputs'!$A:$A,"AOP") -> 34 | E13: =SUMIFS('Data Inputs'!E:E,'Data Inputs'!$C:$C,'TRx Tracker vs AOP'!$F$7,'Data Inputs'!$B:$B,'TRx Tracker vs AOP'!$C:$C,'Data Inputs'!$A:$A,"AOP") -> 34 | F13: =SUMIFS('Data Inputs'!F:F,'Data Inputs'!$C:$C,'TRx Tracker vs AOP'!$F$7,'Data Inputs'!$B:$B,'TRx Tracker vs AOP'!$C:$C,'Data Inputs'!$A:$A,"AOP") -> 34 | G13: =SUMIFS('Data Inputs'!G:G,'Data Inputs'!$C:$C,'TRx Tracker vs AOP'!$F$7,'Data Inputs'!$B:$B,'TRx Tracker vs AOP'!$C:$C,'Data Inputs'!$A:$A,"AOP") -> 34 | H13: =SUMIFS('Data Inputs'!H:H,'Data Inputs'!$C:$C,'TRx Tracker vs AOP'!$F$7,'Data Inputs'!$B:$B,'TRx Tracker vs AOP'!$C:$C,'Data Inputs'!$A:$A,"AOP") -> 34 | I13: =SUMIFS('Data Inputs'!I:I,'Data Inputs'!$C:$C,'TRx Tracker vs AOP'!$F$7,'Data Inputs'!$B:$B,'TRx Tracker vs AOP'!$C:$C,'Data Inputs'!$A:$A,"AOP") -> 34 | J13: =SUMIFS('Data Inputs'!J:J,'Data Inputs'!$C:$C,'TRx Tracker vs AOP'!$F$7,'Data Inputs'!$B:$B,'TRx Tracker vs AOP'!$C:$C,'Data Inputs'!$A:$A,"AOP") -> 34 | K13: =SUMIFS('Data Inputs'!K:K,'Data Inputs'!$C:$C,'TRx Tracker vs AOP'!$F$7,'Data Inputs'!$B:$B,'TRx Tracker vs AOP'!$C:$C,'Data Inputs'!$A:$A,"AOP") -> 34 | L13: =SUMIFS('Data Inputs'!L:L,'Data Inputs'!$C:$C,'TRx Tracker vs AOP'!$F$7,'Data Inputs'!$B:$B,'TRx Tracker vs AOP'!$C:$C,'Data Inputs'!$A:$A,"AOP") -> 34 | M13: =SUMIFS('Data Inputs'!M:M,'Data Inputs'!$C:$C,'TRx Tracker vs AOP'!$F$7,'Data Inputs'!$B:$B,'TRx Tracker vs AOP'!$C:$C,'Data Inputs'!$A:$A,"AOP") -> 34 | N13: =SUMIFS('Data Inputs'!N:N,'Data Inputs'!$C:$C,'TRx Tracker vs AOP'!$F$7,'Data Inputs'!$B:$B,'TRx Tracker vs AOP'!$C:$C,'Data Inputs'!$A:$A,"AOP") -> 34 | O13: =SUMIFS('Data Inputs'!O:O,'Data Inputs'!$C:$C,'TRx Tracker vs AOP'!$F$7,'Data Inputs'!$B:$B,'TRx Tracker vs AOP'!$C:$C,'Data Inputs'!$A:$A,"AOP") -> 34
C14: NPA Capture Rate | D14: 1 | E14: 1 | F14: 1 | G14: 1 | H14: 1 | I14: 1 | J14: 1 | K14: 1 | L14: 1 | M14: 1 | N14: 1 | O14: 1
C15: TRx Forecast | D15: =SUMIFS('Data Inputs'!D:D,'Data Inputs'!$C:$C,'TRx Tracker vs AOP'!$F$7,'Data Inputs'!$B:$B,'TRx Tracker vs AOP'!$C:$C,'Data Inputs'!$A:$A,"AOP") -> 9131.724672 | E15: =SUMIFS('Data Inputs'!E:E,'Data Inputs'!$C:$C,'TRx Tracker vs AOP'!$F$7,'Data Inputs'!$B:$B,'TRx Tracker vs AOP'!$C:$C,'Data Inputs'!$A:$A,"AOP") -> 9240.741048 | F15: =SUMIFS('Data Inputs'!F:F,'Data Inputs'!$C:$C,'TRx Tracker vs AOP'!$F$7,'Data Inputs'!$B:$B,'TRx Tracker vs AOP'!$C:$C,'Data Inputs'!$A:$A,"AOP") -> 10408.39194 | G15: =SUMIFS('Data Inputs'!G:G,'Data Inputs'!$C:$C,'TRx Tracker vs AOP'!$F$7,'Data Inputs'!$B:$B,'TRx Tracker vs AOP'!$C:$C,'Data Inputs'!$A:$A,"AOP") -> 9616.42003 | H15: =SUMIFS('Data Inputs'!H:H,'Data Inputs'!$C:$C,'TRx Tracker vs AOP'!$F$7,'Data Inputs'!$B:$B,'TRx Tracker vs AOP'!$C:$C,'Data Inputs'!$A:$A,"AOP") -> 9790.632474 | I15: =SUMIFS('Data Inputs'!I:I,'Data Inputs'!$C:$C,'TRx Tracker vs AOP'!$F$7,'Data Inputs'!$B:$B,'TRx Tracker vs AOP'!$C:$C,'Data Inputs'!$A:$A,"AOP") -> 10015.61235 | J15: =SUMIFS('Data Inputs'!J:J,'Data Inputs'!$C:$C,'TRx Tracker vs AOP'!$F$7,'Data Inputs'!$B:$B,'TRx Tracker vs AOP'!$C:$C,'Data Inputs'!$A:$A,"AOP") -> 10090.42751 | K15: =SUMIFS('Data Inputs'!K:K,'Data Inputs'!$C:$C,'TRx Tracker vs AOP'!$F$7,'Data Inputs'!$B:$B,'TRx Tracker vs AOP'!$C:$C,'Data Inputs'!$A:$A,"AOP") -> 10063.7185 | L15: =SUMIFS('Data Inputs'!L:L,'Data Inputs'!$C:$C,'TRx Tracker vs AOP'!$F$7,'Data Inputs'!$B:$B,'TRx Tracker vs AOP'!$C:$C,'Data Inputs'!$A:$A,"AOP") -> 9969.804094 | M15: =SUMIFS('Data Inputs'!M:M,'Data Inputs'!$C:$C,'TRx Tracker vs AOP'!$F$7,'Data Inputs'!$B:$B,'TRx Tracker vs AOP'!$C:$C,'Data Inputs'!$A:$A,"AOP") -> 10179.48427 | N15: =SUMIFS('Data Inputs'!N:N,'Data Inputs'!$C:$C,'TRx Tracker vs AOP'!$F$7,'Data Inputs'!$B:$B,'TRx Tracker vs AOP'!$C:$C,'Data Inputs'!$A:$A,"AOP") -> 9420.730291 | O15: =SUMIFS('Data Inputs'!O:O,'Data Inputs'!$C:$C,'TRx Tracker vs AOP'!$F$7,'Data Inputs'!$B:$B,'TRx Tracker vs AOP'!$C:$C,'Data Inputs'!$A:$A,"AOP") -> 10087.89448
C16: Actual TRxs To Date | D16: =IF($F$7="Nuvigil",SUMIFS('Split Month Calcs'!$D:$D,'Split Month Calcs'!$A:$A,'TRx Tracker vs AOP'!D9),IF('TRx Tracker vs AOP'!$F$7="amrix",SUMIFS('Split Month Calcs'!$E:$E,'Split Month Calcs'!$A:$A,'TRx Tracker vs AOP'!D9),IF('TRx Tracker vs AOP'!$F$7="Fentora",SUMIFS('Split Month Calcs'!$F:$F,'Split Month Calcs'!$A:$A,'TRx Tracker vs AOP'!D9),IF('TRx Tracker vs AOP'!$F$7="Provigil",SUMIFS('Split Month Calcs'!$I:$I,'Split Month Calcs'!$A:$A,'TRx Tracker vs AOP'!D9),IF('TRx Tracker vs AOP'!$F$7="Gabitril",SUMIFS('Split Month Calcs'!$H:$H,'Split Month Calcs'!$A:$A,'TRx Tracker vs AOP'!D9),IF('TRx Tracker vs AOP'!$F$7="Actiq",SUMIFS('Split Month Calcs'!$G:$G,'Split Month Calcs'!$A:$A,'TRx Tracker vs AOP'!D9),IF('TRx Tracker vs AOP'!$F$7="Copaxone 40",SUMIFS('Split Month Calcs'!$K:$K,'Split Month Calcs'!$A:$A,'TRx Tracker vs AOP'!D9),IF('TRx Tracker vs AOP'!$F$7="Copaxone 20",SUMIFS('Split Month Calcs'!$J:$J,'Split Month Calcs'!$A:$A,'TRx Tracker vs AOP'!D9),IF('TRx Tracker vs AOP'!$F$7="Azilect",SUMIFS('Split Month Calcs'!$L:$L,'Split Month Calcs'!$A:$A,'TRx Tracker vs AOP'!D9),IF($F$7="zecuity",SUMIFS('Split Month Calcs'!$M:$M,'Split Month Calcs'!$A:$A,'TRx Tracker vs AOP'!D9))))))))))) -> 5515 | E16: =IF($F$7="Nuvigil",SUMIFS('Split Month Calcs'!$D:$D,'Split Month Calcs'!$A:$A,'TRx Tracker vs AOP'!E9),IF('TRx Tracker vs AOP'!$F$7="amrix",SUMIFS('Split Month Calcs'!$E:$E,'Split Month Calcs'!$A:$A,'TRx Tracker vs AOP'!E9),IF('TRx Tracker vs AOP'!$F$7="Fentora",SUMIFS('Split Month Calcs'!$F:$F,'Split Month Calcs'!$A:$A,'TRx Tracker vs AOP'!E9),IF('TRx Tracker vs AOP'!$F$7="Provigil",SUMIFS('Split Month Calcs'!$I:$I,'Split Month Calcs'!$A:$A,'TRx Tracker vs AOP'!E9),IF('TRx Tracker vs AOP'!$F$7="Gabitril",SUMIFS('Split Month Calcs'!$H:$H,'Split Month Calcs'!$A:$A,'TRx Tracker vs AOP'!E9),IF('TRx Tracker vs AOP'!$F$7="Actiq",SUMIFS('Split Month Calcs'!$G:$G,'Split Month Calcs'!$A:$A,'TRx Tracker vs AOP'!E9),IF('TRx Tracker vs AOP'!$F$7="Copaxone 40",SUMIFS('Split Month Calcs'!$K:$K,'Split Month Calcs'!$A:$A,'TRx Tracker vs AOP'!E9),IF('TRx Tracker vs AOP'!$F$7="Copaxone 20",SUMIFS('Split Month Calcs'!$J:$J,'Split Month Calcs'!$A:$A,'TRx Tracker vs AOP'!E9),IF('TRx Tracker vs AOP'!$F$7="Azilect",SUMIFS('Split Month Calcs'!$L:$L,'Split Month Calcs'!$A:$A,'TRx Tracker vs AOP'!E9),IF($F$7="zecuity",SUMIFS('Split Month Calcs'!$M:$M,'Split Month Calcs'!$A:$A,'TRx Tracker vs AOP'!E9))))))))))) -> 0 | F16: =IF($F$7="Nuvigil",SUMIFS('Split Month Calcs'!$D:$D,'Split Month Calcs'!$A:$A,'TRx Tracker vs AOP'!F9),IF('TRx Tracker vs AOP'!$F$7="amrix",SUMIFS('Split Month Calcs'!$E:$E,'Split Month Calcs'!$A:$A,'TRx Tracker vs AOP'!F9),IF('TRx Tracker vs AOP'!$F$7="Fentora",SUMIFS('Split Month Calcs'!$F:$F,'Split Month Calcs'!$A:$A,'TRx Tracker vs AOP'!F9),IF('TRx Tracker vs AOP'!$F$7="Provigil",SUMIFS('Split Month Calcs'!$I:$I,'Split Month Calcs'!$A:$A,'TRx Tracker vs AOP'!F9),IF('TRx Tracker vs AOP'!$F$7="Gabitril",SUMIFS('Split Month Calcs'!$H:$H,'Split Month Calcs'!$A:$A,'TRx Tracker vs AOP'!F9),IF('TRx Tracker vs AOP'!$F$7="Actiq",SUMIFS('Split Month Calcs'!$G:$G,'Split Month Calcs'!$A:$A,'TRx Tracker vs AOP'!F9),IF('TRx Tracker vs AOP'!$F$7="Copaxone 40",SUMIFS('Split Month Calcs'!$K:$K,'Split Month Calcs'!$A:$A,'TRx Tracker vs AOP'!F9),IF('TRx Tracker vs AOP'!$F$7="Copaxone 20",SUMIFS('Split Month Calcs'!$J:$J,'Split Month Calcs'!$A:$A,'TRx Tracker vs AOP'!F9),IF('TRx Tracker vs AOP'!$F$7="Azilect",SUMIFS('Split Month Calcs'!$L:$L,'Split Month Calcs'!$A:$A,'TRx Tracker vs AOP'!F9),IF($F$7="zecuity",SUMIFS('Split Month Calcs'!$M:$M,'Split Month Calcs'!$A:$A,'TRx Tracker vs AOP'!F9))))))))))) -> 0 | G16: =IF($F$7="Nuvigil",SUMIFS('Split Month Calcs'!$D:$D,'Split Month Calcs'!$A:$A,'TRx Tracker vs AOP'!G9),IF('TRx Tracker vs AOP'!$F$7="amrix",SUMIFS('Split Month Calcs'!$E:$E,'Split Month Calcs'!$A:$A,'TRx Tracker vs AOP'!G9),IF('TRx Tracker vs AOP'!$F$7="Fentora",SUMIFS('Split Month Calcs'!$F:$F,'Split Month Calcs'!$A:$A,'TRx Tracker vs AOP'!G9),IF('TRx Tracker vs AOP'!$F$7="Provigil",SUMIFS('Split Month Calcs'!$I:$I,'Split Month Calcs'!$A:$A,'TRx Tracker vs AOP'!G9),IF('TRx Tracker vs AOP'!$F$7="Gabitril",SUMIFS('Split Month Calcs'!$H:$H,'Split Month Calcs'!$A:$A,'TRx Tracker vs AOP'!G9),IF('TRx Tracker vs AOP'!$F$7="Actiq",SUMIFS('Split Month Calcs'!$G:$G,'Split Month Calcs'!$A:$A,'TRx Tracker vs AOP'!G9),IF('TRx Tracker vs AOP'!$F$7="Copaxone 40",SUMIFS('Split Month Calcs'!$K:$K,'Split Month Calcs'!$A:$A,'TRx Tracker vs AOP'!G9),IF('TRx Tracker vs AOP'!$F$7="Copaxone 20",SUMIFS('Split Month Calcs'!$J:$J,'Split Month Calcs'!$A:$A,'TRx Tracker vs AOP'!G9),IF('TRx Tracker vs AOP'!$F$7="Azilect",SUMIFS('Split Month Calcs'!$L:$L,'Split Month Calcs'!$A:$A,'TRx Tracker vs AOP'!G9),IF($F$7="zecuity",SUMIFS('Split Month Calcs'!$M:$M,'Split Month Calcs'!$A:$A,'TRx Tracker vs AOP'!G9))))))))))) -> 0 | H16: =IF($F$7="Nuvigil",SUMIFS('Split Month Calcs'!$D:$D,'Split Month Calcs'!$A:$A,'TRx Tracker vs AOP'!H9),IF('TRx Tracker vs AOP'!$F$7="amrix",SUMIFS('Split Month Calcs'!$E:$E,'Split Month Calcs'!$A:$A,'TRx Tracker vs AOP'!H9),IF('TRx Tracker vs AOP'!$F$7="Fentora",SUMIFS('Split Month Calcs'!$F:$F,'Split Month Calcs'!$A:$A,'TRx Tracker vs AOP'!H9),IF('TRx Tracker vs AOP'!$F$7="Provigil",SUMIFS('Split Month Calcs'!$I:$I,'Split Month Calcs'!$A:$A,'TRx Tracker vs AOP'!H9),IF('TRx Tracker vs AOP'!$F$7="Gabitril",SUMIFS('Split Month Calcs'!$H:$H,'Split Month Calcs'!$A:$A,'TRx Tracker vs AOP'!H9),IF('TRx Tracker vs AOP'!$F$7="Actiq",SUMIFS('Split Month Calcs'!$G:$G,'Split Month Calcs'!$A:$A,'TRx Tracker vs AOP'!H9),IF('TRx Tracker vs AOP'!$F$7="Copaxone 40",SUMIFS('Split Month Calcs'!$K:$K,'Split Month Calcs'!$A:$A,'TRx Tracker vs AOP'!H9),IF('TRx Tracker vs AOP'!$F$7="Copaxone 20",SUMIFS('Split Month Calcs'!$J:$J,'Split Month Calcs'!$A:$A,'TRx Tracker vs AOP'!H9),IF('TRx Tracker vs AOP'!$F$7="Azilect",SUMIFS('Split Month Calcs'!$L:$L,'Split Month Calcs'!$A:$A,'TRx Tracker vs AOP'!H9),IF($F$7="zecuity",SUMIFS('Split Month Calcs'!$M:$M,'Split Month Calcs'!$A:$A,'TRx Tracker vs AOP'!H9))))))))))) -> 0 | I16: =IF($F$7="Nuvigil",SUMIFS('Split Month Calcs'!$D:$D,'Split Month Calcs'!$A:$A,'TRx Tracker vs AOP'!I9),IF('TRx Tracker vs AOP'!$F$7="amrix",SUMIFS('Split Month Calcs'!$E:$E,'Split Month Calcs'!$A:$A,'TRx Tracker vs AOP'!I9),IF('TRx Tracker vs AOP'!$F$7="Fentora",SUMIFS('Split Month Calcs'!$F:$F,'Split Month Calcs'!$A:$A,'TRx Tracker vs AOP'!I9),IF('TRx Tracker vs AOP'!$F$7="Provigil",SUMIFS('Split Month Calcs'!$I:$I,'Split Month Calcs'!$A:$A,'TRx Tracker vs AOP'!I9),IF('TRx Tracker vs AOP'!$F$7="Gabitril",SUMIFS('Split Month Calcs'!$H:$H,'Split Month Calcs'!$A:$A,'TRx Tracker vs AOP'!I9),IF('TRx Tracker vs AOP'!$F$7="Actiq",SUMIFS('Split Month Calcs'!$G:$G,'Split Month Calcs'!$A:$A,'TRx Tracker vs AOP'!I9),IF('TRx Tracker vs AOP'!$F$7="Copaxone 40",SUMIFS('Split Month Calcs'!$K:$K,'Split Month Calcs'!$A:$A,'TRx Tracker vs AOP'!I9),IF('TRx Tracker vs AOP'!$F$7="Copaxone 20",SUMIFS('Split Month Calcs'!$J:$J,'Split Month Calcs'!$A:$A,'TRx Tracker vs AOP'!I9),IF('TRx Tracker vs AOP'!$F$7="Azilect",SUMIFS('Split Month Calcs'!$L:$L,'Split Month Calcs'!$A:$A,'TRx Tracker vs AOP'!I9),IF($F$7="zecuity",SUMIFS('Split Month Calcs'!$M:$M,'Split Month Calcs'!$A:$A,'TRx Tracker vs AOP'!I9))))))))))) -> 0 | J16: =IF($F$7="Nuvigil",SUMIFS('Split Month Calcs'!$D:$D,'Split Month Calcs'!$A:$A,'TRx Tracker vs AOP'!J9),IF('TRx Tracker vs AOP'!$F$7="amrix",SUMIFS('Split Month Calcs'!$E:$E,'Split Month Calcs'!$A:$A,'TRx Tracker vs AOP'!J9),IF('TRx Tracker vs AOP'!$F$7="Fentora",SUMIFS('Split Month Calcs'!$F:$F,'Split Month Calcs'!$A:$A,'TRx Tracker vs AOP'!J9),IF('TRx Tracker vs AOP'!$F$7="Provigil",SUMIFS('Split Month Calcs'!$I:$I,'Split Month Calcs'!$A:$A,'TRx Tracker vs AOP'!J9),IF('TRx Tracker vs AOP'!$F$7="Gabitril",SUMIFS('Split Month Calcs'!$H:$H,'Split Month Calcs'!$A:$A,'TRx Tracker vs AOP'!J9),IF('TRx Tracker vs AOP'!$F$7="Actiq",SUMIFS('Split Month Calcs'!$G:$G,'Split Month Calcs'!$A:$A,'TRx Tracker vs AOP'!J9),IF('TRx Tracker vs AOP'!$F$7="Copaxone 40",SUMIFS('Split Month Calcs'!$K:$K,'Split Month Calcs'!$A:$A,'TRx Tracker vs AOP'!J9),IF('TRx Tracker vs AOP'!$F$7="Copaxone 20",SUMIFS('Split Month Calcs'!$J:$J,'Split Month Calcs'!$A:$A,'TRx Tracker vs AOP'!J9),IF('TRx Tracker vs AOP'!$F$7="Azilect",SUMIFS('Split Month Calcs'!$L:$L,'Split Month Calcs'!$A:$A,'TRx Tracker vs AOP'!J9),IF($F$7="zecuity",SUMIFS('Split Month Calcs'!$M:$M,'Split Month Calcs'!$A:$A,'TRx Tracker vs AOP'!J9))))))))))) -> 0 | K16: =IF($F$7="Nuvigil",SUMIFS('Split Month Calcs'!$D:$D,'Split Month Calcs'!$A:$A,'TRx Tracker vs AOP'!K9),IF('TRx Tracker vs AOP'!$F$7="amrix",SUMIFS('Split Month Calcs'!$E:$E,'Split Month Calcs'!$A:$A,'TRx Tracker vs AOP'!K9),IF('TRx Tracker vs AOP'!$F$7="Fentora",SUMIFS('Split Month Calcs'!$F:$F,'Split Month Calcs'!$A:$A,'TRx Tracker vs AOP'!K9),IF('TRx Tracker vs AOP'!$F$7="Provigil",SUMIFS('Split Month Calcs'!$I:$I,'Split Month Calcs'!$A:$A,'TRx Tracker vs AOP'!K9),IF('TRx Tracker vs AOP'!$F$7="Gabitril",SUMIFS('Split Month Calcs'!$H:$H,'Split Month Calcs'!$A:$A,'TRx Tracker vs AOP'!K9),IF('TRx Tracker vs AOP'!$F$7="Actiq",SUMIFS('Split Month Calcs'!$G:$G,'Split Month Calcs'!$A:$A,'TRx Tracker vs AOP'!K9),IF('TRx Tracker vs AOP'!$F$7="Copaxone 40",SUMIFS('Split Month Calcs'!$K:$K,'Split Month Calcs'!$A:$A,'TRx Tracker vs AOP'!K9),IF('TRx Tracker vs AOP'!$F$7="Copaxone 20",SUMIFS('Split Month Calcs'!$J:$J,'Split Month Calcs'!$A:$A,'TRx Tracker vs AOP'!K9),IF('TRx Tracker vs AOP'!$F$7="Azilect",SUMIFS('Split Month Calcs'!$L:$L,'Split Month Calcs'!$A:$A,'TRx Tracker vs AOP'!K9),IF($F$7="zecuity",SUMIFS('Split Month Calcs'!$M:$M,'Split Month Calcs'!$A:$A,'TRx Tracker vs AOP'!K9))))))))))) -> 0 | L16: =IF($F$7="Nuvigil",SUMIFS('Split Month Calcs'!$D:$D,'Split Month Calcs'!$A:$A,'TRx Tracker vs AOP'!L9),IF('TRx Tracker vs AOP'!$F$7="amrix",SUMIFS('Split Month Calcs'!$E:$E,'Split Month Calcs'!$A:$A,'TRx Tracker vs AOP'!L9),IF('TRx Tracker vs AOP'!$F$7="Fentora",SUMIFS('Split Month Calcs'!$F:$F,'Split Month Calcs'!$A:$A,'TRx Tracker vs AOP'!L9),IF('TRx Tracker vs AOP'!$F$7="Provigil",SUMIFS('Split Month Calcs'!$I:$I,'Split Month Calcs'!$A:$A,'TRx Tracker vs AOP'!L9),IF('TRx Tracker vs AOP'!$F$7="Gabitril",SUMIFS('Split Month Calcs'!$H:$H,'Split Month Calcs'!$A:$A,'TRx Tracker vs AOP'!L9),IF('TRx Tracker vs AOP'!$F$7="Actiq",SUMIFS('Split Month Calcs'!$G:$G,'Split Month Calcs'!$A:$A,'TRx Tracker vs AOP'!L9),IF('TRx Tracker vs AOP'!$F$7="Copaxone 40",SUMIFS('Split Month Calcs'!$K:$K,'Split Month Calcs'!$A:$A,'TRx Tracker vs AOP'!L9),IF('TRx Tracker vs AOP'!$F$7="Copaxone 20",SUMIFS('Split Month Calcs'!$J:$J,'Split Month Calcs'!$A:$A,'TRx Tracker vs AOP'!L9),IF('TRx Tracker vs AOP'!$F$7="Azilect",SUMIFS('Split Month Calcs'!$L:$L,'Split Month Calcs'!$A:$A,'TRx Tracker vs AOP'!L9),IF($F$7="zecuity",SUMIFS('Split Month Calcs'!$M:$M,'Split Month Calcs'!$A:$A,'TRx Tracker vs AOP'!L9))))))))))) -> 0 | M16: =IF($F$7="Nuvigil",SUMIFS('Split Month Calcs'!$D:$D,'Split Month Calcs'!$A:$A,'TRx Tracker vs AOP'!M9),IF('TRx Tracker vs AOP'!$F$7="amrix",SUMIFS('Split Month Calcs'!$E:$E,'Split Month Calcs'!$A:$A,'TRx Tracker vs AOP'!M9),IF('TRx Tracker vs AOP'!$F$7="Fentora",SUMIFS('Split Month Calcs'!$F:$F,'Split Month Calcs'!$A:$A,'TRx Tracker vs AOP'!M9),IF('TRx Tracker vs AOP'!$F$7="Provigil",SUMIFS('Split Month Calcs'!$I:$I,'Split Month Calcs'!$A:$A,'TRx Tracker vs AOP'!M9),IF('TRx Tracker vs AOP'!$F$7="Gabitril",SUMIFS('Split Month Calcs'!$H:$H,'Split Month Calcs'!$A:$A,'TRx Tracker vs AOP'!M9),IF('TRx Tracker vs AOP'!$F$7="Actiq",SUMIFS('Split Month Calcs'!$G:$G,'Split Month Calcs'!$A:$A,'TRx Tracker vs AOP'!M9),IF('TRx Tracker vs AOP'!$F$7="Copaxone 40",SUMIFS('Split Month Calcs'!$K:$K,'Split Month Calcs'!$A:$A,'TRx Tracker vs AOP'!M9),IF('TRx Tracker vs AOP'!$F$7="Copaxone 20",SUMIFS('Split Month Calcs'!$J:$J,'Split Month Calcs'!$A:$A,'TRx Tracker vs AOP'!M9),IF('TRx Tracker vs AOP'!$F$7="Azilect",SUMIFS('Split Month Calcs'!$L:$L,'Split Month Calcs'!$A:$A,'TRx Tracker vs AOP'!M9),IF($F$7="zecuity",SUMIFS('Split Month Calcs'!$M:$M,'Split Month Calcs'!$A:$A,'TRx Tracker vs AOP'!M9))))))))))) -> 0 | N16: =IF($F$7="Nuvigil",SUMIFS('Split Month Calcs'!$D:$D,'Split Month Calcs'!$A:$A,'TRx Tracker vs AOP'!N9),IF('TRx Tracker vs AOP'!$F$7="amrix",SUMIFS('Split Month Calcs'!$E:$E,'Split Month Calcs'!$A:$A,'TRx Tracker vs AOP'!N9),IF('TRx Tracker vs AOP'!$F$7="Fentora",SUMIFS('Split Month Calcs'!$F:$F,'Split Month Calcs'!$A:$A,'TRx Tracker vs AOP'!N9),IF('TRx Tracker vs AOP'!$F$7="Provigil",SUMIFS('Split Month Calcs'!$I:$I,'Split Month Calcs'!$A:$A,'TRx Tracker vs AOP'!N9),IF('TRx Tracker vs AOP'!$F$7="Gabitril",SUMIFS('Split Month Calcs'!$H:$H,'Split Month Calcs'!$A:$A,'TRx Tracker vs AOP'!N9),IF('TRx Tracker vs AOP'!$F$7="Actiq",SUMIFS('Split Month Calcs'!$G:$G,'Split Month Calcs'!$A:$A,'TRx Tracker vs AOP'!N9),IF('TRx Tracker vs AOP'!$F$7="Copaxone 40",SUMIFS('Split Month Calcs'!$K:$K,'Split Month Calcs'!$A:$A,'TRx Tracker vs AOP'!N9),IF('TRx Tracker vs AOP'!$F$7="Copaxone 20",SUMIFS('Split Month Calcs'!$J:$J,'Split Month Calcs'!$A:$A,'TRx Tracker vs AOP'!N9),IF('TRx Tracker vs AOP'!$F$7="Azilect",SUMIFS('Split Month Calcs'!$L:$L,'Split Month Calcs'!$A:$A,'TRx Tracker vs AOP'!N9),IF($F$7="zecuity",SUMIFS('Split Month Calcs'!$M:$M,'Split Month Calcs'!$A:$A,'TRx Tracker vs AOP'!N9))))))))))) -> 0 | O16: =IF($F$7="Nuvigil",SUMIFS('Split Month Calcs'!$D:$D,'Split Month Calcs'!$A:$A,'TRx Tracker vs AOP'!O9),IF('TRx Tracker vs AOP'!$F$7="amrix",SUMIFS('Split Month Calcs'!$E:$E,'Split Month Calcs'!$A:$A,'TRx Tracker vs AOP'!O9),IF('TRx Tracker vs AOP'!$F$7="Fentora",SUMIFS('Split Month Calcs'!$F:$F,'Split Month Calcs'!$A:$A,'TRx Tracker vs AOP'!O9),IF('TRx Tracker vs AOP'!$F$7="Provigil",SUMIFS('Split Month Calcs'!$I:$I,'Split Month Calcs'!$A:$A,'TRx Tracker vs AOP'!O9),IF('TRx Tracker vs AOP'!$F$7="Gabitril",SUMIFS('Split Month Calcs'!$H:$H,'Split Month Calcs'!$A:$A,'TRx Tracker vs AOP'!O9),IF('TRx Tracker vs AOP'!$F$7="Actiq",SUMIFS('Split Month Calcs'!$G:$G,'Split Month Calcs'!$A:$A,'TRx Tracker vs AOP'!O9),IF('TRx Tracker vs AOP'!$F$7="Copaxone 40",SUMIFS('Split Month Calcs'!$K:$K,'Split Month Calcs'!$A:$A,'TRx Tracker vs AOP'!O9),IF('TRx Tracker vs AOP'!$F$7="Copaxone 20",SUMIFS('Split Month Calcs'!$J:$J,'Split Month Calcs'!$A:$A,'TRx Tracker vs AOP'!O9),IF('TRx Tracker vs AOP'!$F$7="Azilect",SUMIFS('Split Month Calcs'!$L:$L,'Split Month Calcs'!$A:$A,'TRx Tracker vs AOP'!O9),IF($F$7="zecuity",SUMIFS('Split Month Calcs'!$M:$M,'Split Month Calcs'!$A:$A,'TRx Tracker vs AOP'!O9))))))))))) -> 0
C17: % to Plan | D17: =D16/D15 -> 0.603938489 | E17: =E16/E15 -> 0 | F17: 0 | G17: 0 | H17: 0 | I17: 0 | J17: 0 | K17: 0 | L17: 0 | M17: 0 | N17: 0 | O17: 0
C18: Weeks | D18: =52/12 -> 4.333333333 | E18: =52/12 -> 4.333333333 | F18: 4.333333333 | G18: 4.333333333 | H18: 4.333333333 | I18: 4.333333333 | J18: 4.333333333 | K18: 4.333333333 | L18: 4.333333333 | M18: 4.333333333 | N18: 4.333333333 | O18: 4.333333333
C19: Source: IMS NPA Audit
E21: Month | F21: Week # | G21: Week Ending | H21: Actual TRxs | I21: Goal | J21: Variance
E22: =MONTH(G22) -> 1 | F22: 1 | G22: 2017-01-06 | H22: =IF($F$7="Nuvigil",SUMIFS('IMS Data'!D:D,'IMS Data'!C:C,'TRx Tracker vs AOP'!G:G),IF('TRx Tracker vs AOP'!$F$7="Fentora",SUMIFS('IMS Data'!F:F,'IMS Data'!C:C,'TRx Tracker vs AOP'!G:G),IF('TRx Tracker vs AOP'!$F$7="Amrix",SUMIFS('IMS Data'!E:E,'IMS Data'!C:C,'TRx Tracker vs AOP'!G:G),IF('TRx Tracker vs AOP'!$F$7="Provigil",SUMIFS('IMS Data'!I:I,'IMS Data'!C:C,'TRx Tracker vs AOP'!G:G),IF('TRx Tracker vs AOP'!$F$7="Gabitril",SUMIFS('IMS Data'!H:H,'IMS Data'!C:C,'TRx Tracker vs AOP'!G:G),IF('TRx Tracker vs AOP'!$F$7="Actiq",SUMIFS('IMS Data'!G:G,'IMS Data'!C:C,'TRx Tracker vs AOP'!G:G),IF($F$7="Copaxone 40",SUMIFS('IMS Data'!K:K,'IMS Data'!C:C,'TRx Tracker vs AOP'!G:G),IF($F$7="Azilect",SUMIFS('IMS Data'!L:L,'IMS Data'!C:C,'TRx Tracker vs AOP'!G:G),IF($F$7="Copaxone 20",SUMIFS('IMS Data'!J:J,'IMS Data'!C:C,'TRx Tracker vs AOP'!G:G),IF($F$7="Zecuity",SUMIFS('IMS Data'!M:M,'IMS Data'!C:C,'TRx Tracker vs LBE'!G:G))))))))))) -> 2653 | I22: =IF($F$7="Zecuity",SUMIFS('Zecuity Weekly Forecast'!B:B,'Zecuity Weekly Forecast'!A:A,'TRx Tracker vs AOP'!G:G),IF($F$7="Nuvigil",SUMIFS('NUVIGIL Goals'!$E:$E,'NUVIGIL Goals'!$B:$B,'TRx Tracker vs AOP'!$F:$F),SUMIFS($15:$15,$9:$9,$E:$E)/SUMIFS($18:$18,$9:$9,$E:$E))) -> 2107.321078 | J22: =H22-I22 -> 545.6789218
E23: =MONTH(G23) -> 1 | F23: 2 | G23: =G22+7 -> 2017-01-13 | H23: =IF($F$7="Nuvigil",SUMIFS('IMS Data'!D:D,'IMS Data'!C:C,'TRx Tracker vs AOP'!G:G),IF('TRx Tracker vs AOP'!$F$7="Fentora",SUMIFS('IMS Data'!F:F,'IMS Data'!C:C,'TRx Tracker vs AOP'!G:G),IF('TRx Tracker vs AOP'!$F$7="Amrix",SUMIFS('IMS Data'!E:E,'IMS Data'!C:C,'TRx Tracker vs AOP'!G:G),IF('TRx Tracker vs AOP'!$F$7="Provigil",SUMIFS('IMS Data'!I:I,'IMS Data'!C:C,'TRx Tracker vs AOP'!G:G),IF('TRx Tracker vs AOP'!$F$7="Gabitril",SUMIFS('IMS Data'!H:H,'IMS Data'!C:C,'TRx Tracker vs AOP'!G:G),IF('TRx Tracker vs AOP'!$F$7="Actiq",SUMIFS('IMS Data'!G:G,'IMS Data'!C:C,'TRx Tracker vs AOP'!G:G),IF($F$7="Copaxone 40",SUMIFS('IMS Data'!K:K,'IMS Data'!C:C,'TRx Tracker vs AOP'!G:G),IF($F$7="Azilect",SUMIFS('IMS Data'!L:L,'IMS Data'!C:C,'TRx Tracker vs AOP'!G:G),IF($F$7="Copaxone 20",SUMIFS('IMS Data'!J:J,'IMS Data'!C:C,'TRx Tracker vs AOP'!G:G),IF($F$7="Zecuity",SUMIFS('IMS Data'!M:M,'IMS Data'!C:C,'TRx Tracker vs LBE'!G:G))))))))))) -> 2862 | I23: =IF($F$7="Zecuity",SUMIFS('Zecuity Weekly Forecast'!B:B,'Zecuity Weekly Forecast'!A:A,'TRx Tracker vs AOP'!G:G),IF($F$7="Nuvigil",SUMIFS('NUVIGIL Goals'!$E:$E,'NUVIGIL Goals'!$B:$B,'TRx Tracker vs AOP'!$F:$F),SUMIFS($15:$15,$9:$9,$E:$E)/SUMIFS($18:$18,$9:$9,$E:$E))) -> 2107.321078 | J23: =H23-I23 -> 754.6789218
E24: 1 | F24: 3 | G24: =G23+7 -> 2017-01-20 | H24: =IF($F$7="Nuvigil",SUMIFS('IMS Data'!D:D,'IMS Data'!C:C,'TRx Tracker vs AOP'!G:G),IF('TRx Tracker vs AOP'!$F$7="Fentora",SUMIFS('IMS Data'!F:F,'IMS Data'!C:C,'TRx Tracker vs AOP'!G:G),IF('TRx Tracker vs AOP'!$F$7="Amrix",SUMIFS('IMS Data'!E:E,'IMS Data'!C:C,'TRx Tracker vs AOP'!G:G),IF('TRx Tracker vs AOP'!$F$7="Provigil",SUMIFS('IMS Data'!I:I,'IMS Data'!C:C,'TRx Tracker vs AOP'!G:G),IF('TRx Tracker vs AOP'!$F$7="Gabitril",SUMIFS('IMS Data'!H:H,'IMS Data'!C:C,'TRx Tracker vs AOP'!G:G),IF('TRx Tracker vs AOP'!$F$7="Actiq",SUMIFS('IMS Data'!G:G,'IMS Data'!C:C,'TRx Tracker vs AOP'!G:G),IF($F$7="Copaxone 40",SUMIFS('IMS Data'!K:K,'IMS Data'!C:C,'TRx Tracker vs AOP'!G:G),IF($F$7="Azilect",SUMIFS('IMS Data'!L:L,'IMS Data'!C:C,'TRx Tracker vs AOP'!G:G),IF($F$7="Copaxone 20",SUMIFS('IMS Data'!J:J,'IMS Data'!C:C,'TRx Tracker vs AOP'!G:G),IF($F$7="Zecuity",SUMIFS('IMS Data'!M:M,'IMS Data'!C:C,'TRx Tracker vs LBE'!G:G))))))))))) -> 0 | I24: =IF($F$7="Zecuity",SUMIFS('Zecuity Weekly Forecast'!B:B,'Zecuity Weekly Forecast'!A:A,'TRx Tracker vs AOP'!G:G),IF($F$7="Nuvigil",SUMIFS('NUVIGIL Goals'!$E:$E,'NUVIGIL Goals'!$B:$B,'TRx Tracker vs AOP'!$F:$F),SUMIFS($15:$15,$9:$9,$E:$E)/SUMIFS($18:$18,$9:$9,$E:$E))) -> 2107.321078 | J24: -2107.321078
E25: 1 | F25: 4 | G25: 2017-01-27 | H25: =IF($F$7="Nuvigil",SUMIFS('IMS Data'!D:D,'IMS Data'!C:C,'TRx Tracker vs AOP'!G:G),IF('TRx Tracker vs AOP'!$F$7="Fentora",SUMIFS('IMS Data'!F:F,'IMS Data'!C:C,'TRx Tracker vs AOP'!G:G),IF('TRx Tracker vs AOP'!$F$7="Amrix",SUMIFS('IMS Data'!E:E,'IMS Data'!C:C,'TRx Tracker vs AOP'!G:G),IF('TRx Tracker vs AOP'!$F$7="Provigil",SUMIFS('IMS Data'!I:I,'IMS Data'!C:C,'TRx Tracker vs AOP'!G:G),IF('TRx Tracker vs AOP'!$F$7="Gabitril",SUMIFS('IMS Data'!H:H,'IMS Data'!C:C,'TRx Tracker vs AOP'!G:G),IF('TRx Tracker vs AOP'!$F$7="Actiq",SUMIFS('IMS Data'!G:G,'IMS Data'!C:C,'TRx Tracker vs AOP'!G:G),IF($F$7="Copaxone 40",SUMIFS('IMS Data'!K:K,'IMS Data'!C:C,'TRx Tracker vs AOP'!G:G),IF($F$7="Azilect",SUMIFS('IMS Data'!L:L,'IMS Data'!C:C,'TRx Tracker vs AOP'!G:G),IF($F$7="Copaxone 20",SUMIFS('IMS Data'!J:J,'IMS Data'!C:C,'TRx Tracker vs AOP'!G:G),IF($F$7="Zecuity",SUMIFS('IMS Data'!M:M,'IMS Data'!C:C,'TRx Tracker vs LBE'!G:G))))))))))) -> 0 | I25: =IF($F$7="Zecuity",SUMIFS('Zecuity Weekly Forecast'!B:B,'Zecuity Weekly Forecast'!A:A,'TRx Tracker vs AOP'!G:G),IF($F$7="Nuvigil",SUMIFS('NUVIGIL Goals'!$E:$E,'NUVIGIL Goals'!$B:$B,'TRx Tracker vs AOP'!$F:$F),SUMIFS($15:$15,$9:$9,$E:$E)/SUMIFS($18:$18,$9:$9,$E:$E))) -> 2107.321078 | J25: -2107.321078
E26: 2 | F26: 5 | G26: 2017-02-03 | H26: =IF($F$7="Nuvigil",SUMIFS('IMS Data'!D:D,'IMS Data'!C:C,'TRx Tracker vs AOP'!G:G),IF('TRx Tracker vs AOP'!$F$7="Fentora",SUMIFS('IMS Data'!F:F,'IMS Data'!C:C,'TRx Tracker vs AOP'!G:G),IF('TRx Tracker vs AOP'!$F$7="Amrix",SUMIFS('IMS Data'!E:E,'IMS Data'!C:C,'TRx Tracker vs AOP'!G:G),IF('TRx Tracker vs AOP'!$F$7="Provigil",SUMIFS('IMS Data'!I:I,'IMS Data'!C:C,'TRx Tracker vs AOP'!G:G),IF('TRx Tracker vs AOP'!$F$7="Gabitril",SUMIFS('IMS Data'!H:H,'IMS Data'!C:C,'TRx Tracker vs AOP'!G:G),IF('TRx Tracker vs AOP'!$F$7="Actiq",SUMIFS('IMS Data'!G:G,'IMS Data'!C:C,'TRx Tracker vs AOP'!G:G),IF($F$7="Copaxone 40",SUMIFS('IMS Data'!K:K,'IMS Data'!C:C,'TRx Tracker vs AOP'!G:G),IF($F$7="Azilect",SUMIFS('IMS Data'!L:L,'IMS Data'!C:C,'TRx Tracker vs AOP'!G:G),IF($F$7="Copaxone 20",SUMIFS('IMS Data'!J:J,'IMS Data'!C:C,'TRx Tracker vs AOP'!G:G),IF($F$7="Zecuity",SUMIFS('IMS Data'!M:M,'IMS Data'!C:C,'TRx Tracker vs LBE'!G:G))))))))))) -> 0 | I26: =IF($F$7="Zecuity",SUMIFS('Zecuity Weekly Forecast'!B:B,'Zecuity Weekly Forecast'!A:A,'TRx Tracker vs AOP'!G:G),IF($F$7="Nuvigil",SUMIFS('NUVIGIL Goals'!$E:$E,'NUVIGIL Goals'!$B:$B,'TRx Tracker vs AOP'!$F:$F),SUMIFS($15:$15,$9:$9,$E:$E)/SUMIFS($18:$18,$9:$9,$E:$E))) -> 2132.478703 | J26: -2132.478703
E27: 2 | F27: 6 | G27: 2017-02-10 | H27: =IF($F$7="Nuvigil",SUMIFS('IMS Data'!D:D,'IMS Data'!C:C,'TRx Tracker vs AOP'!G:G),IF('TRx Tracker vs AOP'!$F$7="Fentora",SUMIFS('IMS Data'!F:F,'IMS Data'!C:C,'TRx Tracker vs AOP'!G:G),IF('TRx Tracker vs AOP'!$F$7="Amrix",SUMIFS('IMS Data'!E:E,'IMS Data'!C:C,'TRx Tracker vs AOP'!G:G),IF('TRx Tracker vs AOP'!$F$7="Provigil",SUMIFS('IMS Data'!I:I,'IMS Data'!C:C,'TRx Tracker vs AOP'!G:G),IF('TRx Tracker vs AOP'!$F$7="Gabitril",SUMIFS('IMS Data'!H:H,'IMS Data'!C:C,'TRx Tracker vs AOP'!G:G),IF('TRx Tracker vs AOP'!$F$7="Actiq",SUMIFS('IMS Data'!G:G,'IMS Data'!C:C,'TRx Tracker vs AOP'!G:G),IF($F$7="Copaxone 40",SUMIFS('IMS Data'!K:K,'IMS Data'!C:C,'TRx Tracker vs AOP'!G:G),IF($F$7="Azilect",SUMIFS('IMS Data'!L:L,'IMS Data'!C:C,'TRx Tracker vs AOP'!G:G),IF($F$7="Copaxone 20",SUMIFS('IMS Data'!J:J,'IMS Data'!C:C,'TRx Tracker vs AOP'!G:G),IF($F$7="Zecuity",SUMIFS('IMS Data'!M:M,'IMS Data'!C:C,'TRx Tracker vs LBE'!G:G))))))))))) -> 0 | I27: =IF($F$7="Zecuity",SUMIFS('Zecuity Weekly Forecast'!B:B,'Zecuity Weekly Forecast'!A:A,'TRx Tracker vs AOP'!G:G),IF($F$7="Nuvigil",SUMIFS('NUVIGIL Goals'!$E:$E,'NUVIGIL Goals'!$B:$B,'TRx Tracker vs AOP'!$F:$F),SUMIFS($15:$15,$9:$9,$E:$E)/SUMIFS($18:$18,$9:$9,$E:$E))) -> 2132.478703 | J27: -2132.478703
E28: 2 | F28: 7 | G28: 2017-02-17 | H28: =IF($F$7="Nuvigil",SUMIFS('IMS Data'!D:D,'IMS Data'!C:C,'TRx Tracker vs AOP'!G:G),IF('TRx Tracker vs AOP'!$F$7="Fentora",SUMIFS('IMS Data'!F:F,'IMS Data'!C:C,'TRx Tracker vs AOP'!G:G),IF('TRx Tracker vs AOP'!$F$7="Amrix",SUMIFS('IMS Data'!E:E,'IMS Data'!C:C,'TRx Tracker vs AOP'!G:G),IF('TRx Tracker vs AOP'!$F$7="Provigil",SUMIFS('IMS Data'!I:I,'IMS Data'!C:C,'TRx Tracker vs AOP'!G:G),IF('TRx Tracker vs AOP'!$F$7="Gabitril",SUMIFS('IMS Data'!H:H,'IMS Data'!C:C,'TRx Tracker vs AOP'!G:G),IF('TRx Tracker vs AOP'!$F$7="Actiq",SUMIFS('IMS Data'!G:G,'IMS Data'!C:C,'TRx Tracker vs AOP'!G:G),IF($F$7="Copaxone 40",SUMIFS('IMS Data'!K:K,'IMS Data'!C:C,'TRx Tracker vs AOP'!G:G),IF($F$7="Azilect",SUMIFS('IMS Data'!L:L,'IMS Data'!C:C,'TRx Tracker vs AOP'!G:G),IF($F$7="Copaxone 20",SUMIFS('IMS Data'!J:J,'IMS Data'!C:C,'TRx Tracker vs AOP'!G:G),IF($F$7="Zecuity",SUMIFS('IMS Data'!M:M,'IMS Data'!C:C,'TRx Tracker vs LBE'!G:G))))))))))) -> 0 | I28: =IF($F$7="Zecuity",SUMIFS('Zecuity Weekly Forecast'!B:B,'Zecuity Weekly Forecast'!A:A,'TRx Tracker vs AOP'!G:G),IF($F$7="Nuvigil",SUMIFS('NUVIGIL Goals'!$E:$E,'NUVIGIL Goals'!$B:$B,'TRx Tracker vs AOP'!$F:$F),SUMIFS($15:$15,$9:$9,$E:$E)/SUMIFS($18:$18,$9:$9,$E:$E))) -> 2132.478703 | J28: -2132.478703
E29: 2 | F29: 8 | G29: 2017-02-24 | H29: =IF($F$7="Nuvigil",SUMIFS('IMS Data'!D:D,'IMS Data'!C:C,'TRx Tracker vs AOP'!G:G),IF('TRx Tracker vs AOP'!$F$7="Fentora",SUMIFS('IMS Data'!F:F,'IMS Data'!C:C,'TRx Tracker vs AOP'!G:G),IF('TRx Tracker vs AOP'!$F$7="Amrix",SUMIFS('IMS Data'!E:E,'IMS Data'!C:C,'TRx Tracker vs AOP'!G:G),IF('TRx Tracker vs AOP'!$F$7="Provigil",SUMIFS('IMS Data'!I:I,'IMS Data'!C:C,'TRx Tracker vs AOP'!G:G),IF('TRx Tracker vs AOP'!$F$7="Gabitril",SUMIFS('IMS Data'!H:H,'IMS Data'!C:C,'TRx Tracker vs AOP'!G:G),IF('TRx Tracker vs AOP'!$F$7="Actiq",SUMIFS('IMS Data'!G:G,'IMS Data'!C:C,'TRx Tracker vs AOP'!G:G),IF($F$7="Copaxone 40",SUMIFS('IMS Data'!K:K,'IMS Data'!C:C,'TRx Tracker vs AOP'!G:G),IF($F$7="Azilect",SUMIFS('IMS Data'!L:L,'IMS Data'!C:C,'TRx Tracker vs AOP'!G:G),IF($F$7="Copaxone 20",SUMIFS('IMS Data'!J:J,'IMS Data'!C:C,'TRx Tracker vs AOP'!G:G),IF($F$7="Zecuity",SUMIFS('IMS Data'!M:M,'IMS Data'!C:C,'TRx Tracker vs LBE'!G:G))))))))))) -> 0 | I29: =IF($F$7="Zecuity",SUMIFS('Zecuity Weekly Forecast'!B:B,'Zecuity Weekly Forecast'!A:A,'TRx Tracker vs AOP'!G:G),IF($F$7="Nuvigil",SUMIFS('NUVIGIL Goals'!$E:$E,'NUVIGIL Goals'!$B:$B,'TRx Tracker vs AOP'!$F:$F),SUMIFS($15:$15,$9:$9,$E:$E)/SUMIFS($18:$18,$9:$9,$E:$E))) -> 2132.478703 | J29: -2132.478703
E30: 3 | F30: 9 | G30: 2017-03-03 | H30: =IF($F$7="Nuvigil",SUMIFS('IMS Data'!D:D,'IMS Data'!C:C,'TRx Tracker vs AOP'!G:G),IF('TRx Tracker vs AOP'!$F$7="Fentora",SUMIFS('IMS Data'!F:F,'IMS Data'!C:C,'TRx Tracker vs AOP'!G:G),IF('TRx Tracker vs AOP'!$F$7="Amrix",SUMIFS('IMS Data'!E:E,'IMS Data'!C:C,'TRx Tracker vs AOP'!G:G),IF('TRx Tracker vs AOP'!$F$7="Provigil",SUMIFS('IMS Data'!I:I,'IMS Data'!C:C,'TRx Tracker vs AOP'!G:G),IF('TRx Tracker vs AOP'!$F$7="Gabitril",SUMIFS('IMS Data'!H:H,'IMS Data'!C:C,'TRx Tracker vs AOP'!G:G),IF('TRx Tracker vs AOP'!$F$7="Actiq",SUMIFS('IMS Data'!G:G,'IMS Data'!C:C,'TRx Tracker vs AOP'!G:G),IF($F$7="Copaxone 40",SUMIFS('IMS Data'!K:K,'IMS Data'!C:C,'TRx Tracker vs AOP'!G:G),IF($F$7="Azilect",SUMIFS('IMS Data'!L:L,'IMS Data'!C:C,'TRx Tracker vs AOP'!G:G),IF($F$7="Copaxone 20",SUMIFS('IMS Data'!J:J,'IMS Data'!C:C,'TRx Tracker vs AOP'!G:G),IF($F$7="Zecuity",SUMIFS('IMS Data'!M:M,'IMS Data'!C:C,'TRx Tracker vs LBE'!G:G))))))))))) -> 0 | I30: =IF($F$7="Zecuity",SUMIFS('Zecuity Weekly Forecast'!B:B,'Zecuity Weekly Forecast'!A:A,'TRx Tracker vs AOP'!G:G),IF($F$7="Nuvigil",SUMIFS('NUVIGIL Goals'!$E:$E,'NUVIGIL Goals'!$B:$B,'TRx Tracker vs AOP'!$F:$F),SUMIFS($15:$15,$9:$9,$E:$E)/SUMIFS($18:$18,$9:$9,$E:$E))) -> 2401.936601 | J30: -2401.936601
E31: 3 | F31: 10 | G31: 2017-03-10 | H31: =IF($F$7="Nuvigil",SUMIFS('IMS Data'!D:D,'IMS Data'!C:C,'TRx Tracker vs AOP'!G:G),IF('TRx Tracker vs AOP'!$F$7="Fentora",SUMIFS('IMS Data'!F:F,'IMS Data'!C:C,'TRx Tracker vs AOP'!G:G),IF('TRx Tracker vs AOP'!$F$7="Amrix",SUMIFS('IMS Data'!E:E,'IMS Data'!C:C,'TRx Tracker vs AOP'!G:G),IF('TRx Tracker vs AOP'!$F$7="Provigil",SUMIFS('IMS Data'!I:I,'IMS Data'!C:C,'TRx Tracker vs AOP'!G:G),IF('TRx Tracker vs AOP'!$F$7="Gabitril",SUMIFS('IMS Data'!H:H,'IMS Data'!C:C,'TRx Tracker vs AOP'!G:G),IF('TRx Tracker vs AOP'!$F$7="Actiq",SUMIFS('IMS Data'!G:G,'IMS Data'!C:C,'TRx Tracker vs AOP'!G:G),IF($F$7="Copaxone 40",SUMIFS('IMS Data'!K:K,'IMS Data'!C:C,'TRx Tracker vs AOP'!G:G),IF($F$7="Azilect",SUMIFS('IMS Data'!L:L,'IMS Data'!C:C,'TRx Tracker vs AOP'!G:G),IF($F$7="Copaxone 20",SUMIFS('IMS Data'!J:J,'IMS Data'!C:C,'TRx Tracker vs AOP'!G:G),IF($F$7="Zecuity",SUMIFS('IMS Data'!M:M,'IMS Data'!C:C,'TRx Tracker vs LBE'!G:G))))))))))) -> 0 | I31: =IF($F$7="Zecuity",SUMIFS('Zecuity Weekly Forecast'!B:B,'Zecuity Weekly Forecast'!A:A,'TRx Tracker vs AOP'!G:G),IF($F$7="Nuvigil",SUMIFS('NUVIGIL Goals'!$E:$E,'NUVIGIL Goals'!$B:$B,'TRx Tracker vs AOP'!$F:$F),SUMIFS($15:$15,$9:$9,$E:$E)/SUMIFS($18:$18,$9:$9,$E:$E))) -> 2401.936601 | J31: -2401.936601
E32: 3 | F32: 11 | G32: 2017-03-17 | H32: =IF($F$7="Nuvigil",SUMIFS('IMS Data'!D:D,'IMS Data'!C:C,'TRx Tracker vs AOP'!G:G),IF('TRx Tracker vs AOP'!$F$7="Fentora",SUMIFS('IMS Data'!F:F,'IMS Data'!C:C,'TRx Tracker vs AOP'!G:G),IF('TRx Tracker vs AOP'!$F$7="Amrix",SUMIFS('IMS Data'!E:E,'IMS Data'!C:C,'TRx Tracker vs AOP'!G:G),IF('TRx Tracker vs AOP'!$F$7="Provigil",SUMIFS('IMS Data'!I:I,'IMS Data'!C:C,'TRx Tracker vs AOP'!G:G),IF('TRx Tracker vs AOP'!$F$7="Gabitril",SUMIFS('IMS Data'!H:H,'IMS Data'!C:C,'TRx Tracker vs AOP'!G:G),IF('TRx Tracker vs AOP'!$F$7="Actiq",SUMIFS('IMS Data'!G:G,'IMS Data'!C:C,'TRx Tracker vs AOP'!G:G),IF($F$7="Copaxone 40",SUMIFS('IMS Data'!K:K,'IMS Data'!C:C,'TRx Tracker vs AOP'!G:G),IF($F$7="Azilect",SUMIFS('IMS Data'!L:L,'IMS Data'!C:C,'TRx Tracker vs AOP'!G:G),IF($F$7="Copaxone 20",SUMIFS('IMS Data'!J:J,'IMS Data'!C:C,'TRx Tracker vs AOP'!G:G),IF($F$7="Zecuity",SUMIFS('IMS Data'!M:M,'IMS Data'!C:C,'TRx Tracker vs LBE'!G:G))))))))))) -> 0 | I32: =IF($F$7="Zecuity",SUMIFS('Zecuity Weekly Forecast'!B:B,'Zecuity Weekly Forecast'!A:A,'TRx Tracker vs AOP'!G:G),IF($F$7="Nuvigil",SUMIFS('NUVIGIL Goals'!$E:$E,'NUVIGIL Goals'!$B:$B,'TRx Tracker vs AOP'!$F:$F),SUMIFS($15:$15,$9:$9,$E:$E)/SUMIFS($18:$18,$9:$9,$E:$E))) -> 2401.936601 | J32: -2401.936601
E33: 3 | F33: 12 | G33: 2017-03-24 | H33: =IF($F$7="Nuvigil",SUMIFS('IMS Data'!D:D,'IMS Data'!C:C,'TRx Tracker vs AOP'!G:G),IF('TRx Tracker vs AOP'!$F$7="Fentora",SUMIFS('IMS Data'!F:F,'IMS Data'!C:C,'TRx Tracker vs AOP'!G:G),IF('TRx Tracker vs AOP'!$F$7="Amrix",SUMIFS('IMS Data'!E:E,'IMS Data'!C:C,'TRx Tracker vs AOP'!G:G),IF('TRx Tracker vs AOP'!$F$7="Provigil",SUMIFS('IMS Data'!I:I,'IMS Data'!C:C,'TRx Tracker vs AOP'!G:G),IF('TRx Tracker vs AOP'!$F$7="Gabitril",SUMIFS('IMS Data'!H:H,'IMS Data'!C:C,'TRx Tracker vs AOP'!G:G),IF('TRx Tracker vs AOP'!$F$7="Actiq",SUMIFS('IMS Data'!G:G,'IMS Data'!C:C,'TRx Tracker vs AOP'!G:G),IF($F$7="Copaxone 40",SUMIFS('IMS Data'!K:K,'IMS Data'!C:C,'TRx Tracker vs AOP'!G:G),IF($F$7="Azilect",SUMIFS('IMS Data'!L:L,'IMS Data'!C:C,'TRx Tracker vs AOP'!G:G),IF($F$7="Copaxone 20",SUMIFS('IMS Data'!J:J,'IMS Data'!C:C,'TRx Tracker vs AOP'!G:G),IF($F$7="Zecuity",SUMIFS('IMS Data'!M:M,'IMS Data'!C:C,'TRx Tracker vs LBE'!G:G))))))))))) -> 0 | I33: =IF($F$7="Zecuity",SUMIFS('Zecuity Weekly Forecast'!B:B,'Zecuity Weekly Forecast'!A:A,'TRx Tracker vs AOP'!G:G),IF($F$7="Nuvigil",SUMIFS('NUVIGIL Goals'!$E:$E,'NUVIGIL Goals'!$B:$B,'TRx Tracker vs AOP'!$F:$F),SUMIFS($15:$15,$9:$9,$E:$E)/SUMIFS($18:$18,$9:$9,$E:$E))) -> 2401.936601 | J33: -2401.936601
E34: 3 | F34: 13 | G34: 2017-03-31 | H34: =IF($F$7="Nuvigil",SUMIFS('IMS Data'!D:D,'IMS Data'!C:C,'TRx Tracker vs AOP'!G:G),IF('TRx Tracker vs AOP'!$F$7="Fentora",SUMIFS('IMS Data'!F:F,'IMS Data'!C:C,'TRx Tracker vs AOP'!G:G),IF('TRx Tracker vs AOP'!$F$7="Amrix",SUMIFS('IMS Data'!E:E,'IMS Data'!C:C,'TRx Tracker vs AOP'!G:G),IF('TRx Tracker vs AOP'!$F$7="Provigil",SUMIFS('IMS Data'!I:I,'IMS Data'!C:C,'TRx Tracker vs AOP'!G:G),IF('TRx Tracker vs AOP'!$F$7="Gabitril",SUMIFS('IMS Data'!H:H,'IMS Data'!C:C,'TRx Tracker vs AOP'!G:G),IF('TRx Tracker vs AOP'!$F$7="Actiq",SUMIFS('IMS Data'!G:G,'IMS Data'!C:C,'TRx Tracker vs AOP'!G:G),IF($F$7="Copaxone 40",SUMIFS('IMS Data'!K:K,'IMS Data'!C:C,'TRx Tracker vs AOP'!G:G),IF($F$7="Azilect",SUMIFS('IMS Data'!L:L,'IMS Data'!C:C,'TRx Tracker vs AOP'!G:G),IF($F$7="Copaxone 20",SUMIFS('IMS Data'!J:J,'IMS Data'!C:C,'TRx Tracker vs AOP'!G:G),IF($F$7="Zecuity",SUMIFS('IMS Data'!M:M,'IMS Data'!C:C,'TRx Tracker vs LBE'!G:G))))))))))) -> 0 | I34: =IF($F$7="Zecuity",SUMIFS('Zecuity Weekly Forecast'!B:B,'Zecuity Weekly Forecast'!A:A,'TRx Tracker vs AOP'!G:G),IF($F$7="Nuvigil",SUMIFS('NUVIGIL Goals'!$E:$E,'NUVIGIL Goals'!$B:$B,'TRx Tracker vs AOP'!$F:$F),SUMIFS($15:$15,$9:$9,$E:$E)/SUMIFS($18:$18,$9:$9,$E:$E))) -> 2401.936601 | J34: -2401.936601
E35: 4 | F35: 14 | G35: 2017-04-07 | H35: =IF($F$7="Nuvigil",SUMIFS('IMS Data'!D:D,'IMS Data'!C:C,'TRx Tracker vs AOP'!G:G),IF('TRx Tracker vs AOP'!$F$7="Fentora",SUMIFS('IMS Data'!F:F,'IMS Data'!C:C,'TRx Tracker vs AOP'!G:G),IF('TRx Tracker vs AOP'!$F$7="Amrix",SUMIFS('IMS Data'!E:E,'IMS Data'!C:C,'TRx Tracker vs AOP'!G:G),IF('TRx Tracker vs AOP'!$F$7="Provigil",SUMIFS('IMS Data'!I:I,'IMS Data'!C:C,'TRx Tracker vs AOP'!G:G),IF('TRx Tracker vs AOP'!$F$7="Gabitril",SUMIFS('IMS Data'!H:H,'IMS Data'!C:C,'TRx Tracker vs AOP'!G:G),IF('TRx Tracker vs AOP'!$F$7="Actiq",SUMIFS('IMS Data'!G:G,'IMS Data'!C:C,'TRx Tracker vs AOP'!G:G),IF($F$7="Copaxone 40",SUMIFS('IMS Data'!K:K,'IMS Data'!C:C,'TRx Tracker vs AOP'!G:G),IF($F$7="Azilect",SUMIFS('IMS Data'!L:L,'IMS Data'!C:C,'TRx Tracker vs AOP'!G:G),IF($F$7="Copaxone 20",SUMIFS('IMS Data'!J:J,'IMS Data'!C:C,'TRx Tracker vs AOP'!G:G),IF($F$7="Zecuity",SUMIFS('IMS Data'!M:M,'IMS Data'!C:C,'TRx Tracker vs LBE'!G:G))))))))))) -> 0 | I35: =IF($F$7="Zecuity",SUMIFS('Zecuity Weekly Forecast'!B:B,'Zecuity Weekly Forecast'!A:A,'TRx Tracker vs AOP'!G:G),IF($F$7="Nuvigil",SUMIFS('NUVIGIL Goals'!$E:$E,'NUVIGIL Goals'!$B:$B,'TRx Tracker vs AOP'!$F:$F),SUMIFS($15:$15,$9:$9,$E:$E)/SUMIFS($18:$18,$9:$9,$E:$E))) -> 2219.173853 | J35: -2219.173853
E36: 4 | F36: 15 | G36: 2017-04-14 | H36: =IF($F$7="Nuvigil",SUMIFS('IMS Data'!D:D,'IMS Data'!C:C,'TRx Tracker vs AOP'!G:G),IF('TRx Tracker vs AOP'!$F$7="Fentora",SUMIFS('IMS Data'!F:F,'IMS Data'!C:C,'TRx Tracker vs AOP'!G:G),IF('TRx Tracker vs AOP'!$F$7="Amrix",SUMIFS('IMS Data'!E:E,'IMS Data'!C:C,'TRx Tracker vs AOP'!G:G),IF('TRx Tracker vs AOP'!$F$7="Provigil",SUMIFS('IMS Data'!I:I,'IMS Data'!C:C,'TRx Tracker vs AOP'!G:G),IF('TRx Tracker vs AOP'!$F$7="Gabitril",SUMIFS('IMS Data'!H:H,'IMS Data'!C:C,'TRx Tracker vs AOP'!G:G),IF('TRx Tracker vs AOP'!$F$7="Actiq",SUMIFS('IMS Data'!G:G,'IMS Data'!C:C,'TRx Tracker vs AOP'!G:G),IF($F$7="Copaxone 40",SUMIFS('IMS Data'!K:K,'IMS Data'!C:C,'TRx Tracker vs AOP'!G:G),IF($F$7="Azilect",SUMIFS('IMS Data'!L:L,'IMS Data'!C:C,'TRx Tracker vs AOP'!G:G),IF($F$7="Copaxone 20",SUMIFS('IMS Data'!J:J,'IMS Data'!C:C,'TRx Tracker vs AOP'!G:G),IF($F$7="Zecuity",SUMIFS('IMS Data'!M:M,'IMS Data'!C:C,'TRx Tracker vs LBE'!G:G))))))))))) -> 0 | I36: =IF($F$7="Zecuity",SUMIFS('Zecuity Weekly Forecast'!B:B,'Zecuity Weekly Forecast'!A:A,'TRx Tracker vs AOP'!G:G),IF($F$7="Nuvigil",SUMIFS('NUVIGIL Goals'!$E:$E,'NUVIGIL Goals'!$B:$B,'TRx Tracker vs AOP'!$F:$F),SUMIFS($15:$15,$9:$9,$E:$E)/SUMIFS($18:$18,$9:$9,$E:$E))) -> 2219.173853 | J36: -2219.173853
E37: 4 | F37: 16 | G37: 2017-04-21 | H37: =IF($F$7="Nuvigil",SUMIFS('IMS Data'!D:D,'IMS Data'!C:C,'TRx Tracker vs AOP'!G:G),IF('TRx Tracker vs AOP'!$F$7="Fentora",SUMIFS('IMS Data'!F:F,'IMS Data'!C:C,'TRx Tracker vs AOP'!G:G),IF('TRx Tracker vs AOP'!$F$7="Amrix",SUMIFS('IMS Data'!E:E,'IMS Data'!C:C,'TRx Tracker vs AOP'!G:G),IF('TRx Tracker vs AOP'!$F$7="Provigil",SUMIFS('IMS Data'!I:I,'IMS Data'!C:C,'TRx Tracker vs AOP'!G:G),IF('TRx Tracker vs AOP'!$F$7="Gabitril",SUMIFS('IMS Data'!H:H,'IMS Data'!C:C,'TRx Tracker vs AOP'!G:G),IF('TRx Tracker vs AOP'!$F$7="Actiq",SUMIFS('IMS Data'!G:G,'IMS Data'!C:C,'TRx Tracker vs AOP'!G:G),IF($F$7="Copaxone 40",SUMIFS('IMS Data'!K:K,'IMS Data'!C:C,'TRx Tracker vs AOP'!G:G),IF($F$7="Azilect",SUMIFS('IMS Data'!L:L,'IMS Data'!C:C,'TRx Tracker vs AOP'!G:G),IF($F$7="Copaxone 20",SUMIFS('IMS Data'!J:J,'IMS Data'!C:C,'TRx Tracker vs AOP'!G:G),IF($F$7="Zecuity",SUMIFS('IMS Data'!M:M,'IMS Data'!C:C,'TRx Tracker vs LBE'!G:G))))))))))) -> 0 | I37: =IF($F$7="Zecuity",SUMIFS('Zecuity Weekly Forecast'!B:B,'Zecuity Weekly Forecast'!A:A,'TRx Tracker vs AOP'!G:G),IF($F$7="Nuvigil",SUMIFS('NUVIGIL Goals'!$E:$E,'NUVIGIL Goals'!$B:$B,'TRx Tracker vs AOP'!$F:$F),SUMIFS($15:$15,$9:$9,$E:$E)/SUMIFS($18:$18,$9:$9,$E:$E))) -> 2219.173853 | J37: -2219.173853
E38: 4 | F38: 17 | G38: 2017-04-28 | H38: =IF($F$7="Nuvigil",SUMIFS('IMS Data'!D:D,'IMS Data'!C:C,'TRx Tracker vs AOP'!G:G),IF('TRx Tracker vs AOP'!$F$7="Fentora",SUMIFS('IMS Data'!F:F,'IMS Data'!C:C,'TRx Tracker vs AOP'!G:G),IF('TRx Tracker vs AOP'!$F$7="Amrix",SUMIFS('IMS Data'!E:E,'IMS Data'!C:C,'TRx Tracker vs AOP'!G:G),IF('TRx Tracker vs AOP'!$F$7="Provigil",SUMIFS('IMS Data'!I:I,'IMS Data'!C:C,'TRx Tracker vs AOP'!G:G),IF('TRx Tracker vs AOP'!$F$7="Gabitril",SUMIFS('IMS Data'!H:H,'IMS Data'!C:C,'TRx Tracker vs AOP'!G:G),IF('TRx Tracker vs AOP'!$F$7="Actiq",SUMIFS('IMS Data'!G:G,'IMS Data'!C:C,'TRx Tracker vs AOP'!G:G),IF($F$7="Copaxone 40",SUMIFS('IMS Data'!K:K,'IMS Data'!C:C,'TRx Tracker vs AOP'!G:G),IF($F$7="Azilect",SUMIFS('IMS Data'!L:L,'IMS Data'!C:C,'TRx Tracker vs AOP'!G:G),IF($F$7="Copaxone 20",SUMIFS('IMS Data'!J:J,'IMS Data'!C:C,'TRx Tracker vs AOP'!G:G),IF($F$7="Zecuity",SUMIFS('IMS Data'!M:M,'IMS Data'!C:C,'TRx Tracker vs LBE'!G:G))))))))))) -> 0 | I38: =IF($F$7="Zecuity",SUMIFS('Zecuity Weekly Forecast'!B:B,'Zecuity Weekly Forecast'!A:A,'TRx Tracker vs AOP'!G:G),IF($F$7="Nuvigil",SUMIFS('NUVIGIL Goals'!$E:$E,'NUVIGIL Goals'!$B:$B,'TRx Tracker vs AOP'!$F:$F),SUMIFS($15:$15,$9:$9,$E:$E)/SUMIFS($18:$18,$9:$9,$E:$E))) -> 2219.173853 | J38: -2219.173853
E39: 5 | F39: 18 | G39: 2017-05-05 | H39: =IF($F$7="Nuvigil",SUMIFS('IMS Data'!D:D,'IMS Data'!C:C,'TRx Tracker vs AOP'!G:G),IF('TRx Tracker vs AOP'!$F$7="Fentora",SUMIFS('IMS Data'!F:F,'IMS Data'!C:C,'TRx Tracker vs AOP'!G:G),IF('TRx Tracker vs AOP'!$F$7="Amrix",SUMIFS('IMS Data'!E:E,'IMS Data'!C:C,'TRx Tracker vs AOP'!G:G),IF('TRx Tracker vs AOP'!$F$7="Provigil",SUMIFS('IMS Data'!I:I,'IMS Data'!C:C,'TRx Tracker vs AOP'!G:G),IF('TRx Tracker vs AOP'!$F$7="Gabitril",SUMIFS('IMS Data'!H:H,'IMS Data'!C:C,'TRx Tracker vs AOP'!G:G),IF('TRx Tracker vs AOP'!$F$7="Actiq",SUMIFS('IMS Data'!G:G,'IMS Data'!C:C,'TRx Tracker vs AOP'!G:G),IF($F$7="Copaxone 40",SUMIFS('IMS Data'!K:K,'IMS Data'!C:C,'TRx Tracker vs AOP'!G:G),IF($F$7="Azilect",SUMIFS('IMS Data'!L:L,'IMS Data'!C:C,'TRx Tracker vs AOP'!G:G),IF($F$7="Copaxone 20",SUMIFS('IMS Data'!J:J,'IMS Data'!C:C,'TRx Tracker vs AOP'!G:G),IF($F$7="Zecuity",SUMIFS('IMS Data'!M:M,'IMS Data'!C:C,'TRx Tracker vs LBE'!G:G))))))))))) -> 0 | I39: =IF($F$7="Zecuity",SUMIFS('Zecuity Weekly Forecast'!B:B,'Zecuity Weekly Forecast'!A:A,'TRx Tracker vs AOP'!G:G),IF($F$7="Nuvigil",SUMIFS('NUVIGIL Goals'!$E:$E,'NUVIGIL Goals'!$B:$B,'TRx Tracker vs AOP'!$F:$F),SUMIFS($15:$15,$9:$9,$E:$E)/SUMIFS($18:$18,$9:$9,$E:$E))) -> 2259.376725 | J39: -2259.376725
E40: 5 | F40: 19 | G40: 2017-05-12 | H40: =IF($F$7="Nuvigil",SUMIFS('IMS Data'!D:D,'IMS Data'!C:C,'TRx Tracker vs AOP'!G:G),IF('TRx Tracker vs AOP'!$F$7="Fentora",SUMIFS('IMS Data'!F:F,'IMS Data'!C:C,'TRx Tracker vs AOP'!G:G),IF('TRx Tracker vs AOP'!$F$7="Amrix",SUMIFS('IMS Data'!E:E,'IMS Data'!C:C,'TRx Tracker vs AOP'!G:G),IF('TRx Tracker vs AOP'!$F$7="Provigil",SUMIFS('IMS Data'!I:I,'IMS Data'!C:C,'TRx Tracker vs AOP'!G:G),IF('TRx Tracker vs AOP'!$F$7="Gabitril",SUMIFS('IMS Data'!H:H,'IMS Data'!C:C,'TRx Tracker vs AOP'!G:G),IF('TRx Tracker vs AOP'!$F$7="Actiq",SUMIFS('IMS Data'!G:G,'IMS Data'!C:C,'TRx Tracker vs AOP'!G:G),IF($F$7="Copaxone 40",SUMIFS('IMS Data'!K:K,'IMS Data'!C:C,'TRx Tracker vs AOP'!G:G),IF($F$7="Azilect",SUMIFS('IMS Data'!L:L,'IMS Data'!C:C,'TRx Tracker vs AOP'!G:G),IF($F$7="Copaxone 20",SUMIFS('IMS Data'!J:J,'IMS Data'!C:C,'TRx Tracker vs AOP'!G:G),IF($F$7="Zecuity",SUMIFS('IMS Data'!M:M,'IMS Data'!C:C,'TRx Tracker vs LBE'!G:G))))))))))) -> 0 | I40: =IF($F$7="Zecuity",SUMIFS('Zecuity Weekly Forecast'!B:B,'Zecuity Weekly Forecast'!A:A,'TRx Tracker vs AOP'!G:G),IF($F$7="Nuvigil",SUMIFS('NUVIGIL Goals'!$E:$E,'NUVIGIL Goals'!$B:$B,'TRx Tracker vs AOP'!$F:$F),SUMIFS($15:$15,$9:$9,$E:$E)/SUMIFS($18:$18,$9:$9,$E:$E))) -> 2259.376725 | J40: -2259.376725
E41: 5 | F41: 20 | G41: 2017-05-19 | H41: =IF($F$7="Nuvigil",SUMIFS('IMS Data'!D:D,'IMS Data'!C:C,'TRx Tracker vs AOP'!G:G),IF('TRx Tracker vs AOP'!$F$7="Fentora",SUMIFS('IMS Data'!F:F,'IMS Data'!C:C,'TRx Tracker vs AOP'!G:G),IF('TRx Tracker vs AOP'!$F$7="Amrix",SUMIFS('IMS Data'!E:E,'IMS Data'!C:C,'TRx Tracker vs AOP'!G:G),IF('TRx Tracker vs AOP'!$F$7="Provigil",SUMIFS('IMS Data'!I:I,'IMS Data'!C:C,'TRx Tracker vs AOP'!G:G),IF('TRx Tracker vs AOP'!$F$7="Gabitril",SUMIFS('IMS Data'!H:H,'IMS Data'!C:C,'TRx Tracker vs AOP'!G:G),IF('TRx Tracker vs AOP'!$F$7="Actiq",SUMIFS('IMS Data'!G:G,'IMS Data'!C:C,'TRx Tracker vs AOP'!G:G),IF($F$7="Copaxone 40",SUMIFS('IMS Data'!K:K,'IMS Data'!C:C,'TRx Tracker vs AOP'!G:G),IF($F$7="Azilect",SUMIFS('IMS Data'!L:L,'IMS Data'!C:C,'TRx Tracker vs AOP'!G:G),IF($F$7="Copaxone 20",SUMIFS('IMS Data'!J:J,'IMS Data'!C:C,'TRx Tracker vs AOP'!G:G),IF($F$7="Zecuity",SUMIFS('IMS Data'!M:M,'IMS Data'!C:C,'TRx Tracker vs LBE'!G:G))))))))))) -> 0 | I41: =IF($F$7="Zecuity",SUMIFS('Zecuity Weekly Forecast'!B:B,'Zecuity Weekly Forecast'!A:A,'TRx Tracker vs AOP'!G:G),IF($F$7="Nuvigil",SUMIFS('NUVIGIL Goals'!$E:$E,'NUVIGIL Goals'!$B:$B,'TRx Tracker vs AOP'!$F:$F),SUMIFS($15:$15,$9:$9,$E:$E)/SUMIFS($18:$18,$9:$9,$E:$E))) -> 2259.376725 | J41: -2259.376725
E42: 5 | F42: 21 | G42: 2017-05-26 | H42: =IF($F$7="Nuvigil",SUMIFS('IMS Data'!D:D,'IMS Data'!C:C,'TRx Tracker vs AOP'!G:G),IF('TRx Tracker vs AOP'!$F$7="Fentora",SUMIFS('IMS Data'!F:F,'IMS Data'!C:C,'TRx Tracker vs AOP'!G:G),IF('TRx Tracker vs AOP'!$F$7="Amrix",SUMIFS('IMS Data'!E:E,'IMS Data'!C:C,'TRx Tracker vs AOP'!G:G),IF('TRx Tracker vs AOP'!$F$7="Provigil",SUMIFS('IMS Data'!I:I,'IMS Data'!C:C,'TRx Tracker vs AOP'!G:G),IF('TRx Tracker vs AOP'!$F$7="Gabitril",SUMIFS('IMS Data'!H:H,'IMS Data'!C:C,'TRx Tracker vs AOP'!G:G),IF('TRx Tracker vs AOP'!$F$7="Actiq",SUMIFS('IMS Data'!G:G,'IMS Data'!C:C,'TRx Tracker vs AOP'!G:G),IF($F$7="Copaxone 40",SUMIFS('IMS Data'!K:K,'IMS Data'!C:C,'TRx Tracker vs AOP'!G:G),IF($F$7="Azilect",SUMIFS('IMS Data'!L:L,'IMS Data'!C:C,'TRx Tracker vs AOP'!G:G),IF($F$7="Copaxone 20",SUMIFS('IMS Data'!J:J,'IMS Data'!C:C,'TRx Tracker vs AOP'!G:G),IF($F$7="Zecuity",SUMIFS('IMS Data'!M:M,'IMS Data'!C:C,'TRx Tracker vs LBE'!G:G))))))))))) -> 0 | I42: =IF($F$7="Zecuity",SUMIFS('Zecuity Weekly Forecast'!B:B,'Zecuity Weekly Forecast'!A:A,'TRx Tracker vs AOP'!G:G),IF($F$7="Nuvigil",SUMIFS('NUVIGIL Goals'!$E:$E,'NUVIGIL Goals'!$B:$B,'TRx Tracker vs AOP'!$F:$F),SUMIFS($15:$15,$9:$9,$E:$E)/SUMIFS($18:$18,$9:$9,$E:$E))) -> 2259.376725 | J42: -2259.376725
E43: 6 | F43: 22 | G43: 2017-06-02 | H43: =IF($F$7="Nuvigil",SUMIFS('IMS Data'!D:D,'IMS Data'!C:C,'TRx Tracker vs AOP'!G:G),IF('TRx Tracker vs AOP'!$F$7="Fentora",SUMIFS('IMS Data'!F:F,'IMS Data'!C:C,'TRx Tracker vs AOP'!G:G),IF('TRx Tracker vs AOP'!$F$7="Amrix",SUMIFS('IMS Data'!E:E,'IMS Data'!C:C,'TRx Tracker vs AOP'!G:G),IF('TRx Tracker vs AOP'!$F$7="Provigil",SUMIFS('IMS Data'!I:I,'IMS Data'!C:C,'TRx Tracker vs AOP'!G:G),IF('TRx Tracker vs AOP'!$F$7="Gabitril",SUMIFS('IMS Data'!H:H,'IMS Data'!C:C,'TRx Tracker vs AOP'!G:G),IF('TRx Tracker vs AOP'!$F$7="Actiq",SUMIFS('IMS Data'!G:G,'IMS Data'!C:C,'TRx Tracker vs AOP'!G:G),IF($F$7="Copaxone 40",SUMIFS('IMS Data'!K:K,'IMS Data'!C:C,'TRx Tracker vs AOP'!G:G),IF($F$7="Azilect",SUMIFS('IMS Data'!L:L,'IMS Data'!C:C,'TRx Tracker vs AOP'!G:G),IF($F$7="Copaxone 20",SUMIFS('IMS Data'!J:J,'IMS Data'!C:C,'TRx Tracker vs AOP'!G:G),IF($F$7="Zecuity",SUMIFS('IMS Data'!M:M,'IMS Data'!C:C,'TRx Tracker vs LBE'!G:G))))))))))) -> 0 | I43: =IF($F$7="Zecuity",SUMIFS('Zecuity Weekly Forecast'!B:B,'Zecuity Weekly Forecast'!A:A,'TRx Tracker vs AOP'!G:G),IF($F$7="Nuvigil",SUMIFS('NUVIGIL Goals'!$E:$E,'NUVIGIL Goals'!$B:$B,'TRx Tracker vs AOP'!$F:$F),SUMIFS($15:$15,$9:$9,$E:$E)/SUMIFS($18:$18,$9:$9,$E:$E))) -> 2311.295157 | J43: -2311.295157
E44: 6 | F44: 23 | G44: 2017-06-09 | H44: =IF($F$7="Nuvigil",SUMIFS('IMS Data'!D:D,'IMS Data'!C:C,'TRx Tracker vs AOP'!G:G),IF('TRx Tracker vs AOP'!$F$7="Fentora",SUMIFS('IMS Data'!F:F,'IMS Data'!C:C,'TRx Tracker vs AOP'!G:G),IF('TRx Tracker vs AOP'!$F$7="Amrix",SUMIFS('IMS Data'!E:E,'IMS Data'!C:C,'TRx Tracker vs AOP'!G:G),IF('TRx Tracker vs AOP'!$F$7="Provigil",SUMIFS('IMS Data'!I:I,'IMS Data'!C:C,'TRx Tracker vs AOP'!G:G),IF('TRx Tracker vs AOP'!$F$7="Gabitril",SUMIFS('IMS Data'!H:H,'IMS Data'!C:C,'TRx Tracker vs AOP'!G:G),IF('TRx Tracker vs AOP'!$F$7="Actiq",SUMIFS('IMS Data'!G:G,'IMS Data'!C:C,'TRx Tracker vs AOP'!G:G),IF($F$7="Copaxone 40",SUMIFS('IMS Data'!K:K,'IMS Data'!C:C,'TRx Tracker vs AOP'!G:G),IF($F$7="Azilect",SUMIFS('IMS Data'!L:L,'IMS Data'!C:C,'TRx Tracker vs AOP'!G:G),IF($F$7="Copaxone 20",SUMIFS('IMS Data'!J:J,'IMS Data'!C:C,'TRx Tracker vs AOP'!G:G),IF($F$7="Zecuity",SUMIFS('IMS Data'!M:M,'IMS Data'!C:C,'TRx Tracker vs LBE'!G:G))))))))))) -> 0 | I44: =IF($F$7="Zecuity",SUMIFS('Zecuity Weekly Forecast'!B:B,'Zecuity Weekly Forecast'!A:A,'TRx Tracker vs AOP'!G:G),IF($F$7="Nuvigil",SUMIFS('NUVIGIL Goals'!$E:$E,'NUVIGIL Goals'!$B:$B,'TRx Tracker vs AOP'!$F:$F),SUMIFS($15:$15,$9:$9,$E:$E)/SUMIFS($18:$18,$9:$9,$E:$E))) -> 2311.295157 | J44: -2311.295157
E45: 6 | F45: 24 | G45: 2017-06-16 | H45: =IF($F$7="Nuvigil",SUMIFS('IMS Data'!D:D,'IMS Data'!C:C,'TRx Tracker vs AOP'!G:G),IF('TRx Tracker vs AOP'!$F$7="Fentora",SUMIFS('IMS Data'!F:F,'IMS Data'!C:C,'TRx Tracker vs AOP'!G:G),IF('TRx Tracker vs AOP'!$F$7="Amrix",SUMIFS('IMS Data'!E:E,'IMS Data'!C:C,'TRx Tracker vs AOP'!G:G),IF('TRx Tracker vs AOP'!$F$7="Provigil",SUMIFS('IMS Data'!I:I,'IMS Data'!C:C,'TRx Tracker vs AOP'!G:G),IF('TRx Tracker vs AOP'!$F$7="Gabitril",SUMIFS('IMS Data'!H:H,'IMS Data'!C:C,'TRx Tracker vs AOP'!G:G),IF('TRx Tracker vs AOP'!$F$7="Actiq",SUMIFS('IMS Data'!G:G,'IMS Data'!C:C,'TRx Tracker vs AOP'!G:G),IF($F$7="Copaxone 40",SUMIFS('IMS Data'!K:K,'IMS Data'!C:C,'TRx Tracker vs AOP'!G:G),IF($F$7="Azilect",SUMIFS('IMS Data'!L:L,'IMS Data'!C:C,'TRx Tracker vs AOP'!G:G),IF($F$7="Copaxone 20",SUMIFS('IMS Data'!J:J,'IMS Data'!C:C,'TRx Tracker vs AOP'!G:G),IF($F$7="Zecuity",SUMIFS('IMS Data'!M:M,'IMS Data'!C:C,'TRx Tracker vs LBE'!G:G))))))))))) -> 0 | I45: =IF($F$7="Zecuity",SUMIFS('Zecuity Weekly Forecast'!B:B,'Zecuity Weekly Forecast'!A:A,'TRx Tracker vs AOP'!G:G),IF($F$7="Nuvigil",SUMIFS('NUVIGIL Goals'!$E:$E,'NUVIGIL Goals'!$B:$B,'TRx Tracker vs AOP'!$F:$F),SUMIFS($15:$15,$9:$9,$E:$E)/SUMIFS($18:$18,$9:$9,$E:$E))) -> 2311.295157 | J45: -2311.295157
E46: 6 | F46: 25 | G46: 2017-06-23 | H46: =IF($F$7="Nuvigil",SUMIFS('IMS Data'!D:D,'IMS Data'!C:C,'TRx Tracker vs AOP'!G:G),IF('TRx Tracker vs AOP'!$F$7="Fentora",SUMIFS('IMS Data'!F:F,'IMS Data'!C:C,'TRx Tracker vs AOP'!G:G),IF('TRx Tracker vs AOP'!$F$7="Amrix",SUMIFS('IMS Data'!E:E,'IMS Data'!C:C,'TRx Tracker vs AOP'!G:G),IF('TRx Tracker vs AOP'!$F$7="Provigil",SUMIFS('IMS Data'!I:I,'IMS Data'!C:C,'TRx Tracker vs AOP'!G:G),IF('TRx Tracker vs AOP'!$F$7="Gabitril",SUMIFS('IMS Data'!H:H,'IMS Data'!C:C,'TRx Tracker vs AOP'!G:G),IF('TRx Tracker vs AOP'!$F$7="Actiq",SUMIFS('IMS Data'!G:G,'IMS Data'!C:C,'TRx Tracker vs AOP'!G:G),IF($F$7="Copaxone 40",SUMIFS('IMS Data'!K:K,'IMS Data'!C:C,'TRx Tracker vs AOP'!G:G),IF($F$7="Azilect",SUMIFS('IMS Data'!L:L,'IMS Data'!C:C,'TRx Tracker vs AOP'!G:G),IF($F$7="Copaxone 20",SUMIFS('IMS Data'!J:J,'IMS Data'!C:C,'TRx Tracker vs AOP'!G:G),IF($F$7="Zecuity",SUMIFS('IMS Data'!M:M,'IMS Data'!C:C,'TRx Tracker vs LBE'!G:G))))))))))) -> 0 | I46: =IF($F$7="Zecuity",SUMIFS('Zecuity Weekly Forecast'!B:B,'Zecuity Weekly Forecast'!A:A,'TRx Tracker vs AOP'!G:G),IF($F$7="Nuvigil",SUMIFS('NUVIGIL Goals'!$E:$E,'NUVIGIL Goals'!$B:$B,'TRx Tracker vs AOP'!$F:$F),SUMIFS($15:$15,$9:$9,$E:$E)/SUMIFS($18:$18,$9:$9,$E:$E))) -> 2311.295157 | J46: -2311.295157
E47: 6 | F47: 26 | G47: 2017-06-30 | H47: =IF($F$7="Nuvigil",SUMIFS('IMS Data'!D:D,'IMS Data'!C:C,'TRx Tracker vs AOP'!G:G),IF('TRx Tracker vs AOP'!$F$7="Fentora",SUMIFS('IMS Data'!F:F,'IMS Data'!C:C,'TRx Tracker vs AOP'!G:G),IF('TRx Tracker vs AOP'!$F$7="Amrix",SUMIFS('IMS Data'!E:E,'IMS Data'!C:C,'TRx Tracker vs AOP'!G:G),IF('TRx Tracker vs AOP'!$F$7="Provigil",SUMIFS('IMS Data'!I:I,'IMS Data'!C:C,'TRx Tracker vs AOP'!G:G),IF('TRx Tracker vs AOP'!$F$7="Gabitril",SUMIFS('IMS Data'!H:H,'IMS Data'!C:C,'TRx Tracker vs AOP'!G:G),IF('TRx Tracker vs AOP'!$F$7="Actiq",SUMIFS('IMS Data'!G:G,'IMS Data'!C:C,'TRx Tracker vs AOP'!G:G),IF($F$7="Copaxone 40",SUMIFS('IMS Data'!K:K,'IMS Data'!C:C,'TRx Tracker vs AOP'!G:G),IF($F$7="Azilect",SUMIFS('IMS Data'!L:L,'IMS Data'!C:C,'TRx Tracker vs AOP'!G:G),IF($F$7="Copaxone 20",SUMIFS('IMS Data'!J:J,'IMS Data'!C:C,'TRx Tracker vs AOP'!G:G),IF($F$7="Zecuity",SUMIFS('IMS Data'!M:M,'IMS Data'!C:C,'TRx Tracker vs LBE'!G:G))))))))))) -> 0 | I47: =IF($F$7="Zecuity",SUMIFS('Zecuity Weekly Forecast'!B:B,'Zecuity Weekly Forecast'!A:A,'TRx Tracker vs AOP'!G:G),IF($F$7="Nuvigil",SUMIFS('NUVIGIL Goals'!$E:$E,'NUVIGIL Goals'!$B:$B,'TRx Tracker vs AOP'!$F:$F),SUMIFS($15:$15,$9:$9,$E:$E)/SUMIFS($18:$18,$9:$9,$E:$E))) -> 2311.295157 | J47: -2311.295157
E48: 7 | F48: 27 | G48: 2017-07-07 | H48: =IF($F$7="Nuvigil",SUMIFS('IMS Data'!D:D,'IMS Data'!C:C,'TRx Tracker vs AOP'!G:G),IF('TRx Tracker vs AOP'!$F$7="Fentora",SUMIFS('IMS Data'!F:F,'IMS Data'!C:C,'TRx Tracker vs AOP'!G:G),IF('TRx Tracker vs AOP'!$F$7="Amrix",SUMIFS('IMS Data'!E:E,'IMS Data'!C:C,'TRx Tracker vs AOP'!G:G),IF('TRx Tracker vs AOP'!$F$7="Provigil",SUMIFS('IMS Data'!I:I,'IMS Data'!C:C,'TRx Tracker vs AOP'!G:G),IF('TRx Tracker vs AOP'!$F$7="Gabitril",SUMIFS('IMS Data'!H:H,'IMS Data'!C:C,'TRx Tracker vs AOP'!G:G),IF('TRx Tracker vs AOP'!$F$7="Actiq",SUMIFS('IMS Data'!G:G,'IMS Data'!C:C,'TRx Tracker vs AOP'!G:G),IF($F$7="Copaxone 40",SUMIFS('IMS Data'!K:K,'IMS Data'!C:C,'TRx Tracker vs AOP'!G:G),IF($F$7="Azilect",SUMIFS('IMS Data'!L:L,'IMS Data'!C:C,'TRx Tracker vs AOP'!G:G),IF($F$7="Copaxone 20",SUMIFS('IMS Data'!J:J,'IMS Data'!C:C,'TRx Tracker vs AOP'!G:G),IF($F$7="Zecuity",SUMIFS('IMS Data'!M:M,'IMS Data'!C:C,'TRx Tracker vs LBE'!G:G))))))))))) -> 0 | I48: =IF($F$7="Zecuity",SUMIFS('Zecuity Weekly Forecast'!B:B,'Zecuity Weekly Forecast'!A:A,'TRx Tracker vs AOP'!G:G),IF($F$7="Nuvigil",SUMIFS('NUVIGIL Goals'!$E:$E,'NUVIGIL Goals'!$B:$B,'TRx Tracker vs AOP'!$F:$F),SUMIFS($15:$15,$9:$9,$E:$E)/SUMIFS($18:$18,$9:$9,$E:$E))) -> 2328.560194 | J48: -2328.560194
E49: 7 | F49: 28 | G49: 2017-07-14 | H49: =IF($F$7="Nuvigil",SUMIFS('IMS Data'!D:D,'IMS Data'!C:C,'TRx Tracker vs AOP'!G:G),IF('TRx Tracker vs AOP'!$F$7="Fentora",SUMIFS('IMS Data'!F:F,'IMS Data'!C:C,'TRx Tracker vs AOP'!G:G),IF('TRx Tracker vs AOP'!$F$7="Amrix",SUMIFS('IMS Data'!E:E,'IMS Data'!C:C,'TRx Tracker vs AOP'!G:G),IF('TRx Tracker vs AOP'!$F$7="Provigil",SUMIFS('IMS Data'!I:I,'IMS Data'!C:C,'TRx Tracker vs AOP'!G:G),IF('TRx Tracker vs AOP'!$F$7="Gabitril",SUMIFS('IMS Data'!H:H,'IMS Data'!C:C,'TRx Tracker vs AOP'!G:G),IF('TRx Tracker vs AOP'!$F$7="Actiq",SUMIFS('IMS Data'!G:G,'IMS Data'!C:C,'TRx Tracker vs AOP'!G:G),IF($F$7="Copaxone 40",SUMIFS('IMS Data'!K:K,'IMS Data'!C:C,'TRx Tracker vs AOP'!G:G),IF($F$7="Azilect",SUMIFS('IMS Data'!L:L,'IMS Data'!C:C,'TRx Tracker vs AOP'!G:G),IF($F$7="Copaxone 20",SUMIFS('IMS Data'!J:J,'IMS Data'!C:C,'TRx Tracker vs AOP'!G:G),IF($F$7="Zecuity",SUMIFS('IMS Data'!M:M,'IMS Data'!C:C,'TRx Tracker vs LBE'!G:G))))))))))) -> 0 | I49: =IF($F$7="Zecuity",SUMIFS('Zecuity Weekly Forecast'!B:B,'Zecuity Weekly Forecast'!A:A,'TRx Tracker vs AOP'!G:G),IF($F$7="Nuvigil",SUMIFS('NUVIGIL Goals'!$E:$E,'NUVIGIL Goals'!$B:$B,'TRx Tracker vs AOP'!$F:$F),SUMIFS($15:$15,$9:$9,$E:$E)/SUMIFS($18:$18,$9:$9,$E:$E))) -> 2328.560194 | J49: -2328.560194
E50: 7 | F50: 29 | G50: 2017-07-21 | H50: =IF($F$7="Nuvigil",SUMIFS('IMS Data'!D:D,'IMS Data'!C:C,'TRx Tracker vs AOP'!G:G),IF('TRx Tracker vs AOP'!$F$7="Fentora",SUMIFS('IMS Data'!F:F,'IMS Data'!C:C,'TRx Tracker vs AOP'!G:G),IF('TRx Tracker vs AOP'!$F$7="Amrix",SUMIFS('IMS Data'!E:E,'IMS Data'!C:C,'TRx Tracker vs AOP'!G:G),IF('TRx Tracker vs AOP'!$F$7="Provigil",SUMIFS('IMS Data'!I:I,'IMS Data'!C:C,'TRx Tracker vs AOP'!G:G),IF('TRx Tracker vs AOP'!$F$7="Gabitril",SUMIFS('IMS Data'!H:H,'IMS Data'!C:C,'TRx Tracker vs AOP'!G:G),IF('TRx Tracker vs AOP'!$F$7="Actiq",SUMIFS('IMS Data'!G:G,'IMS Data'!C:C,'TRx Tracker vs AOP'!G:G),IF($F$7="Copaxone 40",SUMIFS('IMS Data'!K:K,'IMS Data'!C:C,'TRx Tracker vs AOP'!G:G),IF($F$7="Azilect",SUMIFS('IMS Data'!L:L,'IMS Data'!C:C,'TRx Tracker vs AOP'!G:G),IF($F$7="Copaxone 20",SUMIFS('IMS Data'!J:J,'IMS Data'!C:C,'TRx Tracker vs AOP'!G:G),IF($F$7="Zecuity",SUMIFS('IMS Data'!M:M,'IMS Data'!C:C,'TRx Tracker vs LBE'!G:G))))))))))) -> 0 | I50: =IF($F$7="Zecuity",SUMIFS('Zecuity Weekly Forecast'!B:B,'Zecuity Weekly Forecast'!A:A,'TRx Tracker vs AOP'!G:G),IF($F$7="Nuvigil",SUMIFS('NUVIGIL Goals'!$E:$E,'NUVIGIL Goals'!$B:$B,'TRx Tracker vs AOP'!$F:$F),SUMIFS($15:$15,$9:$9,$E:$E)/SUMIFS($18:$18,$9:$9,$E:$E))) -> 2328.560194 | J50: -2328.560194
E51: 7 | F51: 30 | G51: 2017-07-28 | H51: =IF($F$7="Nuvigil",SUMIFS('IMS Data'!D:D,'IMS Data'!C:C,'TRx Tracker vs AOP'!G:G),IF('TRx Tracker vs AOP'!$F$7="Fentora",SUMIFS('IMS Data'!F:F,'IMS Data'!C:C,'TRx Tracker vs AOP'!G:G),IF('TRx Tracker vs AOP'!$F$7="Amrix",SUMIFS('IMS Data'!E:E,'IMS Data'!C:C,'TRx Tracker vs AOP'!G:G),IF('TRx Tracker vs AOP'!$F$7="Provigil",SUMIFS('IMS Data'!I:I,'IMS Data'!C:C,'TRx Tracker vs AOP'!G:G),IF('TRx Tracker vs AOP'!$F$7="Gabitril",SUMIFS('IMS Data'!H:H,'IMS Data'!C:C,'TRx Tracker vs AOP'!G:G),IF('TRx Tracker vs AOP'!$F$7="Actiq",SUMIFS('IMS Data'!G:G,'IMS Data'!C:C,'TRx Tracker vs AOP'!G:G),IF($F$7="Copaxone 40",SUMIFS('IMS Data'!K:K,'IMS Data'!C:C,'TRx Tracker vs AOP'!G:G),IF($F$7="Azilect",SUMIFS('IMS Data'!L:L,'IMS Data'!C:C,'TRx Tracker vs AOP'!G:G),IF($F$7="Copaxone 20",SUMIFS('IMS Data'!J:J,'IMS Data'!C:C,'TRx Tracker vs AOP'!G:G),IF($F$7="Zecuity",SUMIFS('IMS Data'!M:M,'IMS Data'!C:C,'TRx Tracker vs LBE'!G:G))))))))))) -> 0 | I51: =IF($F$7="Zecuity",SUMIFS('Zecuity Weekly Forecast'!B:B,'Zecuity Weekly Forecast'!A:A,'TRx Tracker vs AOP'!G:G),IF($F$7="Nuvigil",SUMIFS('NUVIGIL Goals'!$E:$E,'NUVIGIL Goals'!$B:$B,'TRx Tracker vs AOP'!$F:$F),SUMIFS($15:$15,$9:$9,$E:$E)/SUMIFS($18:$18,$9:$9,$E:$E))) -> 2328.560194 | J51: -2328.560194
E52: 8 | F52: 31 | G52: 2017-08-04 | H52: =IF($F$7="Nuvigil",SUMIFS('IMS Data'!D:D,'IMS Data'!C:C,'TRx Tracker vs AOP'!G:G),IF('TRx Tracker vs AOP'!$F$7="Fentora",SUMIFS('IMS Data'!F:F,'IMS Data'!C:C,'TRx Tracker vs AOP'!G:G),IF('TRx Tracker vs AOP'!$F$7="Amrix",SUMIFS('IMS Data'!E:E,'IMS Data'!C:C,'TRx Tracker vs AOP'!G:G),IF('TRx Tracker vs AOP'!$F$7="Provigil",SUMIFS('IMS Data'!I:I,'IMS Data'!C:C,'TRx Tracker vs AOP'!G:G),IF('TRx Tracker vs AOP'!$F$7="Gabitril",SUMIFS('IMS Data'!H:H,'IMS Data'!C:C,'TRx Tracker vs AOP'!G:G),IF('TRx Tracker vs AOP'!$F$7="Actiq",SUMIFS('IMS Data'!G:G,'IMS Data'!C:C,'TRx Tracker vs AOP'!G:G),IF($F$7="Copaxone 40",SUMIFS('IMS Data'!K:K,'IMS Data'!C:C,'TRx Tracker vs AOP'!G:G),IF($F$7="Azilect",SUMIFS('IMS Data'!L:L,'IMS Data'!C:C,'TRx Tracker vs AOP'!G:G),IF($F$7="Copaxone 20",SUMIFS('IMS Data'!J:J,'IMS Data'!C:C,'TRx Tracker vs AOP'!G:G),IF($F$7="Zecuity",SUMIFS('IMS Data'!M:M,'IMS Data'!C:C,'TRx Tracker vs LBE'!G:G))))))))))) -> 0 | I52: =IF($F$7="Zecuity",SUMIFS('Zecuity Weekly Forecast'!B:B,'Zecuity Weekly Forecast'!A:A,'TRx Tracker vs AOP'!G:G),IF($F$7="Nuvigil",SUMIFS('NUVIGIL Goals'!$E:$E,'NUVIGIL Goals'!$B:$B,'TRx Tracker vs AOP'!$F:$F),SUMIFS($15:$15,$9:$9,$E:$E)/SUMIFS($18:$18,$9:$9,$E:$E))) -> 2322.396576 | J52: -2322.396576
E53: 8 | F53: 32 | G53: 2017-08-11 | H53: =IF($F$7="Nuvigil",SUMIFS('IMS Data'!D:D,'IMS Data'!C:C,'TRx Tracker vs AOP'!G:G),IF('TRx Tracker vs AOP'!$F$7="Fentora",SUMIFS('IMS Data'!F:F,'IMS Data'!C:C,'TRx Tracker vs AOP'!G:G),IF('TRx Tracker vs AOP'!$F$7="Amrix",SUMIFS('IMS Data'!E:E,'IMS Data'!C:C,'TRx Tracker vs AOP'!G:G),IF('TRx Tracker vs AOP'!$F$7="Provigil",SUMIFS('IMS Data'!I:I,'IMS Data'!C:C,'TRx Tracker vs AOP'!G:G),IF('TRx Tracker vs AOP'!$F$7="Gabitril",SUMIFS('IMS Data'!H:H,'IMS Data'!C:C,'TRx Tracker vs AOP'!G:G),IF('TRx Tracker vs AOP'!$F$7="Actiq",SUMIFS('IMS Data'!G:G,'IMS Data'!C:C,'TRx Tracker vs AOP'!G:G),IF($F$7="Copaxone 40",SUMIFS('IMS Data'!K:K,'IMS Data'!C:C,'TRx Tracker vs AOP'!G:G),IF($F$7="Azilect",SUMIFS('IMS Data'!L:L,'IMS Data'!C:C,'TRx Tracker vs AOP'!G:G),IF($F$7="Copaxone 20",SUMIFS('IMS Data'!J:J,'IMS Data'!C:C,'TRx Tracker vs AOP'!G:G),IF($F$7="Zecuity",SUMIFS('IMS Data'!M:M,'IMS Data'!C:C,'TRx Tracker vs LBE'!G:G))))))))))) -> 0 | I53: =IF($F$7="Zecuity",SUMIFS('Zecuity Weekly Forecast'!B:B,'Zecuity Weekly Forecast'!A:A,'TRx Tracker vs AOP'!G:G),IF($F$7="Nuvigil",SUMIFS('NUVIGIL Goals'!$E:$E,'NUVIGIL Goals'!$B:$B,'TRx Tracker vs AOP'!$F:$F),SUMIFS($15:$15,$9:$9,$E:$E)/SUMIFS($18:$18,$9:$9,$E:$E))) -> 2322.396576 | J53: -2322.396576
E54: 8 | F54: 33 | G54: 2017-08-18 | H54: =IF($F$7="Nuvigil",SUMIFS('IMS Data'!D:D,'IMS Data'!C:C,'TRx Tracker vs AOP'!G:G),IF('TRx Tracker vs AOP'!$F$7="Fentora",SUMIFS('IMS Data'!F:F,'IMS Data'!C:C,'TRx Tracker vs AOP'!G:G),IF('TRx Tracker vs AOP'!$F$7="Amrix",SUMIFS('IMS Data'!E:E,'IMS Data'!C:C,'TRx Tracker vs AOP'!G:G),IF('TRx Tracker vs AOP'!$F$7="Provigil",SUMIFS('IMS Data'!I:I,'IMS Data'!C:C,'TRx Tracker vs AOP'!G:G),IF('TRx Tracker vs AOP'!$F$7="Gabitril",SUMIFS('IMS Data'!H:H,'IMS Data'!C:C,'TRx Tracker vs AOP'!G:G),IF('TRx Tracker vs AOP'!$F$7="Actiq",SUMIFS('IMS Data'!G:G,'IMS Data'!C:C,'TRx Tracker vs AOP'!G:G),IF($F$7="Copaxone 40",SUMIFS('IMS Data'!K:K,'IMS Data'!C:C,'TRx Tracker vs AOP'!G:G),IF($F$7="Azilect",SUMIFS('IMS Data'!L:L,'IMS Data'!C:C,'TRx Tracker vs AOP'!G:G),IF($F$7="Copaxone 20",SUMIFS('IMS Data'!J:J,'IMS Data'!C:C,'TRx Tracker vs AOP'!G:G),IF($F$7="Zecuity",SUMIFS('IMS Data'!M:M,'IMS Data'!C:C,'TRx Tracker vs LBE'!G:G))))))))))) -> 0 | I54: =IF($F$7="Zecuity",SUMIFS('Zecuity Weekly Forecast'!B:B,'Zecuity Weekly Forecast'!A:A,'TRx Tracker vs AOP'!G:G),IF($F$7="Nuvigil",SUMIFS('NUVIGIL Goals'!$E:$E,'NUVIGIL Goals'!$B:$B,'TRx Tracker vs AOP'!$F:$F),SUMIFS($15:$15,$9:$9,$E:$E)/SUMIFS($18:$18,$9:$9,$E:$E))) -> 2322.396576 | J54: -2322.396576
E55: 8 | F55: 34 | G55: 2017-08-25 | H55: =IF($F$7="Nuvigil",SUMIFS('IMS Data'!D:D,'IMS Data'!C:C,'TRx Tracker vs AOP'!G:G),IF('TRx Tracker vs AOP'!$F$7="Fentora",SUMIFS('IMS Data'!F:F,'IMS Data'!C:C,'TRx Tracker vs AOP'!G:G),IF('TRx Tracker vs AOP'!$F$7="Amrix",SUMIFS('IMS Data'!E:E,'IMS Data'!C:C,'TRx Tracker vs AOP'!G:G),IF('TRx Tracker vs AOP'!$F$7="Provigil",SUMIFS('IMS Data'!I:I,'IMS Data'!C:C,'TRx Tracker vs AOP'!G:G),IF('TRx Tracker vs AOP'!$F$7="Gabitril",SUMIFS('IMS Data'!H:H,'IMS Data'!C:C,'TRx Tracker vs AOP'!G:G),IF('TRx Tracker vs AOP'!$F$7="Actiq",SUMIFS('IMS Data'!G:G,'IMS Data'!C:C,'TRx Tracker vs AOP'!G:G),IF($F$7="Copaxone 40",SUMIFS('IMS Data'!K:K,'IMS Data'!C:C,'TRx Tracker vs AOP'!G:G),IF($F$7="Azilect",SUMIFS('IMS Data'!L:L,'IMS Data'!C:C,'TRx Tracker vs AOP'!G:G),IF($F$7="Copaxone 20",SUMIFS('IMS Data'!J:J,'IMS Data'!C:C,'TRx Tracker vs AOP'!G:G),IF($F$7="Zecuity",SUMIFS('IMS Data'!M:M,'IMS Data'!C:C,'TRx Tracker vs LBE'!G:G))))))))))) -> 0 | I55: =IF($F$7="Zecuity",SUMIFS('Zecuity Weekly Forecast'!B:B,'Zecuity Weekly Forecast'!A:A,'TRx Tracker vs AOP'!G:G),IF($F$7="Nuvigil",SUMIFS('NUVIGIL Goals'!$E:$E,'NUVIGIL Goals'!$B:$B,'TRx Tracker vs AOP'!$F:$F),SUMIFS($15:$15,$9:$9,$E:$E)/SUMIFS($18:$18,$9:$9,$E:$E))) -> 2322.396576 | J55: -2322.396576
E56: 9 | F56: 35 | G56: 2017-09-01 | H56: =IF($F$7="Nuvigil",SUMIFS('IMS Data'!D:D,'IMS Data'!C:C,'TRx Tracker vs AOP'!G:G),IF('TRx Tracker vs AOP'!$F$7="Fentora",SUMIFS('IMS Data'!F:F,'IMS Data'!C:C,'TRx Tracker vs AOP'!G:G),IF('TRx Tracker vs AOP'!$F$7="Amrix",SUMIFS('IMS Data'!E:E,'IMS Data'!C:C,'TRx Tracker vs AOP'!G:G),IF('TRx Tracker vs AOP'!$F$7="Provigil",SUMIFS('IMS Data'!I:I,'IMS Data'!C:C,'TRx Tracker vs AOP'!G:G),IF('TRx Tracker vs AOP'!$F$7="Gabitril",SUMIFS('IMS Data'!H:H,'IMS Data'!C:C,'TRx Tracker vs AOP'!G:G),IF('TRx Tracker vs AOP'!$F$7="Actiq",SUMIFS('IMS Data'!G:G,'IMS Data'!C:C,'TRx Tracker vs AOP'!G:G),IF($F$7="Copaxone 40",SUMIFS('IMS Data'!K:K,'IMS Data'!C:C,'TRx Tracker vs AOP'!G:G),IF($F$7="Azilect",SUMIFS('IMS Data'!L:L,'IMS Data'!C:C,'TRx Tracker vs AOP'!G:G),IF($F$7="Copaxone 20",SUMIFS('IMS Data'!J:J,'IMS Data'!C:C,'TRx Tracker vs AOP'!G:G),IF($F$7="Zecuity",SUMIFS('IMS Data'!M:M,'IMS Data'!C:C,'TRx Tracker vs LBE'!G:G))))))))))) -> 0 | I56: =IF($F$7="Zecuity",SUMIFS('Zecuity Weekly Forecast'!B:B,'Zecuity Weekly Forecast'!A:A,'TRx Tracker vs AOP'!G:G),IF($F$7="Nuvigil",SUMIFS('NUVIGIL Goals'!$E:$E,'NUVIGIL Goals'!$B:$B,'TRx Tracker vs AOP'!$F:$F),SUMIFS($15:$15,$9:$9,$E:$E)/SUMIFS($18:$18,$9:$9,$E:$E))) -> 2300.724022 | J56: -2300.724022
E57: 9 | F57: 36 | G57: 2017-09-08 | H57: =IF($F$7="Nuvigil",SUMIFS('IMS Data'!D:D,'IMS Data'!C:C,'TRx Tracker vs AOP'!G:G),IF('TRx Tracker vs AOP'!$F$7="Fentora",SUMIFS('IMS Data'!F:F,'IMS Data'!C:C,'TRx Tracker vs AOP'!G:G),IF('TRx Tracker vs AOP'!$F$7="Amrix",SUMIFS('IMS Data'!E:E,'IMS Data'!C:C,'TRx Tracker vs AOP'!G:G),IF('TRx Tracker vs AOP'!$F$7="Provigil",SUMIFS('IMS Data'!I:I,'IMS Data'!C:C,'TRx Tracker vs AOP'!G:G),IF('TRx Tracker vs AOP'!$F$7="Gabitril",SUMIFS('IMS Data'!H:H,'IMS Data'!C:C,'TRx Tracker vs AOP'!G:G),IF('TRx Tracker vs AOP'!$F$7="Actiq",SUMIFS('IMS Data'!G:G,'IMS Data'!C:C,'TRx Tracker vs AOP'!G:G),IF($F$7="Copaxone 40",SUMIFS('IMS Data'!K:K,'IMS Data'!C:C,'TRx Tracker vs AOP'!G:G),IF($F$7="Azilect",SUMIFS('IMS Data'!L:L,'IMS Data'!C:C,'TRx Tracker vs AOP'!G:G),IF($F$7="Copaxone 20",SUMIFS('IMS Data'!J:J,'IMS Data'!C:C,'TRx Tracker vs AOP'!G:G),IF($F$7="Zecuity",SUMIFS('IMS Data'!M:M,'IMS Data'!C:C,'TRx Tracker vs LBE'!G:G))))))))))) -> 0 | I57: =IF($F$7="Zecuity",SUMIFS('Zecuity Weekly Forecast'!B:B,'Zecuity Weekly Forecast'!A:A,'TRx Tracker vs AOP'!G:G),IF($F$7="Nuvigil",SUMIFS('NUVIGIL Goals'!$E:$E,'NUVIGIL Goals'!$B:$B,'TRx Tracker vs AOP'!$F:$F),SUMIFS($15:$15,$9:$9,$E:$E)/SUMIFS($18:$18,$9:$9,$E:$E))) -> 2300.724022 | J57: -2300.724022
E58: 9 | F58: 37 | G58: 2017-09-15 | H58: =IF($F$7="Nuvigil",SUMIFS('IMS Data'!D:D,'IMS Data'!C:C,'TRx Tracker vs AOP'!G:G),IF('TRx Tracker vs AOP'!$F$7="Fentora",SUMIFS('IMS Data'!F:F,'IMS Data'!C:C,'TRx Tracker vs AOP'!G:G),IF('TRx Tracker vs AOP'!$F$7="Amrix",SUMIFS('IMS Data'!E:E,'IMS Data'!C:C,'TRx Tracker vs AOP'!G:G),IF('TRx Tracker vs AOP'!$F$7="Provigil",SUMIFS('IMS Data'!I:I,'IMS Data'!C:C,'TRx Tracker vs AOP'!G:G),IF('TRx Tracker vs AOP'!$F$7="Gabitril",SUMIFS('IMS Data'!H:H,'IMS Data'!C:C,'TRx Tracker vs AOP'!G:G),IF('TRx Tracker vs AOP'!$F$7="Actiq",SUMIFS('IMS Data'!G:G,'IMS Data'!C:C,'TRx Tracker vs AOP'!G:G),IF($F$7="Copaxone 40",SUMIFS('IMS Data'!K:K,'IMS Data'!C:C,'TRx Tracker vs AOP'!G:G),IF($F$7="Azilect",SUMIFS('IMS Data'!L:L,'IMS Data'!C:C,'TRx Tracker vs AOP'!G:G),IF($F$7="Copaxone 20",SUMIFS('IMS Data'!J:J,'IMS Data'!C:C,'TRx Tracker vs AOP'!G:G),IF($F$7="Zecuity",SUMIFS('IMS Data'!M:M,'IMS Data'!C:C,'TRx Tracker vs LBE'!G:G))))))))))) -> 0 | I58: =IF($F$7="Zecuity",SUMIFS('Zecuity Weekly Forecast'!B:B,'Zecuity Weekly Forecast'!A:A,'TRx Tracker vs AOP'!G:G),IF($F$7="Nuvigil",SUMIFS('NUVIGIL Goals'!$E:$E,'NUVIGIL Goals'!$B:$B,'TRx Tracker vs AOP'!$F:$F),SUMIFS($15:$15,$9:$9,$E:$E)/SUMIFS($18:$18,$9:$9,$E:$E))) -> 2300.724022 | J58: -2300.724022
E59: 9 | F59: 38 | G59: 2017-09-22 | H59: =IF($F$7="Nuvigil",SUMIFS('IMS Data'!D:D,'IMS Data'!C:C,'TRx Tracker vs AOP'!G:G),IF('TRx Tracker vs AOP'!$F$7="Fentora",SUMIFS('IMS Data'!F:F,'IMS Data'!C:C,'TRx Tracker vs AOP'!G:G),IF('TRx Tracker vs AOP'!$F$7="Amrix",SUMIFS('IMS Data'!E:E,'IMS Data'!C:C,'TRx Tracker vs AOP'!G:G),IF('TRx Tracker vs AOP'!$F$7="Provigil",SUMIFS('IMS Data'!I:I,'IMS Data'!C:C,'TRx Tracker vs AOP'!G:G),IF('TRx Tracker vs AOP'!$F$7="Gabitril",SUMIFS('IMS Data'!H:H,'IMS Data'!C:C,'TRx Tracker vs AOP'!G:G),IF('TRx Tracker vs AOP'!$F$7="Actiq",SUMIFS('IMS Data'!G:G,'IMS Data'!C:C,'TRx Tracker vs AOP'!G:G),IF($F$7="Copaxone 40",SUMIFS('IMS Data'!K:K,'IMS Data'!C:C,'TRx Tracker vs AOP'!G:G),IF($F$7="Azilect",SUMIFS('IMS Data'!L:L,'IMS Data'!C:C,'TRx Tracker vs AOP'!G:G),IF($F$7="Copaxone 20",SUMIFS('IMS Data'!J:J,'IMS Data'!C:C,'TRx Tracker vs AOP'!G:G),IF($F$7="Zecuity",SUMIFS('IMS Data'!M:M,'IMS Data'!C:C,'TRx Tracker vs LBE'!G:G))))))))))) -> 0 | I59: =IF($F$7="Zecuity",SUMIFS('Zecuity Weekly Forecast'!B:B,'Zecuity Weekly Forecast'!A:A,'TRx Tracker vs AOP'!G:G),IF($F$7="Nuvigil",SUMIFS('NUVIGIL Goals'!$E:$E,'NUVIGIL Goals'!$B:$B,'TRx Tracker vs AOP'!$F:$F),SUMIFS($15:$15,$9:$9,$E:$E)/SUMIFS($18:$18,$9:$9,$E:$E))) -> 2300.724022 | J59: -2300.724022
E60: 9 | F60: 39 | G60: 2017-09-29 | H60: =IF($F$7="Nuvigil",SUMIFS('IMS Data'!D:D,'IMS Data'!C:C,'TRx Tracker vs AOP'!G:G),IF('TRx Tracker vs AOP'!$F$7="Fentora",SUMIFS('IMS Data'!F:F,'IMS Data'!C:C,'TRx Tracker vs AOP'!G:G),IF('TRx Tracker vs AOP'!$F$7="Amrix",SUMIFS('IMS Data'!E:E,'IMS Data'!C:C,'TRx Tracker vs AOP'!G:G),IF('TRx Tracker vs AOP'!$F$7="Provigil",SUMIFS('IMS Data'!I:I,'IMS Data'!C:C,'TRx Tracker vs AOP'!G:G),IF('TRx Tracker vs AOP'!$F$7="Gabitril",SUMIFS('IMS Data'!H:H,'IMS Data'!C:C,'TRx Tracker vs AOP'!G:G),IF('TRx Tracker vs AOP'!$F$7="Actiq",SUMIFS('IMS Data'!G:G,'IMS Data'!C:C,'TRx Tracker vs AOP'!G:G),IF($F$7="Copaxone 40",SUMIFS('IMS Data'!K:K,'IMS Data'!C:C,'TRx Tracker vs AOP'!G:G),IF($F$7="Azilect",SUMIFS('IMS Data'!L:L,'IMS Data'!C:C,'TRx Tracker vs AOP'!G:G),IF($F$7="Copaxone 20",SUMIFS('IMS Data'!J:J,'IMS Data'!C:C,'TRx Tracker vs AOP'!G:G),IF($F$7="Zecuity",SUMIFS('IMS Data'!M:M,'IMS Data'!C:C,'TRx Tracker vs LBE'!G:G))))))))))) -> 0 | I60: =IF($F$7="Zecuity",SUMIFS('Zecuity Weekly Forecast'!B:B,'Zecuity Weekly Forecast'!A:A,'TRx Tracker vs AOP'!G:G),IF($F$7="Nuvigil",SUMIFS('NUVIGIL Goals'!$E:$E,'NUVIGIL Goals'!$B:$B,'TRx Tracker vs AOP'!$F:$F),SUMIFS($15:$15,$9:$9,$E:$E)/SUMIFS($18:$18,$9:$9,$E:$E))) -> 2300.724022 | J60: -2300.724022
E61: 10 | F61: 40 | G61: 2017-10-06 | H61: =IF($F$7="Nuvigil",SUMIFS('IMS Data'!D:D,'IMS Data'!C:C,'TRx Tracker vs AOP'!G:G),IF('TRx Tracker vs AOP'!$F$7="Fentora",SUMIFS('IMS Data'!F:F,'IMS Data'!C:C,'TRx Tracker vs AOP'!G:G),IF('TRx Tracker vs AOP'!$F$7="Amrix",SUMIFS('IMS Data'!E:E,'IMS Data'!C:C,'TRx Tracker vs AOP'!G:G),IF('TRx Tracker vs AOP'!$F$7="Provigil",SUMIFS('IMS Data'!I:I,'IMS Data'!C:C,'TRx Tracker vs AOP'!G:G),IF('TRx Tracker vs AOP'!$F$7="Gabitril",SUMIFS('IMS Data'!H:H,'IMS Data'!C:C,'TRx Tracker vs AOP'!G:G),IF('TRx Tracker vs AOP'!$F$7="Actiq",SUMIFS('IMS Data'!G:G,'IMS Data'!C:C,'TRx Tracker vs AOP'!G:G),IF($F$7="Copaxone 40",SUMIFS('IMS Data'!K:K,'IMS Data'!C:C,'TRx Tracker vs AOP'!G:G),IF($F$7="Azilect",SUMIFS('IMS Data'!L:L,'IMS Data'!C:C,'TRx Tracker vs AOP'!G:G),IF($F$7="Copaxone 20",SUMIFS('IMS Data'!J:J,'IMS Data'!C:C,'TRx Tracker vs AOP'!G:G),IF($F$7="Zecuity",SUMIFS('IMS Data'!M:M,'IMS Data'!C:C,'TRx Tracker vs LBE'!G:G))))))))))) -> 0 | I61: =IF($F$7="Zecuity",SUMIFS('Zecuity Weekly Forecast'!B:B,'Zecuity Weekly Forecast'!A:A,'TRx Tracker vs AOP'!G:G),IF($F$7="Nuvigil",SUMIFS('NUVIGIL Goals'!$E:$E,'NUVIGIL Goals'!$B:$B,'TRx Tracker vs AOP'!$F:$F),SUMIFS($15:$15,$9:$9,$E:$E)/SUMIFS($18:$18,$9:$9,$E:$E))) -> 2349.111754 | J61: -2349.111754
E62: 10 | F62: 41 | G62: 2017-10-13 | H62: =IF($F$7="Nuvigil",SUMIFS('IMS Data'!D:D,'IMS Data'!C:C,'TRx Tracker vs AOP'!G:G),IF('TRx Tracker vs AOP'!$F$7="Fentora",SUMIFS('IMS Data'!F:F,'IMS Data'!C:C,'TRx Tracker vs AOP'!G:G),IF('TRx Tracker vs AOP'!$F$7="Amrix",SUMIFS('IMS Data'!E:E,'IMS Data'!C:C,'TRx Tracker vs AOP'!G:G),IF('TRx Tracker vs AOP'!$F$7="Provigil",SUMIFS('IMS Data'!I:I,'IMS Data'!C:C,'TRx Tracker vs AOP'!G:G),IF('TRx Tracker vs AOP'!$F$7="Gabitril",SUMIFS('IMS Data'!H:H,'IMS Data'!C:C,'TRx Tracker vs AOP'!G:G),IF('TRx Tracker vs AOP'!$F$7="Actiq",SUMIFS('IMS Data'!G:G,'IMS Data'!C:C,'TRx Tracker vs AOP'!G:G),IF($F$7="Copaxone 40",SUMIFS('IMS Data'!K:K,'IMS Data'!C:C,'TRx Tracker vs AOP'!G:G),IF($F$7="Azilect",SUMIFS('IMS Data'!L:L,'IMS Data'!C:C,'TRx Tracker vs AOP'!G:G),IF($F$7="Copaxone 20",SUMIFS('IMS Data'!J:J,'IMS Data'!C:C,'TRx Tracker vs AOP'!G:G),IF($F$7="Zecuity",SUMIFS('IMS Data'!M:M,'IMS Data'!C:C,'TRx Tracker vs LBE'!G:G))))))))))) -> 0 | I62: =IF($F$7="Zecuity",SUMIFS('Zecuity Weekly Forecast'!B:B,'Zecuity Weekly Forecast'!A:A,'TRx Tracker vs AOP'!G:G),IF($F$7="Nuvigil",SUMIFS('NUVIGIL Goals'!$E:$E,'NUVIGIL Goals'!$B:$B,'TRx Tracker vs AOP'!$F:$F),SUMIFS($15:$15,$9:$9,$E:$E)/SUMIFS($18:$18,$9:$9,$E:$E))) -> 2349.111754 | J62: -2349.111754
E63: 10 | F63: 42 | G63: 2017-10-20 | H63: =IF($F$7="Nuvigil",SUMIFS('IMS Data'!D:D,'IMS Data'!C:C,'TRx Tracker vs AOP'!G:G),IF('TRx Tracker vs AOP'!$F$7="Fentora",SUMIFS('IMS Data'!F:F,'IMS Data'!C:C,'TRx Tracker vs AOP'!G:G),IF('TRx Tracker vs AOP'!$F$7="Amrix",SUMIFS('IMS Data'!E:E,'IMS Data'!C:C,'TRx Tracker vs AOP'!G:G),IF('TRx Tracker vs AOP'!$F$7="Provigil",SUMIFS('IMS Data'!I:I,'IMS Data'!C:C,'TRx Tracker vs AOP'!G:G),IF('TRx Tracker vs AOP'!$F$7="Gabitril",SUMIFS('IMS Data'!H:H,'IMS Data'!C:C,'TRx Tracker vs AOP'!G:G),IF('TRx Tracker vs AOP'!$F$7="Actiq",SUMIFS('IMS Data'!G:G,'IMS Data'!C:C,'TRx Tracker vs AOP'!G:G),IF($F$7="Copaxone 40",SUMIFS('IMS Data'!K:K,'IMS Data'!C:C,'TRx Tracker vs AOP'!G:G),IF($F$7="Azilect",SUMIFS('IMS Data'!L:L,'IMS Data'!C:C,'TRx Tracker vs AOP'!G:G),IF($F$7="Copaxone 20",SUMIFS('IMS Data'!J:J,'IMS Data'!C:C,'TRx Tracker vs AOP'!G:G),IF($F$7="Zecuity",SUMIFS('IMS Data'!M:M,'IMS Data'!C:C,'TRx Tracker vs LBE'!G:G))))))))))) -> 0 | I63: =IF($F$7="Zecuity",SUMIFS('Zecuity Weekly Forecast'!B:B,'Zecuity Weekly Forecast'!A:A,'TRx Tracker vs AOP'!G:G),IF($F$7="Nuvigil",SUMIFS('NUVIGIL Goals'!$E:$E,'NUVIGIL Goals'!$B:$B,'TRx Tracker vs AOP'!$F:$F),SUMIFS($15:$15,$9:$9,$E:$E)/SUMIFS($18:$18,$9:$9,$E:$E))) -> 2349.111754 | J63: -2349.111754
E64: 10 | F64: 43 | G64: 2017-10-27 | H64: =IF($F$7="Nuvigil",SUMIFS('IMS Data'!D:D,'IMS Data'!C:C,'TRx Tracker vs AOP'!G:G),IF('TRx Tracker vs AOP'!$F$7="Fentora",SUMIFS('IMS Data'!F:F,'IMS Data'!C:C,'TRx Tracker vs AOP'!G:G),IF('TRx Tracker vs AOP'!$F$7="Amrix",SUMIFS('IMS Data'!E:E,'IMS Data'!C:C,'TRx Tracker vs AOP'!G:G),IF('TRx Tracker vs AOP'!$F$7="Provigil",SUMIFS('IMS Data'!I:I,'IMS Data'!C:C,'TRx Tracker vs AOP'!G:G),IF('TRx Tracker vs AOP'!$F$7="Gabitril",SUMIFS('IMS Data'!H:H,'IMS Data'!C:C,'TRx Tracker vs AOP'!G:G),IF('TRx Tracker vs AOP'!$F$7="Actiq",SUMIFS('IMS Data'!G:G,'IMS Data'!C:C,'TRx Tracker vs AOP'!G:G),IF($F$7="Copaxone 40",SUMIFS('IMS Data'!K:K,'IMS Data'!C:C,'TRx Tracker vs AOP'!G:G),IF($F$7="Azilect",SUMIFS('IMS Data'!L:L,'IMS Data'!C:C,'TRx Tracker vs AOP'!G:G),IF($F$7="Copaxone 20",SUMIFS('IMS Data'!J:J,'IMS Data'!C:C,'TRx Tracker vs AOP'!G:G),IF($F$7="Zecuity",SUMIFS('IMS Data'!M:M,'IMS Data'!C:C,'TRx Tracker vs LBE'!G:G))))))))))) -> 0 | I64: =IF($F$7="Zecuity",SUMIFS('Zecuity Weekly Forecast'!B:B,'Zecuity Weekly Forecast'!A:A,'TRx Tracker vs AOP'!G:G),IF($F$7="Nuvigil",SUMIFS('NUVIGIL Goals'!$E:$E,'NUVIGIL Goals'!$B:$B,'TRx Tracker vs AOP'!$F:$F),SUMIFS($15:$15,$9:$9,$E:$E)/SUMIFS($18:$18,$9:$9,$E:$E))) -> 2349.111754 | J64: -2349.111754
E65: 11 | F65: 44 | G65: 2017-11-03 | H65: =IF($F$7="Nuvigil",SUMIFS('IMS Data'!D:D,'IMS Data'!C:C,'TRx Tracker vs AOP'!G:G),IF('TRx Tracker vs AOP'!$F$7="Fentora",SUMIFS('IMS Data'!F:F,'IMS Data'!C:C,'TRx Tracker vs AOP'!G:G),IF('TRx Tracker vs AOP'!$F$7="Amrix",SUMIFS('IMS Data'!E:E,'IMS Data'!C:C,'TRx Tracker vs AOP'!G:G),IF('TRx Tracker vs AOP'!$F$7="Provigil",SUMIFS('IMS Data'!I:I,'IMS Data'!C:C,'TRx Tracker vs AOP'!G:G),IF('TRx Tracker vs AOP'!$F$7="Gabitril",SUMIFS('IMS Data'!H:H,'IMS Data'!C:C,'TRx Tracker vs AOP'!G:G),IF('TRx Tracker vs AOP'!$F$7="Actiq",SUMIFS('IMS Data'!G:G,'IMS Data'!C:C,'TRx Tracker vs AOP'!G:G),IF($F$7="Copaxone 40",SUMIFS('IMS Data'!K:K,'IMS Data'!C:C,'TRx Tracker vs AOP'!G:G),IF($F$7="Azilect",SUMIFS('IMS Data'!L:L,'IMS Data'!C:C,'TRx Tracker vs AOP'!G:G),IF($F$7="Copaxone 20",SUMIFS('IMS Data'!J:J,'IMS Data'!C:C,'TRx Tracker vs AOP'!G:G),IF($F$7="Zecuity",SUMIFS('IMS Data'!M:M,'IMS Data'!C:C,'TRx Tracker vs LBE'!G:G))))))))))) -> 0 | I65: =IF($F$7="Zecuity",SUMIFS('Zecuity Weekly Forecast'!B:B,'Zecuity Weekly Forecast'!A:A,'TRx Tracker vs AOP'!G:G),IF($F$7="Nuvigil",SUMIFS('NUVIGIL Goals'!$E:$E,'NUVIGIL Goals'!$B:$B,'TRx Tracker vs AOP'!$F:$F),SUMIFS($15:$15,$9:$9,$E:$E)/SUMIFS($18:$18,$9:$9,$E:$E))) -> 2174.014683 | J65: -2174.014683
E66: 11 | F66: 45 | G66: 2017-11-10 | H66: =IF($F$7="Nuvigil",SUMIFS('IMS Data'!D:D,'IMS Data'!C:C,'TRx Tracker vs AOP'!G:G),IF('TRx Tracker vs AOP'!$F$7="Fentora",SUMIFS('IMS Data'!F:F,'IMS Data'!C:C,'TRx Tracker vs AOP'!G:G),IF('TRx Tracker vs AOP'!$F$7="Amrix",SUMIFS('IMS Data'!E:E,'IMS Data'!C:C,'TRx Tracker vs AOP'!G:G),IF('TRx Tracker vs AOP'!$F$7="Provigil",SUMIFS('IMS Data'!I:I,'IMS Data'!C:C,'TRx Tracker vs AOP'!G:G),IF('TRx Tracker vs AOP'!$F$7="Gabitril",SUMIFS('IMS Data'!H:H,'IMS Data'!C:C,'TRx Tracker vs AOP'!G:G),IF('TRx Tracker vs AOP'!$F$7="Actiq",SUMIFS('IMS Data'!G:G,'IMS Data'!C:C,'TRx Tracker vs AOP'!G:G),IF($F$7="Copaxone 40",SUMIFS('IMS Data'!K:K,'IMS Data'!C:C,'TRx Tracker vs AOP'!G:G),IF($F$7="Azilect",SUMIFS('IMS Data'!L:L,'IMS Data'!C:C,'TRx Tracker vs AOP'!G:G),IF($F$7="Copaxone 20",SUMIFS('IMS Data'!J:J,'IMS Data'!C:C,'TRx Tracker vs AOP'!G:G),IF($F$7="Zecuity",SUMIFS('IMS Data'!M:M,'IMS Data'!C:C,'TRx Tracker vs LBE'!G:G))))))))))) -> 0 | I66: =IF($F$7="Zecuity",SUMIFS('Zecuity Weekly Forecast'!B:B,'Zecuity Weekly Forecast'!A:A,'TRx Tracker vs AOP'!G:G),IF($F$7="Nuvigil",SUMIFS('NUVIGIL Goals'!$E:$E,'NUVIGIL Goals'!$B:$B,'TRx Tracker vs AOP'!$F:$F),SUMIFS($15:$15,$9:$9,$E:$E)/SUMIFS($18:$18,$9:$9,$E:$E))) -> 2174.014683 | J66: -2174.014683
E67: 11 | F67: 46 | G67: 2017-11-17 | H67: =IF($F$7="Nuvigil",SUMIFS('IMS Data'!D:D,'IMS Data'!C:C,'TRx Tracker vs AOP'!G:G),IF('TRx Tracker vs AOP'!$F$7="Fentora",SUMIFS('IMS Data'!F:F,'IMS Data'!C:C,'TRx Tracker vs AOP'!G:G),IF('TRx Tracker vs AOP'!$F$7="Amrix",SUMIFS('IMS Data'!E:E,'IMS Data'!C:C,'TRx Tracker vs AOP'!G:G),IF('TRx Tracker vs AOP'!$F$7="Provigil",SUMIFS('IMS Data'!I:I,'IMS Data'!C:C,'TRx Tracker vs AOP'!G:G),IF('TRx Tracker vs AOP'!$F$7="Gabitril",SUMIFS('IMS Data'!H:H,'IMS Data'!C:C,'TRx Tracker vs AOP'!G:G),IF('TRx Tracker vs AOP'!$F$7="Actiq",SUMIFS('IMS Data'!G:G,'IMS Data'!C:C,'TRx Tracker vs AOP'!G:G),IF($F$7="Copaxone 40",SUMIFS('IMS Data'!K:K,'IMS Data'!C:C,'TRx Tracker vs AOP'!G:G),IF($F$7="Azilect",SUMIFS('IMS Data'!L:L,'IMS Data'!C:C,'TRx Tracker vs AOP'!G:G),IF($F$7="Copaxone 20",SUMIFS('IMS Data'!J:J,'IMS Data'!C:C,'TRx Tracker vs AOP'!G:G),IF($F$7="Zecuity",SUMIFS('IMS Data'!M:M,'IMS Data'!C:C,'TRx Tracker vs LBE'!G:G))))))))))) -> 0 | I67: =IF($F$7="Zecuity",SUMIFS('Zecuity Weekly Forecast'!B:B,'Zecuity Weekly Forecast'!A:A,'TRx Tracker vs AOP'!G:G),IF($F$7="Nuvigil",SUMIFS('NUVIGIL Goals'!$E:$E,'NUVIGIL Goals'!$B:$B,'TRx Tracker vs AOP'!$F:$F),SUMIFS($15:$15,$9:$9,$E:$E)/SUMIFS($18:$18,$9:$9,$E:$E))) -> 2174.014683 | J67: -2174.014683
E68: 11 | F68: 47 | G68: 2017-11-24 | H68: =IF($F$7="Nuvigil",SUMIFS('IMS Data'!D:D,'IMS Data'!C:C,'TRx Tracker vs AOP'!G:G),IF('TRx Tracker vs AOP'!$F$7="Fentora",SUMIFS('IMS Data'!F:F,'IMS Data'!C:C,'TRx Tracker vs AOP'!G:G),IF('TRx Tracker vs AOP'!$F$7="Amrix",SUMIFS('IMS Data'!E:E,'IMS Data'!C:C,'TRx Tracker vs AOP'!G:G),IF('TRx Tracker vs AOP'!$F$7="Provigil",SUMIFS('IMS Data'!I:I,'IMS Data'!C:C,'TRx Tracker vs AOP'!G:G),IF('TRx Tracker vs AOP'!$F$7="Gabitril",SUMIFS('IMS Data'!H:H,'IMS Data'!C:C,'TRx Tracker vs AOP'!G:G),IF('TRx Tracker vs AOP'!$F$7="Actiq",SUMIFS('IMS Data'!G:G,'IMS Data'!C:C,'TRx Tracker vs AOP'!G:G),IF($F$7="Copaxone 40",SUMIFS('IMS Data'!K:K,'IMS Data'!C:C,'TRx Tracker vs AOP'!G:G),IF($F$7="Azilect",SUMIFS('IMS Data'!L:L,'IMS Data'!C:C,'TRx Tracker vs AOP'!G:G),IF($F$7="Copaxone 20",SUMIFS('IMS Data'!J:J,'IMS Data'!C:C,'TRx Tracker vs AOP'!G:G),IF($F$7="Zecuity",SUMIFS('IMS Data'!M:M,'IMS Data'!C:C,'TRx Tracker vs LBE'!G:G))))))))))) -> 0 | I68: =IF($F$7="Zecuity",SUMIFS('Zecuity Weekly Forecast'!B:B,'Zecuity Weekly Forecast'!A:A,'TRx Tracker vs AOP'!G:G),IF($F$7="Nuvigil",SUMIFS('NUVIGIL Goals'!$E:$E,'NUVIGIL Goals'!$B:$B,'TRx Tracker vs AOP'!$F:$F),SUMIFS($15:$15,$9:$9,$E:$E)/SUMIFS($18:$18,$9:$9,$E:$E))) -> 2174.014683 | J68: -2174.014683
E69: 12 | F69: 48 | G69: 2017-12-01 | H69: =IF($F$7="Nuvigil",SUMIFS('IMS Data'!D:D,'IMS Data'!C:C,'TRx Tracker vs AOP'!G:G),IF('TRx Tracker vs AOP'!$F$7="Fentora",SUMIFS('IMS Data'!F:F,'IMS Data'!C:C,'TRx Tracker vs AOP'!G:G),IF('TRx Tracker vs AOP'!$F$7="Amrix",SUMIFS('IMS Data'!E:E,'IMS Data'!C:C,'TRx Tracker vs AOP'!G:G),IF('TRx Tracker vs AOP'!$F$7="Provigil",SUMIFS('IMS Data'!I:I,'IMS Data'!C:C,'TRx Tracker vs AOP'!G:G),IF('TRx Tracker vs AOP'!$F$7="Gabitril",SUMIFS('IMS Data'!H:H,'IMS Data'!C:C,'TRx Tracker vs AOP'!G:G),IF('TRx Tracker vs AOP'!$F$7="Actiq",SUMIFS('IMS Data'!G:G,'IMS Data'!C:C,'TRx Tracker vs AOP'!G:G),IF($F$7="Copaxone 40",SUMIFS('IMS Data'!K:K,'IMS Data'!C:C,'TRx Tracker vs AOP'!G:G),IF($F$7="Azilect",SUMIFS('IMS Data'!L:L,'IMS Data'!C:C,'TRx Tracker vs AOP'!G:G),IF($F$7="Copaxone 20",SUMIFS('IMS Data'!J:J,'IMS Data'!C:C,'TRx Tracker vs AOP'!G:G),IF($F$7="Zecuity",SUMIFS('IMS Data'!M:M,'IMS Data'!C:C,'TRx Tracker vs LBE'!G:G))))))))))) -> 0 | I69: =IF($F$7="Zecuity",SUMIFS('Zecuity Weekly Forecast'!B:B,'Zecuity Weekly Forecast'!A:A,'TRx Tracker vs AOP'!G:G),IF($F$7="Nuvigil",SUMIFS('NUVIGIL Goals'!$E:$E,'NUVIGIL Goals'!$B:$B,'TRx Tracker vs AOP'!$F:$F),SUMIFS($15:$15,$9:$9,$E:$E)/SUMIFS($18:$18,$9:$9,$E:$E))) -> 2327.975649 | J69: -2327.975649
E70: 12 | F70: 49 | G70: 2017-12-08 | H70: =IF($F$7="Nuvigil",SUMIFS('IMS Data'!D:D,'IMS Data'!C:C,'TRx Tracker vs AOP'!G:G),IF('TRx Tracker vs AOP'!$F$7="Fentora",SUMIFS('IMS Data'!F:F,'IMS Data'!C:C,'TRx Tracker vs AOP'!G:G),IF('TRx Tracker vs AOP'!$F$7="Amrix",SUMIFS('IMS Data'!E:E,'IMS Data'!C:C,'TRx Tracker vs AOP'!G:G),IF('TRx Tracker vs AOP'!$F$7="Provigil",SUMIFS('IMS Data'!I:I,'IMS Data'!C:C,'TRx Tracker vs AOP'!G:G),IF('TRx Tracker vs AOP'!$F$7="Gabitril",SUMIFS('IMS Data'!H:H,'IMS Data'!C:C,'TRx Tracker vs AOP'!G:G),IF('TRx Tracker vs AOP'!$F$7="Actiq",SUMIFS('IMS Data'!G:G,'IMS Data'!C:C,'TRx Tracker vs AOP'!G:G),IF($F$7="Copaxone 40",SUMIFS('IMS Data'!K:K,'IMS Data'!C:C,'TRx Tracker vs AOP'!G:G),IF($F$7="Azilect",SUMIFS('IMS Data'!L:L,'IMS Data'!C:C,'TRx Tracker vs AOP'!G:G),IF($F$7="Copaxone 20",SUMIFS('IMS Data'!J:J,'IMS Data'!C:C,'TRx Tracker vs AOP'!G:G),IF($F$7="Zecuity",SUMIFS('IMS Data'!M:M,'IMS Data'!C:C,'TRx Tracker vs LBE'!G:G))))))))))) -> 0 | I70: =IF($F$7="Zecuity",SUMIFS('Zecuity Weekly Forecast'!B:B,'Zecuity Weekly Forecast'!A:A,'TRx Tracker vs AOP'!G:G),IF($F$7="Nuvigil",SUMIFS('NUVIGIL Goals'!$E:$E,'NUVIGIL Goals'!$B:$B,'TRx Tracker vs AOP'!$F:$F),SUMIFS($15:$15,$9:$9,$E:$E)/SUMIFS($18:$18,$9:$9,$E:$E))) -> 2327.975649 | J70: -2327.975649
E71: 12 | F71: 50 | G71: 2017-12-15 | H71: =IF($F$7="Nuvigil",SUMIFS('IMS Data'!D:D,'IMS Data'!C:C,'TRx Tracker vs AOP'!G:G),IF('TRx Tracker vs AOP'!$F$7="Fentora",SUMIFS('IMS Data'!F:F,'IMS Data'!C:C,'TRx Tracker vs AOP'!G:G),IF('TRx Tracker vs AOP'!$F$7="Amrix",SUMIFS('IMS Data'!E:E,'IMS Data'!C:C,'TRx Tracker vs AOP'!G:G),IF('TRx Tracker vs AOP'!$F$7="Provigil",SUMIFS('IMS Data'!I:I,'IMS Data'!C:C,'TRx Tracker vs AOP'!G:G),IF('TRx Tracker vs AOP'!$F$7="Gabitril",SUMIFS('IMS Data'!H:H,'IMS Data'!C:C,'TRx Tracker vs AOP'!G:G),IF('TRx Tracker vs AOP'!$F$7="Actiq",SUMIFS('IMS Data'!G:G,'IMS Data'!C:C,'TRx Tracker vs AOP'!G:G),IF($F$7="Copaxone 40",SUMIFS('IMS Data'!K:K,'IMS Data'!C:C,'TRx Tracker vs AOP'!G:G),IF($F$7="Azilect",SUMIFS('IMS Data'!L:L,'IMS Data'!C:C,'TRx Tracker vs AOP'!G:G),IF($F$7="Copaxone 20",SUMIFS('IMS Data'!J:J,'IMS Data'!C:C,'TRx Tracker vs AOP'!G:G),IF($F$7="Zecuity",SUMIFS('IMS Data'!M:M,'IMS Data'!C:C,'TRx Tracker vs LBE'!G:G))))))))))) -> 0 | I71: =IF($F$7="Zecuity",SUMIFS('Zecuity Weekly Forecast'!B:B,'Zecuity Weekly Forecast'!A:A,'TRx Tracker vs AOP'!G:G),IF($F$7="Nuvigil",SUMIFS('NUVIGIL Goals'!$E:$E,'NUVIGIL Goals'!$B:$B,'TRx Tracker vs AOP'!$F:$F),SUMIFS($15:$15,$9:$9,$E:$E)/SUMIFS($18:$18,$9:$9,$E:$E))) -> 2327.975649 | J71: -2327.975649
E72: 12 | F72: 51 | G72: 2017-12-22 | H72: =IF($F$7="Nuvigil",SUMIFS('IMS Data'!D:D,'IMS Data'!C:C,'TRx Tracker vs AOP'!G:G),IF('TRx Tracker vs AOP'!$F$7="Fentora",SUMIFS('IMS Data'!F:F,'IMS Data'!C:C,'TRx Tracker vs AOP'!G:G),IF('TRx Tracker vs AOP'!$F$7="Amrix",SUMIFS('IMS Data'!E:E,'IMS Data'!C:C,'TRx Tracker vs AOP'!G:G),IF('TRx Tracker vs AOP'!$F$7="Provigil",SUMIFS('IMS Data'!I:I,'IMS Data'!C:C,'TRx Tracker vs AOP'!G:G),IF('TRx Tracker vs AOP'!$F$7="Gabitril",SUMIFS('IMS Data'!H:H,'IMS Data'!C:C,'TRx Tracker vs AOP'!G:G),IF('TRx Tracker vs AOP'!$F$7="Actiq",SUMIFS('IMS Data'!G:G,'IMS Data'!C:C,'TRx Tracker vs AOP'!G:G),IF($F$7="Copaxone 40",SUMIFS('IMS Data'!K:K,'IMS Data'!C:C,'TRx Tracker vs AOP'!G:G),IF($F$7="Azilect",SUMIFS('IMS Data'!L:L,'IMS Data'!C:C,'TRx Tracker vs AOP'!G:G),IF($F$7="Copaxone 20",SUMIFS('IMS Data'!J:J,'IMS Data'!C:C,'TRx Tracker vs AOP'!G:G),IF($F$7="Zecuity",SUMIFS('IMS Data'!M:M,'IMS Data'!C:C,'TRx Tracker vs LBE'!G:G))))))))))) -> 0 | I72: =IF($F$7="Zecuity",SUMIFS('Zecuity Weekly Forecast'!B:B,'Zecuity Weekly Forecast'!A:A,'TRx Tracker vs AOP'!G:G),IF($F$7="Nuvigil",SUMIFS('NUVIGIL Goals'!$E:$E,'NUVIGIL Goals'!$B:$B,'TRx Tracker vs AOP'!$F:$F),SUMIFS($15:$15,$9:$9,$E:$E)/SUMIFS($18:$18,$9:$9,$E:$E))) -> 2327.975649 | J72: -2327.975649
E73: 12 | F73: 52 | G73: 2017-12-29 | H73: =IF($F$7="Nuvigil",SUMIFS('IMS Data'!D:D,'IMS Data'!C:C,'TRx Tracker vs AOP'!G:G),IF('TRx Tracker vs AOP'!$F$7="Fentora",SUMIFS('IMS Data'!F:F,'IMS Data'!C:C,'TRx Tracker vs AOP'!G:G),IF('TRx Tracker vs AOP'!$F$7="Amrix",SUMIFS('IMS Data'!E:E,'IMS Data'!C:C,'TRx Tracker vs AOP'!G:G),IF('TRx Tracker vs AOP'!$F$7="Provigil",SUMIFS('IMS Data'!I:I,'IMS Data'!C:C,'TRx Tracker vs AOP'!G:G),IF('TRx Tracker vs AOP'!$F$7="Gabitril",SUMIFS('IMS Data'!H:H,'IMS Data'!C:C,'TRx Tracker vs AOP'!G:G),IF('TRx Tracker vs AOP'!$F$7="Actiq",SUMIFS('IMS Data'!G:G,'IMS Data'!C:C,'TRx Tracker vs AOP'!G:G),IF($F$7="Copaxone 40",SUMIFS('IMS Data'!K:K,'IMS Data'!C:C,'TRx Tracker vs AOP'!G:G),IF($F$7="Azilect",SUMIFS('IMS Data'!L:L,'IMS Data'!C:C,'TRx Tracker vs AOP'!G:G),IF($F$7="Copaxone 20",SUMIFS('IMS Data'!J:J,'IMS Data'!C:C,'TRx Tracker vs AOP'!G:G),IF($F$7="Zecuity",SUMIFS('IMS Data'!M:M,'IMS Data'!C:C,'TRx Tracker vs LBE'!G:G))))))))))) -> 0 | I73: =IF($F$7="Zecuity",SUMIFS('Zecuity Weekly Forecast'!B:B,'Zecuity Weekly Forecast'!A:A,'TRx Tracker vs AOP'!G:G),IF($F$7="Nuvigil",SUMIFS('NUVIGIL Goals'!$E:$E,'NUVIGIL Goals'!$B:$B,'TRx Tracker vs AOP'!$F:$F),SUMIFS($15:$15,$9:$9,$E:$E)/SUMIFS($18:$18,$9:$9,$E:$E))) -> 2327.975649 | J73: -2327.975649

Sheet TRx Tracker vs LBE (hidden)
C5: CNS TRx Tracker
D7: Select Product | F7: Nuvigil
D9: 1 | E9: 2 | F9: 3 | G9: 4 | H9: 5 | I9: 6 | J9: 7 | K9: 8 | L9: 9 | M9: 10 | N9: 11 | O9: 12
D10: Jan | E10: Feb | F10: Mar | G10: Apr | H10: May | I10: Jun | J10: Jul | K10: Aug | L10: Sep | M10: Oct | N10: Nov | O10: Dec
C11: Unit Forecast | D11: =SUMIFS('Data Inputs'!D:D,'Data Inputs'!$C:$C,'TRx Tracker vs LBE'!$F$7,'Data Inputs'!$B:$B,'TRx Tracker vs LBE'!$C:$C,'Data Inputs'!$A:$A,"LBE") -> 0 | E11: =SUMIFS('Data Inputs'!E:E,'Data Inputs'!$C:$C,'TRx Tracker vs LBE'!$F$7,'Data Inputs'!$B:$B,'TRx Tracker vs LBE'!$C:$C,'Data Inputs'!$A:$A,"LBE") -> 0 | F11: =SUMIFS('Data Inputs'!F:F,'Data Inputs'!$C:$C,'TRx Tracker vs LBE'!$F$7,'Data Inputs'!$B:$B,'TRx Tracker vs LBE'!$C:$C,'Data Inputs'!$A:$A,"LBE") -> 0 | G11: =SUMIFS('Data Inputs'!G:G,'Data Inputs'!$C:$C,'TRx Tracker vs LBE'!$F$7,'Data Inputs'!$B:$B,'TRx Tracker vs LBE'!$C:$C,'Data Inputs'!$A:$A,"LBE") -> 0 | H11: =SUMIFS('Data Inputs'!H:H,'Data Inputs'!$C:$C,'TRx Tracker vs LBE'!$F$7,'Data Inputs'!$B:$B,'TRx Tracker vs LBE'!$C:$C,'Data Inputs'!$A:$A,"LBE") -> 0 | I11: =SUMIFS('Data Inputs'!I:I,'Data Inputs'!$C:$C,'TRx Tracker vs LBE'!$F$7,'Data Inputs'!$B:$B,'TRx Tracker vs LBE'!$C:$C,'Data Inputs'!$A:$A,"LBE") -> 0 | J11: =SUMIFS('Data Inputs'!J:J,'Data Inputs'!$C:$C,'TRx Tracker vs LBE'!$F$7,'Data Inputs'!$B:$B,'TRx Tracker vs LBE'!$C:$C,'Data Inputs'!$A:$A,"LBE") -> 0 | K11: =SUMIFS('Data Inputs'!K:K,'Data Inputs'!$C:$C,'TRx Tracker vs LBE'!$F$7,'Data Inputs'!$B:$B,'TRx Tracker vs LBE'!$C:$C,'Data Inputs'!$A:$A,"LBE") -> 0 | L11: =SUMIFS('Data Inputs'!L:L,'Data Inputs'!$C:$C,'TRx Tracker vs LBE'!$F$7,'Data Inputs'!$B:$B,'TRx Tracker vs LBE'!$C:$C,'Data Inputs'!$A:$A,"LBE") -> 0 | M11: =SUMIFS('Data Inputs'!M:M,'Data Inputs'!$C:$C,'TRx Tracker vs LBE'!$F$7,'Data Inputs'!$B:$B,'TRx Tracker vs LBE'!$C:$C,'Data Inputs'!$A:$A,"LBE") -> 0 | N11: =SUMIFS('Data Inputs'!N:N,'Data Inputs'!$C:$C,'TRx Tracker vs LBE'!$F$7,'Data Inputs'!$B:$B,'TRx Tracker vs LBE'!$C:$C,'Data Inputs'!$A:$A,"LBE") -> 0 | O11: =SUMIFS('Data Inputs'!O:O,'Data Inputs'!$C:$C,'TRx Tracker vs LBE'!$F$7,'Data Inputs'!$B:$B,'TRx Tracker vs LBE'!$C:$C,'Data Inputs'!$A:$A,"LBE") -> 0
C12: Bottle Size | D12: =SUMIFS('Data Inputs'!D:D,'Data Inputs'!$C:$C,'TRx Tracker vs LBE'!$F$7,'Data Inputs'!$B:$B,'TRx Tracker vs LBE'!$C:$C,'Data Inputs'!$A:$A,"LBE") -> 30 | E12: =SUMIFS('Data Inputs'!E:E,'Data Inputs'!$C:$C,'TRx Tracker vs LBE'!$F$7,'Data Inputs'!$B:$B,'TRx Tracker vs LBE'!$C:$C,'Data Inputs'!$A:$A,"LBE") -> 30 | F12: =SUMIFS('Data Inputs'!F:F,'Data Inputs'!$C:$C,'TRx Tracker vs LBE'!$F$7,'Data Inputs'!$B:$B,'TRx Tracker vs LBE'!$C:$C,'Data Inputs'!$A:$A,"LBE") -> 30 | G12: =SUMIFS('Data Inputs'!G:G,'Data Inputs'!$C:$C,'TRx Tracker vs LBE'!$F$7,'Data Inputs'!$B:$B,'TRx Tracker vs LBE'!$C:$C,'Data Inputs'!$A:$A,"LBE") -> 30 | H12: =SUMIFS('Data Inputs'!H:H,'Data Inputs'!$C:$C,'TRx Tracker vs LBE'!$F$7,'Data Inputs'!$B:$B,'TRx Tracker vs LBE'!$C:$C,'Data Inputs'!$A:$A,"LBE") -> 30 | I12: =SUMIFS('Data Inputs'!I:I,'Data Inputs'!$C:$C,'TRx Tracker vs LBE'!$F$7,'Data Inputs'!$B:$B,'TRx Tracker vs LBE'!$C:$C,'Data Inputs'!$A:$A,"LBE") -> 30 | J12: =SUMIFS('Data Inputs'!J:J,'Data Inputs'!$C:$C,'TRx Tracker vs LBE'!$F$7,'Data Inputs'!$B:$B,'TRx Tracker vs LBE'!$C:$C,'Data Inputs'!$A:$A,"LBE") -> 30 | K12: =SUMIFS('Data Inputs'!K:K,'Data Inputs'!$C:$C,'TRx Tracker vs LBE'!$F$7,'Data Inputs'!$B:$B,'TRx Tracker vs LBE'!$C:$C,'Data Inputs'!$A:$A,"LBE") -> 30 | L12: =SUMIFS('Data Inputs'!L:L,'Data Inputs'!$C:$C,'TRx Tracker vs LBE'!$F$7,'Data Inputs'!$B:$B,'TRx Tracker vs LBE'!$C:$C,'Data Inputs'!$A:$A,"LBE") -> 30 | M12: =SUMIFS('Data Inputs'!M:M,'Data Inputs'!$C:$C,'TRx Tracker vs LBE'!$F$7,'Data Inputs'!$B:$B,'TRx Tracker vs LBE'!$C:$C,'Data Inputs'!$A:$A,"LBE") -> 30 | N12: =SUMIFS('Data Inputs'!N:N,'Data Inputs'!$C:$C,'TRx Tracker vs LBE'!$F$7,'Data Inputs'!$B:$B,'TRx Tracker vs LBE'!$C:$C,'Data Inputs'!$A:$A,"LBE") -> 30 | O12: =SUMIFS('Data Inputs'!O:O,'Data Inputs'!$C:$C,'TRx Tracker vs LBE'!$F$7,'Data Inputs'!$B:$B,'TRx Tracker vs LBE'!$C:$C,'Data Inputs'!$A:$A,"LBE") -> 30
C13: Avg Units per TRx | D13: =SUMIFS('Data Inputs'!D:D,'Data Inputs'!$C:$C,'TRx Tracker vs LBE'!$F$7,'Data Inputs'!$B:$B,'TRx Tracker vs LBE'!$C:$C,'Data Inputs'!$A:$A,"LBE") -> 34 | E13: =SUMIFS('Data Inputs'!E:E,'Data Inputs'!$C:$C,'TRx Tracker vs LBE'!$F$7,'Data Inputs'!$B:$B,'TRx Tracker vs LBE'!$C:$C,'Data Inputs'!$A:$A,"LBE") -> 34 | F13: =SUMIFS('Data Inputs'!F:F,'Data Inputs'!$C:$C,'TRx Tracker vs LBE'!$F$7,'Data Inputs'!$B:$B,'TRx Tracker vs LBE'!$C:$C,'Data Inputs'!$A:$A,"LBE") -> 34 | G13: =SUMIFS('Data Inputs'!G:G,'Data Inputs'!$C:$C,'TRx Tracker vs LBE'!$F$7,'Data Inputs'!$B:$B,'TRx Tracker vs LBE'!$C:$C,'Data Inputs'!$A:$A,"LBE") -> 34 | H13: =SUMIFS('Data Inputs'!H:H,'Data Inputs'!$C:$C,'TRx Tracker vs LBE'!$F$7,'Data Inputs'!$B:$B,'TRx Tracker vs LBE'!$C:$C,'Data Inputs'!$A:$A,"LBE") -> 34 | I13: =SUMIFS('Data Inputs'!I:I,'Data Inputs'!$C:$C,'TRx Tracker vs LBE'!$F$7,'Data Inputs'!$B:$B,'TRx Tracker vs LBE'!$C:$C,'Data Inputs'!$A:$A,"LBE") -> 34 | J13: =SUMIFS('Data Inputs'!J:J,'Data Inputs'!$C:$C,'TRx Tracker vs LBE'!$F$7,'Data Inputs'!$B:$B,'TRx Tracker vs LBE'!$C:$C,'Data Inputs'!$A:$A,"LBE") -> 34 | K13: =SUMIFS('Data Inputs'!K:K,'Data Inputs'!$C:$C,'TRx Tracker vs LBE'!$F$7,'Data Inputs'!$B:$B,'TRx Tracker vs LBE'!$C:$C,'Data Inputs'!$A:$A,"LBE") -> 34 | L13: =SUMIFS('Data Inputs'!L:L,'Data Inputs'!$C:$C,'TRx Tracker vs LBE'!$F$7,'Data Inputs'!$B:$B,'TRx Tracker vs LBE'!$C:$C,'Data Inputs'!$A:$A,"LBE") -> 34 | M13: =SUMIFS('Data Inputs'!M:M,'Data Inputs'!$C:$C,'TRx Tracker vs LBE'!$F$7,'Data Inputs'!$B:$B,'TRx Tracker vs LBE'!$C:$C,'Data Inputs'!$A:$A,"LBE") -> 34 | N13: =SUMIFS('Data Inputs'!N:N,'Data Inputs'!$C:$C,'TRx Tracker vs LBE'!$F$7,'Data Inputs'!$B:$B,'TRx Tracker vs LBE'!$C:$C,'Data Inputs'!$A:$A,"LBE") -> 34 | O13: =SUMIFS('Data Inputs'!O:O,'Data Inputs'!$C:$C,'TRx Tracker vs LBE'!$F$7,'Data Inputs'!$B:$B,'TRx Tracker vs LBE'!$C:$C,'Data Inputs'!$A:$A,"LBE") -> 34
C14: NPA Capture Rate | D14: =SUMIFS('Data Inputs'!D:D,'Data Inputs'!$C:$C,'TRx Tracker vs LBE'!$F$7,'Data Inputs'!$B:$B,'TRx Tracker vs LBE'!$C:$C) -> 2 | E14: =SUMIFS('Data Inputs'!E:E,'Data Inputs'!$C:$C,'TRx Tracker vs LBE'!$F$7,'Data Inputs'!$B:$B,'TRx Tracker vs LBE'!$C:$C) -> 2 | F14: =SUMIFS('Data Inputs'!F:F,'Data Inputs'!$C:$C,'TRx Tracker vs LBE'!$F$7,'Data Inputs'!$B:$B,'TRx Tracker vs LBE'!$C:$C) -> 2 | G14: =SUMIFS('Data Inputs'!G:G,'Data Inputs'!$C:$C,'TRx Tracker vs LBE'!$F$7,'Data Inputs'!$B:$B,'TRx Tracker vs LBE'!$C:$C) -> 2 | H14: =SUMIFS('Data Inputs'!H:H,'Data Inputs'!$C:$C,'TRx Tracker vs LBE'!$F$7,'Data Inputs'!$B:$B,'TRx Tracker vs LBE'!$C:$C) -> 2 | I14: =SUMIFS('Data Inputs'!I:I,'Data Inputs'!$C:$C,'TRx Tracker vs LBE'!$F$7,'Data Inputs'!$B:$B,'TRx Tracker vs LBE'!$C:$C) -> 2 | J14: =SUMIFS('Data Inputs'!J:J,'Data Inputs'!$C:$C,'TRx Tracker vs LBE'!$F$7,'Data Inputs'!$B:$B,'TRx Tracker vs LBE'!$C:$C) -> 2 | K14: =SUMIFS('Data Inputs'!K:K,'Data Inputs'!$C:$C,'TRx Tracker vs LBE'!$F$7,'Data Inputs'!$B:$B,'TRx Tracker vs LBE'!$C:$C) -> 2 | L14: =SUMIFS('Data Inputs'!L:L,'Data Inputs'!$C:$C,'TRx Tracker vs LBE'!$F$7,'Data Inputs'!$B:$B,'TRx Tracker vs LBE'!$C:$C) -> 2 | M14: =SUMIFS('Data Inputs'!M:M,'Data Inputs'!$C:$C,'TRx Tracker vs LBE'!$F$7,'Data Inputs'!$B:$B,'TRx Tracker vs LBE'!$C:$C) -> 2 | N14: =SUMIFS('Data Inputs'!N:N,'Data Inputs'!$C:$C,'TRx Tracker vs LBE'!$F$7,'Data Inputs'!$B:$B,'TRx Tracker vs LBE'!$C:$C) -> 2 | O14: =SUMIFS('Data Inputs'!O:O,'Data Inputs'!$C:$C,'TRx Tracker vs LBE'!$F$7,'Data Inputs'!$B:$B,'TRx Tracker vs LBE'!$C:$C) -> 2
C15: TRx Forecast | D15: =SUMIFS('Data Inputs'!D:D,'Data Inputs'!$C:$C,'TRx Tracker vs LBE'!$F$7,'Data Inputs'!$B:$B,'TRx Tracker vs LBE'!$C:$C,'Data Inputs'!$A:$A,"LBE") -> 0 | E15: =SUMIFS('Data Inputs'!E:E,'Data Inputs'!$C:$C,'TRx Tracker vs LBE'!$F$7,'Data Inputs'!$B:$B,'TRx Tracker vs LBE'!$C:$C,'Data Inputs'!$A:$A,"LBE") -> 0 | F15: =SUMIFS('Data Inputs'!F:F,'Data Inputs'!$C:$C,'TRx Tracker vs LBE'!$F$7,'Data Inputs'!$B:$B,'TRx Tracker vs LBE'!$C:$C,'Data Inputs'!$A:$A,"LBE") -> 0 | G15: =SUMIFS('Data Inputs'!G:G,'Data Inputs'!$C:$C,'TRx Tracker vs LBE'!$F$7,'Data Inputs'!$B:$B,'TRx Tracker vs LBE'!$C:$C,'Data Inputs'!$A:$A,"LBE") -> 0 | H15: =SUMIFS('Data Inputs'!H:H,'Data Inputs'!$C:$C,'TRx Tracker vs LBE'!$F$7,'Data Inputs'!$B:$B,'TRx Tracker vs LBE'!$C:$C,'Data Inputs'!$A:$A,"LBE") -> 0 | I15: =SUMIFS('Data Inputs'!I:I,'Data Inputs'!$C:$C,'TRx Tracker vs LBE'!$F$7,'Data Inputs'!$B:$B,'TRx Tracker vs LBE'!$C:$C,'Data Inputs'!$A:$A,"LBE") -> 0 | J15: =SUMIFS('Data Inputs'!J:J,'Data Inputs'!$C:$C,'TRx Tracker vs LBE'!$F$7,'Data Inputs'!$B:$B,'TRx Tracker vs LBE'!$C:$C,'Data Inputs'!$A:$A,"LBE") -> 0 | K15: =SUMIFS('Data Inputs'!K:K,'Data Inputs'!$C:$C,'TRx Tracker vs LBE'!$F$7,'Data Inputs'!$B:$B,'TRx Tracker vs LBE'!$C:$C,'Data Inputs'!$A:$A,"LBE") -> 0 | L15: =SUMIFS('Data Inputs'!L:L,'Data Inputs'!$C:$C,'TRx Tracker vs LBE'!$F$7,'Data Inputs'!$B:$B,'TRx Tracker vs LBE'!$C:$C,'Data Inputs'!$A:$A,"LBE") -> 0 | M15: =SUMIFS('Data Inputs'!M:M,'Data Inputs'!$C:$C,'TRx Tracker vs LBE'!$F$7,'Data Inputs'!$B:$B,'TRx Tracker vs LBE'!$C:$C,'Data Inputs'!$A:$A,"LBE") -> 0 | N15: =SUMIFS('Data Inputs'!N:N,'Data Inputs'!$C:$C,'TRx Tracker vs LBE'!$F$7,'Data Inputs'!$B:$B,'TRx Tracker vs LBE'!$C:$C,'Data Inputs'!$A:$A,"LBE") -> 0 | O15: =SUMIFS('Data Inputs'!O:O,'Data Inputs'!$C:$C,'TRx Tracker vs LBE'!$F$7,'Data Inputs'!$B:$B,'TRx Tracker vs LBE'!$C:$C,'Data Inputs'!$A:$A,"LBE") -> 0
C16: Actual TRxs To Date | D16: =IF($F$7="Nuvigil",SUMIFS('Split Month Calcs'!$D:$D,'Split Month Calcs'!$A:$A,'TRx Tracker vs AOP'!D9),IF($F$7="amrix",SUMIFS('Split Month Calcs'!$E:$E,'Split Month Calcs'!$A:$A,'TRx Tracker vs AOP'!D9),IF($F$7="Fentora",SUMIFS('Split Month Calcs'!$F:$F,'Split Month Calcs'!$A:$A,'TRx Tracker vs AOP'!D9),IF($F$7="Provigil",SUMIFS('Split Month Calcs'!$I:$I,'Split Month Calcs'!$A:$A,'TRx Tracker vs AOP'!D9),IF($F$7="Gabitril",SUMIFS('Split Month Calcs'!$H:$H,'Split Month Calcs'!$A:$A,'TRx Tracker vs AOP'!D9),IF($F$7="Actiq",SUMIFS('Split Month Calcs'!$G:$G,'Split Month Calcs'!$A:$A,'TRx Tracker vs AOP'!D9),IF($F$7="Copaxone 40",SUMIFS('Split Month Calcs'!$K:$K,'Split Month Calcs'!$A:$A,'TRx Tracker vs AOP'!D9),IF($F$7="Copaxone 20",SUMIFS('Split Month Calcs'!$J:$J,'Split Month Calcs'!$A:$A,'TRx Tracker vs AOP'!D9),IF($F$7="Azilect",SUMIFS('Split Month Calcs'!$L:$L,'Split Month Calcs'!$A:$A,'TRx Tracker vs AOP'!D9),IF($F$7="Zecuity",SUMIFS('Split Month Calcs'!$M:$M,'Split Month Calcs'!$A:$A,'TRx Tracker vs AOP'!D9))))))))))) -> 6125 | E16: =IF($F$7="Nuvigil",SUMIFS('Split Month Calcs'!$D:$D,'Split Month Calcs'!$A:$A,'TRx Tracker vs AOP'!E9),IF($F$7="amrix",SUMIFS('Split Month Calcs'!$E:$E,'Split Month Calcs'!$A:$A,'TRx Tracker vs AOP'!E9),IF($F$7="Fentora",SUMIFS('Split Month Calcs'!$F:$F,'Split Month Calcs'!$A:$A,'TRx Tracker vs AOP'!E9),IF($F$7="Provigil",SUMIFS('Split Month Calcs'!$I:$I,'Split Month Calcs'!$A:$A,'TRx Tracker vs AOP'!E9),IF($F$7="Gabitril",SUMIFS('Split Month Calcs'!$H:$H,'Split Month Calcs'!$A:$A,'TRx Tracker vs AOP'!E9),IF($F$7="Actiq",SUMIFS('Split Month Calcs'!$G:$G,'Split Month Calcs'!$A:$A,'TRx Tracker vs AOP'!E9),IF($F$7="Copaxone 40",SUMIFS('Split Month Calcs'!$K:$K,'Split Month Calcs'!$A:$A,'TRx Tracker vs AOP'!E9),IF($F$7="Copaxone 20",SUMIFS('Split Month Calcs'!$J:$J,'Split Month Calcs'!$A:$A,'TRx Tracker vs AOP'!E9),IF($F$7="Azilect",SUMIFS('Split Month Calcs'!$L:$L,'Split Month Calcs'!$A:$A,'TRx Tracker vs AOP'!E9),IF($F$7="Zecuity",SUMIFS('Split Month Calcs'!$M:$M,'Split Month Calcs'!$A:$A,'TRx Tracker vs AOP'!E9))))))))))) -> 0 | F16: =IF($F$7="Nuvigil",SUMIFS('Split Month Calcs'!$D:$D,'Split Month Calcs'!$A:$A,'TRx Tracker vs AOP'!F9),IF($F$7="amrix",SUMIFS('Split Month Calcs'!$E:$E,'Split Month Calcs'!$A:$A,'TRx Tracker vs AOP'!F9),IF($F$7="Fentora",SUMIFS('Split Month Calcs'!$F:$F,'Split Month Calcs'!$A:$A,'TRx Tracker vs AOP'!F9),IF($F$7="Provigil",SUMIFS('Split Month Calcs'!$I:$I,'Split Month Calcs'!$A:$A,'TRx Tracker vs AOP'!F9),IF($F$7="Gabitril",SUMIFS('Split Month Calcs'!$H:$H,'Split Month Calcs'!$A:$A,'TRx Tracker vs AOP'!F9),IF($F$7="Actiq",SUMIFS('Split Month Calcs'!$G:$G,'Split Month Calcs'!$A:$A,'TRx Tracker vs AOP'!F9),IF($F$7="Copaxone 40",SUMIFS('Split Month Calcs'!$K:$K,'Split Month Calcs'!$A:$A,'TRx Tracker vs AOP'!F9),IF($F$7="Copaxone 20",SUMIFS('Split Month Calcs'!$J:$J,'Split Month Calcs'!$A:$A,'TRx Tracker vs AOP'!F9),IF($F$7="Azilect",SUMIFS('Split Month Calcs'!$L:$L,'Split Month Calcs'!$A:$A,'TRx Tracker vs AOP'!F9),IF($F$7="Zecuity",SUMIFS('Split Month Calcs'!$M:$M,'Split Month Calcs'!$A:$A,'TRx Tracker vs AOP'!F9))))))))))) -> 0 | G16: =IF($F$7="Nuvigil",SUMIFS('Split Month Calcs'!$D:$D,'Split Month Calcs'!$A:$A,'TRx Tracker vs AOP'!G9),IF($F$7="amrix",SUMIFS('Split Month Calcs'!$E:$E,'Split Month Calcs'!$A:$A,'TRx Tracker vs AOP'!G9),IF($F$7="Fentora",SUMIFS('Split Month Calcs'!$F:$F,'Split Month Calcs'!$A:$A,'TRx Tracker vs AOP'!G9),IF($F$7="Provigil",SUMIFS('Split Month Calcs'!$I:$I,'Split Month Calcs'!$A:$A,'TRx Tracker vs AOP'!G9),IF($F$7="Gabitril",SUMIFS('Split Month Calcs'!$H:$H,'Split Month Calcs'!$A:$A,'TRx Tracker vs AOP'!G9),IF($F$7="Actiq",SUMIFS('Split Month Calcs'!$G:$G,'Split Month Calcs'!$A:$A,'TRx Tracker vs AOP'!G9),IF($F$7="Copaxone 40",SUMIFS('Split Month Calcs'!$K:$K,'Split Month Calcs'!$A:$A,'TRx Tracker vs AOP'!G9),IF($F$7="Copaxone 20",SUMIFS('Split Month Calcs'!$J:$J,'Split Month Calcs'!$A:$A,'TRx Tracker vs AOP'!G9),IF($F$7="Azilect",SUMIFS('Split Month Calcs'!$L:$L,'Split Month Calcs'!$A:$A,'TRx Tracker vs AOP'!G9),IF($F$7="Zecuity",SUMIFS('Split Month Calcs'!$M:$M,'Split Month Calcs'!$A:$A,'TRx Tracker vs AOP'!G9))))))))))) -> 0 | H16: =IF($F$7="Nuvigil",SUMIFS('Split Month Calcs'!$D:$D,'Split Month Calcs'!$A:$A,'TRx Tracker vs AOP'!H9),IF($F$7="amrix",SUMIFS('Split Month Calcs'!$E:$E,'Split Month Calcs'!$A:$A,'TRx Tracker vs AOP'!H9),IF($F$7="Fentora",SUMIFS('Split Month Calcs'!$F:$F,'Split Month Calcs'!$A:$A,'TRx Tracker vs AOP'!H9),IF($F$7="Provigil",SUMIFS('Split Month Calcs'!$I:$I,'Split Month Calcs'!$A:$A,'TRx Tracker vs AOP'!H9),IF($F$7="Gabitril",SUMIFS('Split Month Calcs'!$H:$H,'Split Month Calcs'!$A:$A,'TRx Tracker vs AOP'!H9),IF($F$7="Actiq",SUMIFS('Split Month Calcs'!$G:$G,'Split Month Calcs'!$A:$A,'TRx Tracker vs AOP'!H9),IF($F$7="Copaxone 40",SUMIFS('Split Month Calcs'!$K:$K,'Split Month Calcs'!$A:$A,'TRx Tracker vs AOP'!H9),IF($F$7="Copaxone 20",SUMIFS('Split Month Calcs'!$J:$J,'Split Month Calcs'!$A:$A,'TRx Tracker vs AOP'!H9),IF($F$7="Azilect",SUMIFS('Split Month Calcs'!$L:$L,'Split Month Calcs'!$A:$A,'TRx Tracker vs AOP'!H9),IF($F$7="Zecuity",SUMIFS('Split Month Calcs'!$M:$M,'Split Month Calcs'!$A:$A,'TRx Tracker vs AOP'!H9))))))))))) -> 0 | I16: =IF($F$7="Nuvigil",SUMIFS('Split Month Calcs'!$D:$D,'Split Month Calcs'!$A:$A,'TRx Tracker vs AOP'!I9),IF($F$7="amrix",SUMIFS('Split Month Calcs'!$E:$E,'Split Month Calcs'!$A:$A,'TRx Tracker vs AOP'!I9),IF($F$7="Fentora",SUMIFS('Split Month Calcs'!$F:$F,'Split Month Calcs'!$A:$A,'TRx Tracker vs AOP'!I9),IF($F$7="Provigil",SUMIFS('Split Month Calcs'!$I:$I,'Split Month Calcs'!$A:$A,'TRx Tracker vs AOP'!I9),IF($F$7="Gabitril",SUMIFS('Split Month Calcs'!$H:$H,'Split Month Calcs'!$A:$A,'TRx Tracker vs AOP'!I9),IF($F$7="Actiq",SUMIFS('Split Month Calcs'!$G:$G,'Split Month Calcs'!$A:$A,'TRx Tracker vs AOP'!I9),IF($F$7="Copaxone 40",SUMIFS('Split Month Calcs'!$K:$K,'Split Month Calcs'!$A:$A,'TRx Tracker vs AOP'!I9),IF($F$7="Copaxone 20",SUMIFS('Split Month Calcs'!$J:$J,'Split Month Calcs'!$A:$A,'TRx Tracker vs AOP'!I9),IF($F$7="Azilect",SUMIFS('Split Month Calcs'!$L:$L,'Split Month Calcs'!$A:$A,'TRx Tracker vs AOP'!I9),IF($F$7="Zecuity",SUMIFS('Split Month Calcs'!$M:$M,'Split Month Calcs'!$A:$A,'TRx Tracker vs AOP'!I9))))))))))) -> 0 | J16: =IF($F$7="Nuvigil",SUMIFS('Split Month Calcs'!$D:$D,'Split Month Calcs'!$A:$A,'TRx Tracker vs AOP'!J9),IF($F$7="amrix",SUMIFS('Split Month Calcs'!$E:$E,'Split Month Calcs'!$A:$A,'TRx Tracker vs AOP'!J9),IF($F$7="Fentora",SUMIFS('Split Month Calcs'!$F:$F,'Split Month Calcs'!$A:$A,'TRx Tracker vs AOP'!J9),IF($F$7="Provigil",SUMIFS('Split Month Calcs'!$I:$I,'Split Month Calcs'!$A:$A,'TRx Tracker vs AOP'!J9),IF($F$7="Gabitril",SUMIFS('Split Month Calcs'!$H:$H,'Split Month Calcs'!$A:$A,'TRx Tracker vs AOP'!J9),IF($F$7="Actiq",SUMIFS('Split Month Calcs'!$G:$G,'Split Month Calcs'!$A:$A,'TRx Tracker vs AOP'!J9),IF($F$7="Copaxone 40",SUMIFS('Split Month Calcs'!$K:$K,'Split Month Calcs'!$A:$A,'TRx Tracker vs AOP'!J9),IF($F$7="Copaxone 20",SUMIFS('Split Month Calcs'!$J:$J,'Split Month Calcs'!$A:$A,'TRx Tracker vs AOP'!J9),IF($F$7="Azilect",SUMIFS('Split Month Calcs'!$L:$L,'Split Month Calcs'!$A:$A,'TRx Tracker vs AOP'!J9),IF($F$7="Zecuity",SUMIFS('Split Month Calcs'!$M:$M,'Split Month Calcs'!$A:$A,'TRx Tracker vs AOP'!J9))))))))))) -> 0 | K16: =IF($F$7="Nuvigil",SUMIFS('Split Month Calcs'!$D:$D,'Split Month Calcs'!$A:$A,'TRx Tracker vs AOP'!K9),IF($F$7="amrix",SUMIFS('Split Month Calcs'!$E:$E,'Split Month Calcs'!$A:$A,'TRx Tracker vs AOP'!K9),IF($F$7="Fentora",SUMIFS('Split Month Calcs'!$F:$F,'Split Month Calcs'!$A:$A,'TRx Tracker vs AOP'!K9),IF($F$7="Provigil",SUMIFS('Split Month Calcs'!$I:$I,'Split Month Calcs'!$A:$A,'TRx Tracker vs AOP'!K9),IF($F$7="Gabitril",SUMIFS('Split Month Calcs'!$H:$H,'Split Month Calcs'!$A:$A,'TRx Tracker vs AOP'!K9),IF($F$7="Actiq",SUMIFS('Split Month Calcs'!$G:$G,'Split Month Calcs'!$A:$A,'TRx Tracker vs AOP'!K9),IF($F$7="Copaxone 40",SUMIFS('Split Month Calcs'!$K:$K,'Split Month Calcs'!$A:$A,'TRx Tracker vs AOP'!K9),IF($F$7="Copaxone 20",SUMIFS('Split Month Calcs'!$J:$J,'Split Month Calcs'!$A:$A,'TRx Tracker vs AOP'!K9),IF($F$7="Azilect",SUMIFS('Split Month Calcs'!$L:$L,'Split Month Calcs'!$A:$A,'TRx Tracker vs AOP'!K9),IF($F$7="Zecuity",SUMIFS('Split Month Calcs'!$M:$M,'Split Month Calcs'!$A:$A,'TRx Tracker vs AOP'!K9))))))))))) -> 0 | L16: =IF($F$7="Nuvigil",SUMIFS('Split Month Calcs'!$D:$D,'Split Month Calcs'!$A:$A,'TRx Tracker vs AOP'!L9),IF($F$7="amrix",SUMIFS('Split Month Calcs'!$E:$E,'Split Month Calcs'!$A:$A,'TRx Tracker vs AOP'!L9),IF($F$7="Fentora",SUMIFS('Split Month Calcs'!$F:$F,'Split Month Calcs'!$A:$A,'TRx Tracker vs AOP'!L9),IF($F$7="Provigil",SUMIFS('Split Month Calcs'!$I:$I,'Split Month Calcs'!$A:$A,'TRx Tracker vs AOP'!L9),IF($F$7="Gabitril",SUMIFS('Split Month Calcs'!$H:$H,'Split Month Calcs'!$A:$A,'TRx Tracker vs AOP'!L9),IF($F$7="Actiq",SUMIFS('Split Month Calcs'!$G:$G,'Split Month Calcs'!$A:$A,'TRx Tracker vs AOP'!L9),IF($F$7="Copaxone 40",SUMIFS('Split Month Calcs'!$K:$K,'Split Month Calcs'!$A:$A,'TRx Tracker vs AOP'!L9),IF($F$7="Copaxone 20",SUMIFS('Split Month Calcs'!$J:$J,'Split Month Calcs'!$A:$A,'TRx Tracker vs AOP'!L9),IF($F$7="Azilect",SUMIFS('Split Month Calcs'!$L:$L,'Split Month Calcs'!$A:$A,'TRx Tracker vs AOP'!L9),IF($F$7="Zecuity",SUMIFS('Split Month Calcs'!$M:$M,'Split Month Calcs'!$A:$A,'TRx Tracker vs AOP'!L9))))))))))) -> 0 | M16: =IF($F$7="Nuvigil",SUMIFS('Split Month Calcs'!$D:$D,'Split Month Calcs'!$A:$A,'TRx Tracker vs AOP'!M9),IF($F$7="amrix",SUMIFS('Split Month Calcs'!$E:$E,'Split Month Calcs'!$A:$A,'TRx Tracker vs AOP'!M9),IF($F$7="Fentora",SUMIFS('Split Month Calcs'!$F:$F,'Split Month Calcs'!$A:$A,'TRx Tracker vs AOP'!M9),IF($F$7="Provigil",SUMIFS('Split Month Calcs'!$I:$I,'Split Month Calcs'!$A:$A,'TRx Tracker vs AOP'!M9),IF($F$7="Gabitril",SUMIFS('Split Month Calcs'!$H:$H,'Split Month Calcs'!$A:$A,'TRx Tracker vs AOP'!M9),IF($F$7="Actiq",SUMIFS('Split Month Calcs'!$G:$G,'Split Month Calcs'!$A:$A,'TRx Tracker vs AOP'!M9),IF($F$7="Copaxone 40",SUMIFS('Split Month Calcs'!$K:$K,'Split Month Calcs'!$A:$A,'TRx Tracker vs AOP'!M9),IF($F$7="Copaxone 20",SUMIFS('Split Month Calcs'!$J:$J,'Split Month Calcs'!$A:$A,'TRx Tracker vs AOP'!M9),IF($F$7="Azilect",SUMIFS('Split Month Calcs'!$L:$L,'Split Month Calcs'!$A:$A,'TRx Tracker vs AOP'!M9),IF($F$7="Zecuity",SUMIFS('Split Month Calcs'!$M:$M,'Split Month Calcs'!$A:$A,'TRx Tracker vs AOP'!M9))))))))))) -> 0 | N16: =IF($F$7="Nuvigil",SUMIFS('Split Month Calcs'!$D:$D,'Split Month Calcs'!$A:$A,'TRx Tracker vs AOP'!N9),IF($F$7="amrix",SUMIFS('Split Month Calcs'!$E:$E,'Split Month Calcs'!$A:$A,'TRx Tracker vs AOP'!N9),IF($F$7="Fentora",SUMIFS('Split Month Calcs'!$F:$F,'Split Month Calcs'!$A:$A,'TRx Tracker vs AOP'!N9),IF($F$7="Provigil",SUMIFS('Split Month Calcs'!$I:$I,'Split Month Calcs'!$A:$A,'TRx Tracker vs AOP'!N9),IF($F$7="Gabitril",SUMIFS('Split Month Calcs'!$H:$H,'Split Month Calcs'!$A:$A,'TRx Tracker vs AOP'!N9),IF($F$7="Actiq",SUMIFS('Split Month Calcs'!$G:$G,'Split Month Calcs'!$A:$A,'TRx Tracker vs AOP'!N9),IF($F$7="Copaxone 40",SUMIFS('Split Month Calcs'!$K:$K,'Split Month Calcs'!$A:$A,'TRx Tracker vs AOP'!N9),IF($F$7="Copaxone 20",SUMIFS('Split Month Calcs'!$J:$J,'Split Month Calcs'!$A:$A,'TRx Tracker vs AOP'!N9),IF($F$7="Azilect",SUMIFS('Split Month Calcs'!$L:$L,'Split Month Calcs'!$A:$A,'TRx Tracker vs AOP'!N9),IF($F$7="Zecuity",SUMIFS('Split Month Calcs'!$M:$M,'Split Month Calcs'!$A:$A,'TRx Tracker vs AOP'!N9))))))))))) -> 0 | O16: =IF($F$7="Nuvigil",SUMIFS('Split Month Calcs'!$D:$D,'Split Month Calcs'!$A:$A,'TRx Tracker vs AOP'!O9),IF($F$7="amrix",SUMIFS('Split Month Calcs'!$E:$E,'Split Month Calcs'!$A:$A,'TRx Tracker vs AOP'!O9),IF($F$7="Fentora",SUMIFS('Split Month Calcs'!$F:$F,'Split Month Calcs'!$A:$A,'TRx Tracker vs AOP'!O9),IF($F$7="Provigil",SUMIFS('Split Month Calcs'!$I:$I,'Split Month Calcs'!$A:$A,'TRx Tracker vs AOP'!O9),IF($F$7="Gabitril",SUMIFS('Split Month Calcs'!$H:$H,'Split Month Calcs'!$A:$A,'TRx Tracker vs AOP'!O9),IF($F$7="Actiq",SUMIFS('Split Month Calcs'!$G:$G,'Split Month Calcs'!$A:$A,'TRx Tracker vs AOP'!O9),IF($F$7="Copaxone 40",SUMIFS('Split Month Calcs'!$K:$K,'Split Month Calcs'!$A:$A,'TRx Tracker vs AOP'!O9),IF($F$7="Copaxone 20",SUMIFS('Split Month Calcs'!$J:$J,'Split Month Calcs'!$A:$A,'TRx Tracker vs AOP'!O9),IF($F$7="Azilect",SUMIFS('Split Month Calcs'!$L:$L,'Split Month Calcs'!$A:$A,'TRx Tracker vs AOP'!O9),IF($F$7="Zecuity",SUMIFS('Split Month Calcs'!$M:$M,'Split Month Calcs'!$A:$A,'TRx Tracker vs AOP'!O9))))))))))) -> 0
C17: % to Plan | D17: =D16/D15 ->  | E17: =E16/E15 -> 
C18: Weeks | D18: =52/12 -> 4.333333333 | E18: =52/12 -> 4.333333333 | F18: 4.333333333 | G18: 4.333333333 | H18: 4.333333333 | I18: 4.333333333 | J18: 4.333333333 | K18: 4.333333333 | L18: 4.333333333 | M18: 4.333333333 | N18: 4.333333333 | O18: 4.333333333
C19: Source: IMS NPA Audit
E21: Month | F21: Week # | G21: Week Ending | H21: Actual TRxs | I21: Goal | J21: Variance
E22: =MONTH(G22) -> 1 | F22: 1 | G22: 2016-01-08 | H22: =IF($F$7="Nuvigil",SUMIFS('IMS Data'!D:D,'IMS Data'!C:C,'TRx Tracker vs LBE'!G:G),IF('TRx Tracker vs LBE'!$F$7="Fentora",SUMIFS('IMS Data'!F:F,'IMS Data'!C:C,'TRx Tracker vs LBE'!G:G),IF('TRx Tracker vs LBE'!$F$7="Amrix",SUMIFS('IMS Data'!E:E,'IMS Data'!C:C,'TRx Tracker vs LBE'!G:G),IF('TRx Tracker vs LBE'!$F$7="Provigil",SUMIFS('IMS Data'!I:I,'IMS Data'!C:C,'TRx Tracker vs LBE'!G:G),IF('TRx Tracker vs LBE'!$F$7="Gabitril",SUMIFS('IMS Data'!H:H,'IMS Data'!C:C,'TRx Tracker vs LBE'!G:G),IF('TRx Tracker vs LBE'!$F$7="Actiq",SUMIFS('IMS Data'!G:G,'IMS Data'!C:C,'TRx Tracker vs LBE'!G:G),IF($F$7="Copaxone 20",SUMIFS('IMS Data'!J:J,'IMS Data'!C:C,'TRx Tracker vs AOP'!G:G),IF($F$7="Copaxone 40",SUMIFS('IMS Data'!K:K,'IMS Data'!C:C,'TRx Tracker vs AOP'!G:G),IF($F$7="Azilect",SUMIFS('IMS Data'!L:L,'IMS Data'!C:C,'TRx Tracker vs LBE'!G:G),IF($F$7="Zecuity",SUMIFS('IMS Data'!M:M,'IMS Data'!C:C,'TRx Tracker vs AOP'!G:G))))))))))) -> 0 | I22: =IF($F$7="Zecuity",SUMIFS('Zecuity Weekly Forecast'!D:D,'Zecuity Weekly Forecast'!A:A,'TRx Tracker vs LBE'!G:G),IF($F$7="Nuvigil",SUMIFS('NUVIGIL Goals'!$D:$D,'NUVIGIL Goals'!$B:$B,'TRx Tracker vs LBE'!$F:$F),SUMIFS($15:$15,$9:$9,$E:$E)/SUMIFS($18:$18,$9:$9,$E:$E))) -> 1356.943245 | J22: =H22-I22 -> -1356.943245
E23: =MONTH(G23) -> 1 | F23: 2 | G23: =G22+7 -> 2016-01-15 | H23: =IF($F$7="Nuvigil",SUMIFS('IMS Data'!D:D,'IMS Data'!C:C,'TRx Tracker vs LBE'!G:G),IF('TRx Tracker vs LBE'!$F$7="Fentora",SUMIFS('IMS Data'!F:F,'IMS Data'!C:C,'TRx Tracker vs LBE'!G:G),IF('TRx Tracker vs LBE'!$F$7="Amrix",SUMIFS('IMS Data'!E:E,'IMS Data'!C:C,'TRx Tracker vs LBE'!G:G),IF('TRx Tracker vs LBE'!$F$7="Provigil",SUMIFS('IMS Data'!I:I,'IMS Data'!C:C,'TRx Tracker vs LBE'!G:G),IF('TRx Tracker vs LBE'!$F$7="Gabitril",SUMIFS('IMS Data'!H:H,'IMS Data'!C:C,'TRx Tracker vs LBE'!G:G),IF('TRx Tracker vs LBE'!$F$7="Actiq",SUMIFS('IMS Data'!G:G,'IMS Data'!C:C,'TRx Tracker vs LBE'!G:G),IF($F$7="Copaxone 20",SUMIFS('IMS Data'!J:J,'IMS Data'!C:C,'TRx Tracker vs AOP'!G:G),IF($F$7="Copaxone 40",SUMIFS('IMS Data'!K:K,'IMS Data'!C:C,'TRx Tracker vs AOP'!G:G),IF($F$7="Azilect",SUMIFS('IMS Data'!L:L,'IMS Data'!C:C,'TRx Tracker vs LBE'!G:G),IF($F$7="Zecuity",SUMIFS('IMS Data'!M:M,'IMS Data'!C:C,'TRx Tracker vs AOP'!G:G))))))))))) -> 0 | I23: =IF($F$7="Zecuity",SUMIFS('Zecuity Weekly Forecast'!D:D,'Zecuity Weekly Forecast'!A:A,'TRx Tracker vs LBE'!G:G),IF($F$7="Nuvigil",SUMIFS('NUVIGIL Goals'!$D:$D,'NUVIGIL Goals'!$B:$B,'TRx Tracker vs LBE'!$F:$F),SUMIFS($15:$15,$9:$9,$E:$E)/SUMIFS($18:$18,$9:$9,$E:$E))) -> 1273.379146 | J23: =H23-I23 -> -1273.379146
E24: 1 | F24: 3 | G24: =G23+7 -> 2016-01-22 | H24: =IF($F$7="Nuvigil",SUMIFS('IMS Data'!D:D,'IMS Data'!C:C,'TRx Tracker vs LBE'!G:G),IF('TRx Tracker vs LBE'!$F$7="Fentora",SUMIFS('IMS Data'!F:F,'IMS Data'!C:C,'TRx Tracker vs LBE'!G:G),IF('TRx Tracker vs LBE'!$F$7="Amrix",SUMIFS('IMS Data'!E:E,'IMS Data'!C:C,'TRx Tracker vs LBE'!G:G),IF('TRx Tracker vs LBE'!$F$7="Provigil",SUMIFS('IMS Data'!I:I,'IMS Data'!C:C,'TRx Tracker vs LBE'!G:G),IF('TRx Tracker vs LBE'!$F$7="Gabitril",SUMIFS('IMS Data'!H:H,'IMS Data'!C:C,'TRx Tracker vs LBE'!G:G),IF('TRx Tracker vs LBE'!$F$7="Actiq",SUMIFS('IMS Data'!G:G,'IMS Data'!C:C,'TRx Tracker vs LBE'!G:G),IF($F$7="Copaxone 20",SUMIFS('IMS Data'!J:J,'IMS Data'!C:C,'TRx Tracker vs AOP'!G:G),IF($F$7="Copaxone 40",SUMIFS('IMS Data'!K:K,'IMS Data'!C:C,'TRx Tracker vs AOP'!G:G),IF($F$7="Azilect",SUMIFS('IMS Data'!L:L,'IMS Data'!C:C,'TRx Tracker vs LBE'!G:G),IF($F$7="Zecuity",SUMIFS('IMS Data'!M:M,'IMS Data'!C:C,'TRx Tracker vs AOP'!G:G))))))))))) -> 0 | I24: =IF($F$7="Zecuity",SUMIFS('Zecuity Weekly Forecast'!D:D,'Zecuity Weekly Forecast'!A:A,'TRx Tracker vs LBE'!G:G),IF($F$7="Nuvigil",SUMIFS('NUVIGIL Goals'!$D:$D,'NUVIGIL Goals'!$B:$B,'TRx Tracker vs LBE'!$F:$F),SUMIFS($15:$15,$9:$9,$E:$E)/SUMIFS($18:$18,$9:$9,$E:$E))) -> 1189.132858 | J24: -1189.132858
E25: 1 | F25: 4 | G25: 2016-01-29 | H25: =IF($F$7="Nuvigil",SUMIFS('IMS Data'!D:D,'IMS Data'!C:C,'TRx Tracker vs LBE'!G:G),IF('TRx Tracker vs LBE'!$F$7="Fentora",SUMIFS('IMS Data'!F:F,'IMS Data'!C:C,'TRx Tracker vs LBE'!G:G),IF('TRx Tracker vs LBE'!$F$7="Amrix",SUMIFS('IMS Data'!E:E,'IMS Data'!C:C,'TRx Tracker vs LBE'!G:G),IF('TRx Tracker vs LBE'!$F$7="Provigil",SUMIFS('IMS Data'!I:I,'IMS Data'!C:C,'TRx Tracker vs LBE'!G:G),IF('TRx Tracker vs LBE'!$F$7="Gabitril",SUMIFS('IMS Data'!H:H,'IMS Data'!C:C,'TRx Tracker vs LBE'!G:G),IF('TRx Tracker vs LBE'!$F$7="Actiq",SUMIFS('IMS Data'!G:G,'IMS Data'!C:C,'TRx Tracker vs LBE'!G:G),IF($F$7="Copaxone 20",SUMIFS('IMS Data'!J:J,'IMS Data'!C:C,'TRx Tracker vs AOP'!G:G),IF($F$7="Copaxone 40",SUMIFS('IMS Data'!K:K,'IMS Data'!C:C,'TRx Tracker vs AOP'!G:G),IF($F$7="Azilect",SUMIFS('IMS Data'!L:L,'IMS Data'!C:C,'TRx Tracker vs LBE'!G:G),IF($F$7="Zecuity",SUMIFS('IMS Data'!M:M,'IMS Data'!C:C,'TRx Tracker vs AOP'!G:G))))))))))) -> 0 | I25: =IF($F$7="Zecuity",SUMIFS('Zecuity Weekly Forecast'!D:D,'Zecuity Weekly Forecast'!A:A,'TRx Tracker vs LBE'!G:G),IF($F$7="Nuvigil",SUMIFS('NUVIGIL Goals'!$D:$D,'NUVIGIL Goals'!$B:$B,'TRx Tracker vs LBE'!$F:$F),SUMIFS($15:$15,$9:$9,$E:$E)/SUMIFS($18:$18,$9:$9,$E:$E))) -> 1108.298225 | J25: -1108.298225
E26: 2 | F26: 5 | G26: 2016-02-05 | H26: =IF($F$7="Nuvigil",SUMIFS('IMS Data'!D:D,'IMS Data'!C:C,'TRx Tracker vs LBE'!G:G),IF('TRx Tracker vs LBE'!$F$7="Fentora",SUMIFS('IMS Data'!F:F,'IMS Data'!C:C,'TRx Tracker vs LBE'!G:G),IF('TRx Tracker vs LBE'!$F$7="Amrix",SUMIFS('IMS Data'!E:E,'IMS Data'!C:C,'TRx Tracker vs LBE'!G:G),IF('TRx Tracker vs LBE'!$F$7="Provigil",SUMIFS('IMS Data'!I:I,'IMS Data'!C:C,'TRx Tracker vs LBE'!G:G),IF('TRx Tracker vs LBE'!$F$7="Gabitril",SUMIFS('IMS Data'!H:H,'IMS Data'!C:C,'TRx Tracker vs LBE'!G:G),IF('TRx Tracker vs LBE'!$F$7="Actiq",SUMIFS('IMS Data'!G:G,'IMS Data'!C:C,'TRx Tracker vs LBE'!G:G),IF($F$7="Copaxone 20",SUMIFS('IMS Data'!J:J,'IMS Data'!C:C,'TRx Tracker vs AOP'!G:G),IF($F$7="Copaxone 40",SUMIFS('IMS Data'!K:K,'IMS Data'!C:C,'TRx Tracker vs AOP'!G:G),IF($F$7="Azilect",SUMIFS('IMS Data'!L:L,'IMS Data'!C:C,'TRx Tracker vs LBE'!G:G),IF($F$7="Zecuity",SUMIFS('IMS Data'!M:M,'IMS Data'!C:C,'TRx Tracker vs AOP'!G:G))))))))))) -> 0 | I26: =IF($F$7="Zecuity",SUMIFS('Zecuity Weekly Forecast'!D:D,'Zecuity Weekly Forecast'!A:A,'TRx Tracker vs LBE'!G:G),IF($F$7="Nuvigil",SUMIFS('NUVIGIL Goals'!$D:$D,'NUVIGIL Goals'!$B:$B,'TRx Tracker vs LBE'!$F:$F),SUMIFS($15:$15,$9:$9,$E:$E)/SUMIFS($18:$18,$9:$9,$E:$E))) -> 1034.969148 | J26: -1034.969148
E27: 2 | F27: 6 | G27: 2016-02-12 | H27: =IF($F$7="Nuvigil",SUMIFS('IMS Data'!D:D,'IMS Data'!C:C,'TRx Tracker vs LBE'!G:G),IF('TRx Tracker vs LBE'!$F$7="Fentora",SUMIFS('IMS Data'!F:F,'IMS Data'!C:C,'TRx Tracker vs LBE'!G:G),IF('TRx Tracker vs LBE'!$F$7="Amrix",SUMIFS('IMS Data'!E:E,'IMS Data'!C:C,'TRx Tracker vs LBE'!G:G),IF('TRx Tracker vs LBE'!$F$7="Provigil",SUMIFS('IMS Data'!I:I,'IMS Data'!C:C,'TRx Tracker vs LBE'!G:G),IF('TRx Tracker vs LBE'!$F$7="Gabitril",SUMIFS('IMS Data'!H:H,'IMS Data'!C:C,'TRx Tracker vs LBE'!G:G),IF('TRx Tracker vs LBE'!$F$7="Actiq",SUMIFS('IMS Data'!G:G,'IMS Data'!C:C,'TRx Tracker vs LBE'!G:G),IF($F$7="Copaxone 20",SUMIFS('IMS Data'!J:J,'IMS Data'!C:C,'TRx Tracker vs AOP'!G:G),IF($F$7="Copaxone 40",SUMIFS('IMS Data'!K:K,'IMS Data'!C:C,'TRx Tracker vs AOP'!G:G),IF($F$7="Azilect",SUMIFS('IMS Data'!L:L,'IMS Data'!C:C,'TRx Tracker vs LBE'!G:G),IF($F$7="Zecuity",SUMIFS('IMS Data'!M:M,'IMS Data'!C:C,'TRx Tracker vs AOP'!G:G))))))))))) -> 0 | I27: =IF($F$7="Zecuity",SUMIFS('Zecuity Weekly Forecast'!D:D,'Zecuity Weekly Forecast'!A:A,'TRx Tracker vs LBE'!G:G),IF($F$7="Nuvigil",SUMIFS('NUVIGIL Goals'!$D:$D,'NUVIGIL Goals'!$B:$B,'TRx Tracker vs LBE'!$F:$F),SUMIFS($15:$15,$9:$9,$E:$E)/SUMIFS($18:$18,$9:$9,$E:$E))) -> 973.2395297 | J27: -973.2395297
E28: 2 | F28: 7 | G28: 2016-02-19 | H28: =IF($F$7="Nuvigil",SUMIFS('IMS Data'!D:D,'IMS Data'!C:C,'TRx Tracker vs LBE'!G:G),IF('TRx Tracker vs LBE'!$F$7="Fentora",SUMIFS('IMS Data'!F:F,'IMS Data'!C:C,'TRx Tracker vs LBE'!G:G),IF('TRx Tracker vs LBE'!$F$7="Amrix",SUMIFS('IMS Data'!E:E,'IMS Data'!C:C,'TRx Tracker vs LBE'!G:G),IF('TRx Tracker vs LBE'!$F$7="Provigil",SUMIFS('IMS Data'!I:I,'IMS Data'!C:C,'TRx Tracker vs LBE'!G:G),IF('TRx Tracker vs LBE'!$F$7="Gabitril",SUMIFS('IMS Data'!H:H,'IMS Data'!C:C,'TRx Tracker vs LBE'!G:G),IF('TRx Tracker vs LBE'!$F$7="Actiq",SUMIFS('IMS Data'!G:G,'IMS Data'!C:C,'TRx Tracker vs LBE'!G:G),IF($F$7="Copaxone 20",SUMIFS('IMS Data'!J:J,'IMS Data'!C:C,'TRx Tracker vs AOP'!G:G),IF($F$7="Copaxone 40",SUMIFS('IMS Data'!K:K,'IMS Data'!C:C,'TRx Tracker vs AOP'!G:G),IF($F$7="Azilect",SUMIFS('IMS Data'!L:L,'IMS Data'!C:C,'TRx Tracker vs LBE'!G:G),IF($F$7="Zecuity",SUMIFS('IMS Data'!M:M,'IMS Data'!C:C,'TRx Tracker vs AOP'!G:G))))))))))) -> 0 | I28: =IF($F$7="Zecuity",SUMIFS('Zecuity Weekly Forecast'!D:D,'Zecuity Weekly Forecast'!A:A,'TRx Tracker vs LBE'!G:G),IF($F$7="Nuvigil",SUMIFS('NUVIGIL Goals'!$D:$D,'NUVIGIL Goals'!$B:$B,'TRx Tracker vs LBE'!$F:$F),SUMIFS($15:$15,$9:$9,$E:$E)/SUMIFS($18:$18,$9:$9,$E:$E))) -> 926.9969637 | J28: -926.9969637
E29: 2 | F29: 8 | G29: 2016-02-26 | H29: =IF($F$7="Nuvigil",SUMIFS('IMS Data'!D:D,'IMS Data'!C:C,'TRx Tracker vs LBE'!G:G),IF('TRx Tracker vs LBE'!$F$7="Fentora",SUMIFS('IMS Data'!F:F,'IMS Data'!C:C,'TRx Tracker vs LBE'!G:G),IF('TRx Tracker vs LBE'!$F$7="Amrix",SUMIFS('IMS Data'!E:E,'IMS Data'!C:C,'TRx Tracker vs LBE'!G:G),IF('TRx Tracker vs LBE'!$F$7="Provigil",SUMIFS('IMS Data'!I:I,'IMS Data'!C:C,'TRx Tracker vs LBE'!G:G),IF('TRx Tracker vs LBE'!$F$7="Gabitril",SUMIFS('IMS Data'!H:H,'IMS Data'!C:C,'TRx Tracker vs LBE'!G:G),IF('TRx Tracker vs LBE'!$F$7="Actiq",SUMIFS('IMS Data'!G:G,'IMS Data'!C:C,'TRx Tracker vs LBE'!G:G),IF($F$7="Copaxone 20",SUMIFS('IMS Data'!J:J,'IMS Data'!C:C,'TRx Tracker vs AOP'!G:G),IF($F$7="Copaxone 40",SUMIFS('IMS Data'!K:K,'IMS Data'!C:C,'TRx Tracker vs AOP'!G:G),IF($F$7="Azilect",SUMIFS('IMS Data'!L:L,'IMS Data'!C:C,'TRx Tracker vs LBE'!G:G),IF($F$7="Zecuity",SUMIFS('IMS Data'!M:M,'IMS Data'!C:C,'TRx Tracker vs AOP'!G:G))))))))))) -> 0 | I29: =IF($F$7="Zecuity",SUMIFS('Zecuity Weekly Forecast'!D:D,'Zecuity Weekly Forecast'!A:A,'TRx Tracker vs LBE'!G:G),IF($F$7="Nuvigil",SUMIFS('NUVIGIL Goals'!$D:$D,'NUVIGIL Goals'!$B:$B,'TRx Tracker vs LBE'!$F:$F),SUMIFS($15:$15,$9:$9,$E:$E)/SUMIFS($18:$18,$9:$9,$E:$E))) -> 895.3857611 | J29: -895.3857611
E30: 3 | F30: 9 | G30: 2016-03-04 | H30: =IF($F$7="Nuvigil",SUMIFS('IMS Data'!D:D,'IMS Data'!C:C,'TRx Tracker vs LBE'!G:G),IF('TRx Tracker vs LBE'!$F$7="Fentora",SUMIFS('IMS Data'!F:F,'IMS Data'!C:C,'TRx Tracker vs LBE'!G:G),IF('TRx Tracker vs LBE'!$F$7="Amrix",SUMIFS('IMS Data'!E:E,'IMS Data'!C:C,'TRx Tracker vs LBE'!G:G),IF('TRx Tracker vs LBE'!$F$7="Provigil",SUMIFS('IMS Data'!I:I,'IMS Data'!C:C,'TRx Tracker vs LBE'!G:G),IF('TRx Tracker vs LBE'!$F$7="Gabitril",SUMIFS('IMS Data'!H:H,'IMS Data'!C:C,'TRx Tracker vs LBE'!G:G),IF('TRx Tracker vs LBE'!$F$7="Actiq",SUMIFS('IMS Data'!G:G,'IMS Data'!C:C,'TRx Tracker vs LBE'!G:G),IF($F$7="Copaxone 20",SUMIFS('IMS Data'!J:J,'IMS Data'!C:C,'TRx Tracker vs AOP'!G:G),IF($F$7="Copaxone 40",SUMIFS('IMS Data'!K:K,'IMS Data'!C:C,'TRx Tracker vs AOP'!G:G),IF($F$7="Azilect",SUMIFS('IMS Data'!L:L,'IMS Data'!C:C,'TRx Tracker vs LBE'!G:G),IF($F$7="Zecuity",SUMIFS('IMS Data'!M:M,'IMS Data'!C:C,'TRx Tracker vs AOP'!G:G))))))))))) -> 0 | I30: =IF($F$7="Zecuity",SUMIFS('Zecuity Weekly Forecast'!D:D,'Zecuity Weekly Forecast'!A:A,'TRx Tracker vs LBE'!G:G),IF($F$7="Nuvigil",SUMIFS('NUVIGIL Goals'!$D:$D,'NUVIGIL Goals'!$B:$B,'TRx Tracker vs LBE'!$F:$F),SUMIFS($15:$15,$9:$9,$E:$E)/SUMIFS($18:$18,$9:$9,$E:$E))) -> 872.8067332 | J30: -872.8067332
E31: 3 | F31: 10 | G31: 2016-03-11 | H31: =IF($F$7="Nuvigil",SUMIFS('IMS Data'!D:D,'IMS Data'!C:C,'TRx Tracker vs LBE'!G:G),IF('TRx Tracker vs LBE'!$F$7="Fentora",SUMIFS('IMS Data'!F:F,'IMS Data'!C:C,'TRx Tracker vs LBE'!G:G),IF('TRx Tracker vs LBE'!$F$7="Amrix",SUMIFS('IMS Data'!E:E,'IMS Data'!C:C,'TRx Tracker vs LBE'!G:G),IF('TRx Tracker vs LBE'!$F$7="Provigil",SUMIFS('IMS Data'!I:I,'IMS Data'!C:C,'TRx Tracker vs LBE'!G:G),IF('TRx Tracker vs LBE'!$F$7="Gabitril",SUMIFS('IMS Data'!H:H,'IMS Data'!C:C,'TRx Tracker vs LBE'!G:G),IF('TRx Tracker vs LBE'!$F$7="Actiq",SUMIFS('IMS Data'!G:G,'IMS Data'!C:C,'TRx Tracker vs LBE'!G:G),IF($F$7="Copaxone 20",SUMIFS('IMS Data'!J:J,'IMS Data'!C:C,'TRx Tracker vs AOP'!G:G),IF($F$7="Copaxone 40",SUMIFS('IMS Data'!K:K,'IMS Data'!C:C,'TRx Tracker vs AOP'!G:G),IF($F$7="Azilect",SUMIFS('IMS Data'!L:L,'IMS Data'!C:C,'TRx Tracker vs LBE'!G:G),IF($F$7="Zecuity",SUMIFS('IMS Data'!M:M,'IMS Data'!C:C,'TRx Tracker vs AOP'!G:G))))))))))) -> 0 | I31: =IF($F$7="Zecuity",SUMIFS('Zecuity Weekly Forecast'!D:D,'Zecuity Weekly Forecast'!A:A,'TRx Tracker vs LBE'!G:G),IF($F$7="Nuvigil",SUMIFS('NUVIGIL Goals'!$D:$D,'NUVIGIL Goals'!$B:$B,'TRx Tracker vs LBE'!$F:$F),SUMIFS($15:$15,$9:$9,$E:$E)/SUMIFS($18:$18,$9:$9,$E:$E))) -> 853.4546304 | J31: -853.4546304
E32: 3 | F32: 11 | G32: 2016-03-18 | H32: =IF($F$7="Nuvigil",SUMIFS('IMS Data'!D:D,'IMS Data'!C:C,'TRx Tracker vs LBE'!G:G),IF('TRx Tracker vs LBE'!$F$7="Fentora",SUMIFS('IMS Data'!F:F,'IMS Data'!C:C,'TRx Tracker vs LBE'!G:G),IF('TRx Tracker vs LBE'!$F$7="Amrix",SUMIFS('IMS Data'!E:E,'IMS Data'!C:C,'TRx Tracker vs LBE'!G:G),IF('TRx Tracker vs LBE'!$F$7="Provigil",SUMIFS('IMS Data'!I:I,'IMS Data'!C:C,'TRx Tracker vs LBE'!G:G),IF('TRx Tracker vs LBE'!$F$7="Gabitril",SUMIFS('IMS Data'!H:H,'IMS Data'!C:C,'TRx Tracker vs LBE'!G:G),IF('TRx Tracker vs LBE'!$F$7="Actiq",SUMIFS('IMS Data'!G:G,'IMS Data'!C:C,'TRx Tracker vs LBE'!G:G),IF($F$7="Copaxone 20",SUMIFS('IMS Data'!J:J,'IMS Data'!C:C,'TRx Tracker vs AOP'!G:G),IF($F$7="Copaxone 40",SUMIFS('IMS Data'!K:K,'IMS Data'!C:C,'TRx Tracker vs AOP'!G:G),IF($F$7="Azilect",SUMIFS('IMS Data'!L:L,'IMS Data'!C:C,'TRx Tracker vs LBE'!G:G),IF($F$7="Zecuity",SUMIFS('IMS Data'!M:M,'IMS Data'!C:C,'TRx Tracker vs AOP'!G:G))))))))))) -> 0 | I32: =IF($F$7="Zecuity",SUMIFS('Zecuity Weekly Forecast'!D:D,'Zecuity Weekly Forecast'!A:A,'TRx Tracker vs LBE'!G:G),IF($F$7="Nuvigil",SUMIFS('NUVIGIL Goals'!$D:$D,'NUVIGIL Goals'!$B:$B,'TRx Tracker vs LBE'!$F:$F),SUMIFS($15:$15,$9:$9,$E:$E)/SUMIFS($18:$18,$9:$9,$E:$E))) -> 831.53214 | J32: -831.53214
E33: 3 | F33: 12 | G33: 2016-03-25 | H33: =IF($F$7="Nuvigil",SUMIFS('IMS Data'!D:D,'IMS Data'!C:C,'TRx Tracker vs LBE'!G:G),IF('TRx Tracker vs LBE'!$F$7="Fentora",SUMIFS('IMS Data'!F:F,'IMS Data'!C:C,'TRx Tracker vs LBE'!G:G),IF('TRx Tracker vs LBE'!$F$7="Amrix",SUMIFS('IMS Data'!E:E,'IMS Data'!C:C,'TRx Tracker vs LBE'!G:G),IF('TRx Tracker vs LBE'!$F$7="Provigil",SUMIFS('IMS Data'!I:I,'IMS Data'!C:C,'TRx Tracker vs LBE'!G:G),IF('TRx Tracker vs LBE'!$F$7="Gabitril",SUMIFS('IMS Data'!H:H,'IMS Data'!C:C,'TRx Tracker vs LBE'!G:G),IF('TRx Tracker vs LBE'!$F$7="Actiq",SUMIFS('IMS Data'!G:G,'IMS Data'!C:C,'TRx Tracker vs LBE'!G:G),IF($F$7="Copaxone 20",SUMIFS('IMS Data'!J:J,'IMS Data'!C:C,'TRx Tracker vs AOP'!G:G),IF($F$7="Copaxone 40",SUMIFS('IMS Data'!K:K,'IMS Data'!C:C,'TRx Tracker vs AOP'!G:G),IF($F$7="Azilect",SUMIFS('IMS Data'!L:L,'IMS Data'!C:C,'TRx Tracker vs LBE'!G:G),IF($F$7="Zecuity",SUMIFS('IMS Data'!M:M,'IMS Data'!C:C,'TRx Tracker vs AOP'!G:G))))))))))) -> 0 | I33: =IF($F$7="Zecuity",SUMIFS('Zecuity Weekly Forecast'!D:D,'Zecuity Weekly Forecast'!A:A,'TRx Tracker vs LBE'!G:G),IF($F$7="Nuvigil",SUMIFS('NUVIGIL Goals'!$D:$D,'NUVIGIL Goals'!$B:$B,'TRx Tracker vs LBE'!$F:$F),SUMIFS($15:$15,$9:$9,$E:$E)/SUMIFS($18:$18,$9:$9,$E:$E))) -> 803.9512263 | J33: -803.9512263
E34: 4 | F34: 13 | G34: 2016-04-01 | H34: =IF($F$7="Nuvigil",SUMIFS('IMS Data'!D:D,'IMS Data'!C:C,'TRx Tracker vs LBE'!G:G),IF('TRx Tracker vs LBE'!$F$7="Fentora",SUMIFS('IMS Data'!F:F,'IMS Data'!C:C,'TRx Tracker vs LBE'!G:G),IF('TRx Tracker vs LBE'!$F$7="Amrix",SUMIFS('IMS Data'!E:E,'IMS Data'!C:C,'TRx Tracker vs LBE'!G:G),IF('TRx Tracker vs LBE'!$F$7="Provigil",SUMIFS('IMS Data'!I:I,'IMS Data'!C:C,'TRx Tracker vs LBE'!G:G),IF('TRx Tracker vs LBE'!$F$7="Gabitril",SUMIFS('IMS Data'!H:H,'IMS Data'!C:C,'TRx Tracker vs LBE'!G:G),IF('TRx Tracker vs LBE'!$F$7="Actiq",SUMIFS('IMS Data'!G:G,'IMS Data'!C:C,'TRx Tracker vs LBE'!G:G),IF($F$7="Copaxone 20",SUMIFS('IMS Data'!J:J,'IMS Data'!C:C,'TRx Tracker vs AOP'!G:G),IF($F$7="Copaxone 40",SUMIFS('IMS Data'!K:K,'IMS Data'!C:C,'TRx Tracker vs AOP'!G:G),IF($F$7="Azilect",SUMIFS('IMS Data'!L:L,'IMS Data'!C:C,'TRx Tracker vs LBE'!G:G),IF($F$7="Zecuity",SUMIFS('IMS Data'!M:M,'IMS Data'!C:C,'TRx Tracker vs AOP'!G:G))))))))))) -> 0 | I34: =IF($F$7="Zecuity",SUMIFS('Zecuity Weekly Forecast'!D:D,'Zecuity Weekly Forecast'!A:A,'TRx Tracker vs LBE'!G:G),IF($F$7="Nuvigil",SUMIFS('NUVIGIL Goals'!$D:$D,'NUVIGIL Goals'!$B:$B,'TRx Tracker vs LBE'!$F:$F),SUMIFS($15:$15,$9:$9,$E:$E)/SUMIFS($18:$18,$9:$9,$E:$E))) -> 774.2650289 | J34: -774.2650289
E35: 4 | F35: 14 | G35: 2016-04-08 | H35: =IF($F$7="Nuvigil",SUMIFS('IMS Data'!D:D,'IMS Data'!C:C,'TRx Tracker vs LBE'!G:G),IF('TRx Tracker vs LBE'!$F$7="Fentora",SUMIFS('IMS Data'!F:F,'IMS Data'!C:C,'TRx Tracker vs LBE'!G:G),IF('TRx Tracker vs LBE'!$F$7="Amrix",SUMIFS('IMS Data'!E:E,'IMS Data'!C:C,'TRx Tracker vs LBE'!G:G),IF('TRx Tracker vs LBE'!$F$7="Provigil",SUMIFS('IMS Data'!I:I,'IMS Data'!C:C,'TRx Tracker vs LBE'!G:G),IF('TRx Tracker vs LBE'!$F$7="Gabitril",SUMIFS('IMS Data'!H:H,'IMS Data'!C:C,'TRx Tracker vs LBE'!G:G),IF('TRx Tracker vs LBE'!$F$7="Actiq",SUMIFS('IMS Data'!G:G,'IMS Data'!C:C,'TRx Tracker vs LBE'!G:G),IF($F$7="Copaxone 20",SUMIFS('IMS Data'!J:J,'IMS Data'!C:C,'TRx Tracker vs AOP'!G:G),IF($F$7="Copaxone 40",SUMIFS('IMS Data'!K:K,'IMS Data'!C:C,'TRx Tracker vs AOP'!G:G),IF($F$7="Azilect",SUMIFS('IMS Data'!L:L,'IMS Data'!C:C,'TRx Tracker vs LBE'!G:G),IF($F$7="Zecuity",SUMIFS('IMS Data'!M:M,'IMS Data'!C:C,'TRx Tracker vs AOP'!G:G))))))))))) -> 0 | I35: =IF($F$7="Zecuity",SUMIFS('Zecuity Weekly Forecast'!D:D,'Zecuity Weekly Forecast'!A:A,'TRx Tracker vs LBE'!G:G),IF($F$7="Nuvigil",SUMIFS('NUVIGIL Goals'!$D:$D,'NUVIGIL Goals'!$B:$B,'TRx Tracker vs LBE'!$F:$F),SUMIFS($15:$15,$9:$9,$E:$E)/SUMIFS($18:$18,$9:$9,$E:$E))) -> 747.0253938 | J35: -747.0253938
E36: 4 | F36: 15 | G36: 2016-04-15 | H36: =IF($F$7="Nuvigil",SUMIFS('IMS Data'!D:D,'IMS Data'!C:C,'TRx Tracker vs LBE'!G:G),IF('TRx Tracker vs LBE'!$F$7="Fentora",SUMIFS('IMS Data'!F:F,'IMS Data'!C:C,'TRx Tracker vs LBE'!G:G),IF('TRx Tracker vs LBE'!$F$7="Amrix",SUMIFS('IMS Data'!E:E,'IMS Data'!C:C,'TRx Tracker vs LBE'!G:G),IF('TRx Tracker vs LBE'!$F$7="Provigil",SUMIFS('IMS Data'!I:I,'IMS Data'!C:C,'TRx Tracker vs LBE'!G:G),IF('TRx Tracker vs LBE'!$F$7="Gabitril",SUMIFS('IMS Data'!H:H,'IMS Data'!C:C,'TRx Tracker vs LBE'!G:G),IF('TRx Tracker vs LBE'!$F$7="Actiq",SUMIFS('IMS Data'!G:G,'IMS Data'!C:C,'TRx Tracker vs LBE'!G:G),IF($F$7="Copaxone 20",SUMIFS('IMS Data'!J:J,'IMS Data'!C:C,'TRx Tracker vs AOP'!G:G),IF($F$7="Copaxone 40",SUMIFS('IMS Data'!K:K,'IMS Data'!C:C,'TRx Tracker vs AOP'!G:G),IF($F$7="Azilect",SUMIFS('IMS Data'!L:L,'IMS Data'!C:C,'TRx Tracker vs LBE'!G:G),IF($F$7="Zecuity",SUMIFS('IMS Data'!M:M,'IMS Data'!C:C,'TRx Tracker vs AOP'!G:G))))))))))) -> 0 | I36: =IF($F$7="Zecuity",SUMIFS('Zecuity Weekly Forecast'!D:D,'Zecuity Weekly Forecast'!A:A,'TRx Tracker vs LBE'!G:G),IF($F$7="Nuvigil",SUMIFS('NUVIGIL Goals'!$D:$D,'NUVIGIL Goals'!$B:$B,'TRx Tracker vs LBE'!$F:$F),SUMIFS($15:$15,$9:$9,$E:$E)/SUMIFS($18:$18,$9:$9,$E:$E))) -> 726.7843249 | J36: -726.7843249
E37: 4 | F37: 16 | G37: 2016-04-22 | H37: =IF($F$7="Nuvigil",SUMIFS('IMS Data'!D:D,'IMS Data'!C:C,'TRx Tracker vs LBE'!G:G),IF('TRx Tracker vs LBE'!$F$7="Fentora",SUMIFS('IMS Data'!F:F,'IMS Data'!C:C,'TRx Tracker vs LBE'!G:G),IF('TRx Tracker vs LBE'!$F$7="Amrix",SUMIFS('IMS Data'!E:E,'IMS Data'!C:C,'TRx Tracker vs LBE'!G:G),IF('TRx Tracker vs LBE'!$F$7="Provigil",SUMIFS('IMS Data'!I:I,'IMS Data'!C:C,'TRx Tracker vs LBE'!G:G),IF('TRx Tracker vs LBE'!$F$7="Gabitril",SUMIFS('IMS Data'!H:H,'IMS Data'!C:C,'TRx Tracker vs LBE'!G:G),IF('TRx Tracker vs LBE'!$F$7="Actiq",SUMIFS('IMS Data'!G:G,'IMS Data'!C:C,'TRx Tracker vs LBE'!G:G),IF($F$7="Copaxone 20",SUMIFS('IMS Data'!J:J,'IMS Data'!C:C,'TRx Tracker vs AOP'!G:G),IF($F$7="Copaxone 40",SUMIFS('IMS Data'!K:K,'IMS Data'!C:C,'TRx Tracker vs AOP'!G:G),IF($F$7="Azilect",SUMIFS('IMS Data'!L:L,'IMS Data'!C:C,'TRx Tracker vs LBE'!G:G),IF($F$7="Zecuity",SUMIFS('IMS Data'!M:M,'IMS Data'!C:C,'TRx Tracker vs AOP'!G:G))))))))))) -> 0 | I37: =IF($F$7="Zecuity",SUMIFS('Zecuity Weekly Forecast'!D:D,'Zecuity Weekly Forecast'!A:A,'TRx Tracker vs LBE'!G:G),IF($F$7="Nuvigil",SUMIFS('NUVIGIL Goals'!$D:$D,'NUVIGIL Goals'!$B:$B,'TRx Tracker vs LBE'!$F:$F),SUMIFS($15:$15,$9:$9,$E:$E)/SUMIFS($18:$18,$9:$9,$E:$E))) -> 717.3327329 | J37: -717.3327329
E38: 4 | F38: 17 | G38: 2016-04-29 | H38: =IF($F$7="Nuvigil",SUMIFS('IMS Data'!D:D,'IMS Data'!C:C,'TRx Tracker vs LBE'!G:G),IF('TRx Tracker vs LBE'!$F$7="Fentora",SUMIFS('IMS Data'!F:F,'IMS Data'!C:C,'TRx Tracker vs LBE'!G:G),IF('TRx Tracker vs LBE'!$F$7="Amrix",SUMIFS('IMS Data'!E:E,'IMS Data'!C:C,'TRx Tracker vs LBE'!G:G),IF('TRx Tracker vs LBE'!$F$7="Provigil",SUMIFS('IMS Data'!I:I,'IMS Data'!C:C,'TRx Tracker vs LBE'!G:G),IF('TRx Tracker vs LBE'!$F$7="Gabitril",SUMIFS('IMS Data'!H:H,'IMS Data'!C:C,'TRx Tracker vs LBE'!G:G),IF('TRx Tracker vs LBE'!$F$7="Actiq",SUMIFS('IMS Data'!G:G,'IMS Data'!C:C,'TRx Tracker vs LBE'!G:G),IF($F$7="Copaxone 20",SUMIFS('IMS Data'!J:J,'IMS Data'!C:C,'TRx Tracker vs AOP'!G:G),IF($F$7="Copaxone 40",SUMIFS('IMS Data'!K:K,'IMS Data'!C:C,'TRx Tracker vs AOP'!G:G),IF($F$7="Azilect",SUMIFS('IMS Data'!L:L,'IMS Data'!C:C,'TRx Tracker vs LBE'!G:G),IF($F$7="Zecuity",SUMIFS('IMS Data'!M:M,'IMS Data'!C:C,'TRx Tracker vs AOP'!G:G))))))))))) -> 0 | I38: =IF($F$7="Zecuity",SUMIFS('Zecuity Weekly Forecast'!D:D,'Zecuity Weekly Forecast'!A:A,'TRx Tracker vs LBE'!G:G),IF($F$7="Nuvigil",SUMIFS('NUVIGIL Goals'!$D:$D,'NUVIGIL Goals'!$B:$B,'TRx Tracker vs LBE'!$F:$F),SUMIFS($15:$15,$9:$9,$E:$E)/SUMIFS($18:$18,$9:$9,$E:$E))) -> 717.4020857 | J38: -717.4020857
E39: 5 | F39: 18 | G39: 2016-05-06 | H39: =IF($F$7="Nuvigil",SUMIFS('IMS Data'!D:D,'IMS Data'!C:C,'TRx Tracker vs LBE'!G:G),IF('TRx Tracker vs LBE'!$F$7="Fentora",SUMIFS('IMS Data'!F:F,'IMS Data'!C:C,'TRx Tracker vs LBE'!G:G),IF('TRx Tracker vs LBE'!$F$7="Amrix",SUMIFS('IMS Data'!E:E,'IMS Data'!C:C,'TRx Tracker vs LBE'!G:G),IF('TRx Tracker vs LBE'!$F$7="Provigil",SUMIFS('IMS Data'!I:I,'IMS Data'!C:C,'TRx Tracker vs LBE'!G:G),IF('TRx Tracker vs LBE'!$F$7="Gabitril",SUMIFS('IMS Data'!H:H,'IMS Data'!C:C,'TRx Tracker vs LBE'!G:G),IF('TRx Tracker vs LBE'!$F$7="Actiq",SUMIFS('IMS Data'!G:G,'IMS Data'!C:C,'TRx Tracker vs LBE'!G:G),IF($F$7="Copaxone 20",SUMIFS('IMS Data'!J:J,'IMS Data'!C:C,'TRx Tracker vs AOP'!G:G),IF($F$7="Copaxone 40",SUMIFS('IMS Data'!K:K,'IMS Data'!C:C,'TRx Tracker vs AOP'!G:G),IF($F$7="Azilect",SUMIFS('IMS Data'!L:L,'IMS Data'!C:C,'TRx Tracker vs LBE'!G:G),IF($F$7="Zecuity",SUMIFS('IMS Data'!M:M,'IMS Data'!C:C,'TRx Tracker vs AOP'!G:G))))))))))) -> 0 | I39: =IF($F$7="Zecuity",SUMIFS('Zecuity Weekly Forecast'!D:D,'Zecuity Weekly Forecast'!A:A,'TRx Tracker vs LBE'!G:G),IF($F$7="Nuvigil",SUMIFS('NUVIGIL Goals'!$D:$D,'NUVIGIL Goals'!$B:$B,'TRx Tracker vs LBE'!$F:$F),SUMIFS($15:$15,$9:$9,$E:$E)/SUMIFS($18:$18,$9:$9,$E:$E))) -> 723.6602903 | J39: -723.6602903
E40: 5 | F40: 19 | G40: 2016-05-13 | H40: =IF($F$7="Nuvigil",SUMIFS('IMS Data'!D:D,'IMS Data'!C:C,'TRx Tracker vs LBE'!G:G),IF('TRx Tracker vs LBE'!$F$7="Fentora",SUMIFS('IMS Data'!F:F,'IMS Data'!C:C,'TRx Tracker vs LBE'!G:G),IF('TRx Tracker vs LBE'!$F$7="Amrix",SUMIFS('IMS Data'!E:E,'IMS Data'!C:C,'TRx Tracker vs LBE'!G:G),IF('TRx Tracker vs LBE'!$F$7="Provigil",SUMIFS('IMS Data'!I:I,'IMS Data'!C:C,'TRx Tracker vs LBE'!G:G),IF('TRx Tracker vs LBE'!$F$7="Gabitril",SUMIFS('IMS Data'!H:H,'IMS Data'!C:C,'TRx Tracker vs LBE'!G:G),IF('TRx Tracker vs LBE'!$F$7="Actiq",SUMIFS('IMS Data'!G:G,'IMS Data'!C:C,'TRx Tracker vs LBE'!G:G),IF($F$7="Copaxone 20",SUMIFS('IMS Data'!J:J,'IMS Data'!C:C,'TRx Tracker vs AOP'!G:G),IF($F$7="Copaxone 40",SUMIFS('IMS Data'!K:K,'IMS Data'!C:C,'TRx Tracker vs AOP'!G:G),IF($F$7="Azilect",SUMIFS('IMS Data'!L:L,'IMS Data'!C:C,'TRx Tracker vs LBE'!G:G),IF($F$7="Zecuity",SUMIFS('IMS Data'!M:M,'IMS Data'!C:C,'TRx Tracker vs AOP'!G:G))))))))))) -> 0 | I40: =IF($F$7="Zecuity",SUMIFS('Zecuity Weekly Forecast'!D:D,'Zecuity Weekly Forecast'!A:A,'TRx Tracker vs LBE'!G:G),IF($F$7="Nuvigil",SUMIFS('NUVIGIL Goals'!$D:$D,'NUVIGIL Goals'!$B:$B,'TRx Tracker vs LBE'!$F:$F),SUMIFS($15:$15,$9:$9,$E:$E)/SUMIFS($18:$18,$9:$9,$E:$E))) -> 732.768905 | J40: -732.768905
E41: 5 | F41: 20 | G41: 2016-05-20 | H41: =IF($F$7="Nuvigil",SUMIFS('IMS Data'!D:D,'IMS Data'!C:C,'TRx Tracker vs LBE'!G:G),IF('TRx Tracker vs LBE'!$F$7="Fentora",SUMIFS('IMS Data'!F:F,'IMS Data'!C:C,'TRx Tracker vs LBE'!G:G),IF('TRx Tracker vs LBE'!$F$7="Amrix",SUMIFS('IMS Data'!E:E,'IMS Data'!C:C,'TRx Tracker vs LBE'!G:G),IF('TRx Tracker vs LBE'!$F$7="Provigil",SUMIFS('IMS Data'!I:I,'IMS Data'!C:C,'TRx Tracker vs LBE'!G:G),IF('TRx Tracker vs LBE'!$F$7="Gabitril",SUMIFS('IMS Data'!H:H,'IMS Data'!C:C,'TRx Tracker vs LBE'!G:G),IF('TRx Tracker vs LBE'!$F$7="Actiq",SUMIFS('IMS Data'!G:G,'IMS Data'!C:C,'TRx Tracker vs LBE'!G:G),IF($F$7="Copaxone 20",SUMIFS('IMS Data'!J:J,'IMS Data'!C:C,'TRx Tracker vs AOP'!G:G),IF($F$7="Copaxone 40",SUMIFS('IMS Data'!K:K,'IMS Data'!C:C,'TRx Tracker vs AOP'!G:G),IF($F$7="Azilect",SUMIFS('IMS Data'!L:L,'IMS Data'!C:C,'TRx Tracker vs LBE'!G:G),IF($F$7="Zecuity",SUMIFS('IMS Data'!M:M,'IMS Data'!C:C,'TRx Tracker vs AOP'!G:G))))))))))) -> 0 | I41: =IF($F$7="Zecuity",SUMIFS('Zecuity Weekly Forecast'!D:D,'Zecuity Weekly Forecast'!A:A,'TRx Tracker vs LBE'!G:G),IF($F$7="Nuvigil",SUMIFS('NUVIGIL Goals'!$D:$D,'NUVIGIL Goals'!$B:$B,'TRx Tracker vs LBE'!$F:$F),SUMIFS($15:$15,$9:$9,$E:$E)/SUMIFS($18:$18,$9:$9,$E:$E))) -> 741.4482363 | J41: -741.4482363
E42: 5 | F42: 21 | G42: 2016-05-27 | H42: =IF($F$7="Nuvigil",SUMIFS('IMS Data'!D:D,'IMS Data'!C:C,'TRx Tracker vs LBE'!G:G),IF('TRx Tracker vs LBE'!$F$7="Fentora",SUMIFS('IMS Data'!F:F,'IMS Data'!C:C,'TRx Tracker vs LBE'!G:G),IF('TRx Tracker vs LBE'!$F$7="Amrix",SUMIFS('IMS Data'!E:E,'IMS Data'!C:C,'TRx Tracker vs LBE'!G:G),IF('TRx Tracker vs LBE'!$F$7="Provigil",SUMIFS('IMS Data'!I:I,'IMS Data'!C:C,'TRx Tracker vs LBE'!G:G),IF('TRx Tracker vs LBE'!$F$7="Gabitril",SUMIFS('IMS Data'!H:H,'IMS Data'!C:C,'TRx Tracker vs LBE'!G:G),IF('TRx Tracker vs LBE'!$F$7="Actiq",SUMIFS('IMS Data'!G:G,'IMS Data'!C:C,'TRx Tracker vs LBE'!G:G),IF($F$7="Copaxone 20",SUMIFS('IMS Data'!J:J,'IMS Data'!C:C,'TRx Tracker vs AOP'!G:G),IF($F$7="Copaxone 40",SUMIFS('IMS Data'!K:K,'IMS Data'!C:C,'TRx Tracker vs AOP'!G:G),IF($F$7="Azilect",SUMIFS('IMS Data'!L:L,'IMS Data'!C:C,'TRx Tracker vs LBE'!G:G),IF($F$7="Zecuity",SUMIFS('IMS Data'!M:M,'IMS Data'!C:C,'TRx Tracker vs AOP'!G:G))))))))))) -> 0 | I42: =IF($F$7="Zecuity",SUMIFS('Zecuity Weekly Forecast'!D:D,'Zecuity Weekly Forecast'!A:A,'TRx Tracker vs LBE'!G:G),IF($F$7="Nuvigil",SUMIFS('NUVIGIL Goals'!$D:$D,'NUVIGIL Goals'!$B:$B,'TRx Tracker vs LBE'!$F:$F),SUMIFS($15:$15,$9:$9,$E:$E)/SUMIFS($18:$18,$9:$9,$E:$E))) -> 747.7658276 | J42: -747.7658276
E43: 6 | F43: 22 | G43: 2016-06-03 | H43: =IF($F$7="Nuvigil",SUMIFS('IMS Data'!D:D,'IMS Data'!C:C,'TRx Tracker vs LBE'!G:G),IF('TRx Tracker vs LBE'!$F$7="Fentora",SUMIFS('IMS Data'!F:F,'IMS Data'!C:C,'TRx Tracker vs LBE'!G:G),IF('TRx Tracker vs LBE'!$F$7="Amrix",SUMIFS('IMS Data'!E:E,'IMS Data'!C:C,'TRx Tracker vs LBE'!G:G),IF('TRx Tracker vs LBE'!$F$7="Provigil",SUMIFS('IMS Data'!I:I,'IMS Data'!C:C,'TRx Tracker vs LBE'!G:G),IF('TRx Tracker vs LBE'!$F$7="Gabitril",SUMIFS('IMS Data'!H:H,'IMS Data'!C:C,'TRx Tracker vs LBE'!G:G),IF('TRx Tracker vs LBE'!$F$7="Actiq",SUMIFS('IMS Data'!G:G,'IMS Data'!C:C,'TRx Tracker vs LBE'!G:G),IF($F$7="Copaxone 20",SUMIFS('IMS Data'!J:J,'IMS Data'!C:C,'TRx Tracker vs AOP'!G:G),IF($F$7="Copaxone 40",SUMIFS('IMS Data'!K:K,'IMS Data'!C:C,'TRx Tracker vs AOP'!G:G),IF($F$7="Azilect",SUMIFS('IMS Data'!L:L,'IMS Data'!C:C,'TRx Tracker vs LBE'!G:G),IF($F$7="Zecuity",SUMIFS('IMS Data'!M:M,'IMS Data'!C:C,'TRx Tracker vs AOP'!G:G))))))))))) -> 0 | I43: =IF($F$7="Zecuity",SUMIFS('Zecuity Weekly Forecast'!D:D,'Zecuity Weekly Forecast'!A:A,'TRx Tracker vs LBE'!G:G),IF($F$7="Nuvigil",SUMIFS('NUVIGIL Goals'!$D:$D,'NUVIGIL Goals'!$B:$B,'TRx Tracker vs LBE'!$F:$F),SUMIFS($15:$15,$9:$9,$E:$E)/SUMIFS($18:$18,$9:$9,$E:$E))) -> 751.1364912 | J43: -751.1364912
E44: 6 | F44: 23 | G44: 2016-06-10 | H44: =IF($F$7="Nuvigil",SUMIFS('IMS Data'!D:D,'IMS Data'!C:C,'TRx Tracker vs LBE'!G:G),IF('TRx Tracker vs LBE'!$F$7="Fentora",SUMIFS('IMS Data'!F:F,'IMS Data'!C:C,'TRx Tracker vs LBE'!G:G),IF('TRx Tracker vs LBE'!$F$7="Amrix",SUMIFS('IMS Data'!E:E,'IMS Data'!C:C,'TRx Tracker vs LBE'!G:G),IF('TRx Tracker vs LBE'!$F$7="Provigil",SUMIFS('IMS Data'!I:I,'IMS Data'!C:C,'TRx Tracker vs LBE'!G:G),IF('TRx Tracker vs LBE'!$F$7="Gabitril",SUMIFS('IMS Data'!H:H,'IMS Data'!C:C,'TRx Tracker vs LBE'!G:G),IF('TRx Tracker vs LBE'!$F$7="Actiq",SUMIFS('IMS Data'!G:G,'IMS Data'!C:C,'TRx Tracker vs LBE'!G:G),IF($F$7="Copaxone 20",SUMIFS('IMS Data'!J:J,'IMS Data'!C:C,'TRx Tracker vs AOP'!G:G),IF($F$7="Copaxone 40",SUMIFS('IMS Data'!K:K,'IMS Data'!C:C,'TRx Tracker vs AOP'!G:G),IF($F$7="Azilect",SUMIFS('IMS Data'!L:L,'IMS Data'!C:C,'TRx Tracker vs LBE'!G:G),IF($F$7="Zecuity",SUMIFS('IMS Data'!M:M,'IMS Data'!C:C,'TRx Tracker vs AOP'!G:G))))))))))) -> 0 | I44: =IF($F$7="Zecuity",SUMIFS('Zecuity Weekly Forecast'!D:D,'Zecuity Weekly Forecast'!A:A,'TRx Tracker vs LBE'!G:G),IF($F$7="Nuvigil",SUMIFS('NUVIGIL Goals'!$D:$D,'NUVIGIL Goals'!$B:$B,'TRx Tracker vs LBE'!$F:$F),SUMIFS($15:$15,$9:$9,$E:$E)/SUMIFS($18:$18,$9:$9,$E:$E))) -> 751.0335903 | J44: -751.0335903
E45: 6 | F45: 24 | G45: 2016-06-17 | H45: =IF($F$7="Nuvigil",SUMIFS('IMS Data'!D:D,'IMS Data'!C:C,'TRx Tracker vs LBE'!G:G),IF('TRx Tracker vs LBE'!$F$7="Fentora",SUMIFS('IMS Data'!F:F,'IMS Data'!C:C,'TRx Tracker vs LBE'!G:G),IF('TRx Tracker vs LBE'!$F$7="Amrix",SUMIFS('IMS Data'!E:E,'IMS Data'!C:C,'TRx Tracker vs LBE'!G:G),IF('TRx Tracker vs LBE'!$F$7="Provigil",SUMIFS('IMS Data'!I:I,'IMS Data'!C:C,'TRx Tracker vs LBE'!G:G),IF('TRx Tracker vs LBE'!$F$7="Gabitril",SUMIFS('IMS Data'!H:H,'IMS Data'!C:C,'TRx Tracker vs LBE'!G:G),IF('TRx Tracker vs LBE'!$F$7="Actiq",SUMIFS('IMS Data'!G:G,'IMS Data'!C:C,'TRx Tracker vs LBE'!G:G),IF($F$7="Copaxone 20",SUMIFS('IMS Data'!J:J,'IMS Data'!C:C,'TRx Tracker vs AOP'!G:G),IF($F$7="Copaxone 40",SUMIFS('IMS Data'!K:K,'IMS Data'!C:C,'TRx Tracker vs AOP'!G:G),IF($F$7="Azilect",SUMIFS('IMS Data'!L:L,'IMS Data'!C:C,'TRx Tracker vs LBE'!G:G),IF($F$7="Zecuity",SUMIFS('IMS Data'!M:M,'IMS Data'!C:C,'TRx Tracker vs AOP'!G:G))))))))))) -> 0 | I45: =IF($F$7="Zecuity",SUMIFS('Zecuity Weekly Forecast'!D:D,'Zecuity Weekly Forecast'!A:A,'TRx Tracker vs LBE'!G:G),IF($F$7="Nuvigil",SUMIFS('NUVIGIL Goals'!$D:$D,'NUVIGIL Goals'!$B:$B,'TRx Tracker vs LBE'!$F:$F),SUMIFS($15:$15,$9:$9,$E:$E)/SUMIFS($18:$18,$9:$9,$E:$E))) -> 746.9330108 | J45: -746.9330108
E46: 6 | F46: 25 | G46: 2016-06-24 | H46: =IF($F$7="Nuvigil",SUMIFS('IMS Data'!D:D,'IMS Data'!C:C,'TRx Tracker vs LBE'!G:G),IF('TRx Tracker vs LBE'!$F$7="Fentora",SUMIFS('IMS Data'!F:F,'IMS Data'!C:C,'TRx Tracker vs LBE'!G:G),IF('TRx Tracker vs LBE'!$F$7="Amrix",SUMIFS('IMS Data'!E:E,'IMS Data'!C:C,'TRx Tracker vs LBE'!G:G),IF('TRx Tracker vs LBE'!$F$7="Provigil",SUMIFS('IMS Data'!I:I,'IMS Data'!C:C,'TRx Tracker vs LBE'!G:G),IF('TRx Tracker vs LBE'!$F$7="Gabitril",SUMIFS('IMS Data'!H:H,'IMS Data'!C:C,'TRx Tracker vs LBE'!G:G),IF('TRx Tracker vs LBE'!$F$7="Actiq",SUMIFS('IMS Data'!G:G,'IMS Data'!C:C,'TRx Tracker vs LBE'!G:G),IF($F$7="Copaxone 20",SUMIFS('IMS Data'!J:J,'IMS Data'!C:C,'TRx Tracker vs AOP'!G:G),IF($F$7="Copaxone 40",SUMIFS('IMS Data'!K:K,'IMS Data'!C:C,'TRx Tracker vs AOP'!G:G),IF($F$7="Azilect",SUMIFS('IMS Data'!L:L,'IMS Data'!C:C,'TRx Tracker vs LBE'!G:G),IF($F$7="Zecuity",SUMIFS('IMS Data'!M:M,'IMS Data'!C:C,'TRx Tracker vs AOP'!G:G))))))))))) -> 0 | I46: =IF($F$7="Zecuity",SUMIFS('Zecuity Weekly Forecast'!D:D,'Zecuity Weekly Forecast'!A:A,'TRx Tracker vs LBE'!G:G),IF($F$7="Nuvigil",SUMIFS('NUVIGIL Goals'!$D:$D,'NUVIGIL Goals'!$B:$B,'TRx Tracker vs LBE'!$F:$F),SUMIFS($15:$15,$9:$9,$E:$E)/SUMIFS($18:$18,$9:$9,$E:$E))) -> 739.1496127 | J46: -739.1496127
E47: 7 | F47: 26 | G47: 2016-07-01 | H47: =IF($F$7="Nuvigil",SUMIFS('IMS Data'!D:D,'IMS Data'!C:C,'TRx Tracker vs LBE'!G:G),IF('TRx Tracker vs LBE'!$F$7="Fentora",SUMIFS('IMS Data'!F:F,'IMS Data'!C:C,'TRx Tracker vs LBE'!G:G),IF('TRx Tracker vs LBE'!$F$7="Amrix",SUMIFS('IMS Data'!E:E,'IMS Data'!C:C,'TRx Tracker vs LBE'!G:G),IF('TRx Tracker vs LBE'!$F$7="Provigil",SUMIFS('IMS Data'!I:I,'IMS Data'!C:C,'TRx Tracker vs LBE'!G:G),IF('TRx Tracker vs LBE'!$F$7="Gabitril",SUMIFS('IMS Data'!H:H,'IMS Data'!C:C,'TRx Tracker vs LBE'!G:G),IF('TRx Tracker vs LBE'!$F$7="Actiq",SUMIFS('IMS Data'!G:G,'IMS Data'!C:C,'TRx Tracker vs LBE'!G:G),IF($F$7="Copaxone 20",SUMIFS('IMS Data'!J:J,'IMS Data'!C:C,'TRx Tracker vs AOP'!G:G),IF($F$7="Copaxone 40",SUMIFS('IMS Data'!K:K,'IMS Data'!C:C,'TRx Tracker vs AOP'!G:G),IF($F$7="Azilect",SUMIFS('IMS Data'!L:L,'IMS Data'!C:C,'TRx Tracker vs LBE'!G:G),IF($F$7="Zecuity",SUMIFS('IMS Data'!M:M,'IMS Data'!C:C,'TRx Tracker vs AOP'!G:G))))))))))) -> 0 | I47: =IF($F$7="Zecuity",SUMIFS('Zecuity Weekly Forecast'!D:D,'Zecuity Weekly Forecast'!A:A,'TRx Tracker vs LBE'!G:G),IF($F$7="Nuvigil",SUMIFS('NUVIGIL Goals'!$D:$D,'NUVIGIL Goals'!$B:$B,'TRx Tracker vs LBE'!$F:$F),SUMIFS($15:$15,$9:$9,$E:$E)/SUMIFS($18:$18,$9:$9,$E:$E))) -> 730.0548091 | J47: -730.0548091
E48: 7 | F48: 27 | G48: 2016-07-08 | H48: =IF($F$7="Nuvigil",SUMIFS('IMS Data'!D:D,'IMS Data'!C:C,'TRx Tracker vs LBE'!G:G),IF('TRx Tracker vs LBE'!$F$7="Fentora",SUMIFS('IMS Data'!F:F,'IMS Data'!C:C,'TRx Tracker vs LBE'!G:G),IF('TRx Tracker vs LBE'!$F$7="Amrix",SUMIFS('IMS Data'!E:E,'IMS Data'!C:C,'TRx Tracker vs LBE'!G:G),IF('TRx Tracker vs LBE'!$F$7="Provigil",SUMIFS('IMS Data'!I:I,'IMS Data'!C:C,'TRx Tracker vs LBE'!G:G),IF('TRx Tracker vs LBE'!$F$7="Gabitril",SUMIFS('IMS Data'!H:H,'IMS Data'!C:C,'TRx Tracker vs LBE'!G:G),IF('TRx Tracker vs LBE'!$F$7="Actiq",SUMIFS('IMS Data'!G:G,'IMS Data'!C:C,'TRx Tracker vs LBE'!G:G),IF($F$7="Copaxone 20",SUMIFS('IMS Data'!J:J,'IMS Data'!C:C,'TRx Tracker vs AOP'!G:G),IF($F$7="Copaxone 40",SUMIFS('IMS Data'!K:K,'IMS Data'!C:C,'TRx Tracker vs AOP'!G:G),IF($F$7="Azilect",SUMIFS('IMS Data'!L:L,'IMS Data'!C:C,'TRx Tracker vs LBE'!G:G),IF($F$7="Zecuity",SUMIFS('IMS Data'!M:M,'IMS Data'!C:C,'TRx Tracker vs AOP'!G:G))))))))))) -> 0 | I48: =IF($F$7="Zecuity",SUMIFS('Zecuity Weekly Forecast'!D:D,'Zecuity Weekly Forecast'!A:A,'TRx Tracker vs LBE'!G:G),IF($F$7="Nuvigil",SUMIFS('NUVIGIL Goals'!$D:$D,'NUVIGIL Goals'!$B:$B,'TRx Tracker vs LBE'!$F:$F),SUMIFS($15:$15,$9:$9,$E:$E)/SUMIFS($18:$18,$9:$9,$E:$E))) -> 722.3294566 | J48: -722.3294566
E49: 7 | F49: 28 | G49: 2016-07-15 | H49: =IF($F$7="Nuvigil",SUMIFS('IMS Data'!D:D,'IMS Data'!C:C,'TRx Tracker vs LBE'!G:G),IF('TRx Tracker vs LBE'!$F$7="Fentora",SUMIFS('IMS Data'!F:F,'IMS Data'!C:C,'TRx Tracker vs LBE'!G:G),IF('TRx Tracker vs LBE'!$F$7="Amrix",SUMIFS('IMS Data'!E:E,'IMS Data'!C:C,'TRx Tracker vs LBE'!G:G),IF('TRx Tracker vs LBE'!$F$7="Provigil",SUMIFS('IMS Data'!I:I,'IMS Data'!C:C,'TRx Tracker vs LBE'!G:G),IF('TRx Tracker vs LBE'!$F$7="Gabitril",SUMIFS('IMS Data'!H:H,'IMS Data'!C:C,'TRx Tracker vs LBE'!G:G),IF('TRx Tracker vs LBE'!$F$7="Actiq",SUMIFS('IMS Data'!G:G,'IMS Data'!C:C,'TRx Tracker vs LBE'!G:G),IF($F$7="Copaxone 20",SUMIFS('IMS Data'!J:J,'IMS Data'!C:C,'TRx Tracker vs AOP'!G:G),IF($F$7="Copaxone 40",SUMIFS('IMS Data'!K:K,'IMS Data'!C:C,'TRx Tracker vs AOP'!G:G),IF($F$7="Azilect",SUMIFS('IMS Data'!L:L,'IMS Data'!C:C,'TRx Tracker vs LBE'!G:G),IF($F$7="Zecuity",SUMIFS('IMS Data'!M:M,'IMS Data'!C:C,'TRx Tracker vs AOP'!G:G))))))))))) -> 0 | I49: =IF($F$7="Zecuity",SUMIFS('Zecuity Weekly Forecast'!D:D,'Zecuity Weekly Forecast'!A:A,'TRx Tracker vs LBE'!G:G),IF($F$7="Nuvigil",SUMIFS('NUVIGIL Goals'!$D:$D,'NUVIGIL Goals'!$B:$B,'TRx Tracker vs LBE'!$F:$F),SUMIFS($15:$15,$9:$9,$E:$E)/SUMIFS($18:$18,$9:$9,$E:$E))) -> 718.6543026 | J49: -718.6543026
E50: 7 | F50: 29 | G50: 2016-07-22 | H50: =IF($F$7="Nuvigil",SUMIFS('IMS Data'!D:D,'IMS Data'!C:C,'TRx Tracker vs LBE'!G:G),IF('TRx Tracker vs LBE'!$F$7="Fentora",SUMIFS('IMS Data'!F:F,'IMS Data'!C:C,'TRx Tracker vs LBE'!G:G),IF('TRx Tracker vs LBE'!$F$7="Amrix",SUMIFS('IMS Data'!E:E,'IMS Data'!C:C,'TRx Tracker vs LBE'!G:G),IF('TRx Tracker vs LBE'!$F$7="Provigil",SUMIFS('IMS Data'!I:I,'IMS Data'!C:C,'TRx Tracker vs LBE'!G:G),IF('TRx Tracker vs LBE'!$F$7="Gabitril",SUMIFS('IMS Data'!H:H,'IMS Data'!C:C,'TRx Tracker vs LBE'!G:G),IF('TRx Tracker vs LBE'!$F$7="Actiq",SUMIFS('IMS Data'!G:G,'IMS Data'!C:C,'TRx Tracker vs LBE'!G:G),IF($F$7="Copaxone 20",SUMIFS('IMS Data'!J:J,'IMS Data'!C:C,'TRx Tracker vs AOP'!G:G),IF($F$7="Copaxone 40",SUMIFS('IMS Data'!K:K,'IMS Data'!C:C,'TRx Tracker vs AOP'!G:G),IF($F$7="Azilect",SUMIFS('IMS Data'!L:L,'IMS Data'!C:C,'TRx Tracker vs LBE'!G:G),IF($F$7="Zecuity",SUMIFS('IMS Data'!M:M,'IMS Data'!C:C,'TRx Tracker vs AOP'!G:G))))))))))) -> 0 | I50: =IF($F$7="Zecuity",SUMIFS('Zecuity Weekly Forecast'!D:D,'Zecuity Weekly Forecast'!A:A,'TRx Tracker vs LBE'!G:G),IF($F$7="Nuvigil",SUMIFS('NUVIGIL Goals'!$D:$D,'NUVIGIL Goals'!$B:$B,'TRx Tracker vs LBE'!$F:$F),SUMIFS($15:$15,$9:$9,$E:$E)/SUMIFS($18:$18,$9:$9,$E:$E))) -> 721.1760387 | J50: -721.1760387
E51: 7 | F51: 30 | G51: 2016-07-29 | H51: =IF($F$7="Nuvigil",SUMIFS('IMS Data'!D:D,'IMS Data'!C:C,'TRx Tracker vs LBE'!G:G),IF('TRx Tracker vs LBE'!$F$7="Fentora",SUMIFS('IMS Data'!F:F,'IMS Data'!C:C,'TRx Tracker vs LBE'!G:G),IF('TRx Tracker vs LBE'!$F$7="Amrix",SUMIFS('IMS Data'!E:E,'IMS Data'!C:C,'TRx Tracker vs LBE'!G:G),IF('TRx Tracker vs LBE'!$F$7="Provigil",SUMIFS('IMS Data'!I:I,'IMS Data'!C:C,'TRx Tracker vs LBE'!G:G),IF('TRx Tracker vs LBE'!$F$7="Gabitril",SUMIFS('IMS Data'!H:H,'IMS Data'!C:C,'TRx Tracker vs LBE'!G:G),IF('TRx Tracker vs LBE'!$F$7="Actiq",SUMIFS('IMS Data'!G:G,'IMS Data'!C:C,'TRx Tracker vs LBE'!G:G),IF($F$7="Copaxone 20",SUMIFS('IMS Data'!J:J,'IMS Data'!C:C,'TRx Tracker vs AOP'!G:G),IF($F$7="Copaxone 40",SUMIFS('IMS Data'!K:K,'IMS Data'!C:C,'TRx Tracker vs AOP'!G:G),IF($F$7="Azilect",SUMIFS('IMS Data'!L:L,'IMS Data'!C:C,'TRx Tracker vs LBE'!G:G),IF($F$7="Zecuity",SUMIFS('IMS Data'!M:M,'IMS Data'!C:C,'TRx Tracker vs AOP'!G:G))))))))))) -> 0 | I51: =IF($F$7="Zecuity",SUMIFS('Zecuity Weekly Forecast'!D:D,'Zecuity Weekly Forecast'!A:A,'TRx Tracker vs LBE'!G:G),IF($F$7="Nuvigil",SUMIFS('NUVIGIL Goals'!$D:$D,'NUVIGIL Goals'!$B:$B,'TRx Tracker vs LBE'!$F:$F),SUMIFS($15:$15,$9:$9,$E:$E)/SUMIFS($18:$18,$9:$9,$E:$E))) -> 728.4909394 | J51: -728.4909394
E52: 8 | F52: 31 | G52: 2016-08-05 | H52: =IF($F$7="Nuvigil",SUMIFS('IMS Data'!D:D,'IMS Data'!C:C,'TRx Tracker vs LBE'!G:G),IF('TRx Tracker vs LBE'!$F$7="Fentora",SUMIFS('IMS Data'!F:F,'IMS Data'!C:C,'TRx Tracker vs LBE'!G:G),IF('TRx Tracker vs LBE'!$F$7="Amrix",SUMIFS('IMS Data'!E:E,'IMS Data'!C:C,'TRx Tracker vs LBE'!G:G),IF('TRx Tracker vs LBE'!$F$7="Provigil",SUMIFS('IMS Data'!I:I,'IMS Data'!C:C,'TRx Tracker vs LBE'!G:G),IF('TRx Tracker vs LBE'!$F$7="Gabitril",SUMIFS('IMS Data'!H:H,'IMS Data'!C:C,'TRx Tracker vs LBE'!G:G),IF('TRx Tracker vs LBE'!$F$7="Actiq",SUMIFS('IMS Data'!G:G,'IMS Data'!C:C,'TRx Tracker vs LBE'!G:G),IF($F$7="Copaxone 20",SUMIFS('IMS Data'!J:J,'IMS Data'!C:C,'TRx Tracker vs AOP'!G:G),IF($F$7="Copaxone 40",SUMIFS('IMS Data'!K:K,'IMS Data'!C:C,'TRx Tracker vs AOP'!G:G),IF($F$7="Azilect",SUMIFS('IMS Data'!L:L,'IMS Data'!C:C,'TRx Tracker vs LBE'!G:G),IF($F$7="Zecuity",SUMIFS('IMS Data'!M:M,'IMS Data'!C:C,'TRx Tracker vs AOP'!G:G))))))))))) -> 0 | I52: =IF($F$7="Zecuity",SUMIFS('Zecuity Weekly Forecast'!D:D,'Zecuity Weekly Forecast'!A:A,'TRx Tracker vs LBE'!G:G),IF($F$7="Nuvigil",SUMIFS('NUVIGIL Goals'!$D:$D,'NUVIGIL Goals'!$B:$B,'TRx Tracker vs LBE'!$F:$F),SUMIFS($15:$15,$9:$9,$E:$E)/SUMIFS($18:$18,$9:$9,$E:$E))) -> 737.7466871 | J52: -737.7466871
E53: 8 | F53: 32 | G53: 2016-08-12 | H53: =IF($F$7="Nuvigil",SUMIFS('IMS Data'!D:D,'IMS Data'!C:C,'TRx Tracker vs LBE'!G:G),IF('TRx Tracker vs LBE'!$F$7="Fentora",SUMIFS('IMS Data'!F:F,'IMS Data'!C:C,'TRx Tracker vs LBE'!G:G),IF('TRx Tracker vs LBE'!$F$7="Amrix",SUMIFS('IMS Data'!E:E,'IMS Data'!C:C,'TRx Tracker vs LBE'!G:G),IF('TRx Tracker vs LBE'!$F$7="Provigil",SUMIFS('IMS Data'!I:I,'IMS Data'!C:C,'TRx Tracker vs LBE'!G:G),IF('TRx Tracker vs LBE'!$F$7="Gabitril",SUMIFS('IMS Data'!H:H,'IMS Data'!C:C,'TRx Tracker vs LBE'!G:G),IF('TRx Tracker vs LBE'!$F$7="Actiq",SUMIFS('IMS Data'!G:G,'IMS Data'!C:C,'TRx Tracker vs LBE'!G:G),IF($F$7="Copaxone 20",SUMIFS('IMS Data'!J:J,'IMS Data'!C:C,'TRx Tracker vs AOP'!G:G),IF($F$7="Copaxone 40",SUMIFS('IMS Data'!K:K,'IMS Data'!C:C,'TRx Tracker vs AOP'!G:G),IF($F$7="Azilect",SUMIFS('IMS Data'!L:L,'IMS Data'!C:C,'TRx Tracker vs LBE'!G:G),IF($F$7="Zecuity",SUMIFS('IMS Data'!M:M,'IMS Data'!C:C,'TRx Tracker vs AOP'!G:G))))))))))) -> 0 | I53: =IF($F$7="Zecuity",SUMIFS('Zecuity Weekly Forecast'!D:D,'Zecuity Weekly Forecast'!A:A,'TRx Tracker vs LBE'!G:G),IF($F$7="Nuvigil",SUMIFS('NUVIGIL Goals'!$D:$D,'NUVIGIL Goals'!$B:$B,'TRx Tracker vs LBE'!$F:$F),SUMIFS($15:$15,$9:$9,$E:$E)/SUMIFS($18:$18,$9:$9,$E:$E))) -> 746.0869536 | J53: -746.0869536
E54: 8 | F54: 33 | G54: 2016-08-19 | H54: =IF($F$7="Nuvigil",SUMIFS('IMS Data'!D:D,'IMS Data'!C:C,'TRx Tracker vs LBE'!G:G),IF('TRx Tracker vs LBE'!$F$7="Fentora",SUMIFS('IMS Data'!F:F,'IMS Data'!C:C,'TRx Tracker vs LBE'!G:G),IF('TRx Tracker vs LBE'!$F$7="Amrix",SUMIFS('IMS Data'!E:E,'IMS Data'!C:C,'TRx Tracker vs LBE'!G:G),IF('TRx Tracker vs LBE'!$F$7="Provigil",SUMIFS('IMS Data'!I:I,'IMS Data'!C:C,'TRx Tracker vs LBE'!G:G),IF('TRx Tracker vs LBE'!$F$7="Gabitril",SUMIFS('IMS Data'!H:H,'IMS Data'!C:C,'TRx Tracker vs LBE'!G:G),IF('TRx Tracker vs LBE'!$F$7="Actiq",SUMIFS('IMS Data'!G:G,'IMS Data'!C:C,'TRx Tracker vs LBE'!G:G),IF($F$7="Copaxone 20",SUMIFS('IMS Data'!J:J,'IMS Data'!C:C,'TRx Tracker vs AOP'!G:G),IF($F$7="Copaxone 40",SUMIFS('IMS Data'!K:K,'IMS Data'!C:C,'TRx Tracker vs AOP'!G:G),IF($F$7="Azilect",SUMIFS('IMS Data'!L:L,'IMS Data'!C:C,'TRx Tracker vs LBE'!G:G),IF($F$7="Zecuity",SUMIFS('IMS Data'!M:M,'IMS Data'!C:C,'TRx Tracker vs AOP'!G:G))))))))))) -> 0 | I54: =IF($F$7="Zecuity",SUMIFS('Zecuity Weekly Forecast'!D:D,'Zecuity Weekly Forecast'!A:A,'TRx Tracker vs LBE'!G:G),IF($F$7="Nuvigil",SUMIFS('NUVIGIL Goals'!$D:$D,'NUVIGIL Goals'!$B:$B,'TRx Tracker vs LBE'!$F:$F),SUMIFS($15:$15,$9:$9,$E:$E)/SUMIFS($18:$18,$9:$9,$E:$E))) -> 750.7624363 | J54: -750.7624363
E55: 8 | F55: 34 | G55: 2016-08-26 | H55: =IF($F$7="Nuvigil",SUMIFS('IMS Data'!D:D,'IMS Data'!C:C,'TRx Tracker vs LBE'!G:G),IF('TRx Tracker vs LBE'!$F$7="Fentora",SUMIFS('IMS Data'!F:F,'IMS Data'!C:C,'TRx Tracker vs LBE'!G:G),IF('TRx Tracker vs LBE'!$F$7="Amrix",SUMIFS('IMS Data'!E:E,'IMS Data'!C:C,'TRx Tracker vs LBE'!G:G),IF('TRx Tracker vs LBE'!$F$7="Provigil",SUMIFS('IMS Data'!I:I,'IMS Data'!C:C,'TRx Tracker vs LBE'!G:G),IF('TRx Tracker vs LBE'!$F$7="Gabitril",SUMIFS('IMS Data'!H:H,'IMS Data'!C:C,'TRx Tracker vs LBE'!G:G),IF('TRx Tracker vs LBE'!$F$7="Actiq",SUMIFS('IMS Data'!G:G,'IMS Data'!C:C,'TRx Tracker vs LBE'!G:G),IF($F$7="Copaxone 20",SUMIFS('IMS Data'!J:J,'IMS Data'!C:C,'TRx Tracker vs AOP'!G:G),IF($F$7="Copaxone 40",SUMIFS('IMS Data'!K:K,'IMS Data'!C:C,'TRx Tracker vs AOP'!G:G),IF($F$7="Azilect",SUMIFS('IMS Data'!L:L,'IMS Data'!C:C,'TRx Tracker vs LBE'!G:G),IF($F$7="Zecuity",SUMIFS('IMS Data'!M:M,'IMS Data'!C:C,'TRx Tracker vs AOP'!G:G))))))))))) -> 0 | I55: =IF($F$7="Zecuity",SUMIFS('Zecuity Weekly Forecast'!D:D,'Zecuity Weekly Forecast'!A:A,'TRx Tracker vs LBE'!G:G),IF($F$7="Nuvigil",SUMIFS('NUVIGIL Goals'!$D:$D,'NUVIGIL Goals'!$B:$B,'TRx Tracker vs LBE'!$F:$F),SUMIFS($15:$15,$9:$9,$E:$E)/SUMIFS($18:$18,$9:$9,$E:$E))) -> 751.4884359 | J55: -751.4884359
E56: 9 | F56: 35 | G56: 2016-09-02 | H56: =IF($F$7="Nuvigil",SUMIFS('IMS Data'!D:D,'IMS Data'!C:C,'TRx Tracker vs LBE'!G:G),IF('TRx Tracker vs LBE'!$F$7="Fentora",SUMIFS('IMS Data'!F:F,'IMS Data'!C:C,'TRx Tracker vs LBE'!G:G),IF('TRx Tracker vs LBE'!$F$7="Amrix",SUMIFS('IMS Data'!E:E,'IMS Data'!C:C,'TRx Tracker vs LBE'!G:G),IF('TRx Tracker vs LBE'!$F$7="Provigil",SUMIFS('IMS Data'!I:I,'IMS Data'!C:C,'TRx Tracker vs LBE'!G:G),IF('TRx Tracker vs LBE'!$F$7="Gabitril",SUMIFS('IMS Data'!H:H,'IMS Data'!C:C,'TRx Tracker vs LBE'!G:G),IF('TRx Tracker vs LBE'!$F$7="Actiq",SUMIFS('IMS Data'!G:G,'IMS Data'!C:C,'TRx Tracker vs LBE'!G:G),IF($F$7="Copaxone 20",SUMIFS('IMS Data'!J:J,'IMS Data'!C:C,'TRx Tracker vs AOP'!G:G),IF($F$7="Copaxone 40",SUMIFS('IMS Data'!K:K,'IMS Data'!C:C,'TRx Tracker vs AOP'!G:G),IF($F$7="Azilect",SUMIFS('IMS Data'!L:L,'IMS Data'!C:C,'TRx Tracker vs LBE'!G:G),IF($F$7="Zecuity",SUMIFS('IMS Data'!M:M,'IMS Data'!C:C,'TRx Tracker vs AOP'!G:G))))))))))) -> 0 | I56: =IF($F$7="Zecuity",SUMIFS('Zecuity Weekly Forecast'!D:D,'Zecuity Weekly Forecast'!A:A,'TRx Tracker vs LBE'!G:G),IF($F$7="Nuvigil",SUMIFS('NUVIGIL Goals'!$D:$D,'NUVIGIL Goals'!$B:$B,'TRx Tracker vs LBE'!$F:$F),SUMIFS($15:$15,$9:$9,$E:$E)/SUMIFS($18:$18,$9:$9,$E:$E))) -> 750.444771 | J56: -750.444771
E57: 9 | F57: 36 | G57: 2016-09-09 | H57: =IF($F$7="Nuvigil",SUMIFS('IMS Data'!D:D,'IMS Data'!C:C,'TRx Tracker vs LBE'!G:G),IF('TRx Tracker vs LBE'!$F$7="Fentora",SUMIFS('IMS Data'!F:F,'IMS Data'!C:C,'TRx Tracker vs LBE'!G:G),IF('TRx Tracker vs LBE'!$F$7="Amrix",SUMIFS('IMS Data'!E:E,'IMS Data'!C:C,'TRx Tracker vs LBE'!G:G),IF('TRx Tracker vs LBE'!$F$7="Provigil",SUMIFS('IMS Data'!I:I,'IMS Data'!C:C,'TRx Tracker vs LBE'!G:G),IF('TRx Tracker vs LBE'!$F$7="Gabitril",SUMIFS('IMS Data'!H:H,'IMS Data'!C:C,'TRx Tracker vs LBE'!G:G),IF('TRx Tracker vs LBE'!$F$7="Actiq",SUMIFS('IMS Data'!G:G,'IMS Data'!C:C,'TRx Tracker vs LBE'!G:G),IF($F$7="Copaxone 20",SUMIFS('IMS Data'!J:J,'IMS Data'!C:C,'TRx Tracker vs AOP'!G:G),IF($F$7="Copaxone 40",SUMIFS('IMS Data'!K:K,'IMS Data'!C:C,'TRx Tracker vs AOP'!G:G),IF($F$7="Azilect",SUMIFS('IMS Data'!L:L,'IMS Data'!C:C,'TRx Tracker vs LBE'!G:G),IF($F$7="Zecuity",SUMIFS('IMS Data'!M:M,'IMS Data'!C:C,'TRx Tracker vs AOP'!G:G))))))))))) -> 0 | I57: =IF($F$7="Zecuity",SUMIFS('Zecuity Weekly Forecast'!D:D,'Zecuity Weekly Forecast'!A:A,'TRx Tracker vs LBE'!G:G),IF($F$7="Nuvigil",SUMIFS('NUVIGIL Goals'!$D:$D,'NUVIGIL Goals'!$B:$B,'TRx Tracker vs LBE'!$F:$F),SUMIFS($15:$15,$9:$9,$E:$E)/SUMIFS($18:$18,$9:$9,$E:$E))) -> 749.9184213 | J57: -749.9184213
E58: 9 | F58: 37 | G58: 2016-09-16 | H58: =IF($F$7="Nuvigil",SUMIFS('IMS Data'!D:D,'IMS Data'!C:C,'TRx Tracker vs LBE'!G:G),IF('TRx Tracker vs LBE'!$F$7="Fentora",SUMIFS('IMS Data'!F:F,'IMS Data'!C:C,'TRx Tracker vs LBE'!G:G),IF('TRx Tracker vs LBE'!$F$7="Amrix",SUMIFS('IMS Data'!E:E,'IMS Data'!C:C,'TRx Tracker vs LBE'!G:G),IF('TRx Tracker vs LBE'!$F$7="Provigil",SUMIFS('IMS Data'!I:I,'IMS Data'!C:C,'TRx Tracker vs LBE'!G:G),IF('TRx Tracker vs LBE'!$F$7="Gabitril",SUMIFS('IMS Data'!H:H,'IMS Data'!C:C,'TRx Tracker vs LBE'!G:G),IF('TRx Tracker vs LBE'!$F$7="Actiq",SUMIFS('IMS Data'!G:G,'IMS Data'!C:C,'TRx Tracker vs LBE'!G:G),IF($F$7="Copaxone 20",SUMIFS('IMS Data'!J:J,'IMS Data'!C:C,'TRx Tracker vs AOP'!G:G),IF($F$7="Copaxone 40",SUMIFS('IMS Data'!K:K,'IMS Data'!C:C,'TRx Tracker vs AOP'!G:G),IF($F$7="Azilect",SUMIFS('IMS Data'!L:L,'IMS Data'!C:C,'TRx Tracker vs LBE'!G:G),IF($F$7="Zecuity",SUMIFS('IMS Data'!M:M,'IMS Data'!C:C,'TRx Tracker vs AOP'!G:G))))))))))) -> 0 | I58: =IF($F$7="Zecuity",SUMIFS('Zecuity Weekly Forecast'!D:D,'Zecuity Weekly Forecast'!A:A,'TRx Tracker vs LBE'!G:G),IF($F$7="Nuvigil",SUMIFS('NUVIGIL Goals'!$D:$D,'NUVIGIL Goals'!$B:$B,'TRx Tracker vs LBE'!$F:$F),SUMIFS($15:$15,$9:$9,$E:$E)/SUMIFS($18:$18,$9:$9,$E:$E))) -> 752.1921585 | J58: -752.1921585
E59: 9 | F59: 38 | G59: 2016-09-23 | H59: =IF($F$7="Nuvigil",SUMIFS('IMS Data'!D:D,'IMS Data'!C:C,'TRx Tracker vs LBE'!G:G),IF('TRx Tracker vs LBE'!$F$7="Fentora",SUMIFS('IMS Data'!F:F,'IMS Data'!C:C,'TRx Tracker vs LBE'!G:G),IF('TRx Tracker vs LBE'!$F$7="Amrix",SUMIFS('IMS Data'!E:E,'IMS Data'!C:C,'TRx Tracker vs LBE'!G:G),IF('TRx Tracker vs LBE'!$F$7="Provigil",SUMIFS('IMS Data'!I:I,'IMS Data'!C:C,'TRx Tracker vs LBE'!G:G),IF('TRx Tracker vs LBE'!$F$7="Gabitril",SUMIFS('IMS Data'!H:H,'IMS Data'!C:C,'TRx Tracker vs LBE'!G:G),IF('TRx Tracker vs LBE'!$F$7="Actiq",SUMIFS('IMS Data'!G:G,'IMS Data'!C:C,'TRx Tracker vs LBE'!G:G),IF($F$7="Copaxone 20",SUMIFS('IMS Data'!J:J,'IMS Data'!C:C,'TRx Tracker vs AOP'!G:G),IF($F$7="Copaxone 40",SUMIFS('IMS Data'!K:K,'IMS Data'!C:C,'TRx Tracker vs AOP'!G:G),IF($F$7="Azilect",SUMIFS('IMS Data'!L:L,'IMS Data'!C:C,'TRx Tracker vs LBE'!G:G),IF($F$7="Zecuity",SUMIFS('IMS Data'!M:M,'IMS Data'!C:C,'TRx Tracker vs AOP'!G:G))))))))))) -> 0 | I59: =IF($F$7="Zecuity",SUMIFS('Zecuity Weekly Forecast'!D:D,'Zecuity Weekly Forecast'!A:A,'TRx Tracker vs LBE'!G:G),IF($F$7="Nuvigil",SUMIFS('NUVIGIL Goals'!$D:$D,'NUVIGIL Goals'!$B:$B,'TRx Tracker vs LBE'!$F:$F),SUMIFS($15:$15,$9:$9,$E:$E)/SUMIFS($18:$18,$9:$9,$E:$E))) -> 758.1672228 | J59: -758.1672228
E60: 9 | F60: 39 | G60: 2016-09-30 | H60: =IF($F$7="Nuvigil",SUMIFS('IMS Data'!D:D,'IMS Data'!C:C,'TRx Tracker vs LBE'!G:G),IF('TRx Tracker vs LBE'!$F$7="Fentora",SUMIFS('IMS Data'!F:F,'IMS Data'!C:C,'TRx Tracker vs LBE'!G:G),IF('TRx Tracker vs LBE'!$F$7="Amrix",SUMIFS('IMS Data'!E:E,'IMS Data'!C:C,'TRx Tracker vs LBE'!G:G),IF('TRx Tracker vs LBE'!$F$7="Provigil",SUMIFS('IMS Data'!I:I,'IMS Data'!C:C,'TRx Tracker vs LBE'!G:G),IF('TRx Tracker vs LBE'!$F$7="Gabitril",SUMIFS('IMS Data'!H:H,'IMS Data'!C:C,'TRx Tracker vs LBE'!G:G),IF('TRx Tracker vs LBE'!$F$7="Actiq",SUMIFS('IMS Data'!G:G,'IMS Data'!C:C,'TRx Tracker vs LBE'!G:G),IF($F$7="Copaxone 20",SUMIFS('IMS Data'!J:J,'IMS Data'!C:C,'TRx Tracker vs AOP'!G:G),IF($F$7="Copaxone 40",SUMIFS('IMS Data'!K:K,'IMS Data'!C:C,'TRx Tracker vs AOP'!G:G),IF($F$7="Azilect",SUMIFS('IMS Data'!L:L,'IMS Data'!C:C,'TRx Tracker vs LBE'!G:G),IF($F$7="Zecuity",SUMIFS('IMS Data'!M:M,'IMS Data'!C:C,'TRx Tracker vs AOP'!G:G))))))))))) -> 0 | I60: =IF($F$7="Zecuity",SUMIFS('Zecuity Weekly Forecast'!D:D,'Zecuity Weekly Forecast'!A:A,'TRx Tracker vs LBE'!G:G),IF($F$7="Nuvigil",SUMIFS('NUVIGIL Goals'!$D:$D,'NUVIGIL Goals'!$B:$B,'TRx Tracker vs LBE'!$F:$F),SUMIFS($15:$15,$9:$9,$E:$E)/SUMIFS($18:$18,$9:$9,$E:$E))) -> 765.3572784 | J60: -765.3572784
E61: 10 | F61: 40 | G61: 2016-10-07 | H61: =IF($F$7="Nuvigil",SUMIFS('IMS Data'!D:D,'IMS Data'!C:C,'TRx Tracker vs LBE'!G:G),IF('TRx Tracker vs LBE'!$F$7="Fentora",SUMIFS('IMS Data'!F:F,'IMS Data'!C:C,'TRx Tracker vs LBE'!G:G),IF('TRx Tracker vs LBE'!$F$7="Amrix",SUMIFS('IMS Data'!E:E,'IMS Data'!C:C,'TRx Tracker vs LBE'!G:G),IF('TRx Tracker vs LBE'!$F$7="Provigil",SUMIFS('IMS Data'!I:I,'IMS Data'!C:C,'TRx Tracker vs LBE'!G:G),IF('TRx Tracker vs LBE'!$F$7="Gabitril",SUMIFS('IMS Data'!H:H,'IMS Data'!C:C,'TRx Tracker vs LBE'!G:G),IF('TRx Tracker vs LBE'!$F$7="Actiq",SUMIFS('IMS Data'!G:G,'IMS Data'!C:C,'TRx Tracker vs LBE'!G:G),IF($F$7="Copaxone 20",SUMIFS('IMS Data'!J:J,'IMS Data'!C:C,'TRx Tracker vs AOP'!G:G),IF($F$7="Copaxone 40",SUMIFS('IMS Data'!K:K,'IMS Data'!C:C,'TRx Tracker vs AOP'!G:G),IF($F$7="Azilect",SUMIFS('IMS Data'!L:L,'IMS Data'!C:C,'TRx Tracker vs LBE'!G:G),IF($F$7="Zecuity",SUMIFS('IMS Data'!M:M,'IMS Data'!C:C,'TRx Tracker vs AOP'!G:G))))))))))) -> 0 | I61: =IF($F$7="Zecuity",SUMIFS('Zecuity Weekly Forecast'!D:D,'Zecuity Weekly Forecast'!A:A,'TRx Tracker vs LBE'!G:G),IF($F$7="Nuvigil",SUMIFS('NUVIGIL Goals'!$D:$D,'NUVIGIL Goals'!$B:$B,'TRx Tracker vs LBE'!$F:$F),SUMIFS($15:$15,$9:$9,$E:$E)/SUMIFS($18:$18,$9:$9,$E:$E))) -> 770.7669475 | J61: -770.7669475
E62: 10 | F62: 41 | G62: 2016-10-14 | H62: =IF($F$7="Nuvigil",SUMIFS('IMS Data'!D:D,'IMS Data'!C:C,'TRx Tracker vs LBE'!G:G),IF('TRx Tracker vs LBE'!$F$7="Fentora",SUMIFS('IMS Data'!F:F,'IMS Data'!C:C,'TRx Tracker vs LBE'!G:G),IF('TRx Tracker vs LBE'!$F$7="Amrix",SUMIFS('IMS Data'!E:E,'IMS Data'!C:C,'TRx Tracker vs LBE'!G:G),IF('TRx Tracker vs LBE'!$F$7="Provigil",SUMIFS('IMS Data'!I:I,'IMS Data'!C:C,'TRx Tracker vs LBE'!G:G),IF('TRx Tracker vs LBE'!$F$7="Gabitril",SUMIFS('IMS Data'!H:H,'IMS Data'!C:C,'TRx Tracker vs LBE'!G:G),IF('TRx Tracker vs LBE'!$F$7="Actiq",SUMIFS('IMS Data'!G:G,'IMS Data'!C:C,'TRx Tracker vs LBE'!G:G),IF($F$7="Copaxone 20",SUMIFS('IMS Data'!J:J,'IMS Data'!C:C,'TRx Tracker vs AOP'!G:G),IF($F$7="Copaxone 40",SUMIFS('IMS Data'!K:K,'IMS Data'!C:C,'TRx Tracker vs AOP'!G:G),IF($F$7="Azilect",SUMIFS('IMS Data'!L:L,'IMS Data'!C:C,'TRx Tracker vs LBE'!G:G),IF($F$7="Zecuity",SUMIFS('IMS Data'!M:M,'IMS Data'!C:C,'TRx Tracker vs AOP'!G:G))))))))))) -> 0 | I62: =IF($F$7="Zecuity",SUMIFS('Zecuity Weekly Forecast'!D:D,'Zecuity Weekly Forecast'!A:A,'TRx Tracker vs LBE'!G:G),IF($F$7="Nuvigil",SUMIFS('NUVIGIL Goals'!$D:$D,'NUVIGIL Goals'!$B:$B,'TRx Tracker vs LBE'!$F:$F),SUMIFS($15:$15,$9:$9,$E:$E)/SUMIFS($18:$18,$9:$9,$E:$E))) -> 771.4005939 | J62: -771.4005939
E63: 10 | F63: 42 | G63: 2016-10-21 | H63: =IF($F$7="Nuvigil",SUMIFS('IMS Data'!D:D,'IMS Data'!C:C,'TRx Tracker vs LBE'!G:G),IF('TRx Tracker vs LBE'!$F$7="Fentora",SUMIFS('IMS Data'!F:F,'IMS Data'!C:C,'TRx Tracker vs LBE'!G:G),IF('TRx Tracker vs LBE'!$F$7="Amrix",SUMIFS('IMS Data'!E:E,'IMS Data'!C:C,'TRx Tracker vs LBE'!G:G),IF('TRx Tracker vs LBE'!$F$7="Provigil",SUMIFS('IMS Data'!I:I,'IMS Data'!C:C,'TRx Tracker vs LBE'!G:G),IF('TRx Tracker vs LBE'!$F$7="Gabitril",SUMIFS('IMS Data'!H:H,'IMS Data'!C:C,'TRx Tracker vs LBE'!G:G),IF('TRx Tracker vs LBE'!$F$7="Actiq",SUMIFS('IMS Data'!G:G,'IMS Data'!C:C,'TRx Tracker vs LBE'!G:G),IF($F$7="Copaxone 20",SUMIFS('IMS Data'!J:J,'IMS Data'!C:C,'TRx Tracker vs AOP'!G:G),IF($F$7="Copaxone 40",SUMIFS('IMS Data'!K:K,'IMS Data'!C:C,'TRx Tracker vs AOP'!G:G),IF($F$7="Azilect",SUMIFS('IMS Data'!L:L,'IMS Data'!C:C,'TRx Tracker vs LBE'!G:G),IF($F$7="Zecuity",SUMIFS('IMS Data'!M:M,'IMS Data'!C:C,'TRx Tracker vs AOP'!G:G))))))))))) -> 0 | I63: =IF($F$7="Zecuity",SUMIFS('Zecuity Weekly Forecast'!D:D,'Zecuity Weekly Forecast'!A:A,'TRx Tracker vs LBE'!G:G),IF($F$7="Nuvigil",SUMIFS('NUVIGIL Goals'!$D:$D,'NUVIGIL Goals'!$B:$B,'TRx Tracker vs LBE'!$F:$F),SUMIFS($15:$15,$9:$9,$E:$E)/SUMIFS($18:$18,$9:$9,$E:$E))) -> 764.9701491 | J63: -764.9701491
E64: 10 | F64: 43 | G64: 2016-10-28 | H64: =IF($F$7="Nuvigil",SUMIFS('IMS Data'!D:D,'IMS Data'!C:C,'TRx Tracker vs LBE'!G:G),IF('TRx Tracker vs LBE'!$F$7="Fentora",SUMIFS('IMS Data'!F:F,'IMS Data'!C:C,'TRx Tracker vs LBE'!G:G),IF('TRx Tracker vs LBE'!$F$7="Amrix",SUMIFS('IMS Data'!E:E,'IMS Data'!C:C,'TRx Tracker vs LBE'!G:G),IF('TRx Tracker vs LBE'!$F$7="Provigil",SUMIFS('IMS Data'!I:I,'IMS Data'!C:C,'TRx Tracker vs LBE'!G:G),IF('TRx Tracker vs LBE'!$F$7="Gabitril",SUMIFS('IMS Data'!H:H,'IMS Data'!C:C,'TRx Tracker vs LBE'!G:G),IF('TRx Tracker vs LBE'!$F$7="Actiq",SUMIFS('IMS Data'!G:G,'IMS Data'!C:C,'TRx Tracker vs LBE'!G:G),IF($F$7="Copaxone 20",SUMIFS('IMS Data'!J:J,'IMS Data'!C:C,'TRx Tracker vs AOP'!G:G),IF($F$7="Copaxone 40",SUMIFS('IMS Data'!K:K,'IMS Data'!C:C,'TRx Tracker vs AOP'!G:G),IF($F$7="Azilect",SUMIFS('IMS Data'!L:L,'IMS Data'!C:C,'TRx Tracker vs LBE'!G:G),IF($F$7="Zecuity",SUMIFS('IMS Data'!M:M,'IMS Data'!C:C,'TRx Tracker vs AOP'!G:G))))))))))) -> 0 | I64: =IF($F$7="Zecuity",SUMIFS('Zecuity Weekly Forecast'!D:D,'Zecuity Weekly Forecast'!A:A,'TRx Tracker vs LBE'!G:G),IF($F$7="Nuvigil",SUMIFS('NUVIGIL Goals'!$D:$D,'NUVIGIL Goals'!$B:$B,'TRx Tracker vs LBE'!$F:$F),SUMIFS($15:$15,$9:$9,$E:$E)/SUMIFS($18:$18,$9:$9,$E:$E))) -> 753.8906014 | J64: -753.8906014
E65: 11 | F65: 44 | G65: 2016-11-04 | H65: =IF($F$7="Nuvigil",SUMIFS('IMS Data'!D:D,'IMS Data'!C:C,'TRx Tracker vs LBE'!G:G),IF('TRx Tracker vs LBE'!$F$7="Fentora",SUMIFS('IMS Data'!F:F,'IMS Data'!C:C,'TRx Tracker vs LBE'!G:G),IF('TRx Tracker vs LBE'!$F$7="Amrix",SUMIFS('IMS Data'!E:E,'IMS Data'!C:C,'TRx Tracker vs LBE'!G:G),IF('TRx Tracker vs LBE'!$F$7="Provigil",SUMIFS('IMS Data'!I:I,'IMS Data'!C:C,'TRx Tracker vs LBE'!G:G),IF('TRx Tracker vs LBE'!$F$7="Gabitril",SUMIFS('IMS Data'!H:H,'IMS Data'!C:C,'TRx Tracker vs LBE'!G:G),IF('TRx Tracker vs LBE'!$F$7="Actiq",SUMIFS('IMS Data'!G:G,'IMS Data'!C:C,'TRx Tracker vs LBE'!G:G),IF($F$7="Copaxone 20",SUMIFS('IMS Data'!J:J,'IMS Data'!C:C,'TRx Tracker vs AOP'!G:G),IF($F$7="Copaxone 40",SUMIFS('IMS Data'!K:K,'IMS Data'!C:C,'TRx Tracker vs AOP'!G:G),IF($F$7="Azilect",SUMIFS('IMS Data'!L:L,'IMS Data'!C:C,'TRx Tracker vs LBE'!G:G),IF($F$7="Zecuity",SUMIFS('IMS Data'!M:M,'IMS Data'!C:C,'TRx Tracker vs AOP'!G:G))))))))))) -> 0 | I65: =IF($F$7="Zecuity",SUMIFS('Zecuity Weekly Forecast'!D:D,'Zecuity Weekly Forecast'!A:A,'TRx Tracker vs LBE'!G:G),IF($F$7="Nuvigil",SUMIFS('NUVIGIL Goals'!$D:$D,'NUVIGIL Goals'!$B:$B,'TRx Tracker vs LBE'!$F:$F),SUMIFS($15:$15,$9:$9,$E:$E)/SUMIFS($18:$18,$9:$9,$E:$E))) -> 742.4954769 | J65: -742.4954769
E66: 11 | F66: 45 | G66: 2016-11-11 | H66: =IF($F$7="Nuvigil",SUMIFS('IMS Data'!D:D,'IMS Data'!C:C,'TRx Tracker vs LBE'!G:G),IF('TRx Tracker vs LBE'!$F$7="Fentora",SUMIFS('IMS Data'!F:F,'IMS Data'!C:C,'TRx Tracker vs LBE'!G:G),IF('TRx Tracker vs LBE'!$F$7="Amrix",SUMIFS('IMS Data'!E:E,'IMS Data'!C:C,'TRx Tracker vs LBE'!G:G),IF('TRx Tracker vs LBE'!$F$7="Provigil",SUMIFS('IMS Data'!I:I,'IMS Data'!C:C,'TRx Tracker vs LBE'!G:G),IF('TRx Tracker vs LBE'!$F$7="Gabitril",SUMIFS('IMS Data'!H:H,'IMS Data'!C:C,'TRx Tracker vs LBE'!G:G),IF('TRx Tracker vs LBE'!$F$7="Actiq",SUMIFS('IMS Data'!G:G,'IMS Data'!C:C,'TRx Tracker vs LBE'!G:G),IF($F$7="Copaxone 20",SUMIFS('IMS Data'!J:J,'IMS Data'!C:C,'TRx Tracker vs AOP'!G:G),IF($F$7="Copaxone 40",SUMIFS('IMS Data'!K:K,'IMS Data'!C:C,'TRx Tracker vs AOP'!G:G),IF($F$7="Azilect",SUMIFS('IMS Data'!L:L,'IMS Data'!C:C,'TRx Tracker vs LBE'!G:G),IF($F$7="Zecuity",SUMIFS('IMS Data'!M:M,'IMS Data'!C:C,'TRx Tracker vs AOP'!G:G))))))))))) -> 0 | I66: =IF($F$7="Zecuity",SUMIFS('Zecuity Weekly Forecast'!D:D,'Zecuity Weekly Forecast'!A:A,'TRx Tracker vs LBE'!G:G),IF($F$7="Nuvigil",SUMIFS('NUVIGIL Goals'!$D:$D,'NUVIGIL Goals'!$B:$B,'TRx Tracker vs LBE'!$F:$F),SUMIFS($15:$15,$9:$9,$E:$E)/SUMIFS($18:$18,$9:$9,$E:$E))) -> 735.1238631 | J66: -735.1238631
E67: 11 | F67: 46 | G67: 2016-11-18 | H67: =IF($F$7="Nuvigil",SUMIFS('IMS Data'!D:D,'IMS Data'!C:C,'TRx Tracker vs LBE'!G:G),IF('TRx Tracker vs LBE'!$F$7="Fentora",SUMIFS('IMS Data'!F:F,'IMS Data'!C:C,'TRx Tracker vs LBE'!G:G),IF('TRx Tracker vs LBE'!$F$7="Amrix",SUMIFS('IMS Data'!E:E,'IMS Data'!C:C,'TRx Tracker vs LBE'!G:G),IF('TRx Tracker vs LBE'!$F$7="Provigil",SUMIFS('IMS Data'!I:I,'IMS Data'!C:C,'TRx Tracker vs LBE'!G:G),IF('TRx Tracker vs LBE'!$F$7="Gabitril",SUMIFS('IMS Data'!H:H,'IMS Data'!C:C,'TRx Tracker vs LBE'!G:G),IF('TRx Tracker vs LBE'!$F$7="Actiq",SUMIFS('IMS Data'!G:G,'IMS Data'!C:C,'TRx Tracker vs LBE'!G:G),IF($F$7="Copaxone 20",SUMIFS('IMS Data'!J:J,'IMS Data'!C:C,'TRx Tracker vs AOP'!G:G),IF($F$7="Copaxone 40",SUMIFS('IMS Data'!K:K,'IMS Data'!C:C,'TRx Tracker vs AOP'!G:G),IF($F$7="Azilect",SUMIFS('IMS Data'!L:L,'IMS Data'!C:C,'TRx Tracker vs LBE'!G:G),IF($F$7="Zecuity",SUMIFS('IMS Data'!M:M,'IMS Data'!C:C,'TRx Tracker vs AOP'!G:G))))))))))) -> 0 | I67: =IF($F$7="Zecuity",SUMIFS('Zecuity Weekly Forecast'!D:D,'Zecuity Weekly Forecast'!A:A,'TRx Tracker vs LBE'!G:G),IF($F$7="Nuvigil",SUMIFS('NUVIGIL Goals'!$D:$D,'NUVIGIL Goals'!$B:$B,'TRx Tracker vs LBE'!$F:$F),SUMIFS($15:$15,$9:$9,$E:$E)/SUMIFS($18:$18,$9:$9,$E:$E))) -> 735.9738921 | J67: -735.9738921
E68: 11 | F68: 47 | G68: 2016-11-25 | H68: =IF($F$7="Nuvigil",SUMIFS('IMS Data'!D:D,'IMS Data'!C:C,'TRx Tracker vs LBE'!G:G),IF('TRx Tracker vs LBE'!$F$7="Fentora",SUMIFS('IMS Data'!F:F,'IMS Data'!C:C,'TRx Tracker vs LBE'!G:G),IF('TRx Tracker vs LBE'!$F$7="Amrix",SUMIFS('IMS Data'!E:E,'IMS Data'!C:C,'TRx Tracker vs LBE'!G:G),IF('TRx Tracker vs LBE'!$F$7="Provigil",SUMIFS('IMS Data'!I:I,'IMS Data'!C:C,'TRx Tracker vs LBE'!G:G),IF('TRx Tracker vs LBE'!$F$7="Gabitril",SUMIFS('IMS Data'!H:H,'IMS Data'!C:C,'TRx Tracker vs LBE'!G:G),IF('TRx Tracker vs LBE'!$F$7="Actiq",SUMIFS('IMS Data'!G:G,'IMS Data'!C:C,'TRx Tracker vs LBE'!G:G),IF($F$7="Copaxone 20",SUMIFS('IMS Data'!J:J,'IMS Data'!C:C,'TRx Tracker vs AOP'!G:G),IF($F$7="Copaxone 40",SUMIFS('IMS Data'!K:K,'IMS Data'!C:C,'TRx Tracker vs AOP'!G:G),IF($F$7="Azilect",SUMIFS('IMS Data'!L:L,'IMS Data'!C:C,'TRx Tracker vs LBE'!G:G),IF($F$7="Zecuity",SUMIFS('IMS Data'!M:M,'IMS Data'!C:C,'TRx Tracker vs AOP'!G:G))))))))))) -> 0 | I68: =IF($F$7="Zecuity",SUMIFS('Zecuity Weekly Forecast'!D:D,'Zecuity Weekly Forecast'!A:A,'TRx Tracker vs LBE'!G:G),IF($F$7="Nuvigil",SUMIFS('NUVIGIL Goals'!$D:$D,'NUVIGIL Goals'!$B:$B,'TRx Tracker vs LBE'!$F:$F),SUMIFS($15:$15,$9:$9,$E:$E)/SUMIFS($18:$18,$9:$9,$E:$E))) -> 745.9997472 | J68: -745.9997472
E69: 12 | F69: 48 | G69: 2016-12-02 | H69: =IF($F$7="Nuvigil",SUMIFS('IMS Data'!D:D,'IMS Data'!C:C,'TRx Tracker vs LBE'!G:G),IF('TRx Tracker vs LBE'!$F$7="Fentora",SUMIFS('IMS Data'!F:F,'IMS Data'!C:C,'TRx Tracker vs LBE'!G:G),IF('TRx Tracker vs LBE'!$F$7="Amrix",SUMIFS('IMS Data'!E:E,'IMS Data'!C:C,'TRx Tracker vs LBE'!G:G),IF('TRx Tracker vs LBE'!$F$7="Provigil",SUMIFS('IMS Data'!I:I,'IMS Data'!C:C,'TRx Tracker vs LBE'!G:G),IF('TRx Tracker vs LBE'!$F$7="Gabitril",SUMIFS('IMS Data'!H:H,'IMS Data'!C:C,'TRx Tracker vs LBE'!G:G),IF('TRx Tracker vs LBE'!$F$7="Actiq",SUMIFS('IMS Data'!G:G,'IMS Data'!C:C,'TRx Tracker vs LBE'!G:G),IF($F$7="Copaxone 20",SUMIFS('IMS Data'!J:J,'IMS Data'!C:C,'TRx Tracker vs AOP'!G:G),IF($F$7="Copaxone 40",SUMIFS('IMS Data'!K:K,'IMS Data'!C:C,'TRx Tracker vs AOP'!G:G),IF($F$7="Azilect",SUMIFS('IMS Data'!L:L,'IMS Data'!C:C,'TRx Tracker vs LBE'!G:G),IF($F$7="Zecuity",SUMIFS('IMS Data'!M:M,'IMS Data'!C:C,'TRx Tracker vs AOP'!G:G))))))))))) -> 0 | I69: =IF($F$7="Zecuity",SUMIFS('Zecuity Weekly Forecast'!D:D,'Zecuity Weekly Forecast'!A:A,'TRx Tracker vs LBE'!G:G),IF($F$7="Nuvigil",SUMIFS('NUVIGIL Goals'!$D:$D,'NUVIGIL Goals'!$B:$B,'TRx Tracker vs LBE'!$F:$F),SUMIFS($15:$15,$9:$9,$E:$E)/SUMIFS($18:$18,$9:$9,$E:$E))) -> 762.9120516 | J69: -762.9120516
E70: 12 | F70: 49 | G70: 2016-12-09 | H70: =IF($F$7="Nuvigil",SUMIFS('IMS Data'!D:D,'IMS Data'!C:C,'TRx Tracker vs LBE'!G:G),IF('TRx Tracker vs LBE'!$F$7="Fentora",SUMIFS('IMS Data'!F:F,'IMS Data'!C:C,'TRx Tracker vs LBE'!G:G),IF('TRx Tracker vs LBE'!$F$7="Amrix",SUMIFS('IMS Data'!E:E,'IMS Data'!C:C,'TRx Tracker vs LBE'!G:G),IF('TRx Tracker vs LBE'!$F$7="Provigil",SUMIFS('IMS Data'!I:I,'IMS Data'!C:C,'TRx Tracker vs LBE'!G:G),IF('TRx Tracker vs LBE'!$F$7="Gabitril",SUMIFS('IMS Data'!H:H,'IMS Data'!C:C,'TRx Tracker vs LBE'!G:G),IF('TRx Tracker vs LBE'!$F$7="Actiq",SUMIFS('IMS Data'!G:G,'IMS Data'!C:C,'TRx Tracker vs LBE'!G:G),IF($F$7="Copaxone 20",SUMIFS('IMS Data'!J:J,'IMS Data'!C:C,'TRx Tracker vs AOP'!G:G),IF($F$7="Copaxone 40",SUMIFS('IMS Data'!K:K,'IMS Data'!C:C,'TRx Tracker vs AOP'!G:G),IF($F$7="Azilect",SUMIFS('IMS Data'!L:L,'IMS Data'!C:C,'TRx Tracker vs LBE'!G:G),IF($F$7="Zecuity",SUMIFS('IMS Data'!M:M,'IMS Data'!C:C,'TRx Tracker vs AOP'!G:G))))))))))) -> 0 | I70: =IF($F$7="Zecuity",SUMIFS('Zecuity Weekly Forecast'!D:D,'Zecuity Weekly Forecast'!A:A,'TRx Tracker vs LBE'!G:G),IF($F$7="Nuvigil",SUMIFS('NUVIGIL Goals'!$D:$D,'NUVIGIL Goals'!$B:$B,'TRx Tracker vs LBE'!$F:$F),SUMIFS($15:$15,$9:$9,$E:$E)/SUMIFS($18:$18,$9:$9,$E:$E))) -> 784.2802237 | J70: -784.2802237
E71: 12 | F71: 50 | G71: 2016-12-16 | H71: =IF($F$7="Nuvigil",SUMIFS('IMS Data'!D:D,'IMS Data'!C:C,'TRx Tracker vs LBE'!G:G),IF('TRx Tracker vs LBE'!$F$7="Fentora",SUMIFS('IMS Data'!F:F,'IMS Data'!C:C,'TRx Tracker vs LBE'!G:G),IF('TRx Tracker vs LBE'!$F$7="Amrix",SUMIFS('IMS Data'!E:E,'IMS Data'!C:C,'TRx Tracker vs LBE'!G:G),IF('TRx Tracker vs LBE'!$F$7="Provigil",SUMIFS('IMS Data'!I:I,'IMS Data'!C:C,'TRx Tracker vs LBE'!G:G),IF('TRx Tracker vs LBE'!$F$7="Gabitril",SUMIFS('IMS Data'!H:H,'IMS Data'!C:C,'TRx Tracker vs LBE'!G:G),IF('TRx Tracker vs LBE'!$F$7="Actiq",SUMIFS('IMS Data'!G:G,'IMS Data'!C:C,'TRx Tracker vs LBE'!G:G),IF($F$7="Copaxone 20",SUMIFS('IMS Data'!J:J,'IMS Data'!C:C,'TRx Tracker vs AOP'!G:G),IF($F$7="Copaxone 40",SUMIFS('IMS Data'!K:K,'IMS Data'!C:C,'TRx Tracker vs AOP'!G:G),IF($F$7="Azilect",SUMIFS('IMS Data'!L:L,'IMS Data'!C:C,'TRx Tracker vs LBE'!G:G),IF($F$7="Zecuity",SUMIFS('IMS Data'!M:M,'IMS Data'!C:C,'TRx Tracker vs AOP'!G:G))))))))))) -> 0 | I71: =IF($F$7="Zecuity",SUMIFS('Zecuity Weekly Forecast'!D:D,'Zecuity Weekly Forecast'!A:A,'TRx Tracker vs LBE'!G:G),IF($F$7="Nuvigil",SUMIFS('NUVIGIL Goals'!$D:$D,'NUVIGIL Goals'!$B:$B,'TRx Tracker vs LBE'!$F:$F),SUMIFS($15:$15,$9:$9,$E:$E)/SUMIFS($18:$18,$9:$9,$E:$E))) -> 807.6737568 | J71: -807.6737568
E72: 12 | F72: 51 | G72: 2016-12-23 | H72: =IF($F$7="Nuvigil",SUMIFS('IMS Data'!D:D,'IMS Data'!C:C,'TRx Tracker vs LBE'!G:G),IF('TRx Tracker vs LBE'!$F$7="Fentora",SUMIFS('IMS Data'!F:F,'IMS Data'!C:C,'TRx Tracker vs LBE'!G:G),IF('TRx Tracker vs LBE'!$F$7="Amrix",SUMIFS('IMS Data'!E:E,'IMS Data'!C:C,'TRx Tracker vs LBE'!G:G),IF('TRx Tracker vs LBE'!$F$7="Provigil",SUMIFS('IMS Data'!I:I,'IMS Data'!C:C,'TRx Tracker vs LBE'!G:G),IF('TRx Tracker vs LBE'!$F$7="Gabitril",SUMIFS('IMS Data'!H:H,'IMS Data'!C:C,'TRx Tracker vs LBE'!G:G),IF('TRx Tracker vs LBE'!$F$7="Actiq",SUMIFS('IMS Data'!G:G,'IMS Data'!C:C,'TRx Tracker vs LBE'!G:G),IF($F$7="Copaxone 20",SUMIFS('IMS Data'!J:J,'IMS Data'!C:C,'TRx Tracker vs AOP'!G:G),IF($F$7="Copaxone 40",SUMIFS('IMS Data'!K:K,'IMS Data'!C:C,'TRx Tracker vs AOP'!G:G),IF($F$7="Azilect",SUMIFS('IMS Data'!L:L,'IMS Data'!C:C,'TRx Tracker vs LBE'!G:G),IF($F$7="Zecuity",SUMIFS('IMS Data'!M:M,'IMS Data'!C:C,'TRx Tracker vs AOP'!G:G))))))))))) -> 0 | I72: =IF($F$7="Zecuity",SUMIFS('Zecuity Weekly Forecast'!D:D,'Zecuity Weekly Forecast'!A:A,'TRx Tracker vs LBE'!G:G),IF($F$7="Nuvigil",SUMIFS('NUVIGIL Goals'!$D:$D,'NUVIGIL Goals'!$B:$B,'TRx Tracker vs LBE'!$F:$F),SUMIFS($15:$15,$9:$9,$E:$E)/SUMIFS($18:$18,$9:$9,$E:$E))) -> 830.6621729 | J72: -830.6621729
E73: 12 | F73: 52 | G73: 2016-12-30 | H73: =IF($F$7="Nuvigil",SUMIFS('IMS Data'!D:D,'IMS Data'!C:C,'TRx Tracker vs LBE'!G:G),IF('TRx Tracker vs LBE'!$F$7="Fentora",SUMIFS('IMS Data'!F:F,'IMS Data'!C:C,'TRx Tracker vs LBE'!G:G),IF('TRx Tracker vs LBE'!$F$7="Amrix",SUMIFS('IMS Data'!E:E,'IMS Data'!C:C,'TRx Tracker vs LBE'!G:G),IF('TRx Tracker vs LBE'!$F$7="Provigil",SUMIFS('IMS Data'!I:I,'IMS Data'!C:C,'TRx Tracker vs LBE'!G:G),IF('TRx Tracker vs LBE'!$F$7="Gabitril",SUMIFS('IMS Data'!H:H,'IMS Data'!C:C,'TRx Tracker vs LBE'!G:G),IF('TRx Tracker vs LBE'!$F$7="Actiq",SUMIFS('IMS Data'!G:G,'IMS Data'!C:C,'TRx Tracker vs LBE'!G:G),IF($F$7="Copaxone 20",SUMIFS('IMS Data'!J:J,'IMS Data'!C:C,'TRx Tracker vs AOP'!G:G),IF($F$7="Copaxone 40",SUMIFS('IMS Data'!K:K,'IMS Data'!C:C,'TRx Tracker vs AOP'!G:G),IF($F$7="Azilect",SUMIFS('IMS Data'!L:L,'IMS Data'!C:C,'TRx Tracker vs LBE'!G:G),IF($F$7="Zecuity",SUMIFS('IMS Data'!M:M,'IMS Data'!C:C,'TRx Tracker vs AOP'!G:G))))))))))) -> 0 | I73: =IF($F$7="Zecuity",SUMIFS('Zecuity Weekly Forecast'!D:D,'Zecuity Weekly Forecast'!A:A,'TRx Tracker vs LBE'!G:G),IF($F$7="Nuvigil",SUMIFS('NUVIGIL Goals'!$D:$D,'NUVIGIL Goals'!$B:$B,'TRx Tracker vs LBE'!$F:$F),SUMIFS($15:$15,$9:$9,$E:$E)/SUMIFS($18:$18,$9:$9,$E:$E))) -> 850.8149727 | J73: -850.8149727

Sheet Fentora Tracker
C4: Fentora TRx Tracker
K6: Baseline | L6: Current Volume
D7: Select Product | F7: Fentora | I7: Rolling 12 Weeks | K7: 295399 | L7: =SUM('Fentora 2017'!K114:K125) -> 287375
D9: 1 | E9: 2 | F9: 3 | G9: 4 | H9: 5 | I9: 6 | J9: 7 | K9: 8 | L9: 9 | M9: 10 | N9: 11 | O9: 12
D10: Jan | E10: Feb | F10: Mar | G10: Apr | H10: May | I10: Jun | J10: Jul | K10: Aug | L10: Sep | M10: Oct | N10: Nov | O10: Dec
C11: Unit Forecast | D11: =SUMIFS('Data Inputs'!D:D,'Data Inputs'!$C:$C,'Fentora Tracker'!$F$7,'Data Inputs'!$B:$B,'Fentora Tracker'!$C:$C,'Data Inputs'!$A:$A,"LBE") -> 0 | E11: =SUMIFS('Data Inputs'!E:E,'Data Inputs'!$C:$C,'Fentora Tracker'!$F$7,'Data Inputs'!$B:$B,'Fentora Tracker'!$C:$C,'Data Inputs'!$A:$A,"LBE") -> 0 | F11: =SUMIFS('Data Inputs'!F:F,'Data Inputs'!$C:$C,'Fentora Tracker'!$F$7,'Data Inputs'!$B:$B,'Fentora Tracker'!$C:$C,'Data Inputs'!$A:$A,"LBE") -> 0 | G11: =SUMIFS('Data Inputs'!G:G,'Data Inputs'!$C:$C,'Fentora Tracker'!$F$7,'Data Inputs'!$B:$B,'Fentora Tracker'!$C:$C,'Data Inputs'!$A:$A,"LBE") -> 0 | H11: =SUMIFS('Data Inputs'!H:H,'Data Inputs'!$C:$C,'Fentora Tracker'!$F$7,'Data Inputs'!$B:$B,'Fentora Tracker'!$C:$C,'Data Inputs'!$A:$A,"LBE") -> 0 | I11: =SUMIFS('Data Inputs'!I:I,'Data Inputs'!$C:$C,'Fentora Tracker'!$F$7,'Data Inputs'!$B:$B,'Fentora Tracker'!$C:$C,'Data Inputs'!$A:$A,"LBE") -> 0 | J11: =SUMIFS('Data Inputs'!J:J,'Data Inputs'!$C:$C,'Fentora Tracker'!$F$7,'Data Inputs'!$B:$B,'Fentora Tracker'!$C:$C,'Data Inputs'!$A:$A,"LBE") -> 0 | K11: =SUMIFS('Data Inputs'!K:K,'Data Inputs'!$C:$C,'Fentora Tracker'!$F$7,'Data Inputs'!$B:$B,'Fentora Tracker'!$C:$C,'Data Inputs'!$A:$A,"LBE") -> 0 | L11: =SUMIFS('Data Inputs'!L:L,'Data Inputs'!$C:$C,'Fentora Tracker'!$F$7,'Data Inputs'!$B:$B,'Fentora Tracker'!$C:$C,'Data Inputs'!$A:$A,"LBE") -> 0 | M11: =SUMIFS('Data Inputs'!M:M,'Data Inputs'!$C:$C,'Fentora Tracker'!$F$7,'Data Inputs'!$B:$B,'Fentora Tracker'!$C:$C,'Data Inputs'!$A:$A,"LBE") -> 0 | N11: =SUMIFS('Data Inputs'!N:N,'Data Inputs'!$C:$C,'Fentora Tracker'!$F$7,'Data Inputs'!$B:$B,'Fentora Tracker'!$C:$C,'Data Inputs'!$A:$A,"LBE") -> 0 | O11: =SUMIFS('Data Inputs'!O:O,'Data Inputs'!$C:$C,'Fentora Tracker'!$F$7,'Data Inputs'!$B:$B,'Fentora Tracker'!$C:$C,'Data Inputs'!$A:$A,"LBE") -> 0
C12: Bottle Size | D12: =SUMIFS('Data Inputs'!D:D,'Data Inputs'!$C:$C,'Fentora Tracker'!$F$7,'Data Inputs'!$B:$B,'Fentora Tracker'!$C:$C,'Data Inputs'!$A:$A,"LBE") -> 28 | E12: =SUMIFS('Data Inputs'!E:E,'Data Inputs'!$C:$C,'Fentora Tracker'!$F$7,'Data Inputs'!$B:$B,'Fentora Tracker'!$C:$C,'Data Inputs'!$A:$A,"LBE") -> 28 | F12: =SUMIFS('Data Inputs'!F:F,'Data Inputs'!$C:$C,'Fentora Tracker'!$F$7,'Data Inputs'!$B:$B,'Fentora Tracker'!$C:$C,'Data Inputs'!$A:$A,"LBE") -> 28 | G12: =SUMIFS('Data Inputs'!G:G,'Data Inputs'!$C:$C,'Fentora Tracker'!$F$7,'Data Inputs'!$B:$B,'Fentora Tracker'!$C:$C,'Data Inputs'!$A:$A,"LBE") -> 28 | H12: =SUMIFS('Data Inputs'!H:H,'Data Inputs'!$C:$C,'Fentora Tracker'!$F$7,'Data Inputs'!$B:$B,'Fentora Tracker'!$C:$C,'Data Inputs'!$A:$A,"LBE") -> 28 | I12: =SUMIFS('Data Inputs'!I:I,'Data Inputs'!$C:$C,'Fentora Tracker'!$F$7,'Data Inputs'!$B:$B,'Fentora Tracker'!$C:$C,'Data Inputs'!$A:$A,"LBE") -> 28 | J12: =SUMIFS('Data Inputs'!J:J,'Data Inputs'!$C:$C,'Fentora Tracker'!$F$7,'Data Inputs'!$B:$B,'Fentora Tracker'!$C:$C,'Data Inputs'!$A:$A,"LBE") -> 28 | K12: =SUMIFS('Data Inputs'!K:K,'Data Inputs'!$C:$C,'Fentora Tracker'!$F$7,'Data Inputs'!$B:$B,'Fentora Tracker'!$C:$C,'Data Inputs'!$A:$A,"LBE") -> 28 | L12: =SUMIFS('Data Inputs'!L:L,'Data Inputs'!$C:$C,'Fentora Tracker'!$F$7,'Data Inputs'!$B:$B,'Fentora Tracker'!$C:$C,'Data Inputs'!$A:$A,"LBE") -> 28 | M12: =SUMIFS('Data Inputs'!M:M,'Data Inputs'!$C:$C,'Fentora Tracker'!$F$7,'Data Inputs'!$B:$B,'Fentora Tracker'!$C:$C,'Data Inputs'!$A:$A,"LBE") -> 28 | N12: =SUMIFS('Data Inputs'!N:N,'Data Inputs'!$C:$C,'Fentora Tracker'!$F$7,'Data Inputs'!$B:$B,'Fentora Tracker'!$C:$C,'Data Inputs'!$A:$A,"LBE") -> 28 | O12: =SUMIFS('Data Inputs'!O:O,'Data Inputs'!$C:$C,'Fentora Tracker'!$F$7,'Data Inputs'!$B:$B,'Fentora Tracker'!$C:$C,'Data Inputs'!$A:$A,"LBE") -> 28
C13: Avg Units per TRx | D13: =SUMIFS('Data Inputs'!D:D,'Data Inputs'!$C:$C,'Fentora Tracker'!$F$7,'Data Inputs'!$B:$B,'Fentora Tracker'!$C:$C,'Data Inputs'!$A:$A,"LBE") -> 94 | E13: =SUMIFS('Data Inputs'!E:E,'Data Inputs'!$C:$C,'Fentora Tracker'!$F$7,'Data Inputs'!$B:$B,'Fentora Tracker'!$C:$C,'Data Inputs'!$A:$A,"LBE") -> 94 | F13: =SUMIFS('Data Inputs'!F:F,'Data Inputs'!$C:$C,'Fentora Tracker'!$F$7,'Data Inputs'!$B:$B,'Fentora Tracker'!$C:$C,'Data Inputs'!$A:$A,"LBE") -> 94 | G13: =SUMIFS('Data Inputs'!G:G,'Data Inputs'!$C:$C,'Fentora Tracker'!$F$7,'Data Inputs'!$B:$B,'Fentora Tracker'!$C:$C,'Data Inputs'!$A:$A,"LBE") -> 94 | H13: =SUMIFS('Data Inputs'!H:H,'Data Inputs'!$C:$C,'Fentora Tracker'!$F$7,'Data Inputs'!$B:$B,'Fentora Tracker'!$C:$C,'Data Inputs'!$A:$A,"LBE") -> 94 | I13: =SUMIFS('Data Inputs'!I:I,'Data Inputs'!$C:$C,'Fentora Tracker'!$F$7,'Data Inputs'!$B:$B,'Fentora Tracker'!$C:$C,'Data Inputs'!$A:$A,"LBE") -> 94 | J13: =SUMIFS('Data Inputs'!J:J,'Data Inputs'!$C:$C,'Fentora Tracker'!$F$7,'Data Inputs'!$B:$B,'Fentora Tracker'!$C:$C,'Data Inputs'!$A:$A,"LBE") -> 94 | K13: =SUMIFS('Data Inputs'!K:K,'Data Inputs'!$C:$C,'Fentora Tracker'!$F$7,'Data Inputs'!$B:$B,'Fentora Tracker'!$C:$C,'Data Inputs'!$A:$A,"LBE") -> 94 | L13: =SUMIFS('Data Inputs'!L:L,'Data Inputs'!$C:$C,'Fentora Tracker'!$F$7,'Data Inputs'!$B:$B,'Fentora Tracker'!$C:$C,'Data Inputs'!$A:$A,"LBE") -> 94 | M13: =SUMIFS('Data Inputs'!M:M,'Data Inputs'!$C:$C,'Fentora Tracker'!$F$7,'Data Inputs'!$B:$B,'Fentora Tracker'!$C:$C,'Data Inputs'!$A:$A,"LBE") -> 94 | N13: =SUMIFS('Data Inputs'!N:N,'Data Inputs'!$C:$C,'Fentora Tracker'!$F$7,'Data Inputs'!$B:$B,'Fentora Tracker'!$C:$C,'Data Inputs'!$A:$A,"LBE") -> 94 | O13: =SUMIFS('Data Inputs'!O:O,'Data Inputs'!$C:$C,'Fentora Tracker'!$F$7,'Data Inputs'!$B:$B,'Fentora Tracker'!$C:$C,'Data Inputs'!$A:$A,"LBE") -> 94
C14: NPA Capture Rate | D14: =SUMIFS('Data Inputs'!D:D,'Data Inputs'!$C:$C,'Fentora Tracker'!$F$7,'Data Inputs'!$B:$B,'Fentora Tracker'!$C:$C) -> 2 | E14: =SUMIFS('Data Inputs'!E:E,'Data Inputs'!$C:$C,'Fentora Tracker'!$F$7,'Data Inputs'!$B:$B,'Fentora Tracker'!$C:$C) -> 2 | F14: =SUMIFS('Data Inputs'!F:F,'Data Inputs'!$C:$C,'Fentora Tracker'!$F$7,'Data Inputs'!$B:$B,'Fentora Tracker'!$C:$C) -> 2 | G14: =SUMIFS('Data Inputs'!G:G,'Data Inputs'!$C:$C,'Fentora Tracker'!$F$7,'Data Inputs'!$B:$B,'Fentora Tracker'!$C:$C) -> 2 | H14: =SUMIFS('Data Inputs'!H:H,'Data Inputs'!$C:$C,'Fentora Tracker'!$F$7,'Data Inputs'!$B:$B,'Fentora Tracker'!$C:$C) -> 2 | I14: =SUMIFS('Data Inputs'!I:I,'Data Inputs'!$C:$C,'Fentora Tracker'!$F$7,'Data Inputs'!$B:$B,'Fentora Tracker'!$C:$C) -> 2 | J14: =SUMIFS('Data Inputs'!J:J,'Data Inputs'!$C:$C,'Fentora Tracker'!$F$7,'Data Inputs'!$B:$B,'Fentora Tracker'!$C:$C) -> 2 | K14: =SUMIFS('Data Inputs'!K:K,'Data Inputs'!$C:$C,'Fentora Tracker'!$F$7,'Data Inputs'!$B:$B,'Fentora Tracker'!$C:$C) -> 2 | L14: =SUMIFS('Data Inputs'!L:L,'Data Inputs'!$C:$C,'Fentora Tracker'!$F$7,'Data Inputs'!$B:$B,'Fentora Tracker'!$C:$C) -> 2 | M14: =SUMIFS('Data Inputs'!M:M,'Data Inputs'!$C:$C,'Fentora Tracker'!$F$7,'Data Inputs'!$B:$B,'Fentora Tracker'!$C:$C) -> 2 | N14: =SUMIFS('Data Inputs'!N:N,'Data Inputs'!$C:$C,'Fentora Tracker'!$F$7,'Data Inputs'!$B:$B,'Fentora Tracker'!$C:$C) -> 2 | O14: =SUMIFS('Data Inputs'!O:O,'Data Inputs'!$C:$C,'Fentora Tracker'!$F$7,'Data Inputs'!$B:$B,'Fentora Tracker'!$C:$C) -> 2
C15: TRx Forecast | D15: =SUMIFS('Data Inputs'!D:D,'Data Inputs'!$C:$C,'Fentora Tracker'!$F$7,'Data Inputs'!$B:$B,'Fentora Tracker'!$C:$C,'Data Inputs'!$A:$A,"AOP") -> 1007.509075 | E15: =SUMIFS('Data Inputs'!E:E,'Data Inputs'!$C:$C,'Fentora Tracker'!$F$7,'Data Inputs'!$B:$B,'Fentora Tracker'!$C:$C,'Data Inputs'!$A:$A,"AOP") -> 984.9872191 | F15: =SUMIFS('Data Inputs'!F:F,'Data Inputs'!$C:$C,'Fentora Tracker'!$F$7,'Data Inputs'!$B:$B,'Fentora Tracker'!$C:$C,'Data Inputs'!$A:$A,"AOP") -> 1003.260395 | G15: =SUMIFS('Data Inputs'!G:G,'Data Inputs'!$C:$C,'Fentora Tracker'!$F$7,'Data Inputs'!$B:$B,'Fentora Tracker'!$C:$C,'Data Inputs'!$A:$A,"AOP") -> 882.4566664 | H15: =SUMIFS('Data Inputs'!H:H,'Data Inputs'!$C:$C,'Fentora Tracker'!$F$7,'Data Inputs'!$B:$B,'Fentora Tracker'!$C:$C,'Data Inputs'!$A:$A,"AOP") -> 889.5993271 | I15: =SUMIFS('Data Inputs'!I:I,'Data Inputs'!$C:$C,'Fentora Tracker'!$F$7,'Data Inputs'!$B:$B,'Fentora Tracker'!$C:$C,'Data Inputs'!$A:$A,"AOP") -> 845.9842542 | J15: =SUMIFS('Data Inputs'!J:J,'Data Inputs'!$C:$C,'Fentora Tracker'!$F$7,'Data Inputs'!$B:$B,'Fentora Tracker'!$C:$C,'Data Inputs'!$A:$A,"AOP") -> 729.828 | K15: =SUMIFS('Data Inputs'!K:K,'Data Inputs'!$C:$C,'Fentora Tracker'!$F$7,'Data Inputs'!$B:$B,'Fentora Tracker'!$C:$C,'Data Inputs'!$A:$A,"AOP") -> 838.71438 | L15: =SUMIFS('Data Inputs'!L:L,'Data Inputs'!$C:$C,'Fentora Tracker'!$F$7,'Data Inputs'!$B:$B,'Fentora Tracker'!$C:$C,'Data Inputs'!$A:$A,"AOP") -> 856.4582796 | M15: =SUMIFS('Data Inputs'!M:M,'Data Inputs'!$C:$C,'Fentora Tracker'!$F$7,'Data Inputs'!$B:$B,'Fentora Tracker'!$C:$C,'Data Inputs'!$A:$A,"AOP") -> 720.5890953 | N15: =SUMIFS('Data Inputs'!N:N,'Data Inputs'!$C:$C,'Fentora Tracker'!$F$7,'Data Inputs'!$B:$B,'Fentora Tracker'!$C:$C,'Data Inputs'!$A:$A,"AOP") -> 545.2339167 | O15: =SUMIFS('Data Inputs'!O:O,'Data Inputs'!$C:$C,'Fentora Tracker'!$F$7,'Data Inputs'!$B:$B,'Fentora Tracker'!$C:$C,'Data Inputs'!$A:$A,"AOP") -> 485.1280324
C16: Actual TRxs To Date | D16: =IF($F$7="Nuvigil",SUMIFS('Split Month Calcs'!$D:$D,'Split Month Calcs'!$A:$A,'TRx Tracker vs AOP'!D9),IF($F$7="amrix",SUMIFS('Split Month Calcs'!$E:$E,'Split Month Calcs'!$A:$A,'TRx Tracker vs AOP'!D9),IF($F$7="Fentora",SUMIFS('Split Month Calcs'!$F:$F,'Split Month Calcs'!$A:$A,'TRx Tracker vs AOP'!D9),IF($F$7="Provigil",SUMIFS('Split Month Calcs'!$I:$I,'Split Month Calcs'!$A:$A,'TRx Tracker vs AOP'!D9),IF($F$7="Gabitril",SUMIFS('Split Month Calcs'!$H:$H,'Split Month Calcs'!$A:$A,'TRx Tracker vs AOP'!D9),IF($F$7="Actiq",SUMIFS('Split Month Calcs'!$G:$G,'Split Month Calcs'!$A:$A,'TRx Tracker vs AOP'!D9),IF($F$7="Copaxone 40",SUMIFS('Split Month Calcs'!$K:$K,'Split Month Calcs'!$A:$A,'TRx Tracker vs AOP'!D9),IF($F$7="Copaxone 20",SUMIFS('Split Month Calcs'!$J:$J,'Split Month Calcs'!$A:$A,'TRx Tracker vs AOP'!D9),IF($F$7="Azilect",SUMIFS('Split Month Calcs'!$L:$L,'Split Month Calcs'!$A:$A,'TRx Tracker vs AOP'!D9)))))))))) -> 417 | E16: =IF($F$7="Nuvigil",SUMIFS('Split Month Calcs'!$D:$D,'Split Month Calcs'!$A:$A,'TRx Tracker vs AOP'!E9),IF($F$7="amrix",SUMIFS('Split Month Calcs'!$E:$E,'Split Month Calcs'!$A:$A,'TRx Tracker vs AOP'!E9),IF($F$7="Fentora",SUMIFS('Split Month Calcs'!$F:$F,'Split Month Calcs'!$A:$A,'TRx Tracker vs AOP'!E9),IF($F$7="Provigil",SUMIFS('Split Month Calcs'!$I:$I,'Split Month Calcs'!$A:$A,'TRx Tracker vs AOP'!E9),IF($F$7="Gabitril",SUMIFS('Split Month Calcs'!$H:$H,'Split Month Calcs'!$A:$A,'TRx Tracker vs AOP'!E9),IF($F$7="Actiq",SUMIFS('Split Month Calcs'!$G:$G,'Split Month Calcs'!$A:$A,'TRx Tracker vs AOP'!E9),IF($F$7="Copaxone 40",SUMIFS('Split Month Calcs'!$K:$K,'Split Month Calcs'!$A:$A,'TRx Tracker vs AOP'!E9),IF($F$7="Copaxone 20",SUMIFS('Split Month Calcs'!$J:$J,'Split Month Calcs'!$A:$A,'TRx Tracker vs AOP'!E9),IF($F$7="Azilect",SUMIFS('Split Month Calcs'!$L:$L,'Split Month Calcs'!$A:$A,'TRx Tracker vs AOP'!E9)))))))))) -> 0 | F16: =IF($F$7="Nuvigil",SUMIFS('Split Month Calcs'!$D:$D,'Split Month Calcs'!$A:$A,'TRx Tracker vs AOP'!F9),IF($F$7="amrix",SUMIFS('Split Month Calcs'!$E:$E,'Split Month Calcs'!$A:$A,'TRx Tracker vs AOP'!F9),IF($F$7="Fentora",SUMIFS('Split Month Calcs'!$F:$F,'Split Month Calcs'!$A:$A,'TRx Tracker vs AOP'!F9),IF($F$7="Provigil",SUMIFS('Split Month Calcs'!$I:$I,'Split Month Calcs'!$A:$A,'TRx Tracker vs AOP'!F9),IF($F$7="Gabitril",SUMIFS('Split Month Calcs'!$H:$H,'Split Month Calcs'!$A:$A,'TRx Tracker vs AOP'!F9),IF($F$7="Actiq",SUMIFS('Split Month Calcs'!$G:$G,'Split Month Calcs'!$A:$A,'TRx Tracker vs AOP'!F9),IF($F$7="Copaxone 40",SUMIFS('Split Month Calcs'!$K:$K,'Split Month Calcs'!$A:$A,'TRx Tracker vs AOP'!F9),IF($F$7="Copaxone 20",SUMIFS('Split Month Calcs'!$J:$J,'Split Month Calcs'!$A:$A,'TRx Tracker vs AOP'!F9),IF($F$7="Azilect",SUMIFS('Split Month Calcs'!$L:$L,'Split Month Calcs'!$A:$A,'TRx Tracker vs AOP'!F9)))))))))) -> 0 | G16: =IF($F$7="Nuvigil",SUMIFS('Split Month Calcs'!$D:$D,'Split Month Calcs'!$A:$A,'TRx Tracker vs AOP'!G9),IF($F$7="amrix",SUMIFS('Split Month Calcs'!$E:$E,'Split Month Calcs'!$A:$A,'TRx Tracker vs AOP'!G9),IF($F$7="Fentora",SUMIFS('Split Month Calcs'!$F:$F,'Split Month Calcs'!$A:$A,'TRx Tracker vs AOP'!G9),IF($F$7="Provigil",SUMIFS('Split Month Calcs'!$I:$I,'Split Month Calcs'!$A:$A,'TRx Tracker vs AOP'!G9),IF($F$7="Gabitril",SUMIFS('Split Month Calcs'!$H:$H,'Split Month Calcs'!$A:$A,'TRx Tracker vs AOP'!G9),IF($F$7="Actiq",SUMIFS('Split Month Calcs'!$G:$G,'Split Month Calcs'!$A:$A,'TRx Tracker vs AOP'!G9),IF($F$7="Copaxone 40",SUMIFS('Split Month Calcs'!$K:$K,'Split Month Calcs'!$A:$A,'TRx Tracker vs AOP'!G9),IF($F$7="Copaxone 20",SUMIFS('Split Month Calcs'!$J:$J,'Split Month Calcs'!$A:$A,'TRx Tracker vs AOP'!G9),IF($F$7="Azilect",SUMIFS('Split Month Calcs'!$L:$L,'Split Month Calcs'!$A:$A,'TRx Tracker vs AOP'!G9)))))))))) -> 0 | H16: =IF($F$7="Nuvigil",SUMIFS('Split Month Calcs'!$D:$D,'Split Month Calcs'!$A:$A,'TRx Tracker vs AOP'!H9),IF($F$7="amrix",SUMIFS('Split Month Calcs'!$E:$E,'Split Month Calcs'!$A:$A,'TRx Tracker vs AOP'!H9),IF($F$7="Fentora",SUMIFS('Split Month Calcs'!$F:$F,'Split Month Calcs'!$A:$A,'TRx Tracker vs AOP'!H9),IF($F$7="Provigil",SUMIFS('Split Month Calcs'!$I:$I,'Split Month Calcs'!$A:$A,'TRx Tracker vs AOP'!H9),IF($F$7="Gabitril",SUMIFS('Split Month Calcs'!$H:$H,'Split Month Calcs'!$A:$A,'TRx Tracker vs AOP'!H9),IF($F$7="Actiq",SUMIFS('Split Month Calcs'!$G:$G,'Split Month Calcs'!$A:$A,'TRx Tracker vs AOP'!H9),IF($F$7="Copaxone 40",SUMIFS('Split Month Calcs'!$K:$K,'Split Month Calcs'!$A:$A,'TRx Tracker vs AOP'!H9),IF($F$7="Copaxone 20",SUMIFS('Split Month Calcs'!$J:$J,'Split Month Calcs'!$A:$A,'TRx Tracker vs AOP'!H9),IF($F$7="Azilect",SUMIFS('Split Month Calcs'!$L:$L,'Split Month Calcs'!$A:$A,'TRx Tracker vs AOP'!H9)))))))))) -> 0 | I16: =IF($F$7="Nuvigil",SUMIFS('Split Month Calcs'!$D:$D,'Split Month Calcs'!$A:$A,'TRx Tracker vs AOP'!I9),IF($F$7="amrix",SUMIFS('Split Month Calcs'!$E:$E,'Split Month Calcs'!$A:$A,'TRx Tracker vs AOP'!I9),IF($F$7="Fentora",SUMIFS('Split Month Calcs'!$F:$F,'Split Month Calcs'!$A:$A,'TRx Tracker vs AOP'!I9),IF($F$7="Provigil",SUMIFS('Split Month Calcs'!$I:$I,'Split Month Calcs'!$A:$A,'TRx Tracker vs AOP'!I9),IF($F$7="Gabitril",SUMIFS('Split Month Calcs'!$H:$H,'Split Month Calcs'!$A:$A,'TRx Tracker vs AOP'!I9),IF($F$7="Actiq",SUMIFS('Split Month Calcs'!$G:$G,'Split Month Calcs'!$A:$A,'TRx Tracker vs AOP'!I9),IF($F$7="Copaxone 40",SUMIFS('Split Month Calcs'!$K:$K,'Split Month Calcs'!$A:$A,'TRx Tracker vs AOP'!I9),IF($F$7="Copaxone 20",SUMIFS('Split Month Calcs'!$J:$J,'Split Month Calcs'!$A:$A,'TRx Tracker vs AOP'!I9),IF($F$7="Azilect",SUMIFS('Split Month Calcs'!$L:$L,'Split Month Calcs'!$A:$A,'TRx Tracker vs AOP'!I9)))))))))) -> 0 | J16: =IF($F$7="Nuvigil",SUMIFS('Split Month Calcs'!$D:$D,'Split Month Calcs'!$A:$A,'TRx Tracker vs AOP'!J9),IF($F$7="amrix",SUMIFS('Split Month Calcs'!$E:$E,'Split Month Calcs'!$A:$A,'TRx Tracker vs AOP'!J9),IF($F$7="Fentora",SUMIFS('Split Month Calcs'!$F:$F,'Split Month Calcs'!$A:$A,'TRx Tracker vs AOP'!J9),IF($F$7="Provigil",SUMIFS('Split Month Calcs'!$I:$I,'Split Month Calcs'!$A:$A,'TRx Tracker vs AOP'!J9),IF($F$7="Gabitril",SUMIFS('Split Month Calcs'!$H:$H,'Split Month Calcs'!$A:$A,'TRx Tracker vs AOP'!J9),IF($F$7="Actiq",SUMIFS('Split Month Calcs'!$G:$G,'Split Month Calcs'!$A:$A,'TRx Tracker vs AOP'!J9),IF($F$7="Copaxone 40",SUMIFS('Split Month Calcs'!$K:$K,'Split Month Calcs'!$A:$A,'TRx Tracker vs AOP'!J9),IF($F$7="Copaxone 20",SUMIFS('Split Month Calcs'!$J:$J,'Split Month Calcs'!$A:$A,'TRx Tracker vs AOP'!J9),IF($F$7="Azilect",SUMIFS('Split Month Calcs'!$L:$L,'Split Month Calcs'!$A:$A,'TRx Tracker vs AOP'!J9)))))))))) -> 0 | K16: =IF($F$7="Nuvigil",SUMIFS('Split Month Calcs'!$D:$D,'Split Month Calcs'!$A:$A,'TRx Tracker vs AOP'!K9),IF($F$7="amrix",SUMIFS('Split Month Calcs'!$E:$E,'Split Month Calcs'!$A:$A,'TRx Tracker vs AOP'!K9),IF($F$7="Fentora",SUMIFS('Split Month Calcs'!$F:$F,'Split Month Calcs'!$A:$A,'TRx Tracker vs AOP'!K9),IF($F$7="Provigil",SUMIFS('Split Month Calcs'!$I:$I,'Split Month Calcs'!$A:$A,'TRx Tracker vs AOP'!K9),IF($F$7="Gabitril",SUMIFS('Split Month Calcs'!$H:$H,'Split Month Calcs'!$A:$A,'TRx Tracker vs AOP'!K9),IF($F$7="Actiq",SUMIFS('Split Month Calcs'!$G:$G,'Split Month Calcs'!$A:$A,'TRx Tracker vs AOP'!K9),IF($F$7="Copaxone 40",SUMIFS('Split Month Calcs'!$K:$K,'Split Month Calcs'!$A:$A,'TRx Tracker vs AOP'!K9),IF($F$7="Copaxone 20",SUMIFS('Split Month Calcs'!$J:$J,'Split Month Calcs'!$A:$A,'TRx Tracker vs AOP'!K9),IF($F$7="Azilect",SUMIFS('Split Month Calcs'!$L:$L,'Split Month Calcs'!$A:$A,'TRx Tracker vs AOP'!K9)))))))))) -> 0 | L16: =IF($F$7="Nuvigil",SUMIFS('Split Month Calcs'!$D:$D,'Split Month Calcs'!$A:$A,'TRx Tracker vs AOP'!L9),IF($F$7="amrix",SUMIFS('Split Month Calcs'!$E:$E,'Split Month Calcs'!$A:$A,'TRx Tracker vs AOP'!L9),IF($F$7="Fentora",SUMIFS('Split Month Calcs'!$F:$F,'Split Month Calcs'!$A:$A,'TRx Tracker vs AOP'!L9),IF($F$7="Provigil",SUMIFS('Split Month Calcs'!$I:$I,'Split Month Calcs'!$A:$A,'TRx Tracker vs AOP'!L9),IF($F$7="Gabitril",SUMIFS('Split Month Calcs'!$H:$H,'Split Month Calcs'!$A:$A,'TRx Tracker vs AOP'!L9),IF($F$7="Actiq",SUMIFS('Split Month Calcs'!$G:$G,'Split Month Calcs'!$A:$A,'TRx Tracker vs AOP'!L9),IF($F$7="Copaxone 40",SUMIFS('Split Month Calcs'!$K:$K,'Split Month Calcs'!$A:$A,'TRx Tracker vs AOP'!L9),IF($F$7="Copaxone 20",SUMIFS('Split Month Calcs'!$J:$J,'Split Month Calcs'!$A:$A,'TRx Tracker vs AOP'!L9),IF($F$7="Azilect",SUMIFS('Split Month Calcs'!$L:$L,'Split Month Calcs'!$A:$A,'TRx Tracker vs AOP'!L9)))))))))) -> 0 | M16: =IF($F$7="Nuvigil",SUMIFS('Split Month Calcs'!$D:$D,'Split Month Calcs'!$A:$A,'TRx Tracker vs AOP'!M9),IF($F$7="amrix",SUMIFS('Split Month Calcs'!$E:$E,'Split Month Calcs'!$A:$A,'TRx Tracker vs AOP'!M9),IF($F$7="Fentora",SUMIFS('Split Month Calcs'!$F:$F,'Split Month Calcs'!$A:$A,'TRx Tracker vs AOP'!M9),IF($F$7="Provigil",SUMIFS('Split Month Calcs'!$I:$I,'Split Month Calcs'!$A:$A,'TRx Tracker vs AOP'!M9),IF($F$7="Gabitril",SUMIFS('Split Month Calcs'!$H:$H,'Split Month Calcs'!$A:$A,'TRx Tracker vs AOP'!M9),IF($F$7="Actiq",SUMIFS('Split Month Calcs'!$G:$G,'Split Month Calcs'!$A:$A,'TRx Tracker vs AOP'!M9),IF($F$7="Copaxone 40",SUMIFS('Split Month Calcs'!$K:$K,'Split Month Calcs'!$A:$A,'TRx Tracker vs AOP'!M9),IF($F$7="Copaxone 20",SUMIFS('Split Month Calcs'!$J:$J,'Split Month Calcs'!$A:$A,'TRx Tracker vs AOP'!M9),IF($F$7="Azilect",SUMIFS('Split Month Calcs'!$L:$L,'Split Month Calcs'!$A:$A,'TRx Tracker vs AOP'!M9)))))))))) -> 0 | N16: =IF($F$7="Nuvigil",SUMIFS('Split Month Calcs'!$D:$D,'Split Month Calcs'!$A:$A,'TRx Tracker vs AOP'!N9),IF($F$7="amrix",SUMIFS('Split Month Calcs'!$E:$E,'Split Month Calcs'!$A:$A,'TRx Tracker vs AOP'!N9),IF($F$7="Fentora",SUMIFS('Split Month Calcs'!$F:$F,'Split Month Calcs'!$A:$A,'TRx Tracker vs AOP'!N9),IF($F$7="Provigil",SUMIFS('Split Month Calcs'!$I:$I,'Split Month Calcs'!$A:$A,'TRx Tracker vs AOP'!N9),IF($F$7="Gabitril",SUMIFS('Split Month Calcs'!$H:$H,'Split Month Calcs'!$A:$A,'TRx Tracker vs AOP'!N9),IF($F$7="Actiq",SUMIFS('Split Month Calcs'!$G:$G,'Split Month Calcs'!$A:$A,'TRx Tracker vs AOP'!N9),IF($F$7="Copaxone 40",SUMIFS('Split Month Calcs'!$K:$K,'Split Month Calcs'!$A:$A,'TRx Tracker vs AOP'!N9),IF($F$7="Copaxone 20",SUMIFS('Split Month Calcs'!$J:$J,'Split Month Calcs'!$A:$A,'TRx Tracker vs AOP'!N9),IF($F$7="Azilect",SUMIFS('Split Month Calcs'!$L:$L,'Split Month Calcs'!$A:$A,'TRx Tracker vs AOP'!N9)))))))))) -> 0 | O16: =IF($F$7="Nuvigil",SUMIFS('Split Month Calcs'!$D:$D,'Split Month Calcs'!$A:$A,'TRx Tracker vs AOP'!O9),IF($F$7="amrix",SUMIFS('Split Month Calcs'!$E:$E,'Split Month Calcs'!$A:$A,'TRx Tracker vs AOP'!O9),IF($F$7="Fentora",SUMIFS('Split Month Calcs'!$F:$F,'Split Month Calcs'!$A:$A,'TRx Tracker vs AOP'!O9),IF($F$7="Provigil",SUMIFS('Split Month Calcs'!$I:$I,'Split Month Calcs'!$A:$A,'TRx Tracker vs AOP'!O9),IF($F$7="Gabitril",SUMIFS('Split Month Calcs'!$H:$H,'Split Month Calcs'!$A:$A,'TRx Tracker vs AOP'!O9),IF($F$7="Actiq",SUMIFS('Split Month Calcs'!$G:$G,'Split Month Calcs'!$A:$A,'TRx Tracker vs AOP'!O9),IF($F$7="Copaxone 40",SUMIFS('Split Month Calcs'!$K:$K,'Split Month Calcs'!$A:$A,'TRx Tracker vs AOP'!O9),IF($F$7="Copaxone 20",SUMIFS('Split Month Calcs'!$J:$J,'Split Month Calcs'!$A:$A,'TRx Tracker vs AOP'!O9),IF($F$7="Azilect",SUMIFS('Split Month Calcs'!$L:$L,'Split Month Calcs'!$A:$A,'TRx Tracker vs AOP'!O9)))))))))) -> 0
C17: % to Plan | D17: =D16/D15 -> 0.4138920533 | E17: =E16/E15 -> 0 | F17: 0 | G17: 0 | H17: 0 | I17: 0 | J17: 0 | K17: 0 | L17: 0 | M17: 0 | N17: 0 | O17: 0
C18: Weeks | D18: =52/12 -> 4.333333333 | E18: =52/12 -> 4.333333333 | F18: 4.333333333 | G18: 4.333333333 | H18: 4.333333333 | I18: 4.333333333 | J18: 4.333333333 | K18: 4.333333333 | L18: 4.333333333 | M18: 4.333333333 | N18: 4.333333333 | O18: 4.333333333
E21: Month | F21: Week # | G21: Week Ending | H21: Actual TRxs | I21: Goal | J21: Variance | K21: EUTRx | L21: Baseline Target | M21: Variance | N21: Rolling 12 Weeks | O21: 12 Week Baseline
E22: =MONTH(G22) -> 1 | F22: 1 | G22: 2017-01-06 | H22: =IF($F$7="Nuvigil",SUMIFS('IMS Data'!D:D,'IMS Data'!C:C,'Fentora Tracker'!G:G),IF('Fentora Tracker'!$F$7="Fentora",SUMIFS('IMS Data'!F:F,'IMS Data'!C:C,'Fentora Tracker'!G:G),IF('Fentora Tracker'!$F$7="Amrix",SUMIFS('IMS Data'!E:E,'IMS Data'!C:C,'Fentora Tracker'!G:G),IF('Fentora Tracker'!$F$7="Provigil",SUMIFS('IMS Data'!I:I,'IMS Data'!C:C,'Fentora Tracker'!G:G),IF('Fentora Tracker'!$F$7="Gabitril",SUMIFS('IMS Data'!H:H,'IMS Data'!C:C,'Fentora Tracker'!G:G),IF('Fentora Tracker'!$F$7="Actiq",SUMIFS('IMS Data'!G:G,'IMS Data'!C:C,'Fentora Tracker'!G:G),IF($F$7="Copaxone 20",SUMIFS('IMS Data'!J:J,'IMS Data'!C:C,'TRx Tracker vs AOP'!G:G),IF($F$7="Copaxone 40",SUMIFS('IMS Data'!K:K,'IMS Data'!C:C,'TRx Tracker vs AOP'!G:G),IF($F$7="Azilect",SUMIFS('IMS Data'!L:L,'IMS Data'!C:C,'Fentora Tracker'!G:G)))))))))) -> 204 | I22: =SUMIFS($15:$15,$9:$9,$E$22:$E$73)/SUMIFS($18:$18,$9:$9,$E$22:$E$73) -> 232.5020943 | J22: =H22-I22 -> -28.50209435 | K22: =SUMIFS('IMS Data'!O:O,'IMS Data'!C:C,'Fentora Tracker'!G:G) -> 20084 | L22: =$K$7/12 -> 24616.58333 | M22: =K22-L22 -> -4532.583333 | N22: ='Fentora 2017'!N75 -> 403300 | O22: =$K$7 -> 295399
E23: =MONTH(G23) -> 1 | F23: 2 | G23: =G22+7 -> 2017-01-13 | H23: =IF($F$7="Nuvigil",SUMIFS('IMS Data'!D:D,'IMS Data'!C:C,'Fentora Tracker'!G:G),IF('Fentora Tracker'!$F$7="Fentora",SUMIFS('IMS Data'!F:F,'IMS Data'!C:C,'Fentora Tracker'!G:G),IF('Fentora Tracker'!$F$7="Amrix",SUMIFS('IMS Data'!E:E,'IMS Data'!C:C,'Fentora Tracker'!G:G),IF('Fentora Tracker'!$F$7="Provigil",SUMIFS('IMS Data'!I:I,'IMS Data'!C:C,'Fentora Tracker'!G:G),IF('Fentora Tracker'!$F$7="Gabitril",SUMIFS('IMS Data'!H:H,'IMS Data'!C:C,'Fentora Tracker'!G:G),IF('Fentora Tracker'!$F$7="Actiq",SUMIFS('IMS Data'!G:G,'IMS Data'!C:C,'Fentora Tracker'!G:G),IF($F$7="Copaxone 20",SUMIFS('IMS Data'!J:J,'IMS Data'!C:C,'TRx Tracker vs AOP'!G:G),IF($F$7="Copaxone 40",SUMIFS('IMS Data'!K:K,'IMS Data'!C:C,'TRx Tracker vs AOP'!G:G),IF($F$7="Azilect",SUMIFS('IMS Data'!L:L,'IMS Data'!C:C,'Fentora Tracker'!G:G)))))))))) -> 213 | I23: =SUMIFS($15:$15,$9:$9,$E$22:$E$73)/SUMIFS($18:$18,$9:$9,$E$22:$E$73) -> 232.5020943 | J23: -19.50209435 | K23: =SUMIFS('IMS Data'!O:O,'IMS Data'!C:C,'Fentora Tracker'!G:G) -> 20862 | L23: =$K$7/12 -> 24616.58333 | M23: -3754.583333 | N23: ='Fentora 2017'!N76 -> 399192 | O23: =$K$7 -> 295399
E24: 1 | F24: 3 | G24: =G23+7 -> 2017-01-20 | H24: =IF($F$7="Nuvigil",SUMIFS('IMS Data'!D:D,'IMS Data'!C:C,'Fentora Tracker'!G:G),IF('Fentora Tracker'!$F$7="Fentora",SUMIFS('IMS Data'!F:F,'IMS Data'!C:C,'Fentora Tracker'!G:G),IF('Fentora Tracker'!$F$7="Amrix",SUMIFS('IMS Data'!E:E,'IMS Data'!C:C,'Fentora Tracker'!G:G),IF('Fentora Tracker'!$F$7="Provigil",SUMIFS('IMS Data'!I:I,'IMS Data'!C:C,'Fentora Tracker'!G:G),IF('Fentora Tracker'!$F$7="Gabitril",SUMIFS('IMS Data'!H:H,'IMS Data'!C:C,'Fentora Tracker'!G:G),IF('Fentora Tracker'!$F$7="Actiq",SUMIFS('IMS Data'!G:G,'IMS Data'!C:C,'Fentora Tracker'!G:G),IF($F$7="Copaxone 20",SUMIFS('IMS Data'!J:J,'IMS Data'!C:C,'TRx Tracker vs AOP'!G:G),IF($F$7="Copaxone 40",SUMIFS('IMS Data'!K:K,'IMS Data'!C:C,'TRx Tracker vs AOP'!G:G),IF($F$7="Azilect",SUMIFS('IMS Data'!L:L,'IMS Data'!C:C,'Fentora Tracker'!G:G)))))))))) -> 0 | I24: 232.5020943 | J24: -232.5020943 | K24: =SUMIFS('IMS Data'!O:O,'IMS Data'!C:C,'Fentora Tracker'!G:G) -> 0 | L24: 24616.58333 | M24: -24616.58333 | N24: ='Fentora 2017'!N77 -> 397736 | O24: 295399
E25: 1 | F25: 4 | G25: 2017-01-27 | H25: =IF($F$7="Nuvigil",SUMIFS('IMS Data'!D:D,'IMS Data'!C:C,'Fentora Tracker'!G:G),IF('Fentora Tracker'!$F$7="Fentora",SUMIFS('IMS Data'!F:F,'IMS Data'!C:C,'Fentora Tracker'!G:G),IF('Fentora Tracker'!$F$7="Amrix",SUMIFS('IMS Data'!E:E,'IMS Data'!C:C,'Fentora Tracker'!G:G),IF('Fentora Tracker'!$F$7="Provigil",SUMIFS('IMS Data'!I:I,'IMS Data'!C:C,'Fentora Tracker'!G:G),IF('Fentora Tracker'!$F$7="Gabitril",SUMIFS('IMS Data'!H:H,'IMS Data'!C:C,'Fentora Tracker'!G:G),IF('Fentora Tracker'!$F$7="Actiq",SUMIFS('IMS Data'!G:G,'IMS Data'!C:C,'Fentora Tracker'!G:G),IF($F$7="Copaxone 20",SUMIFS('IMS Data'!J:J,'IMS Data'!C:C,'TRx Tracker vs AOP'!G:G),IF($F$7="Copaxone 40",SUMIFS('IMS Data'!K:K,'IMS Data'!C:C,'TRx Tracker vs AOP'!G:G),IF($F$7="Azilect",SUMIFS('IMS Data'!L:L,'IMS Data'!C:C,'Fentora Tracker'!G:G)))))))))) -> 0 | I25: 232.5020943 | J25: -232.5020943 | K25: =SUMIFS('IMS Data'!O:O,'IMS Data'!C:C,'Fentora Tracker'!G:G) -> 0 | L25: 24616.58333 | M25: -24616.58333 | N25: ='Fentora 2017'!N78 -> 391908 | O25: 295399
E26: 2 | F26: 5 | G26: 2017-02-03 | H26: =IF($F$7="Nuvigil",SUMIFS('IMS Data'!D:D,'IMS Data'!C:C,'Fentora Tracker'!G:G),IF('Fentora Tracker'!$F$7="Fentora",SUMIFS('IMS Data'!F:F,'IMS Data'!C:C,'Fentora Tracker'!G:G),IF('Fentora Tracker'!$F$7="Amrix",SUMIFS('IMS Data'!E:E,'IMS Data'!C:C,'Fentora Tracker'!G:G),IF('Fentora Tracker'!$F$7="Provigil",SUMIFS('IMS Data'!I:I,'IMS Data'!C:C,'Fentora Tracker'!G:G),IF('Fentora Tracker'!$F$7="Gabitril",SUMIFS('IMS Data'!H:H,'IMS Data'!C:C,'Fentora Tracker'!G:G),IF('Fentora Tracker'!$F$7="Actiq",SUMIFS('IMS Data'!G:G,'IMS Data'!C:C,'Fentora Tracker'!G:G),IF($F$7="Copaxone 20",SUMIFS('IMS Data'!J:J,'IMS Data'!C:C,'TRx Tracker vs AOP'!G:G),IF($F$7="Copaxone 40",SUMIFS('IMS Data'!K:K,'IMS Data'!C:C,'TRx Tracker vs AOP'!G:G),IF($F$7="Azilect",SUMIFS('IMS Data'!L:L,'IMS Data'!C:C,'Fentora Tracker'!G:G)))))))))) -> 0 | I26: 227.3047429 | J26: -227.3047429 | K26: =SUMIFS('IMS Data'!O:O,'IMS Data'!C:C,'Fentora Tracker'!G:G) -> 0 | L26: 24616.58333 | M26: -24616.58333 | N26: ='Fentora 2017'!N79 -> 390723 | O26: 295399
E27: 2 | F27: 6 | G27: 2017-02-10 | H27: =IF($F$7="Nuvigil",SUMIFS('IMS Data'!D:D,'IMS Data'!C:C,'Fentora Tracker'!G:G),IF('Fentora Tracker'!$F$7="Fentora",SUMIFS('IMS Data'!F:F,'IMS Data'!C:C,'Fentora Tracker'!G:G),IF('Fentora Tracker'!$F$7="Amrix",SUMIFS('IMS Data'!E:E,'IMS Data'!C:C,'Fentora Tracker'!G:G),IF('Fentora Tracker'!$F$7="Provigil",SUMIFS('IMS Data'!I:I,'IMS Data'!C:C,'Fentora Tracker'!G:G),IF('Fentora Tracker'!$F$7="Gabitril",SUMIFS('IMS Data'!H:H,'IMS Data'!C:C,'Fentora Tracker'!G:G),IF('Fentora Tracker'!$F$7="Actiq",SUMIFS('IMS Data'!G:G,'IMS Data'!C:C,'Fentora Tracker'!G:G),IF($F$7="Copaxone 20",SUMIFS('IMS Data'!J:J,'IMS Data'!C:C,'TRx Tracker vs AOP'!G:G),IF($F$7="Copaxone 40",SUMIFS('IMS Data'!K:K,'IMS Data'!C:C,'TRx Tracker vs AOP'!G:G),IF($F$7="Azilect",SUMIFS('IMS Data'!L:L,'IMS Data'!C:C,'Fentora Tracker'!G:G)))))))))) -> 0 | I27: 227.3047429 | J27: -227.3047429 | K27: =SUMIFS('IMS Data'!O:O,'IMS Data'!C:C,'Fentora Tracker'!G:G) -> 0 | L27: 24616.58333 | M27: -24616.58333 | N27: ='Fentora 2017'!N80 -> 391414 | O27: 295399
E28: 2 | F28: 7 | G28: 2017-02-17 | H28: =IF($F$7="Nuvigil",SUMIFS('IMS Data'!D:D,'IMS Data'!C:C,'Fentora Tracker'!G:G),IF('Fentora Tracker'!$F$7="Fentora",SUMIFS('IMS Data'!F:F,'IMS Data'!C:C,'Fentora Tracker'!G:G),IF('Fentora Tracker'!$F$7="Amrix",SUMIFS('IMS Data'!E:E,'IMS Data'!C:C,'Fentora Tracker'!G:G),IF('Fentora Tracker'!$F$7="Provigil",SUMIFS('IMS Data'!I:I,'IMS Data'!C:C,'Fentora Tracker'!G:G),IF('Fentora Tracker'!$F$7="Gabitril",SUMIFS('IMS Data'!H:H,'IMS Data'!C:C,'Fentora Tracker'!G:G),IF('Fentora Tracker'!$F$7="Actiq",SUMIFS('IMS Data'!G:G,'IMS Data'!C:C,'Fentora Tracker'!G:G),IF($F$7="Copaxone 20",SUMIFS('IMS Data'!J:J,'IMS Data'!C:C,'TRx Tracker vs AOP'!G:G),IF($F$7="Copaxone 40",SUMIFS('IMS Data'!K:K,'IMS Data'!C:C,'TRx Tracker vs AOP'!G:G),IF($F$7="Azilect",SUMIFS('IMS Data'!L:L,'IMS Data'!C:C,'Fentora Tracker'!G:G)))))))))) -> 0 | I28: 227.3047429 | J28: -227.3047429 | K28: =SUMIFS('IMS Data'!O:O,'IMS Data'!C:C,'Fentora Tracker'!G:G) -> 0 | L28: 24616.58333 | M28: -24616.58333 | N28: ='Fentora 2017'!N81 -> 387021 | O28: 295399
E29: 2 | F29: 8 | G29: 2017-02-24 | H29: =IF($F$7="Nuvigil",SUMIFS('IMS Data'!D:D,'IMS Data'!C:C,'Fentora Tracker'!G:G),IF('Fentora Tracker'!$F$7="Fentora",SUMIFS('IMS Data'!F:F,'IMS Data'!C:C,'Fentora Tracker'!G:G),IF('Fentora Tracker'!$F$7="Amrix",SUMIFS('IMS Data'!E:E,'IMS Data'!C:C,'Fentora Tracker'!G:G),IF('Fentora Tracker'!$F$7="Provigil",SUMIFS('IMS Data'!I:I,'IMS Data'!C:C,'Fentora Tracker'!G:G),IF('Fentora Tracker'!$F$7="Gabitril",SUMIFS('IMS Data'!H:H,'IMS Data'!C:C,'Fentora Tracker'!G:G),IF('Fentora Tracker'!$F$7="Actiq",SUMIFS('IMS Data'!G:G,'IMS Data'!C:C,'Fentora Tracker'!G:G),IF($F$7="Copaxone 20",SUMIFS('IMS Data'!J:J,'IMS Data'!C:C,'TRx Tracker vs AOP'!G:G),IF($F$7="Copaxone 40",SUMIFS('IMS Data'!K:K,'IMS Data'!C:C,'TRx Tracker vs AOP'!G:G),IF($F$7="Azilect",SUMIFS('IMS Data'!L:L,'IMS Data'!C:C,'Fentora Tracker'!G:G)))))))))) -> 0 | I29: 227.3047429 | J29: -227.3047429 | K29: =SUMIFS('IMS Data'!O:O,'IMS Data'!C:C,'Fentora Tracker'!G:G) -> 0 | L29: 24616.58333 | M29: -24616.58333 | N29: ='Fentora 2017'!N82 -> 377823 | O29: 295399
E30: 3 | F30: 9 | G30: 2017-03-03 | H30: =IF($F$7="Nuvigil",SUMIFS('IMS Data'!D:D,'IMS Data'!C:C,'Fentora Tracker'!G:G),IF('Fentora Tracker'!$F$7="Fentora",SUMIFS('IMS Data'!F:F,'IMS Data'!C:C,'Fentora Tracker'!G:G),IF('Fentora Tracker'!$F$7="Amrix",SUMIFS('IMS Data'!E:E,'IMS Data'!C:C,'Fentora Tracker'!G:G),IF('Fentora Tracker'!$F$7="Provigil",SUMIFS('IMS Data'!I:I,'IMS Data'!C:C,'Fentora Tracker'!G:G),IF('Fentora Tracker'!$F$7="Gabitril",SUMIFS('IMS Data'!H:H,'IMS Data'!C:C,'Fentora Tracker'!G:G),IF('Fentora Tracker'!$F$7="Actiq",SUMIFS('IMS Data'!G:G,'IMS Data'!C:C,'Fentora Tracker'!G:G),IF($F$7="Copaxone 20",SUMIFS('IMS Data'!J:J,'IMS Data'!C:C,'TRx Tracker vs AOP'!G:G),IF($F$7="Copaxone 40",SUMIFS('IMS Data'!K:K,'IMS Data'!C:C,'TRx Tracker vs AOP'!G:G),IF($F$7="Azilect",SUMIFS('IMS Data'!L:L,'IMS Data'!C:C,'Fentora Tracker'!G:G)))))))))) -> 0 | I30: 231.5216295 | J30: -231.5216295 | K30: =SUMIFS('IMS Data'!O:O,'IMS Data'!C:C,'Fentora Tracker'!G:G) -> 0 | L30: 24616.58333 | M30: -24616.58333 | N30: ='Fentora 2017'!N83 -> 384076 | O30: 295399
E31: 3 | F31: 10 | G31: 2017-03-10 | H31: =IF($F$7="Nuvigil",SUMIFS('IMS Data'!D:D,'IMS Data'!C:C,'Fentora Tracker'!G:G),IF('Fentora Tracker'!$F$7="Fentora",SUMIFS('IMS Data'!F:F,'IMS Data'!C:C,'Fentora Tracker'!G:G),IF('Fentora Tracker'!$F$7="Amrix",SUMIFS('IMS Data'!E:E,'IMS Data'!C:C,'Fentora Tracker'!G:G),IF('Fentora Tracker'!$F$7="Provigil",SUMIFS('IMS Data'!I:I,'IMS Data'!C:C,'Fentora Tracker'!G:G),IF('Fentora Tracker'!$F$7="Gabitril",SUMIFS('IMS Data'!H:H,'IMS Data'!C:C,'Fentora Tracker'!G:G),IF('Fentora Tracker'!$F$7="Actiq",SUMIFS('IMS Data'!G:G,'IMS Data'!C:C,'Fentora Tracker'!G:G),IF($F$7="Copaxone 20",SUMIFS('IMS Data'!J:J,'IMS Data'!C:C,'TRx Tracker vs AOP'!G:G),IF($F$7="Copaxone 40",SUMIFS('IMS Data'!K:K,'IMS Data'!C:C,'TRx Tracker vs AOP'!G:G),IF($F$7="Azilect",SUMIFS('IMS Data'!L:L,'IMS Data'!C:C,'Fentora Tracker'!G:G)))))))))) -> 0 | I31: 231.5216295 | J31: -231.5216295 | K31: =SUMIFS('IMS Data'!O:O,'IMS Data'!C:C,'Fentora Tracker'!G:G) -> 0 | L31: 24616.58333 | M31: -24616.58333 | N31: ='Fentora 2017'!N84 -> 381385 | O31: 295399
E32: 3 | F32: 11 | G32: 2017-03-17 | H32: =IF($F$7="Nuvigil",SUMIFS('IMS Data'!D:D,'IMS Data'!C:C,'Fentora Tracker'!G:G),IF('Fentora Tracker'!$F$7="Fentora",SUMIFS('IMS Data'!F:F,'IMS Data'!C:C,'Fentora Tracker'!G:G),IF('Fentora Tracker'!$F$7="Amrix",SUMIFS('IMS Data'!E:E,'IMS Data'!C:C,'Fentora Tracker'!G:G),IF('Fentora Tracker'!$F$7="Provigil",SUMIFS('IMS Data'!I:I,'IMS Data'!C:C,'Fentora Tracker'!G:G),IF('Fentora Tracker'!$F$7="Gabitril",SUMIFS('IMS Data'!H:H,'IMS Data'!C:C,'Fentora Tracker'!G:G),IF('Fentora Tracker'!$F$7="Actiq",SUMIFS('IMS Data'!G:G,'IMS Data'!C:C,'Fentora Tracker'!G:G),IF($F$7="Copaxone 20",SUMIFS('IMS Data'!J:J,'IMS Data'!C:C,'TRx Tracker vs AOP'!G:G),IF($F$7="Copaxone 40",SUMIFS('IMS Data'!K:K,'IMS Data'!C:C,'TRx Tracker vs AOP'!G:G),IF($F$7="Azilect",SUMIFS('IMS Data'!L:L,'IMS Data'!C:C,'Fentora Tracker'!G:G)))))))))) -> 0 | I32: 231.5216295 | J32: -231.5216295 | K32: =SUMIFS('IMS Data'!O:O,'IMS Data'!C:C,'Fentora Tracker'!G:G) -> 0 | L32: 24616.58333 | M32: -24616.58333 | N32: ='Fentora 2017'!N85 -> 379008 | O32: 295399
E33: 3 | F33: 12 | G33: 2017-03-24 | H33: =IF($F$7="Nuvigil",SUMIFS('IMS Data'!D:D,'IMS Data'!C:C,'Fentora Tracker'!G:G),IF('Fentora Tracker'!$F$7="Fentora",SUMIFS('IMS Data'!F:F,'IMS Data'!C:C,'Fentora Tracker'!G:G),IF('Fentora Tracker'!$F$7="Amrix",SUMIFS('IMS Data'!E:E,'IMS Data'!C:C,'Fentora Tracker'!G:G),IF('Fentora Tracker'!$F$7="Provigil",SUMIFS('IMS Data'!I:I,'IMS Data'!C:C,'Fentora Tracker'!G:G),IF('Fentora Tracker'!$F$7="Gabitril",SUMIFS('IMS Data'!H:H,'IMS Data'!C:C,'Fentora Tracker'!G:G),IF('Fentora Tracker'!$F$7="Actiq",SUMIFS('IMS Data'!G:G,'IMS Data'!C:C,'Fentora Tracker'!G:G),IF($F$7="Copaxone 20",SUMIFS('IMS Data'!J:J,'IMS Data'!C:C,'TRx Tracker vs AOP'!G:G),IF($F$7="Copaxone 40",SUMIFS('IMS Data'!K:K,'IMS Data'!C:C,'TRx Tracker vs AOP'!G:G),IF($F$7="Azilect",SUMIFS('IMS Data'!L:L,'IMS Data'!C:C,'Fentora Tracker'!G:G)))))))))) -> 0 | I33: 231.5216295 | J33: -231.5216295 | K33: =SUMIFS('IMS Data'!O:O,'IMS Data'!C:C,'Fentora Tracker'!G:G) -> 0 | L33: 24616.58333 | M33: -24616.58333 | N33: ='Fentora 2017'!N86 -> 372120 | O33: 295399
E34: 3 | F34: 13 | G34: 2017-03-31 | H34: =IF($F$7="Nuvigil",SUMIFS('IMS Data'!D:D,'IMS Data'!C:C,'Fentora Tracker'!G:G),IF('Fentora Tracker'!$F$7="Fentora",SUMIFS('IMS Data'!F:F,'IMS Data'!C:C,'Fentora Tracker'!G:G),IF('Fentora Tracker'!$F$7="Amrix",SUMIFS('IMS Data'!E:E,'IMS Data'!C:C,'Fentora Tracker'!G:G),IF('Fentora Tracker'!$F$7="Provigil",SUMIFS('IMS Data'!I:I,'IMS Data'!C:C,'Fentora Tracker'!G:G),IF('Fentora Tracker'!$F$7="Gabitril",SUMIFS('IMS Data'!H:H,'IMS Data'!C:C,'Fentora Tracker'!G:G),IF('Fentora Tracker'!$F$7="Actiq",SUMIFS('IMS Data'!G:G,'IMS Data'!C:C,'Fentora Tracker'!G:G),IF($F$7="Copaxone 20",SUMIFS('IMS Data'!J:J,'IMS Data'!C:C,'TRx Tracker vs AOP'!G:G),IF($F$7="Copaxone 40",SUMIFS('IMS Data'!K:K,'IMS Data'!C:C,'TRx Tracker vs AOP'!G:G),IF($F$7="Azilect",SUMIFS('IMS Data'!L:L,'IMS Data'!C:C,'Fentora Tracker'!G:G)))))))))) -> 0 | I34: 231.5216295 | J34: -231.5216295 | K34: =SUMIFS('IMS Data'!O:O,'IMS Data'!C:C,'Fentora Tracker'!G:G) -> 0 | L34: 24616.58333 | M34: -24616.58333 | N34: ='Fentora 2017'!N87 -> 369127 | O34: 295399
E35: 4 | F35: 14 | G35: 2017-04-07 | H35: =IF($F$7="Nuvigil",SUMIFS('IMS Data'!D:D,'IMS Data'!C:C,'Fentora Tracker'!G:G),IF('Fentora Tracker'!$F$7="Fentora",SUMIFS('IMS Data'!F:F,'IMS Data'!C:C,'Fentora Tracker'!G:G),IF('Fentora Tracker'!$F$7="Amrix",SUMIFS('IMS Data'!E:E,'IMS Data'!C:C,'Fentora Tracker'!G:G),IF('Fentora Tracker'!$F$7="Provigil",SUMIFS('IMS Data'!I:I,'IMS Data'!C:C,'Fentora Tracker'!G:G),IF('Fentora Tracker'!$F$7="Gabitril",SUMIFS('IMS Data'!H:H,'IMS Data'!C:C,'Fentora Tracker'!G:G),IF('Fentora Tracker'!$F$7="Actiq",SUMIFS('IMS Data'!G:G,'IMS Data'!C:C,'Fentora Tracker'!G:G),IF($F$7="Copaxone 20",SUMIFS('IMS Data'!J:J,'IMS Data'!C:C,'TRx Tracker vs AOP'!G:G),IF($F$7="Copaxone 40",SUMIFS('IMS Data'!K:K,'IMS Data'!C:C,'TRx Tracker vs AOP'!G:G),IF($F$7="Azilect",SUMIFS('IMS Data'!L:L,'IMS Data'!C:C,'Fentora Tracker'!G:G)))))))))) -> 0 | I35: 203.6438461 | J35: -203.6438461 | K35: =SUMIFS('IMS Data'!O:O,'IMS Data'!C:C,'Fentora Tracker'!G:G) -> 0 | L35: 24616.58333 | M35: -24616.58333 | N35: ='Fentora 2017'!N88 -> 366820 | O35: 295399
E36: 4 | F36: 15 | G36: 2017-04-14 | H36: =IF($F$7="Nuvigil",SUMIFS('IMS Data'!D:D,'IMS Data'!C:C,'Fentora Tracker'!G:G),IF('Fentora Tracker'!$F$7="Fentora",SUMIFS('IMS Data'!F:F,'IMS Data'!C:C,'Fentora Tracker'!G:G),IF('Fentora Tracker'!$F$7="Amrix",SUMIFS('IMS Data'!E:E,'IMS Data'!C:C,'Fentora Tracker'!G:G),IF('Fentora Tracker'!$F$7="Provigil",SUMIFS('IMS Data'!I:I,'IMS Data'!C:C,'Fentora Tracker'!G:G),IF('Fentora Tracker'!$F$7="Gabitril",SUMIFS('IMS Data'!H:H,'IMS Data'!C:C,'Fentora Tracker'!G:G),IF('Fentora Tracker'!$F$7="Actiq",SUMIFS('IMS Data'!G:G,'IMS Data'!C:C,'Fentora Tracker'!G:G),IF($F$7="Copaxone 20",SUMIFS('IMS Data'!J:J,'IMS Data'!C:C,'TRx Tracker vs AOP'!G:G),IF($F$7="Copaxone 40",SUMIFS('IMS Data'!K:K,'IMS Data'!C:C,'TRx Tracker vs AOP'!G:G),IF($F$7="Azilect",SUMIFS('IMS Data'!L:L,'IMS Data'!C:C,'Fentora Tracker'!G:G)))))))))) -> 0 | I36: 203.6438461 | J36: -203.6438461 | K36: =SUMIFS('IMS Data'!O:O,'IMS Data'!C:C,'Fentora Tracker'!G:G) -> 0 | L36: 24616.58333 | M36: -24616.58333 | N36: ='Fentora 2017'!N89 -> 359785 | O36: 295399
E37: 4 | F37: 16 | G37: 2017-04-21 | H37: =IF($F$7="Nuvigil",SUMIFS('IMS Data'!D:D,'IMS Data'!C:C,'Fentora Tracker'!G:G),IF('Fentora Tracker'!$F$7="Fentora",SUMIFS('IMS Data'!F:F,'IMS Data'!C:C,'Fentora Tracker'!G:G),IF('Fentora Tracker'!$F$7="Amrix",SUMIFS('IMS Data'!E:E,'IMS Data'!C:C,'Fentora Tracker'!G:G),IF('Fentora Tracker'!$F$7="Provigil",SUMIFS('IMS Data'!I:I,'IMS Data'!C:C,'Fentora Tracker'!G:G),IF('Fentora Tracker'!$F$7="Gabitril",SUMIFS('IMS Data'!H:H,'IMS Data'!C:C,'Fentora Tracker'!G:G),IF('Fentora Tracker'!$F$7="Actiq",SUMIFS('IMS Data'!G:G,'IMS Data'!C:C,'Fentora Tracker'!G:G),IF($F$7="Copaxone 20",SUMIFS('IMS Data'!J:J,'IMS Data'!C:C,'TRx Tracker vs AOP'!G:G),IF($F$7="Copaxone 40",SUMIFS('IMS Data'!K:K,'IMS Data'!C:C,'TRx Tracker vs AOP'!G:G),IF($F$7="Azilect",SUMIFS('IMS Data'!L:L,'IMS Data'!C:C,'Fentora Tracker'!G:G)))))))))) -> 0 | I37: 203.6438461 | J37: -203.6438461 | K37: =SUMIFS('IMS Data'!O:O,'IMS Data'!C:C,'Fentora Tracker'!G:G) -> 0 | L37: 24616.58333 | M37: -24616.58333 | N37: ='Fentora 2017'!N90 -> 361320 | O37: 295399
E38: 4 | F38: 17 | G38: 2017-04-28 | H38: =IF($F$7="Nuvigil",SUMIFS('IMS Data'!D:D,'IMS Data'!C:C,'Fentora Tracker'!G:G),IF('Fentora Tracker'!$F$7="Fentora",SUMIFS('IMS Data'!F:F,'IMS Data'!C:C,'Fentora Tracker'!G:G),IF('Fentora Tracker'!$F$7="Amrix",SUMIFS('IMS Data'!E:E,'IMS Data'!C:C,'Fentora Tracker'!G:G),IF('Fentora Tracker'!$F$7="Provigil",SUMIFS('IMS Data'!I:I,'IMS Data'!C:C,'Fentora Tracker'!G:G),IF('Fentora Tracker'!$F$7="Gabitril",SUMIFS('IMS Data'!H:H,'IMS Data'!C:C,'Fentora Tracker'!G:G),IF('Fentora Tracker'!$F$7="Actiq",SUMIFS('IMS Data'!G:G,'IMS Data'!C:C,'Fentora Tracker'!G:G),IF($F$7="Copaxone 20",SUMIFS('IMS Data'!J:J,'IMS Data'!C:C,'TRx Tracker vs AOP'!G:G),IF($F$7="Copaxone 40",SUMIFS('IMS Data'!K:K,'IMS Data'!C:C,'TRx Tracker vs AOP'!G:G),IF($F$7="Azilect",SUMIFS('IMS Data'!L:L,'IMS Data'!C:C,'Fentora Tracker'!G:G)))))))))) -> 0 | I38: 203.6438461 | J38: -203.6438461 | K38: =SUMIFS('IMS Data'!O:O,'IMS Data'!C:C,'Fentora Tracker'!G:G) -> 0 | L38: 24616.58333 | M38: -24616.58333 | N38: ='Fentora 2017'!N91 -> 354998 | O38: 295399
E39: 5 | F39: 18 | G39: 2017-05-05 | H39: =IF($F$7="Nuvigil",SUMIFS('IMS Data'!D:D,'IMS Data'!C:C,'Fentora Tracker'!G:G),IF('Fentora Tracker'!$F$7="Fentora",SUMIFS('IMS Data'!F:F,'IMS Data'!C:C,'Fentora Tracker'!G:G),IF('Fentora Tracker'!$F$7="Amrix",SUMIFS('IMS Data'!E:E,'IMS Data'!C:C,'Fentora Tracker'!G:G),IF('Fentora Tracker'!$F$7="Provigil",SUMIFS('IMS Data'!I:I,'IMS Data'!C:C,'Fentora Tracker'!G:G),IF('Fentora Tracker'!$F$7="Gabitril",SUMIFS('IMS Data'!H:H,'IMS Data'!C:C,'Fentora Tracker'!G:G),IF('Fentora Tracker'!$F$7="Actiq",SUMIFS('IMS Data'!G:G,'IMS Data'!C:C,'Fentora Tracker'!G:G),IF($F$7="Copaxone 20",SUMIFS('IMS Data'!J:J,'IMS Data'!C:C,'TRx Tracker vs AOP'!G:G),IF($F$7="Copaxone 40",SUMIFS('IMS Data'!K:K,'IMS Data'!C:C,'TRx Tracker vs AOP'!G:G),IF($F$7="Azilect",SUMIFS('IMS Data'!L:L,'IMS Data'!C:C,'Fentora Tracker'!G:G)))))))))) -> 0 | I39: 205.2921524 | J39: -205.2921524 | K39: =SUMIFS('IMS Data'!O:O,'IMS Data'!C:C,'Fentora Tracker'!G:G) -> 0 | L39: 24616.58333 | M39: -24616.58333 | N39: ='Fentora 2017'!N92 -> 350268 | O39: 295399
E40: 5 | F40: 19 | G40: 2017-05-12 | H40: =IF($F$7="Nuvigil",SUMIFS('IMS Data'!D:D,'IMS Data'!C:C,'Fentora Tracker'!G:G),IF('Fentora Tracker'!$F$7="Fentora",SUMIFS('IMS Data'!F:F,'IMS Data'!C:C,'Fentora Tracker'!G:G),IF('Fentora Tracker'!$F$7="Amrix",SUMIFS('IMS Data'!E:E,'IMS Data'!C:C,'Fentora Tracker'!G:G),IF('Fentora Tracker'!$F$7="Provigil",SUMIFS('IMS Data'!I:I,'IMS Data'!C:C,'Fentora Tracker'!G:G),IF('Fentora Tracker'!$F$7="Gabitril",SUMIFS('IMS Data'!H:H,'IMS Data'!C:C,'Fentora Tracker'!G:G),IF('Fentora Tracker'!$F$7="Actiq",SUMIFS('IMS Data'!G:G,'IMS Data'!C:C,'Fentora Tracker'!G:G),IF($F$7="Copaxone 20",SUMIFS('IMS Data'!J:J,'IMS Data'!C:C,'TRx Tracker vs AOP'!G:G),IF($F$7="Copaxone 40",SUMIFS('IMS Data'!K:K,'IMS Data'!C:C,'TRx Tracker vs AOP'!G:G),IF($F$7="Azilect",SUMIFS('IMS Data'!L:L,'IMS Data'!C:C,'Fentora Tracker'!G:G)))))))))) -> 0 | I40: 205.2921524 | J40: -205.2921524 | K40: =SUMIFS('IMS Data'!O:O,'IMS Data'!C:C,'Fentora Tracker'!G:G) -> 0 | L40: 24616.58333 | M40: -24616.58333 | N40: ='Fentora 2017'!N93 -> 355178 | O40: 295399
E41: 5 | F41: 20 | G41: 2017-05-19 | H41: =IF($F$7="Nuvigil",SUMIFS('IMS Data'!D:D,'IMS Data'!C:C,'Fentora Tracker'!G:G),IF('Fentora Tracker'!$F$7="Fentora",SUMIFS('IMS Data'!F:F,'IMS Data'!C:C,'Fentora Tracker'!G:G),IF('Fentora Tracker'!$F$7="Amrix",SUMIFS('IMS Data'!E:E,'IMS Data'!C:C,'Fentora Tracker'!G:G),IF('Fentora Tracker'!$F$7="Provigil",SUMIFS('IMS Data'!I:I,'IMS Data'!C:C,'Fentora Tracker'!G:G),IF('Fentora Tracker'!$F$7="Gabitril",SUMIFS('IMS Data'!H:H,'IMS Data'!C:C,'Fentora Tracker'!G:G),IF('Fentora Tracker'!$F$7="Actiq",SUMIFS('IMS Data'!G:G,'IMS Data'!C:C,'Fentora Tracker'!G:G),IF($F$7="Copaxone 20",SUMIFS('IMS Data'!J:J,'IMS Data'!C:C,'TRx Tracker vs AOP'!G:G),IF($F$7="Copaxone 40",SUMIFS('IMS Data'!K:K,'IMS Data'!C:C,'TRx Tracker vs AOP'!G:G),IF($F$7="Azilect",SUMIFS('IMS Data'!L:L,'IMS Data'!C:C,'Fentora Tracker'!G:G)))))))))) -> 0 | I41: 205.2921524 | J41: -205.2921524 | K41: =SUMIFS('IMS Data'!O:O,'IMS Data'!C:C,'Fentora Tracker'!G:G) -> 0 | L41: 24616.58333 | M41: -24616.58333 | N41: ='Fentora 2017'!N94 -> 352975 | O41: 295399
E42: 5 | F42: 21 | G42: 2017-05-26 | H42: =IF($F$7="Nuvigil",SUMIFS('IMS Data'!D:D,'IMS Data'!C:C,'Fentora Tracker'!G:G),IF('Fentora Tracker'!$F$7="Fentora",SUMIFS('IMS Data'!F:F,'IMS Data'!C:C,'Fentora Tracker'!G:G),IF('Fentora Tracker'!$F$7="Amrix",SUMIFS('IMS Data'!E:E,'IMS Data'!C:C,'Fentora Tracker'!G:G),IF('Fentora Tracker'!$F$7="Provigil",SUMIFS('IMS Data'!I:I,'IMS Data'!C:C,'Fentora Tracker'!G:G),IF('Fentora Tracker'!$F$7="Gabitril",SUMIFS('IMS Data'!H:H,'IMS Data'!C:C,'Fentora Tracker'!G:G),IF('Fentora Tracker'!$F$7="Actiq",SUMIFS('IMS Data'!G:G,'IMS Data'!C:C,'Fentora Tracker'!G:G),IF($F$7="Copaxone 20",SUMIFS('IMS Data'!J:J,'IMS Data'!C:C,'TRx Tracker vs AOP'!G:G),IF($F$7="Copaxone 40",SUMIFS('IMS Data'!K:K,'IMS Data'!C:C,'TRx Tracker vs AOP'!G:G),IF($F$7="Azilect",SUMIFS('IMS Data'!L:L,'IMS Data'!C:C,'Fentora Tracker'!G:G)))))))))) -> 0 | I42: 205.2921524 | J42: -205.2921524 | K42: =SUMIFS('IMS Data'!O:O,'IMS Data'!C:C,'Fentora Tracker'!G:G) -> 0 | L42: 24616.58333 | M42: -24616.58333 | N42: ='Fentora 2017'!N95 -> 348984 | O42: 295399
E43: 6 | F43: 22 | G43: 2017-06-02 | H43: =IF($F$7="Nuvigil",SUMIFS('IMS Data'!D:D,'IMS Data'!C:C,'Fentora Tracker'!G:G),IF('Fentora Tracker'!$F$7="Fentora",SUMIFS('IMS Data'!F:F,'IMS Data'!C:C,'Fentora Tracker'!G:G),IF('Fentora Tracker'!$F$7="Amrix",SUMIFS('IMS Data'!E:E,'IMS Data'!C:C,'Fentora Tracker'!G:G),IF('Fentora Tracker'!$F$7="Provigil",SUMIFS('IMS Data'!I:I,'IMS Data'!C:C,'Fentora Tracker'!G:G),IF('Fentora Tracker'!$F$7="Gabitril",SUMIFS('IMS Data'!H:H,'IMS Data'!C:C,'Fentora Tracker'!G:G),IF('Fentora Tracker'!$F$7="Actiq",SUMIFS('IMS Data'!G:G,'IMS Data'!C:C,'Fentora Tracker'!G:G),IF($F$7="Copaxone 20",SUMIFS('IMS Data'!J:J,'IMS Data'!C:C,'TRx Tracker vs AOP'!G:G),IF($F$7="Copaxone 40",SUMIFS('IMS Data'!K:K,'IMS Data'!C:C,'TRx Tracker vs AOP'!G:G),IF($F$7="Azilect",SUMIFS('IMS Data'!L:L,'IMS Data'!C:C,'Fentora Tracker'!G:G)))))))))) -> 0 | I43: 195.2271356 | J43: -195.2271356 | K43: =SUMIFS('IMS Data'!O:O,'IMS Data'!C:C,'Fentora Tracker'!G:G) -> 0 | L43: 24616.58333 | M43: -24616.58333 | N43: ='Fentora 2017'!N96 -> 342531 | O43: 295399
E44: 6 | F44: 23 | G44: 2017-06-09 | H44: =IF($F$7="Nuvigil",SUMIFS('IMS Data'!D:D,'IMS Data'!C:C,'Fentora Tracker'!G:G),IF('Fentora Tracker'!$F$7="Fentora",SUMIFS('IMS Data'!F:F,'IMS Data'!C:C,'Fentora Tracker'!G:G),IF('Fentora Tracker'!$F$7="Amrix",SUMIFS('IMS Data'!E:E,'IMS Data'!C:C,'Fentora Tracker'!G:G),IF('Fentora Tracker'!$F$7="Provigil",SUMIFS('IMS Data'!I:I,'IMS Data'!C:C,'Fentora Tracker'!G:G),IF('Fentora Tracker'!$F$7="Gabitril",SUMIFS('IMS Data'!H:H,'IMS Data'!C:C,'Fentora Tracker'!G:G),IF('Fentora Tracker'!$F$7="Actiq",SUMIFS('IMS Data'!G:G,'IMS Data'!C:C,'Fentora Tracker'!G:G),IF($F$7="Copaxone 20",SUMIFS('IMS Data'!J:J,'IMS Data'!C:C,'TRx Tracker vs AOP'!G:G),IF($F$7="Copaxone 40",SUMIFS('IMS Data'!K:K,'IMS Data'!C:C,'TRx Tracker vs AOP'!G:G),IF($F$7="Azilect",SUMIFS('IMS Data'!L:L,'IMS Data'!C:C,'Fentora Tracker'!G:G)))))))))) -> 0 | I44: 195.2271356 | J44: -195.2271356 | K44: =SUMIFS('IMS Data'!O:O,'IMS Data'!C:C,'Fentora Tracker'!G:G) -> 0 | L44: 24616.58333 | M44: -24616.58333 | N44: ='Fentora 2017'!N97 -> 344662 | O44: 295399
E45: 6 | F45: 24 | G45: 2017-06-16 | H45: =IF($F$7="Nuvigil",SUMIFS('IMS Data'!D:D,'IMS Data'!C:C,'Fentora Tracker'!G:G),IF('Fentora Tracker'!$F$7="Fentora",SUMIFS('IMS Data'!F:F,'IMS Data'!C:C,'Fentora Tracker'!G:G),IF('Fentora Tracker'!$F$7="Amrix",SUMIFS('IMS Data'!E:E,'IMS Data'!C:C,'Fentora Tracker'!G:G),IF('Fentora Tracker'!$F$7="Provigil",SUMIFS('IMS Data'!I:I,'IMS Data'!C:C,'Fentora Tracker'!G:G),IF('Fentora Tracker'!$F$7="Gabitril",SUMIFS('IMS Data'!H:H,'IMS Data'!C:C,'Fentora Tracker'!G:G),IF('Fentora Tracker'!$F$7="Actiq",SUMIFS('IMS Data'!G:G,'IMS Data'!C:C,'Fentora Tracker'!G:G),IF($F$7="Copaxone 20",SUMIFS('IMS Data'!J:J,'IMS Data'!C:C,'TRx Tracker vs AOP'!G:G),IF($F$7="Copaxone 40",SUMIFS('IMS Data'!K:K,'IMS Data'!C:C,'TRx Tracker vs AOP'!G:G),IF($F$7="Azilect",SUMIFS('IMS Data'!L:L,'IMS Data'!C:C,'Fentora Tracker'!G:G)))))))))) -> 0 | I45: 195.2271356 | J45: -195.2271356 | K45: =SUMIFS('IMS Data'!O:O,'IMS Data'!C:C,'Fentora Tracker'!G:G) -> 0 | L45: 24616.58333 | M45: -24616.58333 | N45: ='Fentora 2017'!N98 -> 344577 | O45: 295399
E46: 6 | F46: 25 | G46: 2017-06-23 | H46: =IF($F$7="Nuvigil",SUMIFS('IMS Data'!D:D,'IMS Data'!C:C,'Fentora Tracker'!G:G),IF('Fentora Tracker'!$F$7="Fentora",SUMIFS('IMS Data'!F:F,'IMS Data'!C:C,'Fentora Tracker'!G:G),IF('Fentora Tracker'!$F$7="Amrix",SUMIFS('IMS Data'!E:E,'IMS Data'!C:C,'Fentora Tracker'!G:G),IF('Fentora Tracker'!$F$7="Provigil",SUMIFS('IMS Data'!I:I,'IMS Data'!C:C,'Fentora Tracker'!G:G),IF('Fentora Tracker'!$F$7="Gabitril",SUMIFS('IMS Data'!H:H,'IMS Data'!C:C,'Fentora Tracker'!G:G),IF('Fentora Tracker'!$F$7="Actiq",SUMIFS('IMS Data'!G:G,'IMS Data'!C:C,'Fentora Tracker'!G:G),IF($F$7="Copaxone 20",SUMIFS('IMS Data'!J:J,'IMS Data'!C:C,'TRx Tracker vs AOP'!G:G),IF($F$7="Copaxone 40",SUMIFS('IMS Data'!K:K,'IMS Data'!C:C,'TRx Tracker vs AOP'!G:G),IF($F$7="Azilect",SUMIFS('IMS Data'!L:L,'IMS Data'!C:C,'Fentora Tracker'!G:G)))))))))) -> 0 | I46: 195.2271356 | J46: -195.2271356 | K46: =SUMIFS('IMS Data'!O:O,'IMS Data'!C:C,'Fentora Tracker'!G:G) -> 0 | L46: 24616.58333 | M46: -24616.58333 | N46: ='Fentora 2017'!N99 -> 344652 | O46: 295399
E47: 6 | F47: 26 | G47: 2017-06-30 | H47: =IF($F$7="Nuvigil",SUMIFS('IMS Data'!D:D,'IMS Data'!C:C,'Fentora Tracker'!G:G),IF('Fentora Tracker'!$F$7="Fentora",SUMIFS('IMS Data'!F:F,'IMS Data'!C:C,'Fentora Tracker'!G:G),IF('Fentora Tracker'!$F$7="Amrix",SUMIFS('IMS Data'!E:E,'IMS Data'!C:C,'Fentora Tracker'!G:G),IF('Fentora Tracker'!$F$7="Provigil",SUMIFS('IMS Data'!I:I,'IMS Data'!C:C,'Fentora Tracker'!G:G),IF('Fentora Tracker'!$F$7="Gabitril",SUMIFS('IMS Data'!H:H,'IMS Data'!C:C,'Fentora Tracker'!G:G),IF('Fentora Tracker'!$F$7="Actiq",SUMIFS('IMS Data'!G:G,'IMS Data'!C:C,'Fentora Tracker'!G:G),IF($F$7="Copaxone 20",SUMIFS('IMS Data'!J:J,'IMS Data'!C:C,'TRx Tracker vs AOP'!G:G),IF($F$7="Copaxone 40",SUMIFS('IMS Data'!K:K,'IMS Data'!C:C,'TRx Tracker vs AOP'!G:G),IF($F$7="Azilect",SUMIFS('IMS Data'!L:L,'IMS Data'!C:C,'Fentora Tracker'!G:G)))))))))) -> 0 | I47: 195.2271356 | J47: -195.2271356 | K47: =SUMIFS('IMS Data'!O:O,'IMS Data'!C:C,'Fentora Tracker'!G:G) -> 0 | L47: 24616.58333 | M47: -24616.58333 | N47: ='Fentora 2017'!N100 -> 343037 | O47: 295399
E48: 7 | F48: 27 | G48: 2017-07-07 | H48: =IF($F$7="Nuvigil",SUMIFS('IMS Data'!D:D,'IMS Data'!C:C,'Fentora Tracker'!G:G),IF('Fentora Tracker'!$F$7="Fentora",SUMIFS('IMS Data'!F:F,'IMS Data'!C:C,'Fentora Tracker'!G:G),IF('Fentora Tracker'!$F$7="Amrix",SUMIFS('IMS Data'!E:E,'IMS Data'!C:C,'Fentora Tracker'!G:G),IF('Fentora Tracker'!$F$7="Provigil",SUMIFS('IMS Data'!I:I,'IMS Data'!C:C,'Fentora Tracker'!G:G),IF('Fentora Tracker'!$F$7="Gabitril",SUMIFS('IMS Data'!H:H,'IMS Data'!C:C,'Fentora Tracker'!G:G),IF('Fentora Tracker'!$F$7="Actiq",SUMIFS('IMS Data'!G:G,'IMS Data'!C:C,'Fentora Tracker'!G:G),IF($F$7="Copaxone 20",SUMIFS('IMS Data'!J:J,'IMS Data'!C:C,'TRx Tracker vs AOP'!G:G),IF($F$7="Copaxone 40",SUMIFS('IMS Data'!K:K,'IMS Data'!C:C,'TRx Tracker vs AOP'!G:G),IF($F$7="Azilect",SUMIFS('IMS Data'!L:L,'IMS Data'!C:C,'Fentora Tracker'!G:G)))))))))) -> 0 | I48: 168.4218462 | J48: -168.4218462 | K48: =SUMIFS('IMS Data'!O:O,'IMS Data'!C:C,'Fentora Tracker'!G:G) -> 0 | L48: 24616.58333 | M48: -24616.58333 | N48: ='Fentora 2017'!N101 -> 340618 | O48: 295399
E49: 7 | F49: 28 | G49: 2017-07-14 | H49: =IF($F$7="Nuvigil",SUMIFS('IMS Data'!D:D,'IMS Data'!C:C,'Fentora Tracker'!G:G),IF('Fentora Tracker'!$F$7="Fentora",SUMIFS('IMS Data'!F:F,'IMS Data'!C:C,'Fentora Tracker'!G:G),IF('Fentora Tracker'!$F$7="Amrix",SUMIFS('IMS Data'!E:E,'IMS Data'!C:C,'Fentora Tracker'!G:G),IF('Fentora Tracker'!$F$7="Provigil",SUMIFS('IMS Data'!I:I,'IMS Data'!C:C,'Fentora Tracker'!G:G),IF('Fentora Tracker'!$F$7="Gabitril",SUMIFS('IMS Data'!H:H,'IMS Data'!C:C,'Fentora Tracker'!G:G),IF('Fentora Tracker'!$F$7="Actiq",SUMIFS('IMS Data'!G:G,'IMS Data'!C:C,'Fentora Tracker'!G:G),IF($F$7="Copaxone 20",SUMIFS('IMS Data'!J:J,'IMS Data'!C:C,'TRx Tracker vs AOP'!G:G),IF($F$7="Copaxone 40",SUMIFS('IMS Data'!K:K,'IMS Data'!C:C,'TRx Tracker vs AOP'!G:G),IF($F$7="Azilect",SUMIFS('IMS Data'!L:L,'IMS Data'!C:C,'Fentora Tracker'!G:G)))))))))) -> 0 | I49: 168.4218462 | J49: -168.4218462 | K49: =SUMIFS('IMS Data'!O:O,'IMS Data'!C:C,'Fentora Tracker'!G:G) -> 0 | L49: 24616.58333 | M49: -24616.58333 | N49: ='Fentora 2017'!N102 -> 339759 | O49: 295399
E50: 7 | F50: 29 | G50: 2017-07-21 | H50: =IF($F$7="Nuvigil",SUMIFS('IMS Data'!D:D,'IMS Data'!C:C,'Fentora Tracker'!G:G),IF('Fentora Tracker'!$F$7="Fentora",SUMIFS('IMS Data'!F:F,'IMS Data'!C:C,'Fentora Tracker'!G:G),IF('Fentora Tracker'!$F$7="Amrix",SUMIFS('IMS Data'!E:E,'IMS Data'!C:C,'Fentora Tracker'!G:G),IF('Fentora Tracker'!$F$7="Provigil",SUMIFS('IMS Data'!I:I,'IMS Data'!C:C,'Fentora Tracker'!G:G),IF('Fentora Tracker'!$F$7="Gabitril",SUMIFS('IMS Data'!H:H,'IMS Data'!C:C,'Fentora Tracker'!G:G),IF('Fentora Tracker'!$F$7="Actiq",SUMIFS('IMS Data'!G:G,'IMS Data'!C:C,'Fentora Tracker'!G:G),IF($F$7="Copaxone 20",SUMIFS('IMS Data'!J:J,'IMS Data'!C:C,'TRx Tracker vs AOP'!G:G),IF($F$7="Copaxone 40",SUMIFS('IMS Data'!K:K,'IMS Data'!C:C,'TRx Tracker vs AOP'!G:G),IF($F$7="Azilect",SUMIFS('IMS Data'!L:L,'IMS Data'!C:C,'Fentora Tracker'!G:G)))))))))) -> 0 | I50: 168.4218462 | J50: -168.4218462 | K50: =SUMIFS('IMS Data'!O:O,'IMS Data'!C:C,'Fentora Tracker'!G:G) -> 0 | L50: 24616.58333 | M50: -24616.58333 | N50: ='Fentora 2017'!N103 -> 341963 | O50: 295399
E51: 7 | F51: 30 | G51: 2017-07-28 | H51: =IF($F$7="Nuvigil",SUMIFS('IMS Data'!D:D,'IMS Data'!C:C,'Fentora Tracker'!G:G),IF('Fentora Tracker'!$F$7="Fentora",SUMIFS('IMS Data'!F:F,'IMS Data'!C:C,'Fentora Tracker'!G:G),IF('Fentora Tracker'!$F$7="Amrix",SUMIFS('IMS Data'!E:E,'IMS Data'!C:C,'Fentora Tracker'!G:G),IF('Fentora Tracker'!$F$7="Provigil",SUMIFS('IMS Data'!I:I,'IMS Data'!C:C,'Fentora Tracker'!G:G),IF('Fentora Tracker'!$F$7="Gabitril",SUMIFS('IMS Data'!H:H,'IMS Data'!C:C,'Fentora Tracker'!G:G),IF('Fentora Tracker'!$F$7="Actiq",SUMIFS('IMS Data'!G:G,'IMS Data'!C:C,'Fentora Tracker'!G:G),IF($F$7="Copaxone 20",SUMIFS('IMS Data'!J:J,'IMS Data'!C:C,'TRx Tracker vs AOP'!G:G),IF($F$7="Copaxone 40",SUMIFS('IMS Data'!K:K,'IMS Data'!C:C,'TRx Tracker vs AOP'!G:G),IF($F$7="Azilect",SUMIFS('IMS Data'!L:L,'IMS Data'!C:C,'Fentora Tracker'!G:G)))))))))) -> 0 | I51: 168.4218462 | J51: -168.4218462 | K51: =SUMIFS('IMS Data'!O:O,'IMS Data'!C:C,'Fentora Tracker'!G:G) -> 0 | L51: 24616.58333 | M51: -24616.58333 | N51: ='Fentora 2017'!N104 -> 335657 | O51: 295399
E52: 8 | F52: 31 | G52: 2017-08-04 | H52: =IF($F$7="Nuvigil",SUMIFS('IMS Data'!D:D,'IMS Data'!C:C,'Fentora Tracker'!G:G),IF('Fentora Tracker'!$F$7="Fentora",SUMIFS('IMS Data'!F:F,'IMS Data'!C:C,'Fentora Tracker'!G:G),IF('Fentora Tracker'!$F$7="Amrix",SUMIFS('IMS Data'!E:E,'IMS Data'!C:C,'Fentora Tracker'!G:G),IF('Fentora Tracker'!$F$7="Provigil",SUMIFS('IMS Data'!I:I,'IMS Data'!C:C,'Fentora Tracker'!G:G),IF('Fentora Tracker'!$F$7="Gabitril",SUMIFS('IMS Data'!H:H,'IMS Data'!C:C,'Fentora Tracker'!G:G),IF('Fentora Tracker'!$F$7="Actiq",SUMIFS('IMS Data'!G:G,'IMS Data'!C:C,'Fentora Tracker'!G:G),IF($F$7="Copaxone 20",SUMIFS('IMS Data'!J:J,'IMS Data'!C:C,'TRx Tracker vs AOP'!G:G),IF($F$7="Copaxone 40",SUMIFS('IMS Data'!K:K,'IMS Data'!C:C,'TRx Tracker vs AOP'!G:G),IF($F$7="Azilect",SUMIFS('IMS Data'!L:L,'IMS Data'!C:C,'Fentora Tracker'!G:G)))))))))) -> 0 | I52: 193.5494723 | J52: -193.5494723 | K52: =SUMIFS('IMS Data'!O:O,'IMS Data'!C:C,'Fentora Tracker'!G:G) -> 0 | L52: 24616.58333 | M52: -24616.58333 | N52: ='Fentora 2017'!N105 -> 333966 | O52: 295399
E53: 8 | F53: 32 | G53: 2017-08-11 | H53: =IF($F$7="Nuvigil",SUMIFS('IMS Data'!D:D,'IMS Data'!C:C,'Fentora Tracker'!G:G),IF('Fentora Tracker'!$F$7="Fentora",SUMIFS('IMS Data'!F:F,'IMS Data'!C:C,'Fentora Tracker'!G:G),IF('Fentora Tracker'!$F$7="Amrix",SUMIFS('IMS Data'!E:E,'IMS Data'!C:C,'Fentora Tracker'!G:G),IF('Fentora Tracker'!$F$7="Provigil",SUMIFS('IMS Data'!I:I,'IMS Data'!C:C,'Fentora Tracker'!G:G),IF('Fentora Tracker'!$F$7="Gabitril",SUMIFS('IMS Data'!H:H,'IMS Data'!C:C,'Fentora Tracker'!G:G),IF('Fentora Tracker'!$F$7="Actiq",SUMIFS('IMS Data'!G:G,'IMS Data'!C:C,'Fentora Tracker'!G:G),IF($F$7="Copaxone 20",SUMIFS('IMS Data'!J:J,'IMS Data'!C:C,'TRx Tracker vs AOP'!G:G),IF($F$7="Copaxone 40",SUMIFS('IMS Data'!K:K,'IMS Data'!C:C,'TRx Tracker vs AOP'!G:G),IF($F$7="Azilect",SUMIFS('IMS Data'!L:L,'IMS Data'!C:C,'Fentora Tracker'!G:G)))))))))) -> 0 | I53: 193.5494723 | J53: -193.5494723 | K53: =SUMIFS('IMS Data'!O:O,'IMS Data'!C:C,'Fentora Tracker'!G:G) -> 0 | L53: 24616.58333 | M53: -24616.58333 | N53: ='Fentora 2017'!N106 -> 330318 | O53: 295399
E54: 8 | F54: 33 | G54: 2017-08-18 | H54: =IF($F$7="Nuvigil",SUMIFS('IMS Data'!D:D,'IMS Data'!C:C,'Fentora Tracker'!G:G),IF('Fentora Tracker'!$F$7="Fentora",SUMIFS('IMS Data'!F:F,'IMS Data'!C:C,'Fentora Tracker'!G:G),IF('Fentora Tracker'!$F$7="Amrix",SUMIFS('IMS Data'!E:E,'IMS Data'!C:C,'Fentora Tracker'!G:G),IF('Fentora Tracker'!$F$7="Provigil",SUMIFS('IMS Data'!I:I,'IMS Data'!C:C,'Fentora Tracker'!G:G),IF('Fentora Tracker'!$F$7="Gabitril",SUMIFS('IMS Data'!H:H,'IMS Data'!C:C,'Fentora Tracker'!G:G),IF('Fentora Tracker'!$F$7="Actiq",SUMIFS('IMS Data'!G:G,'IMS Data'!C:C,'Fentora Tracker'!G:G),IF($F$7="Copaxone 20",SUMIFS('IMS Data'!J:J,'IMS Data'!C:C,'TRx Tracker vs AOP'!G:G),IF($F$7="Copaxone 40",SUMIFS('IMS Data'!K:K,'IMS Data'!C:C,'TRx Tracker vs AOP'!G:G),IF($F$7="Azilect",SUMIFS('IMS Data'!L:L,'IMS Data'!C:C,'Fentora Tracker'!G:G)))))))))) -> 0 | I54: 193.5494723 | J54: -193.5494723 | K54: =SUMIFS('IMS Data'!O:O,'IMS Data'!C:C,'Fentora Tracker'!G:G) -> 0 | L54: 24616.58333 | M54: =K54-L54 -> -24616.58333 | N54: ='Fentora 2017'!N107 -> 324315 | O54: 295399
E55: 8 | F55: 34 | G55: 2017-08-25 | H55: =IF($F$7="Nuvigil",SUMIFS('IMS Data'!D:D,'IMS Data'!C:C,'Fentora Tracker'!G:G),IF('Fentora Tracker'!$F$7="Fentora",SUMIFS('IMS Data'!F:F,'IMS Data'!C:C,'Fentora Tracker'!G:G),IF('Fentora Tracker'!$F$7="Amrix",SUMIFS('IMS Data'!E:E,'IMS Data'!C:C,'Fentora Tracker'!G:G),IF('Fentora Tracker'!$F$7="Provigil",SUMIFS('IMS Data'!I:I,'IMS Data'!C:C,'Fentora Tracker'!G:G),IF('Fentora Tracker'!$F$7="Gabitril",SUMIFS('IMS Data'!H:H,'IMS Data'!C:C,'Fentora Tracker'!G:G),IF('Fentora Tracker'!$F$7="Actiq",SUMIFS('IMS Data'!G:G,'IMS Data'!C:C,'Fentora Tracker'!G:G),IF($F$7="Copaxone 20",SUMIFS('IMS Data'!J:J,'IMS Data'!C:C,'TRx Tracker vs AOP'!G:G),IF($F$7="Copaxone 40",SUMIFS('IMS Data'!K:K,'IMS Data'!C:C,'TRx Tracker vs AOP'!G:G),IF($F$7="Azilect",SUMIFS('IMS Data'!L:L,'IMS Data'!C:C,'Fentora Tracker'!G:G)))))))))) -> 0 | I55: 193.5494723 | J55: -193.5494723 | K55: =SUMIFS('IMS Data'!O:O,'IMS Data'!C:C,'Fentora Tracker'!G:G) -> 0 | L55: 24616.58333 | M55: -24616.58333 | N55: ='Fentora 2017'!N108 -> 326005 | O55: 295399
E56: 9 | F56: 35 | G56: 2017-09-01 | H56: =IF($F$7="Nuvigil",SUMIFS('IMS Data'!D:D,'IMS Data'!C:C,'Fentora Tracker'!G:G),IF('Fentora Tracker'!$F$7="Fentora",SUMIFS('IMS Data'!F:F,'IMS Data'!C:C,'Fentora Tracker'!G:G),IF('Fentora Tracker'!$F$7="Amrix",SUMIFS('IMS Data'!E:E,'IMS Data'!C:C,'Fentora Tracker'!G:G),IF('Fentora Tracker'!$F$7="Provigil",SUMIFS('IMS Data'!I:I,'IMS Data'!C:C,'Fentora Tracker'!G:G),IF('Fentora Tracker'!$F$7="Gabitril",SUMIFS('IMS Data'!H:H,'IMS Data'!C:C,'Fentora Tracker'!G:G),IF('Fentora Tracker'!$F$7="Actiq",SUMIFS('IMS Data'!G:G,'IMS Data'!C:C,'Fentora Tracker'!G:G),IF($F$7="Copaxone 20",SUMIFS('IMS Data'!J:J,'IMS Data'!C:C,'TRx Tracker vs AOP'!G:G),IF($F$7="Copaxone 40",SUMIFS('IMS Data'!K:K,'IMS Data'!C:C,'TRx Tracker vs AOP'!G:G),IF($F$7="Azilect",SUMIFS('IMS Data'!L:L,'IMS Data'!C:C,'Fentora Tracker'!G:G)))))))))) -> 0 | I56: 197.6442184 | J56: -197.6442184 | K56: =SUMIFS('IMS Data'!O:O,'IMS Data'!C:C,'Fentora Tracker'!G:G) -> 0 | L56: 24616.58333 | M56: -24616.58333 | N56: ='Fentora 2017'!N109 -> 320141 | O56: 295399
E57: 9 | F57: 36 | G57: 2017-09-08 | H57: =IF($F$7="Nuvigil",SUMIFS('IMS Data'!D:D,'IMS Data'!C:C,'Fentora Tracker'!G:G),IF('Fentora Tracker'!$F$7="Fentora",SUMIFS('IMS Data'!F:F,'IMS Data'!C:C,'Fentora Tracker'!G:G),IF('Fentora Tracker'!$F$7="Amrix",SUMIFS('IMS Data'!E:E,'IMS Data'!C:C,'Fentora Tracker'!G:G),IF('Fentora Tracker'!$F$7="Provigil",SUMIFS('IMS Data'!I:I,'IMS Data'!C:C,'Fentora Tracker'!G:G),IF('Fentora Tracker'!$F$7="Gabitril",SUMIFS('IMS Data'!H:H,'IMS Data'!C:C,'Fentora Tracker'!G:G),IF('Fentora Tracker'!$F$7="Actiq",SUMIFS('IMS Data'!G:G,'IMS Data'!C:C,'Fentora Tracker'!G:G),IF($F$7="Copaxone 20",SUMIFS('IMS Data'!J:J,'IMS Data'!C:C,'TRx Tracker vs AOP'!G:G),IF($F$7="Copaxone 40",SUMIFS('IMS Data'!K:K,'IMS Data'!C:C,'TRx Tracker vs AOP'!G:G),IF($F$7="Azilect",SUMIFS('IMS Data'!L:L,'IMS Data'!C:C,'Fentora Tracker'!G:G)))))))))) -> 0 | I57: 197.6442184 | J57: -197.6442184 | K57: =SUMIFS('IMS Data'!O:O,'IMS Data'!C:C,'Fentora Tracker'!G:G) -> 0 | L57: 24616.58333 | M57: -24616.58333 | N57: ='Fentora 2017'!N110 -> 313321 | O57: 295399
E58: 9 | F58: 37 | G58: 2017-09-15 | H58: =IF($F$7="Nuvigil",SUMIFS('IMS Data'!D:D,'IMS Data'!C:C,'Fentora Tracker'!G:G),IF('Fentora Tracker'!$F$7="Fentora",SUMIFS('IMS Data'!F:F,'IMS Data'!C:C,'Fentora Tracker'!G:G),IF('Fentora Tracker'!$F$7="Amrix",SUMIFS('IMS Data'!E:E,'IMS Data'!C:C,'Fentora Tracker'!G:G),IF('Fentora Tracker'!$F$7="Provigil",SUMIFS('IMS Data'!I:I,'IMS Data'!C:C,'Fentora Tracker'!G:G),IF('Fentora Tracker'!$F$7="Gabitril",SUMIFS('IMS Data'!H:H,'IMS Data'!C:C,'Fentora Tracker'!G:G),IF('Fentora Tracker'!$F$7="Actiq",SUMIFS('IMS Data'!G:G,'IMS Data'!C:C,'Fentora Tracker'!G:G),IF($F$7="Copaxone 20",SUMIFS('IMS Data'!J:J,'IMS Data'!C:C,'TRx Tracker vs AOP'!G:G),IF($F$7="Copaxone 40",SUMIFS('IMS Data'!K:K,'IMS Data'!C:C,'TRx Tracker vs AOP'!G:G),IF($F$7="Azilect",SUMIFS('IMS Data'!L:L,'IMS Data'!C:C,'Fentora Tracker'!G:G)))))))))) -> 0 | I58: 197.6442184 | J58: -197.6442184 | K58: =SUMIFS('IMS Data'!O:O,'IMS Data'!C:C,'Fentora Tracker'!G:G) -> 0 | L58: 24616.58333 | M58: -24616.58333 | N58: ='Fentora 2017'!N111 -> 308937 | O58: 295399
E59: 9 | F59: 38 | G59: 2017-09-22 | H59: =IF($F$7="Nuvigil",SUMIFS('IMS Data'!D:D,'IMS Data'!C:C,'Fentora Tracker'!G:G),IF('Fentora Tracker'!$F$7="Fentora",SUMIFS('IMS Data'!F:F,'IMS Data'!C:C,'Fentora Tracker'!G:G),IF('Fentora Tracker'!$F$7="Amrix",SUMIFS('IMS Data'!E:E,'IMS Data'!C:C,'Fentora Tracker'!G:G),IF('Fentora Tracker'!$F$7="Provigil",SUMIFS('IMS Data'!I:I,'IMS Data'!C:C,'Fentora Tracker'!G:G),IF('Fentora Tracker'!$F$7="Gabitril",SUMIFS('IMS Data'!H:H,'IMS Data'!C:C,'Fentora Tracker'!G:G),IF('Fentora Tracker'!$F$7="Actiq",SUMIFS('IMS Data'!G:G,'IMS Data'!C:C,'Fentora Tracker'!G:G),IF($F$7="Copaxone 20",SUMIFS('IMS Data'!J:J,'IMS Data'!C:C,'TRx Tracker vs AOP'!G:G),IF($F$7="Copaxone 40",SUMIFS('IMS Data'!K:K,'IMS Data'!C:C,'TRx Tracker vs AOP'!G:G),IF($F$7="Azilect",SUMIFS('IMS Data'!L:L,'IMS Data'!C:C,'Fentora Tracker'!G:G)))))))))) -> 0 | I59: 197.6442184 | J59: -197.6442184 | K59: =SUMIFS('IMS Data'!O:O,'IMS Data'!C:C,'Fentora Tracker'!G:G) -> 0 | L59: 24616.58333 | M59: -24616.58333 | N59: ='Fentora 2017'!N112 -> 304371 | O59: 295399
E60: 9 | F60: 39 | G60: 2017-09-29 | H60: =IF($F$7="Nuvigil",SUMIFS('IMS Data'!D:D,'IMS Data'!C:C,'Fentora Tracker'!G:G),IF('Fentora Tracker'!$F$7="Fentora",SUMIFS('IMS Data'!F:F,'IMS Data'!C:C,'Fentora Tracker'!G:G),IF('Fentora Tracker'!$F$7="Amrix",SUMIFS('IMS Data'!E:E,'IMS Data'!C:C,'Fentora Tracker'!G:G),IF('Fentora Tracker'!$F$7="Provigil",SUMIFS('IMS Data'!I:I,'IMS Data'!C:C,'Fentora Tracker'!G:G),IF('Fentora Tracker'!$F$7="Gabitril",SUMIFS('IMS Data'!H:H,'IMS Data'!C:C,'Fentora Tracker'!G:G),IF('Fentora Tracker'!$F$7="Actiq",SUMIFS('IMS Data'!G:G,'IMS Data'!C:C,'Fentora Tracker'!G:G),IF($F$7="Copaxone 20",SUMIFS('IMS Data'!J:J,'IMS Data'!C:C,'TRx Tracker vs AOP'!G:G),IF($F$7="Copaxone 40",SUMIFS('IMS Data'!K:K,'IMS Data'!C:C,'TRx Tracker vs AOP'!G:G),IF($F$7="Azilect",SUMIFS('IMS Data'!L:L,'IMS Data'!C:C,'Fentora Tracker'!G:G)))))))))) -> 0 | I60: 197.6442184 | J60: -197.6442184 | K60: =SUMIFS('IMS Data'!O:O,'IMS Data'!C:C,'Fentora Tracker'!G:G) -> 0 | L60: 24616.58333 | M60: -24616.58333 | N60: ='Fentora 2017'!N113 -> 304397 | O60: 295399
E61: 10 | F61: 40 | G61: 2017-10-06 | H61: =IF($F$7="Nuvigil",SUMIFS('IMS Data'!D:D,'IMS Data'!C:C,'Fentora Tracker'!G:G),IF('Fentora Tracker'!$F$7="Fentora",SUMIFS('IMS Data'!F:F,'IMS Data'!C:C,'Fentora Tracker'!G:G),IF('Fentora Tracker'!$F$7="Amrix",SUMIFS('IMS Data'!E:E,'IMS Data'!C:C,'Fentora Tracker'!G:G),IF('Fentora Tracker'!$F$7="Provigil",SUMIFS('IMS Data'!I:I,'IMS Data'!C:C,'Fentora Tracker'!G:G),IF('Fentora Tracker'!$F$7="Gabitril",SUMIFS('IMS Data'!H:H,'IMS Data'!C:C,'Fentora Tracker'!G:G),IF('Fentora Tracker'!$F$7="Actiq",SUMIFS('IMS Data'!G:G,'IMS Data'!C:C,'Fentora Tracker'!G:G),IF($F$7="Copaxone 20",SUMIFS('IMS Data'!J:J,'IMS Data'!C:C,'TRx Tracker vs AOP'!G:G),IF($F$7="Copaxone 40",SUMIFS('IMS Data'!K:K,'IMS Data'!C:C,'TRx Tracker vs AOP'!G:G),IF($F$7="Azilect",SUMIFS('IMS Data'!L:L,'IMS Data'!C:C,'Fentora Tracker'!G:G)))))))))) -> 0 | I61: 166.2897912 | J61: -166.2897912 | K61: =SUMIFS('IMS Data'!O:O,'IMS Data'!C:C,'Fentora Tracker'!G:G) -> 0 | L61: 24616.58333 | M61: -24616.58333 | N61: ='Fentora 2017'!N114 -> 300359 | O61: 295399
E62: 10 | F62: 41 | G62: 2017-10-13 | H62: =IF($F$7="Nuvigil",SUMIFS('IMS Data'!D:D,'IMS Data'!C:C,'Fentora Tracker'!G:G),IF('Fentora Tracker'!$F$7="Fentora",SUMIFS('IMS Data'!F:F,'IMS Data'!C:C,'Fentora Tracker'!G:G),IF('Fentora Tracker'!$F$7="Amrix",SUMIFS('IMS Data'!E:E,'IMS Data'!C:C,'Fentora Tracker'!G:G),IF('Fentora Tracker'!$F$7="Provigil",SUMIFS('IMS Data'!I:I,'IMS Data'!C:C,'Fentora Tracker'!G:G),IF('Fentora Tracker'!$F$7="Gabitril",SUMIFS('IMS Data'!H:H,'IMS Data'!C:C,'Fentora Tracker'!G:G),IF('Fentora Tracker'!$F$7="Actiq",SUMIFS('IMS Data'!G:G,'IMS Data'!C:C,'Fentora Tracker'!G:G),IF($F$7="Copaxone 20",SUMIFS('IMS Data'!J:J,'IMS Data'!C:C,'TRx Tracker vs AOP'!G:G),IF($F$7="Copaxone 40",SUMIFS('IMS Data'!K:K,'IMS Data'!C:C,'TRx Tracker vs AOP'!G:G),IF($F$7="Azilect",SUMIFS('IMS Data'!L:L,'IMS Data'!C:C,'Fentora Tracker'!G:G)))))))))) -> 0 | I62: 166.2897912 | J62: -166.2897912 | K62: =SUMIFS('IMS Data'!O:O,'IMS Data'!C:C,'Fentora Tracker'!G:G) -> 0 | L62: 24616.58333 | M62: -24616.58333 | N62: ='Fentora 2017'!N115 -> 295590 | O62: 295399
E63: 10 | F63: 42 | G63: 2017-10-20 | H63: =IF($F$7="Nuvigil",SUMIFS('IMS Data'!D:D,'IMS Data'!C:C,'Fentora Tracker'!G:G),IF('Fentora Tracker'!$F$7="Fentora",SUMIFS('IMS Data'!F:F,'IMS Data'!C:C,'Fentora Tracker'!G:G),IF('Fentora Tracker'!$F$7="Amrix",SUMIFS('IMS Data'!E:E,'IMS Data'!C:C,'Fentora Tracker'!G:G),IF('Fentora Tracker'!$F$7="Provigil",SUMIFS('IMS Data'!I:I,'IMS Data'!C:C,'Fentora Tracker'!G:G),IF('Fentora Tracker'!$F$7="Gabitril",SUMIFS('IMS Data'!H:H,'IMS Data'!C:C,'Fentora Tracker'!G:G),IF('Fentora Tracker'!$F$7="Actiq",SUMIFS('IMS Data'!G:G,'IMS Data'!C:C,'Fentora Tracker'!G:G),IF($F$7="Copaxone 20",SUMIFS('IMS Data'!J:J,'IMS Data'!C:C,'TRx Tracker vs AOP'!G:G),IF($F$7="Copaxone 40",SUMIFS('IMS Data'!K:K,'IMS Data'!C:C,'TRx Tracker vs AOP'!G:G),IF($F$7="Azilect",SUMIFS('IMS Data'!L:L,'IMS Data'!C:C,'Fentora Tracker'!G:G)))))))))) -> 0 | I63: 166.2897912 | J63: -166.2897912 | K63: =SUMIFS('IMS Data'!O:O,'IMS Data'!C:C,'Fentora Tracker'!G:G) -> 0 | L63: 24616.58333 | M63: -24616.58333 | N63: ='Fentora 2017'!N116 -> 297715 | O63: 295399
E64: 10 | F64: 43 | G64: 2017-10-27 | H64: =IF($F$7="Nuvigil",SUMIFS('IMS Data'!D:D,'IMS Data'!C:C,'Fentora Tracker'!G:G),IF('Fentora Tracker'!$F$7="Fentora",SUMIFS('IMS Data'!F:F,'IMS Data'!C:C,'Fentora Tracker'!G:G),IF('Fentora Tracker'!$F$7="Amrix",SUMIFS('IMS Data'!E:E,'IMS Data'!C:C,'Fentora Tracker'!G:G),IF('Fentora Tracker'!$F$7="Provigil",SUMIFS('IMS Data'!I:I,'IMS Data'!C:C,'Fentora Tracker'!G:G),IF('Fentora Tracker'!$F$7="Gabitril",SUMIFS('IMS Data'!H:H,'IMS Data'!C:C,'Fentora Tracker'!G:G),IF('Fentora Tracker'!$F$7="Actiq",SUMIFS('IMS Data'!G:G,'IMS Data'!C:C,'Fentora Tracker'!G:G),IF($F$7="Copaxone 20",SUMIFS('IMS Data'!J:J,'IMS Data'!C:C,'TRx Tracker vs AOP'!G:G),IF($F$7="Copaxone 40",SUMIFS('IMS Data'!K:K,'IMS Data'!C:C,'TRx Tracker vs AOP'!G:G),IF($F$7="Azilect",SUMIFS('IMS Data'!L:L,'IMS Data'!C:C,'Fentora Tracker'!G:G)))))))))) -> 0 | I64: 166.2897912 | J64: -166.2897912 | K64: =SUMIFS('IMS Data'!O:O,'IMS Data'!C:C,'Fentora Tracker'!G:G) -> 0 | L64: 24616.58333 | M64: -24616.58333 | N64: ='Fentora 2017'!N117 -> 291483 | O64: 295399
E65: 11 | F65: 44 | G65: 2017-11-03 | H65: =IF($F$7="Nuvigil",SUMIFS('IMS Data'!D:D,'IMS Data'!C:C,'Fentora Tracker'!G:G),IF('Fentora Tracker'!$F$7="Fentora",SUMIFS('IMS Data'!F:F,'IMS Data'!C:C,'Fentora Tracker'!G:G),IF('Fentora Tracker'!$F$7="Amrix",SUMIFS('IMS Data'!E:E,'IMS Data'!C:C,'Fentora Tracker'!G:G),IF('Fentora Tracker'!$F$7="Provigil",SUMIFS('IMS Data'!I:I,'IMS Data'!C:C,'Fentora Tracker'!G:G),IF('Fentora Tracker'!$F$7="Gabitril",SUMIFS('IMS Data'!H:H,'IMS Data'!C:C,'Fentora Tracker'!G:G),IF('Fentora Tracker'!$F$7="Actiq",SUMIFS('IMS Data'!G:G,'IMS Data'!C:C,'Fentora Tracker'!G:G),IF($F$7="Copaxone 20",SUMIFS('IMS Data'!J:J,'IMS Data'!C:C,'TRx Tracker vs AOP'!G:G),IF($F$7="Copaxone 40",SUMIFS('IMS Data'!K:K,'IMS Data'!C:C,'TRx Tracker vs AOP'!G:G),IF($F$7="Azilect",SUMIFS('IMS Data'!L:L,'IMS Data'!C:C,'Fentora Tracker'!G:G)))))))))) -> 0 | I65: 125.8232115 | J65: -125.8232115 | K65: =SUMIFS('IMS Data'!O:O,'IMS Data'!C:C,'Fentora Tracker'!G:G) -> 0 | L65: 24616.58333 | M65: -24616.58333 | N65: ='Fentora 2017'!N118 -> 292656 | O65: 295399
E66: 11 | F66: 45 | G66: 2017-11-10 | H66: =IF($F$7="Nuvigil",SUMIFS('IMS Data'!D:D,'IMS Data'!C:C,'Fentora Tracker'!G:G),IF('Fentora Tracker'!$F$7="Fentora",SUMIFS('IMS Data'!F:F,'IMS Data'!C:C,'Fentora Tracker'!G:G),IF('Fentora Tracker'!$F$7="Amrix",SUMIFS('IMS Data'!E:E,'IMS Data'!C:C,'Fentora Tracker'!G:G),IF('Fentora Tracker'!$F$7="Provigil",SUMIFS('IMS Data'!I:I,'IMS Data'!C:C,'Fentora Tracker'!G:G),IF('Fentora Tracker'!$F$7="Gabitril",SUMIFS('IMS Data'!H:H,'IMS Data'!C:C,'Fentora Tracker'!G:G),IF('Fentora Tracker'!$F$7="Actiq",SUMIFS('IMS Data'!G:G,'IMS Data'!C:C,'Fentora Tracker'!G:G),IF($F$7="Copaxone 20",SUMIFS('IMS Data'!J:J,'IMS Data'!C:C,'TRx Tracker vs AOP'!G:G),IF($F$7="Copaxone 40",SUMIFS('IMS Data'!K:K,'IMS Data'!C:C,'TRx Tracker vs AOP'!G:G),IF($F$7="Azilect",SUMIFS('IMS Data'!L:L,'IMS Data'!C:C,'Fentora Tracker'!G:G)))))))))) -> 0 | I66: 125.8232115 | J66: -125.8232115 | K66: =SUMIFS('IMS Data'!O:O,'IMS Data'!C:C,'Fentora Tracker'!G:G) -> 0 | L66: 24616.58333 | M66: -24616.58333 | N66: ='Fentora 2017'!N119 -> 290938 | O66: 295399
E67: 11 | F67: 46 | G67: 2017-11-17 | H67: =IF($F$7="Nuvigil",SUMIFS('IMS Data'!D:D,'IMS Data'!C:C,'Fentora Tracker'!G:G),IF('Fentora Tracker'!$F$7="Fentora",SUMIFS('IMS Data'!F:F,'IMS Data'!C:C,'Fentora Tracker'!G:G),IF('Fentora Tracker'!$F$7="Amrix",SUMIFS('IMS Data'!E:E,'IMS Data'!C:C,'Fentora Tracker'!G:G),IF('Fentora Tracker'!$F$7="Provigil",SUMIFS('IMS Data'!I:I,'IMS Data'!C:C,'Fentora Tracker'!G:G),IF('Fentora Tracker'!$F$7="Gabitril",SUMIFS('IMS Data'!H:H,'IMS Data'!C:C,'Fentora Tracker'!G:G),IF('Fentora Tracker'!$F$7="Actiq",SUMIFS('IMS Data'!G:G,'IMS Data'!C:C,'Fentora Tracker'!G:G),IF($F$7="Copaxone 20",SUMIFS('IMS Data'!J:J,'IMS Data'!C:C,'TRx Tracker vs AOP'!G:G),IF($F$7="Copaxone 40",SUMIFS('IMS Data'!K:K,'IMS Data'!C:C,'TRx Tracker vs AOP'!G:G),IF($F$7="Azilect",SUMIFS('IMS Data'!L:L,'IMS Data'!C:C,'Fentora Tracker'!G:G)))))))))) -> 0 | I67: 125.8232115 | J67: -125.8232115 | K67: =SUMIFS('IMS Data'!O:O,'IMS Data'!C:C,'Fentora Tracker'!G:G) -> 0 | L67: 24616.58333 | M67: -24616.58333 | N67: ='Fentora 2017'!N120 -> 288466 | O67: 295399
E68: 11 | F68: 47 | G68: 2017-11-24 | H68: =IF($F$7="Nuvigil",SUMIFS('IMS Data'!D:D,'IMS Data'!C:C,'Fentora Tracker'!G:G),IF('Fentora Tracker'!$F$7="Fentora",SUMIFS('IMS Data'!F:F,'IMS Data'!C:C,'Fentora Tracker'!G:G),IF('Fentora Tracker'!$F$7="Amrix",SUMIFS('IMS Data'!E:E,'IMS Data'!C:C,'Fentora Tracker'!G:G),IF('Fentora Tracker'!$F$7="Provigil",SUMIFS('IMS Data'!I:I,'IMS Data'!C:C,'Fentora Tracker'!G:G),IF('Fentora Tracker'!$F$7="Gabitril",SUMIFS('IMS Data'!H:H,'IMS Data'!C:C,'Fentora Tracker'!G:G),IF('Fentora Tracker'!$F$7="Actiq",SUMIFS('IMS Data'!G:G,'IMS Data'!C:C,'Fentora Tracker'!G:G),IF($F$7="Copaxone 20",SUMIFS('IMS Data'!J:J,'IMS Data'!C:C,'TRx Tracker vs AOP'!G:G),IF($F$7="Copaxone 40",SUMIFS('IMS Data'!K:K,'IMS Data'!C:C,'TRx Tracker vs AOP'!G:G),IF($F$7="Azilect",SUMIFS('IMS Data'!L:L,'IMS Data'!C:C,'Fentora Tracker'!G:G)))))))))) -> 0 | I68: 125.8232115 | J68: -125.8232115 | K68: =SUMIFS('IMS Data'!O:O,'IMS Data'!C:C,'Fentora Tracker'!G:G) -> 0 | L68: 24616.58333 | M68: -24616.58333 | N68: ='Fentora 2017'!N121 -> 287606 | O68: 295399
E69: 12 | F69: 48 | G69: 2017-12-01 | H69: =IF($F$7="Nuvigil",SUMIFS('IMS Data'!D:D,'IMS Data'!C:C,'Fentora Tracker'!G:G),IF('Fentora Tracker'!$F$7="Fentora",SUMIFS('IMS Data'!F:F,'IMS Data'!C:C,'Fentora Tracker'!G:G),IF('Fentora Tracker'!$F$7="Amrix",SUMIFS('IMS Data'!E:E,'IMS Data'!C:C,'Fentora Tracker'!G:G),IF('Fentora Tracker'!$F$7="Provigil",SUMIFS('IMS Data'!I:I,'IMS Data'!C:C,'Fentora Tracker'!G:G),IF('Fentora Tracker'!$F$7="Gabitril",SUMIFS('IMS Data'!H:H,'IMS Data'!C:C,'Fentora Tracker'!G:G),IF('Fentora Tracker'!$F$7="Actiq",SUMIFS('IMS Data'!G:G,'IMS Data'!C:C,'Fentora Tracker'!G:G),IF($F$7="Copaxone 20",SUMIFS('IMS Data'!J:J,'IMS Data'!C:C,'TRx Tracker vs AOP'!G:G),IF($F$7="Copaxone 40",SUMIFS('IMS Data'!K:K,'IMS Data'!C:C,'TRx Tracker vs AOP'!G:G),IF($F$7="Azilect",SUMIFS('IMS Data'!L:L,'IMS Data'!C:C,'Fentora Tracker'!G:G)))))))))) -> 0 | I69: 111.9526229 | J69: -111.9526229 | K69: =SUMIFS('IMS Data'!O:O,'IMS Data'!C:C,'Fentora Tracker'!G:G) -> 0 | L69: 24616.58333 | M69: -24616.58333 | N69: ='Fentora 2017'!N122 -> 290486 | O69: 295399
E70: 12 | F70: 49 | G70: 2017-12-08 | H70: =IF($F$7="Nuvigil",SUMIFS('IMS Data'!D:D,'IMS Data'!C:C,'Fentora Tracker'!G:G),IF('Fentora Tracker'!$F$7="Fentora",SUMIFS('IMS Data'!F:F,'IMS Data'!C:C,'Fentora Tracker'!G:G),IF('Fentora Tracker'!$F$7="Amrix",SUMIFS('IMS Data'!E:E,'IMS Data'!C:C,'Fentora Tracker'!G:G),IF('Fentora Tracker'!$F$7="Provigil",SUMIFS('IMS Data'!I:I,'IMS Data'!C:C,'Fentora Tracker'!G:G),IF('Fentora Tracker'!$F$7="Gabitril",SUMIFS('IMS Data'!H:H,'IMS Data'!C:C,'Fentora Tracker'!G:G),IF('Fentora Tracker'!$F$7="Actiq",SUMIFS('IMS Data'!G:G,'IMS Data'!C:C,'Fentora Tracker'!G:G),IF($F$7="Copaxone 20",SUMIFS('IMS Data'!J:J,'IMS Data'!C:C,'TRx Tracker vs AOP'!G:G),IF($F$7="Copaxone 40",SUMIFS('IMS Data'!K:K,'IMS Data'!C:C,'TRx Tracker vs AOP'!G:G),IF($F$7="Azilect",SUMIFS('IMS Data'!L:L,'IMS Data'!C:C,'Fentora Tracker'!G:G)))))))))) -> 0 | I70: 111.9526229 | J70: -111.9526229 | K70: =SUMIFS('IMS Data'!O:O,'IMS Data'!C:C,'Fentora Tracker'!G:G) -> 0 | L70: 24616.58333 | M70: -24616.58333 | N70: ='Fentora 2017'!N123 -> 286608 | O70: 295399
E71: 12 | F71: 50 | G71: 2017-12-15 | H71: =IF($F$7="Nuvigil",SUMIFS('IMS Data'!D:D,'IMS Data'!C:C,'Fentora Tracker'!G:G),IF('Fentora Tracker'!$F$7="Fentora",SUMIFS('IMS Data'!F:F,'IMS Data'!C:C,'Fentora Tracker'!G:G),IF('Fentora Tracker'!$F$7="Amrix",SUMIFS('IMS Data'!E:E,'IMS Data'!C:C,'Fentora Tracker'!G:G),IF('Fentora Tracker'!$F$7="Provigil",SUMIFS('IMS Data'!I:I,'IMS Data'!C:C,'Fentora Tracker'!G:G),IF('Fentora Tracker'!$F$7="Gabitril",SUMIFS('IMS Data'!H:H,'IMS Data'!C:C,'Fentora Tracker'!G:G),IF('Fentora Tracker'!$F$7="Actiq",SUMIFS('IMS Data'!G:G,'IMS Data'!C:C,'Fentora Tracker'!G:G),IF($F$7="Copaxone 20",SUMIFS('IMS Data'!J:J,'IMS Data'!C:C,'TRx Tracker vs AOP'!G:G),IF($F$7="Copaxone 40",SUMIFS('IMS Data'!K:K,'IMS Data'!C:C,'TRx Tracker vs AOP'!G:G),IF($F$7="Azilect",SUMIFS('IMS Data'!L:L,'IMS Data'!C:C,'Fentora Tracker'!G:G)))))))))) -> 0 | I71: 111.9526229 | J71: -111.9526229 | K71: =SUMIFS('IMS Data'!O:O,'IMS Data'!C:C,'Fentora Tracker'!G:G) -> 0 | L71: 24616.58333 | M71: -24616.58333 | N71: ='Fentora 2017'!N124 -> 286019 | O71: 295399
E72: 12 | F72: 51 | G72: 2017-12-22 | H72: =IF($F$7="Nuvigil",SUMIFS('IMS Data'!D:D,'IMS Data'!C:C,'Fentora Tracker'!G:G),IF('Fentora Tracker'!$F$7="Fentora",SUMIFS('IMS Data'!F:F,'IMS Data'!C:C,'Fentora Tracker'!G:G),IF('Fentora Tracker'!$F$7="Amrix",SUMIFS('IMS Data'!E:E,'IMS Data'!C:C,'Fentora Tracker'!G:G),IF('Fentora Tracker'!$F$7="Provigil",SUMIFS('IMS Data'!I:I,'IMS Data'!C:C,'Fentora Tracker'!G:G),IF('Fentora Tracker'!$F$7="Gabitril",SUMIFS('IMS Data'!H:H,'IMS Data'!C:C,'Fentora Tracker'!G:G),IF('Fentora Tracker'!$F$7="Actiq",SUMIFS('IMS Data'!G:G,'IMS Data'!C:C,'Fentora Tracker'!G:G),IF($F$7="Copaxone 20",SUMIFS('IMS Data'!J:J,'IMS Data'!C:C,'TRx Tracker vs AOP'!G:G),IF($F$7="Copaxone 40",SUMIFS('IMS Data'!K:K,'IMS Data'!C:C,'TRx Tracker vs AOP'!G:G),IF($F$7="Azilect",SUMIFS('IMS Data'!L:L,'IMS Data'!C:C,'Fentora Tracker'!G:G)))))))))) -> 0 | I72: 111.9526229 | J72: -111.9526229 | K72: =SUMIFS('IMS Data'!O:O,'IMS Data'!C:C,'Fentora Tracker'!G:G) -> 0 | L72: 24616.58333 | M72: -24616.58333 | N72: ='Fentora 2017'!N125 -> 287375 | O72: 295399
E73: 12 | F73: 52 | G73: 2017-12-29 | H73: =IF($F$7="Nuvigil",SUMIFS('IMS Data'!D:D,'IMS Data'!C:C,'Fentora Tracker'!G:G),IF('Fentora Tracker'!$F$7="Fentora",SUMIFS('IMS Data'!F:F,'IMS Data'!C:C,'Fentora Tracker'!G:G),IF('Fentora Tracker'!$F$7="Amrix",SUMIFS('IMS Data'!E:E,'IMS Data'!C:C,'Fentora Tracker'!G:G),IF('Fentora Tracker'!$F$7="Provigil",SUMIFS('IMS Data'!I:I,'IMS Data'!C:C,'Fentora Tracker'!G:G),IF('Fentora Tracker'!$F$7="Gabitril",SUMIFS('IMS Data'!H:H,'IMS Data'!C:C,'Fentora Tracker'!G:G),IF('Fentora Tracker'!$F$7="Actiq",SUMIFS('IMS Data'!G:G,'IMS Data'!C:C,'Fentora Tracker'!G:G),IF($F$7="Copaxone 20",SUMIFS('IMS Data'!J:J,'IMS Data'!C:C,'TRx Tracker vs AOP'!G:G),IF($F$7="Copaxone 40",SUMIFS('IMS Data'!K:K,'IMS Data'!C:C,'TRx Tracker vs AOP'!G:G),IF($F$7="Azilect",SUMIFS('IMS Data'!L:L,'IMS Data'!C:C,'Fentora Tracker'!G:G)))))))))) -> 0 | I73: 111.9526229 | J73: -111.9526229 | K73: =SUMIFS('IMS Data'!O:O,'IMS Data'!C:C,'Fentora Tracker'!G:G) -> 0 | L73: 24616.58333 | M73: -24616.58333 | N73: ='Fentora 2017'!N126 -> 282883 | O73: 295399
O75: =+N62-O62 -> 191

Sheet Data Inputs (hidden)
A3: Forecast | B3: Input | C3: Product | D3: Jan | E3: Feb | F3: Mar | G3: Apr | H3: May | I3: Jun | J3: Jul | K3: Aug | L3: Sep | M3: Oct | N3: Nov | O3: Dec
A4: AOP | B4: Unit Forecast | C4: Nuvigil | D4: 6367 | E4: 4792 | F4: 4225 | G4: 3663 | H4: 3729 | I4: 3781 | J4: 3634 | K4: 3787 | L4: 3799 | M4: 3897 | N4: 3712 | O4: 4063
A5: AOP | B5: Unit Forecast | C5: Amrix | D5: 5627.360653 | E5: 5145.619608 | F5: 5252.118876 | G5: 6269.134511 | H5: 5361.995589 | I5: 5907.10875 | J5: 6286.878505 | K5: 5405.237765 | L5: 5726.871659 | M5: 5700.08756 | N5: 5384.068028 | O5: 6277.397149
A6: AOP | B6: Unit Forecast | C6: Fentora | D6: 4010.408673 | E6: 3375.104463 | F6: 3788.248066 | G6: 4254.64831 | H6: 3335.684204 | I6: 3439.580736 | J6: 2997.602372 | K6: 2768.155334 | L6: 3090.069246 | M6: 2004.119472 | N6: 1409.280967 | O6: 1070.95932
A7: AOP | B7: Unit Forecast | C7: Actiq | D7: 334.4 | E7: 236.72 | F7: 324.72 | G7: 264.88 | H7: 251.68 | I7: 332.64 | J7: 196.24 | K7: 299.3941316 | L7: 308.8811232 | M7: 278.021844 | N7: 248.9444896 | O7: 287.7559484
A8: AOP | B8: Unit Forecast | C8: Gabitril | D8: 4938.12 | E8: 3528.72 | F8: 4071.6 | G8: 4343.04 | H8: 3925.44 | I8: 4196.88 | J8: 3633.12 | K8: 3390.025409 | L8: 3542.494473 | M8: 3465.963995 | N8: 3305.640647 | O8: 3394.21771
A9: AOP | B9: Unit Forecast | C9: Provigil | D9: 4666.615664 | E9: 4849.158315 | F9: 4762.180056 | G9: 4567.2 | H9: 4609.44 | I9: 4794.24 | J9: 4155.36 | K9: 4443.326857 | L9: 4671.766385 | M9: 4575.498989 | N9: 4745.72799 | O9: 4364.85387
A10: AOP | B10: Unit Forecast | C10: Copaxone 20 | D10: 9590.672596 | E10: 9436.719467 | F10: 10740.71288 | G10: 10097.07262 | H10: 9482.744046 | I10: 9801.899454 | J10: 9250.744084 | K10: 9016.110513 | L10: 8923.108206 | M10: 8540.283662 | N10: 7720.022574 | O10: 8522.496084
A11: AOP | B11: Unit Forecast | C11: Copaxone 40 | D11: 46170.78162 | E11: 51880.78285 | F11: 60537.65713 | G11: 58599.07991 | H11: 56792.93264 | I11: 60218.28869 | J11: 58501.17163 | K11: 58749.66512 | L11: 59761.68797 | M11: 58998.92331 | N11: 55058.74409 | O11: 65056.59238
A12: AOP | B12: Unit Forecast | C12: Azilect | D12: 542.9236326 | E12: 12148.70233 | F12: 10814.89254 | G12: 5023.953049 | H12: 7491.755368 | I12: 8541.239974 | J12: 8575.578396 | K12: 8487.559277 | L12: 7974.989644 | M12: 8461.304135 | N12: 7735.515662 | O12: 8283.35005
A13: AOP | B13: Bottle Size | C13: Nuvigil | D13: 30 | E13: 30 | F13: 30 | G13: 30 | H13: 30 | I13: 30 | J13: 30 | K13: 30 | L13: 30 | M13: 30 | N13: 30 | O13: 30
A14: AOP | B14: Bottle Size | C14: Amrix | D14: 60 | E14: 60 | F14: 60 | G14: 60 | H14: 60 | I14: 60 | J14: 60 | K14: 60 | L14: 60 | M14: 60 | N14: 60 | O14: 60
A15: AOP | B15: Bottle Size | C15: Fentora | D15: 28 | E15: 28 | F15: 28 | G15: 28 | H15: 28 | I15: 28 | J15: 28 | K15: 28 | L15: 28 | M15: 28 | N15: 28 | O15: 28
A16: AOP | B16: Bottle Size | C16: Actiq | D16: 30 | E16: 30 | F16: 30 | G16: 30 | H16: 30 | I16: 30 | J16: 30 | K16: 30 | L16: 30 | M16: 30 | N16: 30 | O16: 30
A17: AOP | B17: Bottle Size | C17: Gabitril | D17: 30 | E17: 30 | F17: 30 | G17: 30 | H17: 30 | I17: 30 | J17: 30 | K17: 30 | L17: 30 | M17: 30 | N17: 30 | O17: 30
A18: AOP | B18: Bottle Size | C18: Provigil | D18: 30 | E18: 30 | F18: 30 | G18: 30 | H18: 30 | I18: 30 | J18: 30 | K18: 30 | L18: 30 | M18: 30 | N18: 30 | O18: 30
A19: AOP | B19: Bottle Size | C19: Copaxone 20 | D19: 30 | E19: 30 | F19: 30 | G19: 30 | H19: 30 | I19: 30 | J19: 30 | K19: 30 | L19: 30 | M19: 30 | N19: 30 | O19: 30
A20: AOP | B20: Bottle Size | C20: Copaxone 40 | D20: 12 | E20: 12 | F20: 12 | G20: 12 | H20: 12 | I20: 12 | J20: 12 | K20: 12 | L20: 12 | M20: 12 | N20: 12 | O20: 12
A21: AOP | B21: Bottle Size | C21: Azilect | D21: 30 | E21: 30 | F21: 30 | G21: 30 | H21: 30 | I21: 30 | J21: 30 | K21: 30 | L21: 30 | M21: 30 | N21: 30 | O21: 30
A22: AOP | B22: Avg Units per TRx | C22: Nuvigil | D22: 34 | E22: 34 | F22: 34 | G22: 34 | H22: 34 | I22: 34 | J22: 34 | K22: 34 | L22: 34 | M22: 34 | N22: 34 | O22: 34
A23: AOP | B23: Avg Units per TRx | C23: Amrix | D23: 34 | E23: 34 | F23: 34 | G23: 34 | H23: 34 | I23: 34 | J23: 34 | K23: 34 | L23: 34 | M23: 34 | N23: 34 | O23: 34
A24: AOP | B24: Avg Units per TRx | C24: Fentora | D24: 97 | E24: 97 | F24: 97 | G24: 97 | H24: 97 | I24: 97 | J24: 97 | K24: 97 | L24: 97 | M24: 97 | N24: 97 | O24: 97
A25: AOP | B25: Avg Units per TRx | C25: Actiq | D25: 118 | E25: 118 | F25: 118 | G25: 118 | H25: 118 | I25: 118 | J25: 118 | K25: 118 | L25: 118 | M25: 118 | N25: 118 | O25: 118
A26: AOP | B26: Avg Units per TRx | C26: Gabitril | D26: 80 | E26: 80 | F26: 80 | G26: 80 | H26: 80 | I26: 80 | J26: 80 | K26: 80 | L26: 80 | M26: 80 | N26: 80 | O26: 80
A27: AOP | B27: Avg Units per TRx | C27: Provigil | D27: 52 | E27: 52 | F27: 52 | G27: 52 | H27: 52 | I27: 52 | J27: 52 | K27: 52 | L27: 52 | M27: 52 | N27: 52 | O27: 52
A28: AOP | B28: Avg Units per TRx | C28: Copaxone 20 | D28: 30 | E28: 30 | F28: 30 | G28: 30 | H28: 30 | I28: 30 | J28: 30 | K28: 30 | L28: 30 | M28: 30 | N28: 30 | O28: 30
A29: AOP | B29: Avg Units per TRx | C29: Copaxone 40 | D29: 12 | E29: 12 | F29: 12 | G29: 12 | H29: 12 | I29: 12 | J29: 12 | K29: 12 | L29: 12 | M29: 12 | N29: 12 | O29: 12
A30: AOP | B30: Avg Units per TRx | C30: Azilect | D30: 41.7 | E30: 41.7 | F30: 41.7 | G30: 41.7 | H30: 41.7 | I30: 41.7 | J30: 41.7 | K30: 41.7 | L30: 41.7 | M30: 41.7 | N30: 41.7 | O30: 41.7
A31: AOP | B31: NPA Capture Rate | C31: Nuvigil | D31: 1 | E31: 1 | F31: 1 | G31: 1 | H31: 1 | I31: 1 | J31: 1 | K31: 1 | L31: 1 | M31: 1 | N31: 1 | O31: 1
A32: AOP | B32: NPA Capture Rate | C32: Amrix | D32: 1 | E32: 1 | F32: 1 | G32: 1 | H32: 1 | I32: 1 | J32: 1 | K32: 1 | L32: 1 | M32: 1 | N32: 1 | O32: 1
A33: AOP | B33: NPA Capture Rate | C33: Fentora | D33: 1 | E33: 1 | F33: 1 | G33: 1 | H33: 1 | I33: 1 | J33: 1 | K33: 1 | L33: 1 | M33: 1 | N33: 1 | O33: 1
A34: AOP | B34: NPA Capture Rate | C34: Actiq | D34: 1 | E34: 1 | F34: 1 | G34: 1 | H34: 1 | I34: 1 | J34: 1 | K34: 1 | L34: 1 | M34: 1 | N34: 1 | O34: 1
A35: AOP | B35: NPA Capture Rate | C35: Gabitril | D35: 1 | E35: 1 | F35: 1 | G35: 1 | H35: 1 | I35: 1 | J35: 1 | K35: 1 | L35: 1 | M35: 1 | N35: 1 | O35: 1
A36: AOP | B36: NPA Capture Rate | C36: Provigil | D36: 1 | E36: 1 | F36: 1 | G36: 1 | H36: 1 | I36: 1 | J36: 1 | K36: 1 | L36: 1 | M36: 1 | N36: 1 | O36: 1
A37: AOP | B37: NPA Capture Rate | C37: Copaxone 20 | D37: 1.131904382 | E37: 1.035643075 | F37: 1.031695823 | G37: 1.019644469 | H37: 1.001455119 | I37: 0.9844621232 | J37: 1.062969717 | K37: 1.065999904 | L37: 0.5993971611 | M37: 0.4251909137 | N37: 0.2612233737 | O37: 0.1628762017
A38: AOP | B38: NPA Capture Rate | C38: Copaxone 40 | D38: 0.7545658942 | E38: 0.7594275194 | F38: 0.7635935337 | G38: 0.7671138861 | H38: 0.7698041094 | I38: 0.7718126978 | J38: 0.7732806896 | K38: 0.774423165 | L38: 0.7753119427 | M38: 0.7757519011 | N38: 0.7762170374 | O38: 0.700757788
A39: AOP | B39: NPA Capture Rate | C39: Azilect | D39: 0.885 | E39: 0.885 | F39: 0.885 | G39: 0.885 | H39: 0.885 | I39: 0.885 | J39: 0.885 | K39: 0.885 | L39: 0.885 | M39: 0.885 | N39: 0.885 | O39: 0.885
A40: AOP | B40: TRx Forecast | C40: Nuvigil | D40: 5456.863867 | E40: 4108.019896 | F40: 3620.955224 | G40: 3139.114665 | H40: 3195.17805 | I40: 3240.963435 | J40: 3114.036492 | K40: 3245.757816 | L40: 3256.607252 | M40: 3340.270158 | N40: 3181.979176 | O40: 3482.860019
A41: AOP | B41: TRx Forecast | C41: Amrix | D41: 9131.724672 | E41: 9240.741048 | F41: 10408.39194 | G41: 9616.42003 | H41: 9790.632474 | I41: 10015.61235 | J41: 10090.42751 | K41: 10063.7185 | L41: 9969.804094 | M41: 10179.48427 | N41: 9420.730291 | O41: 10087.89448
A42: AOP | B42: TRx Forecast | C42: Fentora | D42: 1007.509075 | E42: 984.9872191 | F42: 1003.260395 | G42: 882.4566664 | H42: 889.5993271 | I42: 845.9842542 | J42: 729.828 | K42: 838.71438 | L42: 856.4582796 | M42: 720.5890953 | N42: 545.2339167 | O42: 485.1280324
A43: AOP | B43: TRx Forecast | C43: Actiq | D43: 87.23478261 | E43: 61.75304348 | F43: 84.70956522 | G43: 69.09913043 | H43: 65.65565217 | I43: 86.77565217 | J43: 51.19304348 | K43: 78.10281693 | L43: 80.57768432 | M43: 72.52743757 | N43: 64.94204077 | O43: 75.06676916
A44: AOP | B44: TRx Forecast | C44: Gabitril | D44: 1850.605584 | E44: 1322.420058 | F44: 1525.869297 | G44: 1627.593917 | H44: 1471.094502 | I44: 1572.819122 | J44: 1361.544911 | K44: 1270.442992 | L44: 1327.582167 | M44: 1298.901672 | N44: 1238.819032 | O44: 1272.014096
A45: AOP | B45: TRx Forecast | C45: Provigil | D45: 2516.771601 | E45: 2594.751176 | F45: 2480.007715 | G45: 2339.92 | H45: 2295.92 | I45: 2341.68 | J45: 2112 | K45: 2277.44 | L45: 2158.64 | M45: 2106.72 | N45: 2008.16 | O45: 2112
A46: AOP | B46: TRx Forecast | C46: Copaxone 20 | D46: 7405.505842 | E46: 7352.26001 | F46: 8144.198512 | G46: 7710.126269 | H46: 7338.7862 | I46: 7588.425978 | J46: 7120.968637 | K46: 7009.225225 | L46: 6884.606879 | M46: 6715.061253 | N46: 5921.72171 | O46: 6725.909304
A47: AOP | B47: TRx Forecast | C47: Copaxone 40 | D47: 40404.91766 | E47: 41192.23023 | F47: 46750.3959 | G47: 45516.1041 | H47: 44563.05958 | I47: 47318.18214 | J47: 45713.80918 | K47: 46285.73222 | L47: 46781.69604 | M47: 46976.21208 | N47: 42782.35431 | O47: 49851.90131
A48: AOP | B48: TRx Forecast | C48: Zecuity | D48: 0 | E48: 0 | F48: 0 | G48: 0 | H48: 0 | I48: 0 | J48: 0 | K48: 0 | L48: 0 | M48: 0 | N48: 0 | O48: 0
A49: AOP | B49: TRx Forecast | C49: Azilect | D49: 10188.73646 | E49: 10410.24433 | F49: 10061.26011 | G49: 7259.482129 | H49: 5743.507815 | I49: 5703.78173 | J49: 5705.773774 | K49: 5667.388539 | L49: 5427.194463 | M49: 5562.880804 | N49: 5286.117096 | O49: 5436.90656
A50: LBE | B50: Unit Forecast | C50: Nuvigil
A51: LBE | B51: Unit Forecast | C51: Amrix
A52: LBE | B52: Unit Forecast | C52: Fentora
A53: LBE | B53: Unit Forecast | C53: Actiq
A54: LBE | B54: Unit Forecast | C54: Gabitril
A55: LBE | B55: Unit Forecast | C55: Provigil
A56: LBE | B56: Unit Forecast | C56: Copaxone 20
A57: LBE | B57: Unit Forecast | C57: Copaxone 40
A58: LBE | B58: Unit Forecast | C58: Azilect
A59: LBE | B59: Bottle Size | C59: Nuvigil | D59: 30 | E59: 30 | F59: 30 | G59: 30 | H59: 30 | I59: 30 | J59: 30 | K59: 30 | L59: 30 | M59: 30 | N59: 30 | O59: 30
A60: LBE | B60: Bottle Size | C60: Amrix | D60: 60 | E60: 60 | F60: 60 | G60: 60 | H60: 60 | I60: 60 | J60: 60 | K60: 60 | L60: 60 | M60: 60 | N60: 60 | O60: 60
A61: LBE | B61: Bottle Size | C61: Fentora | D61: 28 | E61: 28 | F61: 28 | G61: 28 | H61: 28 | I61: 28 | J61: 28 | K61: 28 | L61: 28 | M61: 28 | N61: 28 | O61: 28
A62: LBE | B62: Bottle Size | C62: Actiq | D62: 30 | E62: 30 | F62: 30 | G62: 30 | H62: 30 | I62: 30 | J62: 30 | K62: 30 | L62: 30 | M62: 30 | N62: 30 | O62: 30
A63: LBE | B63: Bottle Size | C63: Gabitril | D63: 30 | E63: 30 | F63: 30 | G63: 30 | H63: 30 | I63: 30 | J63: 30 | K63: 30 | L63: 30 | M63: 30 | N63: 30 | O63: 30
A64: LBE | B64: Bottle Size | C64: Provigil | D64: 30 | E64: 30 | F64: 30 | G64: 30 | H64: 30 | I64: 30 | J64: 30 | K64: 30 | L64: 30 | M64: 30 | N64: 30 | O64: 30
A65: LBE | B65: Bottle Size | C65: Copaxone 20 | D65: 30 | E65: 30 | F65: 30 | G65: 30 | H65: 30 | I65: 30 | J65: 30 | K65: 30 | L65: 30 | M65: 30 | N65: 30 | O65: 30
A66: LBE | B66: Bottle Size | C66: Copaxone 40 | D66: 12 | E66: 12 | F66: 12 | G66: 12 | H66: 12 | I66: 12 | J66: 12 | K66: 12 | L66: 12 | M66: 12 | N66: 12 | O66: 12
A67: LBE | B67: Bottle Size | C67: Azilect | D67: 30 | E67: 30 | F67: 30 | G67: 30 | H67: 30 | I67: 30 | J67: 30 | K67: 30 | L67: 30 | M67: 30 | N67: 30 | O67: 30
A68: LBE | B68: Avg Units per TRx | C68: Nuvigil | D68: 34 | E68: 34 | F68: 34 | G68: 34 | H68: 34 | I68: 34 | J68: 34 | K68: 34 | L68: 34 | M68: 34 | N68: 34 | O68: 34
A69: LBE | B69: Avg Units per TRx | C69: Amrix | D69: 33 | E69: 33 | F69: 33 | G69: 33 | H69: 33 | I69: 33 | J69: 33 | K69: 33 | L69: 33 | M69: 33 | N69: 33 | O69: 33
A70: LBE | B70: Avg Units per TRx | C70: Fentora | D70: 94 | E70: 94 | F70: 94 | G70: 94 | H70: 94 | I70: 94 | J70: 94 | K70: 94 | L70: 94 | M70: 94 | N70: 94 | O70: 94
A71: LBE | B71: Avg Units per TRx | C71: Actiq | D71: 118 | E71: 118 | F71: 118 | G71: 118 | H71: 118 | I71: 118 | J71: 118 | K71: 118 | L71: 118 | M71: 118 | N71: 118 | O71: 118
A72: LBE | B72: Avg Units per TRx | C72: Gabitril | D72: 80 | E72: 80 | F72: 80 | G72: 80 | H72: 80 | I72: 80 | J72: 80 | K72: 80 | L72: 80 | M72: 80 | N72: 80 | O72: 80
A73: LBE | B73: Avg Units per TRx | C73: Provigil | D73: 52 | E73: 52 | F73: 52 | G73: 52 | H73: 52 | I73: 52 | J73: 52 | K73: 52 | L73: 52 | M73: 52 | N73: 52 | O73: 52
A74: LBE | B74: Avg Units per TRx | C74: Copaxone 20 | D74: 30 | E74: 30 | F74: 30 | G74: 30 | H74: 30 | I74: 30 | J74: 30 | K74: 30 | L74: 30 | M74: 30 | N74: 30 | O74: 30
A75: LBE | B75: Avg Units per TRx | C75: Copaxone 40 | D75: 12 | E75: 12 | F75: 12 | G75: 12 | H75: 12 | I75: 12 | J75: 12 | K75: 12 | L75: 12 | M75: 12 | N75: 12 | O75: 12
A76: LBE | B76: Avg Units per TRx | C76: Azilect | D76: 42.26365447 | E76: 41.66215878 | F76: 41.92806598 | G76: 42.09838656 | H76: 41.7 | I76: 41.7 | J76: 41.7 | K76: 41.7 | L76: 41.7 | M76: 41.7 | N76: 41.7 | O76: 41.7
A77: LBE | B77: NPA Capture Rate | C77: Nuvigil | D77: 1 | E77: 1 | F77: 1 | G77: 1 | H77: 1 | I77: 1 | J77: 1 | K77: 1 | L77: 1 | M77: 1 | N77: 1 | O77: 1
A78: LBE | B78: NPA Capture Rate | C78: Amrix | D78: 1 | E78: 1 | F78: 1 | G78: 1 | H78: 1 | I78: 1 | J78: 1 | K78: 1 | L78: 1 | M78: 1 | N78: 1 | O78: 1
A79: LBE | B79: NPA Capture Rate | C79: Fentora | D79: 1 | E79: 1 | F79: 1 | G79: 1 | H79: 1 | I79: 1 | J79: 1 | K79: 1 | L79: 1 | M79: 1 | N79: 1 | O79: 1
A80: LBE | B80: NPA Capture Rate | C80: Actiq | D80: 1 | E80: 1 | F80: 1 | G80: 1 | H80: 1 | I80: 1 | J80: 1 | K80: 1 | L80: 1 | M80: 1 | N80: 1 | O80: 1
A81: LBE | B81: NPA Capture Rate | C81: Gabitril | D81: 1 | E81: 1 | F81: 1 | G81: 1 | H81: 1 | I81: 1 | J81: 1 | K81: 1 | L81: 1 | M81: 1 | N81: 1 | O81: 1
A82: LBE | B82: NPA Capture Rate | C82: Provigil | D82: 1 | E82: 1 | F82: 1 | G82: 1 | H82: 1 | I82: 1 | J82: 1 | K82: 1 | L82: 1 | M82: 1 | N82: 1 | O82: 1
A83: LBE | B83: NPA Capture Rate | C83: Copaxone 20
A84: LBE | B84: NPA Capture Rate | C84: Copaxone 40
A85: LBE | B85: NPA Capture Rate | C85: Azilect | D85: 0.9 | E85: 0.9 | F85: 0.9 | G85: 0.9 | H85: 0.9 | I85: 0.9 | J85: 0.9 | K85: 0.9 | L85: 0.9 | M85: 0.9 | N85: 0.9 | O85: 0.9
A86: LBE | B86: TRx Forecast | C86: Nuvigil
A87: LBE | B87: TRx Forecast | C87: Amrix
A88: LBE | B88: TRx Forecast | C88: Fentora
A89: LBE | B89: TRx Forecast | C89: Actiq
A90: LBE | B90: TRx Forecast | C90: Gabitril
A91: LBE | B91: TRx Forecast | C91: Provigil
A92: LBE | B92: TRx Forecast | C92: Copaxone 20
A93: LBE | B93: TRx Forecast | C93: Copaxone 40
A94: LBE | B94: TRx Forecast | C94: Azilect
A95: LBE | B95: TRx Forecast | C95: Zecuity
C104: Trx Goals | D104: 20mg | E104: 52409 | F104: 51873 | G104: 42206 | H104: 17802
D105: 40mg | E105: 96196 | F105: 114159 | G105: 114719 | H105: 128099
C108: Actual | D108: 18798 | E108: =(E104-D108)/2 -> 16805.5 | F108: =F104/3 -> 17291 | G108: =G104/3 -> 14068.66667 | H108: 5934
D109: 31743 | E109: =(E105-D109)/2 -> 32226.5 | F109: =F105/3 -> 38053 | G109: =G105/3 -> 38239.66667 | H109: 42699.66667

Sheet IMS Data (hidden)
C1: QTD | D1: =SUM(D4:D16) -> 6125 | E1: =SUM(E4:E16) -> 5515 | F1: 417 | G1: 36 | H1: 645 | I1: 920 | J1: 2909 | K1: 16303 | L1: 13505 | M1: 0 | AA1: Weeks In | AB1: 40 | AD1: Weeks Left | AE1: =52-AB1 -> 12
D3: Nuvigil | E3: Amrix | F3: Fentora | G3: Actiq | H3: Gabitril | I3: Provigil | J3: Copaxone 20 | K3: Copaxone 40 | L3: Azilect | M3: Zecuity | O3: Fentora EUTRx | AA3: Nuvigil | AB3: Amrix | AC3: Fentora | AD3: Actiq | AE3: Gabitril | AF3: Provigil
C4: 2017-01-06 | D4: 3043 | E4: 2653 | F4: 204 | G4: 18 | H4: 311 | I4: 467 | J4: 1415 | K4: 7873 | L4: 8291 | M4: 0 | O4: 20084 | AA4: =AVERAGE(D4:D55) -> 3062.5 | AB4: 2757.5 | AC4: 208.5 | AD4: 18 | AE4: 322.5 | AF4: 460
C5: =C4+7 -> 2017-01-13 | D5: 3082 | E5: 2862 | F5: 213 | G5: 18 | H5: 334 | I5: 453 | J5: 1494 | K5: 8430 | L5: 5214 | M5: 0 | O5: 20862 | Z5: Units Per Trx | AA5: 34 | AB5: 33 | AC5: 97 | AD5: 117 | AE5: 117 | AF5: 51
C6: =C5+7 -> 2017-01-20 | Z6: Units per bottle | AA6: 30 | AB6: 60 | AC6: 28 | AD6: 30 | AE6: 30 | AF6: 30
C7: 2017-01-27 | Z7: ASP | AA7: 533 | AB7: 1591 | AC7: 2242 | AD7: 2847 | AE7: 240 | AF7: 1104
C8: 2017-02-03 | Z8: Capture | AA8: 0.96 | AB8: 0.95 | AC8: 0.95 | AD8: 0.95 | AE8: 0.95 | AF8: 0.95
C9: 2017-02-10 | Z9: Trx demand | AA9: =AA$4*AA$5/AA$6*AA$7/AA8*51 -> 98278815.1 | AB9: =AB$4*AB$5/AB$6*AB$7/AB8*51 -> 129537335.9 | AC9: 86936457.86 | AD9: 10729294.11 | AE9: 16205115.79 | AF9: 46347082.11
C10: 2017-02-17
C11: 2017-02-24 | Y11: 4 week average
C12: 2017-03-03 | AB12: =SUM(E30:E33)/4*33/60/0.9 -> 0 | AC12: =SUM(F30:F33)/4*95/28/0.9 -> 0
C13: 2017-03-10 | AB13: =AB4*AB5/AB6 -> 1516.625
C14: 2017-03-17 | AB14: =AB13*1628*21 -> 51850375.5
C15: 2017-03-24
C16: 2017-03-31 | AB16: 1527
C17: 2017-04-07 | AB17: 1656
C18: 2017-04-14 | AB18: =AVERAGE(AB16:AB17) -> 1591.5
C19: 2017-04-21
C20: 2017-04-28
C21: 2017-05-05
C22: 2017-05-12
C23: 2017-05-19
C24: 2017-05-26
C25: 2017-06-02
C26: 2017-06-09
C27: 2017-06-16
C28: 2017-06-23
C29: 2017-06-30
C30: 2017-07-07
C31: 2017-07-14
C32: 2017-07-21
C33: 2017-07-28
C34: 2017-08-04
C35: 2017-08-11
C36: 2017-08-18
C37: 2017-08-25
C38: 2017-09-01
C39: 2017-09-08
C40: 2017-09-15
C41: 2017-09-22
C42: 2017-09-29
C43: 2017-10-06
C44: 2017-10-13
C45: 2017-10-20
C46: 2017-10-27
C47: 2017-11-03
C48: 2017-11-10
C49: 2017-11-17
C50: 2017-11-24
C51: 2017-12-01
C52: 2017-12-08
C53: 2017-12-15
C54: 2017-12-22
C55: 2017-12-29
C56: 2018-01-05
D58: =SUM(D43:D55) -> 0 | E58: =SUM(E43:E55) -> 0 | F58: 0 | G58: 0 | H58: 0 | I58: 0 | J58: 0 | K58: 0 | L58: 0

Sheet Split Month Calcs (hidden)
A3: Month | B3: Week | D3: Nuvigil | E3: Amrix | F3: Fentora | G3: Actiq | H3: Gabitril | I3: Provigil | J3: Copaxone 20 | K3: Copaxone 40 | L3: Azilect | M3: Zecuity
A4: =MONTH(C4) -> 1 | B4: 1 | C4: 2017-01-06 | D4: ='IMS Data'!D4 -> 3043 | E4: ='IMS Data'!E4 -> 2653 | F4: ='IMS Data'!F4 -> 204 | G4: ='IMS Data'!G4 -> 18 | H4: ='IMS Data'!H4 -> 311 | I4: ='IMS Data'!I4 -> 467 | J4: ='IMS Data'!J4 -> 1415 | K4: ='IMS Data'!K4 -> 7873 | L4: ='IMS Data'!L4 -> 8291 | M4: ='IMS Data'!M4 -> 0
A5: =MONTH(C5) -> 1 | B5: 2 | C5: =C4+7 -> 2017-01-13 | D5: ='IMS Data'!D5 -> 3082 | E5: ='IMS Data'!E5 -> 2862 | F5: ='IMS Data'!F5 -> 213 | G5: ='IMS Data'!G5 -> 18 | H5: ='IMS Data'!H5 -> 334 | I5: ='IMS Data'!I5 -> 453 | J5: ='IMS Data'!J5 -> 1494 | K5: ='IMS Data'!K5 -> 8430 | L5: ='IMS Data'!L5 -> 5214 | M5: ='IMS Data'!M5 -> 0
A6: =MONTH(C6) -> 1 | B6: 3 | C6: =C5+7 -> 2017-01-20 | D6: ='IMS Data'!D6 -> 0 | E6: ='IMS Data'!E6 -> 0 | F6: ='IMS Data'!F6 -> 0 | G6: ='IMS Data'!G6 -> 0 | H6: ='IMS Data'!H6 -> 0 | I6: ='IMS Data'!I6 -> 0 | J6: ='IMS Data'!J6 -> 0 | K6: ='IMS Data'!K6 -> 0 | L6: ='IMS Data'!L6 -> 0 | M6: ='IMS Data'!M6 -> 0
A7: =MONTH(C7) -> 1 | B7: 4 | C7: 2017-01-27 | D7: ='IMS Data'!D7 -> 0 | E7: ='IMS Data'!E7 -> 0 | F7: ='IMS Data'!F7 -> 0 | G7: ='IMS Data'!G7 -> 0 | H7: ='IMS Data'!H7 -> 0 | I7: ='IMS Data'!I7 -> 0 | J7: ='IMS Data'!J7 -> 0 | K7: ='IMS Data'!K7 -> 0 | L7: ='IMS Data'!L7 -> 0 | M7: ='IMS Data'!M7 -> 0
A8: 1 | B8: 5 | C8: =C7+7 -> 2017-02-03 | D8: ='IMS Data'!D8*0.5 -> 0 | E8: ='IMS Data'!E8*0.5 -> 0 | F8: ='IMS Data'!F8*0.5 -> 0 | G8: ='IMS Data'!G8*0.5 -> 0 | H8: ='IMS Data'!H8*0.5 -> 0 | I8: ='IMS Data'!I8*0.5 -> 0 | J8: ='IMS Data'!J8*0.5 -> 0 | K8: ='IMS Data'!K8*0.5 -> 0 | L8: ='IMS Data'!L8*0.5 -> 0 | M8: ='IMS Data'!M8*0.5 -> 0
A9: =MONTH(C9) -> 2 | B9: 5 | C9: =C7+7 -> 2017-02-03 | D9: ='IMS Data'!D8*0.5 -> 0 | E9: ='IMS Data'!E8*0.5 -> 0 | F9: ='IMS Data'!F8*0.5 -> 0 | G9: ='IMS Data'!G8*0.5 -> 0 | H9: ='IMS Data'!H8*0.5 -> 0 | I9: ='IMS Data'!I8*0.5 -> 0 | J9: ='IMS Data'!J8*0.5 -> 0 | K9: ='IMS Data'!K8*0.5 -> 0 | L9: ='IMS Data'!L8*0.5 -> 0 | M9: ='IMS Data'!M8*0.5 -> 0
A10: =MONTH(C10) -> 2 | B10: 6 | C10: =C8+7 -> 2017-02-10 | D10: ='IMS Data'!D9 -> 0 | E10: ='IMS Data'!E9 -> 0 | F10: ='IMS Data'!F9 -> 0 | G10: ='IMS Data'!G9 -> 0 | H10: ='IMS Data'!H9 -> 0 | I10: ='IMS Data'!I9 -> 0 | J10: ='IMS Data'!J9 -> 0 | K10: ='IMS Data'!K9 -> 0 | L10: ='IMS Data'!L9 -> 0 | M10: ='IMS Data'!M9 -> 0
A11: =MONTH(C11) -> 2 | B11: 7 | C11: 2017-02-17 | D11: ='IMS Data'!D10 -> 0 | E11: ='IMS Data'!E10 -> 0 | F11: ='IMS Data'!F10 -> 0 | G11: ='IMS Data'!G10 -> 0 | H11: ='IMS Data'!H10 -> 0 | I11: ='IMS Data'!I10 -> 0 | J11: ='IMS Data'!J10 -> 0 | K11: ='IMS Data'!K10 -> 0 | L11: ='IMS Data'!L10 -> 0 | M11: ='IMS Data'!M10 -> 0
A12: =MONTH(C12) -> 2 | B12: 8 | C12: 2017-02-24 | D12: ='IMS Data'!D11 -> 0 | E12: ='IMS Data'!E11 -> 0 | F12: ='IMS Data'!F11 -> 0 | G12: ='IMS Data'!G11 -> 0 | H12: ='IMS Data'!H11 -> 0 | I12: ='IMS Data'!I11 -> 0 | J12: ='IMS Data'!J11 -> 0 | K12: ='IMS Data'!K11 -> 0 | L12: ='IMS Data'!L11 -> 0 | M12: ='IMS Data'!M11 -> 0
A13: 2 | B13: 9 | C13: 2017-03-03 | D13: ='IMS Data'!D12*0.5 -> 0 | E13: ='IMS Data'!E12*0.5 -> 0 | F13: ='IMS Data'!F12*0.5 -> 0 | G13: ='IMS Data'!G12*0.5 -> 0 | H13: ='IMS Data'!H12*0.5 -> 0 | I13: ='IMS Data'!I12*0.5 -> 0 | J13: ='IMS Data'!J12*0.5 -> 0 | K13: ='IMS Data'!K12*0.5 -> 0 | L13: ='IMS Data'!L12*0.5 -> 0 | M13: ='IMS Data'!M12*0.5 -> 0
A14: =MONTH(C14) -> 3 | B14: 9 | C14: =C12+7 -> 2017-03-03 | D14: ='IMS Data'!D12*0.5 -> 0 | E14: ='IMS Data'!E12*0.5 -> 0 | F14: ='IMS Data'!F12*0.5 -> 0 | G14: ='IMS Data'!G12*0.5 -> 0 | H14: ='IMS Data'!H12*0.5 -> 0 | I14: ='IMS Data'!I12*0.5 -> 0 | J14: ='IMS Data'!J12*0.5 -> 0 | K14: ='IMS Data'!K12*0.5 -> 0 | L14: ='IMS Data'!L12*0.5 -> 0 | M14: ='IMS Data'!M12*0.5 -> 0
A15: =MONTH(C15) -> 3 | B15: 10 | C15: 2017-03-10 | D15: ='IMS Data'!D13 -> 0 | E15: ='IMS Data'!E13 -> 0 | F15: ='IMS Data'!F13 -> 0 | G15: ='IMS Data'!G13 -> 0 | H15: ='IMS Data'!H13 -> 0 | I15: ='IMS Data'!I13 -> 0 | J15: ='IMS Data'!J13 -> 0 | K15: ='IMS Data'!K13 -> 0 | L15: ='IMS Data'!L13 -> 0 | M15: ='IMS Data'!M13 -> 0
A16: 3 | B16: 11 | C16: 2017-03-17 | D16: ='IMS Data'!D14 -> 0 | E16: ='IMS Data'!E14 -> 0 | F16: ='IMS Data'!F14 -> 0 | G16: ='IMS Data'!G14 -> 0 | H16: ='IMS Data'!H14 -> 0 | I16: ='IMS Data'!I14 -> 0 | J16: ='IMS Data'!J14 -> 0 | K16: ='IMS Data'!J14 -> 0 | L16: ='IMS Data'!K14 -> 0 | M16: ='IMS Data'!M14 -> 0
A17: 3 | B17: 12 | C17: 2017-03-24 | D17: ='IMS Data'!D15 -> 0 | E17: ='IMS Data'!E15 -> 0 | F17: ='IMS Data'!F15 -> 0 | G17: ='IMS Data'!G15 -> 0 | H17: ='IMS Data'!H15 -> 0 | I17: ='IMS Data'!I15 -> 0 | J17: ='IMS Data'!J15 -> 0 | K17: ='IMS Data'!K15 -> 0 | L17: ='IMS Data'!L15 -> 0 | M17: ='IMS Data'!M15 -> 0
A18: 3 | B18: 13 | C18: =C17+7 -> 2017-03-31 | D18: ='IMS Data'!D16 -> 0 | E18: ='IMS Data'!E16 -> 0 | F18: ='IMS Data'!F16 -> 0 | G18: ='IMS Data'!G16 -> 0 | H18: ='IMS Data'!H16 -> 0 | I18: ='IMS Data'!I16 -> 0 | J18: ='IMS Data'!J16 -> 0 | K18: ='IMS Data'!K16 -> 0 | L18: ='IMS Data'!L16 -> 0 | M18: ='IMS Data'!M16 -> 0
A19: 4 | B19: 14 | C19: 2017-04-07 | D19: ='IMS Data'!D17 -> 0 | E19: ='IMS Data'!E17 -> 0 | F19: ='IMS Data'!F17 -> 0 | G19: ='IMS Data'!G17 -> 0 | H19: ='IMS Data'!H17 -> 0 | I19: ='IMS Data'!I17 -> 0 | J19: ='IMS Data'!J17 -> 0 | K19: ='IMS Data'!K17 -> 0 | L19: ='IMS Data'!L17 -> 0 | M19: ='IMS Data'!M17 -> 0
A20: 4 | B20: 15 | C20: 2017-04-14 | D20: ='IMS Data'!D18 -> 0 | E20: ='IMS Data'!E18 -> 0 | F20: ='IMS Data'!F18 -> 0 | G20: ='IMS Data'!G18 -> 0 | H20: ='IMS Data'!H18 -> 0 | I20: ='IMS Data'!I18 -> 0 | J20: ='IMS Data'!J18 -> 0 | K20: ='IMS Data'!K18 -> 0 | L20: ='IMS Data'!L18 -> 0 | M20: ='IMS Data'!M18 -> 0
A21: 4 | B21: 16 | C21: 2017-04-21 | D21: ='IMS Data'!D19 -> 0 | E21: ='IMS Data'!E19 -> 0 | F21: ='IMS Data'!F19 -> 0 | G21: ='IMS Data'!G19 -> 0 | H21: ='IMS Data'!H19 -> 0 | I21: ='IMS Data'!I19 -> 0 | J21: ='IMS Data'!J19 -> 0 | K21: ='IMS Data'!K19 -> 0 | L21: ='IMS Data'!L19 -> 0 | M21: ='IMS Data'!M19 -> 0
A22: 4 | B22: 17 | C22: 2017-04-28 | D22: ='IMS Data'!D20 -> 0 | E22: ='IMS Data'!E20 -> 0 | F22: ='IMS Data'!F20 -> 0 | G22: ='IMS Data'!G20 -> 0 | H22: ='IMS Data'!H20 -> 0 | I22: ='IMS Data'!I20 -> 0 | J22: ='IMS Data'!J20 -> 0 | K22: ='IMS Data'!K20 -> 0 | L22: ='IMS Data'!L20 -> 0 | M22: ='IMS Data'!M20 -> 0
A23: 5 | B23: 18 | C23: =C22+7 -> 2017-05-05 | D23: ='IMS Data'!D21 -> 0 | E23: ='IMS Data'!E21 -> 0 | F23: ='IMS Data'!F21 -> 0 | G23: ='IMS Data'!G21 -> 0 | H23: ='IMS Data'!H21 -> 0 | I23: ='IMS Data'!I21 -> 0 | J23: ='IMS Data'!J21 -> 0 | K23: ='IMS Data'!K21 -> 0 | L23: ='IMS Data'!L21 -> 0 | M23: ='IMS Data'!M21 -> 0
A24: 5 | B24: 19 | C24: 2017-05-12 | D24: ='IMS Data'!D22 -> 0 | E24: ='IMS Data'!E22 -> 0 | F24: ='IMS Data'!F22 -> 0 | G24: ='IMS Data'!G22 -> 0 | H24: ='IMS Data'!H22 -> 0 | I24: ='IMS Data'!I22 -> 0 | J24: ='IMS Data'!J22 -> 0 | K24: ='IMS Data'!K22 -> 0 | L24: ='IMS Data'!L22 -> 0 | M24: ='IMS Data'!M22 -> 0
A25: 5 | B25: 20 | C25: 2017-05-19 | D25: ='IMS Data'!D23 -> 0 | E25: ='IMS Data'!E23 -> 0 | F25: ='IMS Data'!F23 -> 0 | G25: ='IMS Data'!G23 -> 0 | H25: ='IMS Data'!H23 -> 0 | I25: ='IMS Data'!I23 -> 0 | J25: ='IMS Data'!J23 -> 0 | K25: ='IMS Data'!K23 -> 0 | L25: ='IMS Data'!L23 -> 0 | M25: ='IMS Data'!M23 -> 0
A26: 5 | B26: 21 | C26: 2017-05-26 | D26: ='IMS Data'!D24 -> 0 | E26: ='IMS Data'!E24 -> 0 | F26: ='IMS Data'!F24 -> 0 | G26: ='IMS Data'!G24 -> 0 | H26: ='IMS Data'!H24 -> 0 | I26: ='IMS Data'!I24 -> 0 | J26: ='IMS Data'!J24 -> 0 | K26: ='IMS Data'!K24 -> 0 | L26: ='IMS Data'!L24 -> 0 | M26: ='IMS Data'!M24 -> 0
A27: 5 | B27: 22 | C27: 2017-06-02 | D27: ='IMS Data'!D25*0.5 -> 0 | E27: ='IMS Data'!E25*0.5 -> 0 | F27: ='IMS Data'!F25*0.5 -> 0 | G27: ='IMS Data'!G25*0.5 -> 0 | H27: ='IMS Data'!H25*0.5 -> 0 | I27: ='IMS Data'!I25*0.5 -> 0 | J27: ='IMS Data'!J25*0.5 -> 0 | K27: ='IMS Data'!K25*0.5 -> 0 | L27: ='IMS Data'!L25*0.5 -> 0 | M27: ='IMS Data'!M25*0.5 -> 0
A28: 6 | B28: 22 | C28: =C26+7 -> 2017-06-02 | D28: ='IMS Data'!D25*0.5 -> 0 | E28: ='IMS Data'!E25*0.5 -> 0 | F28: ='IMS Data'!F25*0.5 -> 0 | G28: ='IMS Data'!G25*0.5 -> 0 | H28: ='IMS Data'!H25*0.5 -> 0 | I28: ='IMS Data'!I25*0.5 -> 0 | J28: ='IMS Data'!J25*0.5 -> 0 | K28: ='IMS Data'!K25*0.5 -> 0 | L28: ='IMS Data'!L25*0.5 -> 0 | M28: ='IMS Data'!M25*0.5 -> 0
A29: 6 | B29: 23 | C29: =C27+7 -> 2017-06-09 | D29: ='IMS Data'!D26 -> 0 | E29: ='IMS Data'!E26 -> 0 | F29: ='IMS Data'!F26 -> 0 | G29: ='IMS Data'!G26 -> 0 | H29: ='IMS Data'!H26 -> 0 | I29: ='IMS Data'!I26 -> 0 | J29: ='IMS Data'!J26 -> 0 | K29: ='IMS Data'!K26 -> 0 | L29: ='IMS Data'!L26 -> 0 | M29: ='IMS Data'!M26 -> 0
